{"text_format":"3","workbook":"xlsx","n_sheets":3,"sheets":["cstpcd2016收录情况","Sheet2","Sheet3"],"not_rendered":{"external_links":2,"defined_names":1},"read":"whole","date_system":"1900"}

{"sheet":"cstpcd2016收录情况","index":0,"n_rows":948,"n_cols":16,"rows_kept":948}
["刊名","第一作者","第一作者身份","所有作者","通讯作者","第一教师作者","学院","导师","单位","题名","年","卷","期","页码","基金","文献类型"]
["中国矿业大学学报","杨智峰","学生","杨智峰;曾溅辉;冯枭;冯森;张译丹;乔俊程",null,"曾溅辉",{"$f":"VLOOKUP(F2,[1]Sheet1!$B$2:$C$1437,2,FALSE)","v":"地球科学学院"},null,"中国石油大学(北京)","致密砂岩储层小尺度非均质性与石油富集特征","2016","45","01","119-127","国家自然科学基金重点项目(40772088;41172128)","A"]
["地学前缘","陈冬霞","教师","陈冬霞;刘雨晨;庞雄奇;钟大康;孟昊;熊亮",null,"陈冬霞",{"$f":"VLOOKUP(F3,[1]Sheet1!$B$2:$C$1437,2,FALSE)","v":"地球科学学院"},null,"中国石油大学(北京)","川西坳陷须五段陆相页岩层系储层特征及对含气性的控制作用","2016","23","01","174-184","国家重点基础研究发展计划“973”项目(2011CB201102);国家自然科学基金项目(41472110)","A"]
["石油勘探与开发","周正龙","学生","周正龙;王贵文;冉冶;赖锦;崔玉峰;赵显令",null,"王贵文",{"$f":"VLOOKUP(F4,[1]Sheet1!$B$2:$C$1437,2,FALSE)","v":"地球科学学院"},null,"中国石油大学(北京)","致密油储集层岩性岩相测井识别方法——以鄂尔多斯盆地合水地区三叠系延长组7段为例","2016","43","01","61-68,83","国家科技重大专项(2016ZX05019005-006);国家自然科学基金(41472115)","A"]
["地球科学与环境学报","张汪明","学生","张汪明; 曾溅辉; 李飞; 赵芸黎; 张译丹",null,"曾溅辉",{"$f":"VLOOKUP(F5,[1]Sheet1!$B$2:$C$1437,2,FALSE)","v":"地球科学学院"},null,"中国石油大学(北京)","柴西地区古近系和新近系地层水化学特征及其成因","2016","38","04","558-568","中国地质调查局地质大调查项目(12120114009601)","A"]
["中国地质","冉冶","学生","冉冶;王贵文;周正龙;赖锦;代全齐;陈晶;范旭强;王抒忱",null,"王贵文",{"$f":"VLOOKUP(F6,[1]Sheet1!$B$2:$C$1437,2,FALSE)","v":"地球科学学院"},null,"中国石油大学(北京)","鄂尔多斯盆地合水地区长7致密油岩性岩相类型识别及其应用","2016","43","04","1331-1340","国家十二五科技重大专项(2011ZX05020-008)和国家自然科学基金(41472115)联合资助.Supported by National Key Science and Technology Special Projects of the Twelfth Five Year (2011ZX05020-008) and National Natural Science Foundation (No.41472115).","A"]
["吉林大学学报（地球科学版）","陈冬霞","教师","陈冬霞; 庞雄奇; 杨克明; 祝渭平; 严青霞",null,"陈冬霞",{"$f":"VLOOKUP(F7,[1]Sheet1!$B$2:$C$1437,2,FALSE)","v":"地球科学学院"},null,"中国石油大学(北京)","川西坳陷深层叠复连续型致密砂岩气藏成因及形成过程","2016","46","06","1611-1623","国家“973”计划项目（2011CB201102）；国家自然科学基金项目（41472110）Supported by Key Basic Research Program of China （2011CB201102）and National Natural Science Foundation of China （41472110）","A"]
["现代地质","李飞","学生","李飞;李少龙;曾溅辉;刘井旺;刘佳;葛黛薇;王阳;穆永晶",null,"曾溅辉",{"$f":"VLOOKUP(F8,[1]Sheet1!$B$2:$C$1437,2,FALSE)","v":"地球科学学院"},null,"中国石油大学(北京)","霸县凹陷牛驼镇凸起潜山内幕古流体和现今流体特征研究","2016","30","05","1115-1123,1133","国家科技重大专项(2011ZX05006-001);中国石油华北油田科技攻关项目(HBYT-YJY-2013-JS-223).","A"]
["东北石油大学学报","李飞","学生","李飞;曾溅辉;金凤鸣;刘井旺;赵智鹏;刘佳;葛黛薇;吴晨林",null,"曾溅辉",{"$f":"VLOOKUP(F9,[1]Sheet1!$B$2:$C$1437,2,FALSE)","v":"地球科学学院"},null,"中国石油大学(北京)","华北牛驼镇凸起潜山方解石脉体特征及流体响应","2016","40","06","44-52","国家科技重大专项(2011ZX05006-001);中国石油华北油田科技攻关项目(HBYT-YJY-2013-JS-223)","A"]
["沉积学报","冉冶","学生","冉冶;王贵文;赖锦;周正龙;崔玉峰;代全齐;陈晶;王抒忱",null,"王贵文",{"$f":"VLOOKUP(F10,[1]Sheet1!$B$2:$C$1437,2,FALSE)","v":"地球科学学院"},null,"中国石油大学(北京)","利用测井交会图法定量表征致密油储层成岩相——以鄂尔多斯盆地华池地区长7致密油储层为例","2016","34","04","694-706","国家科技重大专项(2011ZX05020-008);国家自然科学基金(41472115);China National Science and Technology Major Project,No.2011ZX05020-008;National Natural Science Foundation of China,No.41472115","A"]
["中南大学学报（自然科学版）","柴毓","学生","柴毓; 王贵文; 张晓涛;冉冶",null,"王贵文",{"$f":"VLOOKUP(F11,[1]Sheet1!$B$2:$C$1437,2,FALSE)","v":"地球科学学院"},null,"中国石油大学","川中安岳地区须二段致密砂岩储层孔隙结构特征及测井识别","2016","47","03","819-828","国家科技重大专项(2011ZX05020-008);中石油创新基金资助项目(2013D-5006-030) (Project(2011ZX05020-008)supported by National Major Scientific Research Program;Project(2013D-5006-030) supported by the Innovation Fund of China National Petroleum Corporation","A"]
["中国科学（地球科学）","宋到福","教师","宋到福; 王铁冠; 李美俊",null,"宋到福","地球科学学院",null,"中国石油大学(北京)","塔中地区中深1和中深1C井盐下寒武系油气地球化学特征及其油气源判识","2016","46","01","107-117","中国石油大学(北京)科研基金项目(编号:2462015YQ0101)资助","A"]
["中国沼气","曾勇","教师","曾勇;江皓;李江;聂红;丁江涛;周红军",null,"曾勇","地球科学学院",null,"中国石油大学(北京)","木质纤维预处理方法及基质的变化与检测","2016","34","01","50-57","国家高技术研究发展计划“863”计划(2012AA063507)","R"]
["化工进展","王伟","学生","王伟; 闫秀懿; 张磊; 周菁辉",null,"闫秀懿","地球科学学院",null,"中国石油大学(北京)","木质纤维素生物质水热液化的研究进展","2016","NULL","02","453-462","国家自然科学基金青年基金（51108458）及教育部留学回国人员科研启动基金（2011-1139）项目。","R"]
["地质通报","张敏","学生","张敏; 张枝焕; 欧光习; 尚长健; 黎琼",null,"张枝焕","地球科学学院",null,"中国石油大学(北京)","柴达木盆地西部古近系干柴沟组页岩储层特征","2016","35","02","329-338","中国地质调查局项目（编号1212011221045、12120113040000）","A"]
["天然气地球科学","杨福林","学生","杨福林; 王铁冠; 李美俊",null,"王铁冠","地球科学学院",null,"中国石油大学(北京)","塔里木台盆区寒武系烃源岩地球化学特征","2016","27","05","861-872","国家自然科学基金(编号:41272158)资助.","A"]
["微生物学通报","万云洋","教师","万云洋; 赵国屏",null,"万云洋","地球科学学院",null,"中国石油大学(北京)","原核微生物之杆菌和小杆菌","2016","43","06","1315-1332","National Natural Science Foundation of China (No.41373086,41373126);Beijing Higher Education Young Elite Teacher Project (No.YETP0670);Beijing Nova Program (No.XXJC201605)国家自然科学基金项目(No.41373086,41373126);北京市青年英才计划(No.YETP0670);北京","R"]
["西安石油大学学报（自然科学版）","杜治利","学生","杜治利; 刘洪军; 张枝焕",null,"张枝焕","地球科学学院",null,"中国石油大学(北京)","准噶尔盆地南缘中二叠统烃源岩地球化学特征","2016","31","03","1-7","国家科技重大专项项目(编号:2011ZX05002)","A"]
["高校地质学报","杨禄","学生","杨禄; 李美俊; 张春明",null,"李美俊","地球科学学院",null,"中国石油大学(北京)","生物降解作用对大宛齐油田库车组原油轻烃参数的影响","2016","22","03","549-554","国家自然科学基金项目（41272158；41172136）；油气资源与探测国家重点实验室项目（PRP/indep-2-1302）；油气资源与探测国家重点实验室开放基金（PRP/open-1503）资助","A"]
["天然气地球科学","杨禄","学生","杨禄; 张春明; 李美俊; 卞龙; 余兴",null,"李美俊","地球科学学院",null,"中国石油大学(北京)","Mango轻烃参数在塔里木盆地大宛齐油田中的应用","2016","27","08","1524-1531","国家自然科学基金项目(编号:41272158;41172136);油气资源与探测国家重点实验室项目(编号:PRP/indep-2-1302)联合资助.","A"]
["微生物学杂志","万云洋","教师","万云洋; 费佳佳; 赵国屏",null,"万云洋","地球科学学院",null,"中国石油大学(北京)","原核微生物之竿菌","2016","36","03","73-79","国家自然科学基金项目(41373086,41373126);北京市青年英才计划(YETP0670);北京市科技新星交叉合作课题(XXJC201605)","R"]
["微生物学杂志","万云洋","教师","万云洋; 赵国屏",null,"万云洋","地球科学学院",null,"中国石油大学(北京)","原核微生物之菌和微菌","2016","36","04","71-75","国家自然科学基金项目(41373086,41373126);国家重大科技专项(2016ZX05050011,2016ZX05040002-006);北京市青年英才计划(YETP0670);北京市科技新星交叉合作课题(XXJC201605)","R"]
["沉积学报","杨程宇","学生","杨程宇; 李美俊; 倪智勇; 杨福林; 陈昊卫",null,"李美俊","地球科学学院",null,"中国石油大学(北京)","塔里木盆地西北缘玉尔吐斯组硅质岩成因及石油地质意义","2016","34","04","653-661","国家科技重大专项(2011ZX05008-003,2011ZX05008-003-20);China National Science and Technology Major Project,No.2011ZX05008-003,2011ZX05008-003-20","A"]
["沉积学报","宋爽","学生","宋爽;朱筱敏;于福生;葛家旺;史亚会;贺敬聪;袁立忠;刘军",null,"朱筱敏","地球科学学院",null,"中国石油大学(北京)","珠江口盆地长昌—鹤山凹陷古近系沉积—构造耦合关系","2016","34","02","222-235","国家油气重大专项课题(2011ZX05025-005,2011ZX05001-002);国家自然科学基金项目(41272133);National Major Projects of Oil and Gas, No.2011ZX05025-005, 2011ZX05001-002;National Natural Science Foundation of China, No.41272133","A"]
["天然气地球科学","赵建华","学生","赵建华;金之钧;金振奎;温馨;耿一凯;颜彩娜",null,"金振奎","地球科学学院",null,"中国石油大学(北京)","四川盆地五峰组—龙马溪组含气页岩中石英成因研究","2016","27","02","377-386","中国石化科技攻关项目“川东地区龙马溪组页岩气富集规律与分布预测”(编号:G5800-14-ZS-KJB158)资助.","A"]
["石油学报","赵建华","学生","赵建华;金之钧;金振奎;温馨;耿一凯;颜彩娜;聂海宽",null,"金振奎","地球科学学院",null,"中国石油大学(北京)","四川盆地五峰组—龙马溪组页岩岩相类型与沉积环境","2016","37","05","572-586","中国博士后科学基金《富有机质页岩中自生石英成因机制及对页岩气勘探的意义》(No.2016M591350)、国家自然科学基金项目《高热演化条件下页岩气聚集机理和评价方法研究》(No.41202103)和中国石油化工股份有限公司科技攻关项目《川东地区龙马溪组页岩气富集规律与分布预测 ","A"]
["古地理学报","王星星","学生","王星星;朱筱敏;宋爽;吴陈冰洁;贺敬聪;曹刚",null,"朱筱敏","地球科学学院",null,"中国石油大学(北京)","渤海湾盆地车西洼陷陡坡带古近系沙河街组沙三下段“源-汇”系统","2016","18","01","65-79","国家油气重大专项子课题(编号:2011ZX05009-002,2012ZX05001-002)、国家自然科学基金项目(编号:41272133)、国家自然科学基金青年科学基金项目(编号:41202107)联合资助.[Co-funded by the subproject of National Significant Petroleum Special Projects of China (No.20","A"]
["古地理学报","孟昊","学生","孟昊;钟大康;李超;周军良;秦刚;刘云龙;刘珂茹",null,"钟大康","地球科学学院",null,"中国石油大学(北京)","渤海湾盆地渤中坳陷渤中25－1油田古近系沙河街组沙二段沉积相及演化","2016","18","02","161-172","国家自然科学基金项目（编号41302108）、国家“973”项目（编号2011CB201104）、中国石油大学（北京）科研基金（编号KYJJ2012－01－18）共同资助。［Co-funded by the National Natural Science Foundation of China（Grant No.41302108），the National Program on Key","A"]
["岩石学报","杨克基","学生","杨克基;漆家福;余一欣;马宝军;平英奇;徐长贵",null,"漆家福","地球科学学院",null,"中国石油大学(北京)","辽中凹陷反转构造及其对郯庐断裂带走滑活动的响应","2016","32","04","1182-1196","本文受国家自然科学基金项目(40372072、41572202)资助.","A"]
["中国矿业大学学报","毛亚昆","学生","毛亚昆;钟大康;李勇;闫婷;王点;刘云龙;路昭",null,"钟大康","地球科学学院",null,"中国石油大学(北京)","库车前陆冲断带白垩系中-深层砂岩储层孔渗关系及控制因素","2016","45","06","1184-1192","国家科技重大专项(2011ZX05003-004);国家重点基础研究发展计划(973)项目(2011CB201104);国家自然科学基金项目(41302108)","A"]
["天然气地球科学","杨宪彰","学生","杨宪彰;毛亚昆;钟大康;李勇;能源;孙海涛;刘云龙",null,"钟大康","地球科学学院",null,"中国石油大学(北京)","构造挤压对砂岩储层垂向分布差异的控制——以库车前陆冲断带白垩系巴什基奇克组为例","2016","27","04","591-599","国家科技重大专项(编号:2011ZX05003-004);国家重点基础研究发展计划(“973”)项目(编号:2011CB201104;2011CB201106);国家自然科学基金项目(编号:41302108)联合资助.","A"]
["古地理学报","金振奎","教师","金振奎; 石良; 闫伟; 朱小二; 彭飚",null,"金振奎","地球科学学院",null,"中国石油大学(北京)","沉积和成岩因素对碎屑岩储集层质量贡献率的定量分析方法--单因素比较法","2016","18","04","535-544","国家重大科技专项“油气勘探领域储集层地质与油气评价”（编号2009ZX05009－002）项目资助。［Financially suppored by National Science and Technology Major Projects of “Reservoir geology and oil and gas evaluation in the field of oil and gas exploration”","A"]
["地球科学与环境学报","苗钱友","学生","苗钱友;朱筱敏;姜振学;李卓;陈磊;张昆;原园",null,"朱筱敏","地球科学学院",null,"中国石油大学(北京)","传统油气地质理论的突破与创新及非常规油气资源潜力","2016","38","04","505-516","国家重点基础研究发展计划(“九七三”计划)项目(2014CB239105)；国家自然科学基金项目(41472112)","A"]
["地球科学与环境学报","孙晶","教师","孙晶; 谢庆宾",null,"孙晶","地球科学学院",null,"中国石油大学(北京)","西伯利亚雅库特地区岩石圈地幔特征","2016","38","04","517-526","中国石油大学(北京)引进人才科研启动基金项目(2462015YJRC021)","A"]
["石油实验地质","赵建华","学生","赵建华;金之钧;金振奎;杜伟;温馨;耿一凯",null,"金振奎","地球科学学院",null,"中国石油大学(北京)","岩石学方法区分页岩中有机质类型","2016","38","04","514-520,527","中国博士后科学基金（2016M591350）资助。","A"]
["天然气地球科学","杨克基","学生","杨克基;漆家福;余一欣;平英奇;高强;吕继",null,"漆家福","地球科学学院",null,"中国石油大学(北京)","辽东湾地区潜山差异演化及成藏条件分析","2016","27","06","1014-1024","国家自然科学基金项目(编号:41472117;91114202);中国石油大学(北京)基金项目(编号:KYJJ2012-01-11)联合资助.","A"]
["岩性油气藏","陈贺贺","学生","陈贺贺; 朱筱敏; 陈纯芳; 尹伟",null,"朱筱敏","地球科学学院",null,"中国石油大学(北京)","鄂尔多斯盆地彬长区块延长组生储盖组合与油气富集特征","2016","28","02","56-63","国家油气重大专项“中西部重点碎屑岩领域油气富集规律与分布预测”(编号:2011ZX05002-006)和“岩性地层油气藏沉积体系、储层形成机理与分布研究”(编号:2011ZX05001-002-01)联合资助","A"]
["石油地球物理勘探","杨克基","学生","杨克基;漆家福;余一欣;平英奇;张晨;高强",null,"漆家福","地球科学学院",null,"中国石油大学(北京)","渤海湾地区断层相关褶皱及其油气地质意义","2016","51","03","625-636","本项研究受国家自然科学基金项目(41472117,91114202)及中国石油大学(北京)基金项目(KYJJ2012-01-11)联合资助.","A"]
["天然气地球科学","孟昊","学生","孟昊;任影;钟大康;高崇龙;高宙;王点;姜杨锦丰;李谨杰",null,"钟大康","地球科学学院",null,"中国石油大学(北京)","四川盆地东部寒武系龙王庙组地球化学特征及其古环境意义","2016","27","07","1299-1311","国家自然科学基金项目(编号:41472094;4302108)资助．","A"]
["石油学报","高白水","学生","高白水; 金振奎; 朱小二; 魏凯; 伊硕",null,"金振奎","地球科学学院",null,"中国石油大学(北京)","哈萨克斯坦扎纳诺尔油田石炭系碳酸盐岩浅滩沉积模式及诸层质量差异机理","2016","37","07","867-877","国家重点基础研究发展计划(973)项目(2006CB202300)资助.","A"]
["地质学报","赖锦","教师","赖锦;王贵文;王迪;周正龙;冉冶;陈晶;王抒忱;张晓涛",null,"赖锦","地球科学学院",null,"中国石油大学(北京)","川中地区上三叠统须家河组成岩层序地层学特征","2016","90","06","1236-1252","本文为国家大型油气田及煤层气开发科技重大专项“低渗透碎屑岩储层品质与岩石物理相测井评价方法”(编号2011ZX05020-008,2016ZX05019-005-007)、国家自然科学基金项目“致密砂岩储层成岩相测井识别方法研究”(编号41472115)和中国石油集团科技创新基金项目“致密砂砾岩 ","A"]
["岩性油气藏","陈锋","学生","陈锋; 朱筱敏; 葛家旺; 黎明; 吴陈冰洁",null,"朱筱敏","地球科学学院",null,"中国石油大学(北京)","珠江口盆地陆丰南地区文昌组层序地层及沉积体系研究","2016","28","04","67-77,94","国家科技部油气重大专项“岩性地层油气藏沉积体系、储层形成机理与分布研究”(编号:2011ZX05001-002)与国家油气重大专项“海洋深水区油气勘探关键技术”(编号:2011ZX05025-005-02)联合资助","A"]
["地层学杂志","孟昊","学生","孟昊;钟大康;李卓沛;刘云龙;赵靖;杨越东",null,"钟大康","地球科学学院",null,"中国石油大学(北京)","川西坳陷中段上三叠统须家河组须五段层序格架与沉积相","2016","40","03","278-289","国家重点基础研究发展计划(973)项目子课题“中国西部叠合盆地深部有效碎屑岩储层成因机制与发育模式”(No.2011CB201104)资助.","A"]
["石油学报","任影","学生","任影;钟大康;高崇龙;杨雪琪;谢瑞;李卓沛;邓闵心;周勇成",null,"钟大康","地球科学学院",null,"中国石油大学(北京)","川东寒武系龙王庙组白云岩地球化学特征、成因及油气意义","2016","37","09","1102-1115","国家重点基础研究发展计划(973)项目(2011CB201104)和国家自然科学基金项目(No.41472094)资助.","A"]
["古地理学报","朱筱敏","教师","朱筱敏;李顺利;潘荣;谈明轩;陈贺贺;王星星;陈锋;张梦瑜;侯冰洁;董艳蕾",null,"朱筱敏","地球科学学院",null,"中国石油大学(北京)","沉积学研究热点与进展：第32届国际沉积学会议综述","2016","18","05","699-716","国家自然科学基金项目（编号：41272133）资助。［Financially supported by the National Natural Science Fundation of China（No.41272133）］","R"]
["海相油气地质","任影","学生","任影;钟大康;高崇龙;杨雪琪;李海洋;杨强;刘云龙;王玉",null,"钟大康","地球科学学院",null,"中国石油大学,北京","四川盆地东部下寒武统龙王庙组碳、氧同位素组成及古环境意义","2016","21","04","11-20","本文受国家自然科学基金项目“白音查干凹陷下白垩统腾格尔组白云岩成因机理研究”（项目编号41072104）资助","A"]
["天然气地球科学","耿一凯","学生","耿一凯;金振奎;赵建华;温馨;陈俊年;杜伟",null,"金振奎","地球科学学院",null,"中国石油大学(北京)","川东地区龙马溪组页岩黏土矿物组成与成因","2016","27","10","1933-1941","中国博士后科学基金(编号:2016M591350)资助．","A"]
["地球科学-中国地质大学学报","刘强虎","学生"," 刘强虎; 朱筱敏; 李顺利; 李慧勇; 石文龙",null,"朱筱敏","地球科学学院",null,"中国石油大学(北京)","沙垒田凸起前古近系基岩分布及源-汇过程","2016","41","11","1935-1949","国家自然科学基金项目(No.41272133).","A"]
["中国石油大学学报（自然科学版）","鲜本忠","教师","鲜本忠;王璐;刘建平;路智勇;李宇志;牛栓文;朱永飞;洪方浩",null,"鲜本忠","地球科学学院",null,"中国石油大学","东营凹陷东部始新世三角洲供给型重力流沉积特征与模式","2016","40","05","10-21","国家自然科学基金项目(41172104,41272133,41372117);国家油气重大专项(2011ZX05009-002,2011ZX05014-001);中国石油大学(北京)科研基金项目(KYJJ2012-01-06)","A"]
["古地理学报","刘建平","学生","刘建平;鲜本忠;王璐;路智勇;李宇志;刘赛君;蒋健",null,"鲜本忠","地球科学学院",null,"中国石油大学（北京）","渤海湾盆地东营凹陷始新世三角洲供给型重力流地震沉积学研究","2016","18","06","961-975","国家自然科学基金项目（编号41172104，41272133，41372117）、国家科技重大专项（编号2011 ZX05009－002，2011 ZX05014－001）联合资助。［Co-Funded by the National Natural Science Foundation of China （No．41172104，41272133，41372117） and National Science","A"]
["中国地质","苗全芸","学生","苗全芸;漆家福;肖阳;王利爽;曾婷;张洁",null,"漆家福","地球科学学院",null,"中国石油大学","二连盆地乌尼特坳陷伸展构造特征及成盆演化","2016","43","06","2036-2045","国家科技重大专项课题（2011ZX05009-001）、中国石油大学（北京）油气资源与探测国家重点实验室应用基础研究资助课题。","A"]
["新疆石油地质","余海波","学生","余海波;漆家福;杨宪彰;孙统;刘骐峣;曹淑娟",null,"漆家福","地球科学学院",null,"中国石油大学","塔里木盆地库车坳陷中生代原型盆地分析","2016","37","06","644-653,666","国家科技重大专项(2011ZX05003-004)","A"]
["大地构造与成矿学","陈书平","教师","陈书平; 韩煦; 黄新文",null,"陈书平","地球科学学院",null,"中国石油大学(北京)","东濮凹陷古近系伸展褶皱及形成机理","2016","40","05","908-918","国家自然科学基金项目(41172124)资助。","A"]
["沉积学报","谈明轩","学生","谈明轩; 朱筱敏; 耿名扬; 刘常妮",null,"朱筱敏","地球科学学院",null,"中国石油大学(北京)","沉积物重力流流体转化沉积—混合事件层","2016","34","06","1108-1119","国家科技重大专项(2016ZX05001002-006)[National Science and Technology Major Project,No.2016ZX05001002-006]","A"]
["高校地质学报","余海波","学生","余海波;漆家福;杨宪章;刘骐峣;曹淑娟;范绳;孙统;杨向阳",null,"漆家福","地球科学学院",null,"中国石油大学","塔里木盆地库车坳陷中生界构造古地理分析","2016","22","04","657-669","国家重大专项（2011ZX05003-004）的企业配套项目","A"]
["石油地球物理勘探","陈书平","教师","陈书平; 季弘莹; 李伟",null,"陈书平","地球科学学院",null,"中国石油大学(北京)","东濮凹陷铲式正断层回滑构造及油气意义","2016","51","04","831-840","本项研究受国家自然科学基金课题(41172124)资助.","A"]
["石油勘探与开发","朱筱敏","教师","朱筱敏;钟大康;袁选俊;张惠良;朱世发;孙海涛;高志勇;鲜本忠",null,"朱筱敏","地球科学学院",null,"中国石油大学(北京)","中国含油气盆地沉积地质学进展","2016","43","05","820-829","国家自然科学基金项目(41272133);国家科技部油气重大专项(2011ZX05001-002,2011ZX05009-002);国家重点基础研究发展计划(973)项目(2011CB201104)","R"]
["古地理学报","钟大康","教师","钟大康",null,"钟大康","地球科学学院",null,"中国石油大学(北京)","山地蚀源区的沉积类型及其相关概念的系统梳理与厘定","2016","18","03","335-348","国家自然科学基金项目（编号41472094O）部分成果。［Supported by the National Natural Science Foundation of China （No.41472094O）］","R"]
["古地理学报","朱筱敏","教师","朱筱敏;葛家旺;宋爽;汪瑞良;袁立忠;刘军",null,"朱筱敏","地球科学学院",null,"中国石油大学(北京)","南海北部长昌-鹤山凹陷渐新世陆架边缘三角洲-深水扇地震响应及形成条件","2016","18","03","367-380","国家油气重大专项项目（编号2011 ZX05025－005－02）资助。@@@@［Financially supported by National Science and Technology Major Projects of Oil and Gas （No.2011 ZX05025－005－02）］","A"]
["石油与天然气地质","陈石","学生","陈石; 郭召杰; 漆家福;邢向荣",null,"漆家福","地球科学学院",null,"中国石油大学(北京)","准噶尔盆地西北缘三期走滑构造及其油气意义","2016","37","03","322-331","国家自然科学基金项目(41502208).","A"]
["石油与天然气地质","张琴","教师","张琴;朱筱敏;李晨溪;乔李井宇;刘畅;梅啸寒;杜会尧;禄佳景",null,"朱筱敏","地球科学学院",null,"中国石油大学(北京)","渤海湾盆地沾化凹陷沙河街组富有机质页岩孔隙分类及孔径定量表征","2016","37","03","422-432,438","国家自然科学基金项目(41302081);教育部留学回国启动基金项目(ZX20140267).","A"]
["地质科技情报","蔡俊","学生","蔡俊; 吕修祥; 李博媛",null,"吕修祥","地球科学学院",null,"中国石油大学(北京)","横向断层及其控油气作用","2016","35","01","107-113","国家重点基础研究发展规划(\"973\")项目(2012CB214804);国家自然科学基金项目(4137214","A"]
["现代地质","余一欣","教师","余一欣;殷进垠;郑俊章;李锋;陶崇智;徐小龙;吴航",null,"余一欣","地球科学学院",null,"中国石油大学(北京)","中亚北乌斯丘尔特盆地成藏组合划分与资源潜力评价","2016","NULL","01","192-199","国家自然科学基金项目（41472117，41125010）；国家科技重大专项（2011ZX05031-001，2011ZX05029-002，2011ZX 05002-006）","A"]
["地质论评","窦文超","学生","窦文超; 刘洛夫; 吴康军; 徐正建",null,"刘洛夫","地球科学学院",null,"中国石油大学(北京)","基于压汞实验研究低渗储层孔隙结构及其对渗透率的影响——以鄂尔多斯盆地西南部三叠系延长组长7储层为例","2016","62","02","502-512","This paper is financially supported by the National Natural Science Fund Project of China (No.41372143) and the Specialized Research Fund for the Doctoral Program of Higher Education of Chinese Education Ministry (No.20130007110002).本文为国家自然科 ","A"]
["现代地质","王大鹏","学生","王大鹏;白国平;陆红梅;陶崇智;王一帆;张明辉;王文庸;卢小新;高琳;郭栋",null,"白国平","地球科学学院",null,"中国石油大学(北京)","扎格罗斯盆地含油气系统分析与资源潜力评价","2016","30","02","361-372","国家科技重大专项（2011 ZX05031－001－007HZ）。","A"]
["地球科学与环境学报","郭颖","学生","郭颖; 汤良杰; 余腾孝; 李九梅; 岳勇",null,"汤良杰","地球科学学院",null,"中国石油大学(北京)","塔里木盆地玛扎塔格断裂带构造特征及其油气地质意义","2016","38","01","104-114","国家自然科学基金项目(41572105,41172125);国家重点基础研究发展计划(“九七三”计划)项目(2012CB214804,2005CB422107);国家科技重大专项项目(2011ZX05002-003-001);中国石油化工股份有限公司项目(P14131,P11086)","A"]
["油气地质与采收率","贾京坤","学生","贾京坤;尹伟;邱楠生;陈纯芳;周末;缪巍",null,"邱楠生","地球科学学院",null,"中国石油大学(北京)","红河油田延长组长8段油气输导体系及运聚模式","2016","23","02","9-15","国家科技重大专项“中西部重点碎屑岩领域油气富集规律与分布预测”(2011ZX05002-006).","A"]
["工程科学学报","张凯逊","学生","张凯逊; 白国平; 曹斌风; 金凤鸣",null,"白国平","地球科学学院",null,"中国石油大学(北京)","深层碎屑岩含油气储层发育特征","2016","38","01","1-10","国家重大科技专项(2011ZX05006-005);国土资源部科技项目(2015YQKYQ0401)","A"]
["地球物理学报","曹环宇","学生","曹环宇; 朱传庆; 邱楠生",null,"朱传庆","地球科学学院",null,"中国石油大学(北京)","川东地区古生界主要泥页岩最高古温度特征","2016","59","03","1017-1029","国家重点基础研究发展计划(973)项目(2012CB214703)、国家自然科学基金项目(41125010)与中国石油科技创新基金项目(2013D-5006-0102)联合资助.","A"]
["天然气地球科学","向才富","教师","向才富;王绪龙;魏立春;李剑;梁天超;廖建德",null,"向才富","地球科学学院",null,"中国石油大学(北京)","准噶尔盆地克拉美丽气田天然气成因与运聚路径","2016","27","02","268-277","国家重点基础研究计划(“973”)项目(编号:2006CB202308;2011CB201100);国家科技重大专项(编号:2011ZX05007-002);国家自然科学基金项目(编号:40872097;41272161);中国石油大学油气资源与探测国家重点实验室开放基金(编号:KYJJ2012-01-12)联合资助.","A"]
["古地理学报","王大鹏","学生","王大鹏;白国平;徐艳;陈小亮;陶崇智;张明亮",null,"白国平","地球科学学院",null,"中国石油大学(北京)","全球古生界海相碳酸盐岩大油气田特征及油气分布","2016","18","01","80-92","国家科技重大专项(编号:2011ZX05005-001)资助.[Financially supported by the National Science and Technology Major Project (No.2011ZX05005-001)]","A"]
["石油学报","张凯逊","学生","张凯逊; 白国平; 金凤鸣; 王权",null,"白国平","地球科学学院",null,"中国石油大学(北京)","层序地层格架内成岩作用——以饶阳凹陷中南部沙河街组三段砂岩为例","2016","37","06","728-742","国家油气重大科技专项(2011ZX05006-005)和国土资源部油气中心科技项目(2015YQKYQ0401)资助.","A"]
["新疆石油地质","乔锦琪","学生","乔锦琪; 刘洛夫; 申宝剑; 胡青",null,"刘洛夫","地球科学学院",null,"中国石油大学(北京)","塔里木盆地奥陶系页岩气形成条件及有利区带预测","2016","37","04","409-416","国家自然科学基金(41372143);国家科技重大专项(2011ZX05003-001)","A"]
["天然气地球科学","万青青","学生","万青青;刘洛夫;肖飞;常敏;吴雅君;胡青",null,"刘洛夫","地球科学学院",null,"中国石油大学(北京)","准噶尔盆地车排子地区下白垩统清水河组储层成岩作用及物性影响因素","2016","27","07","1264-1276","国家科技重大专项(编号:2011ZX05003-001);国家自然科学基金(编号:41372143)联合资助．","A"]
["岩性油气藏","郭颖","学生","郭颖; 汤良杰; 倪金龙",null,"汤良杰","地球科学学院",null,"中国石油大学(北京)","碎屑岩地层压实规律及其在古构造恢复中的应用","2016","28","04","43-50","国家自然科学基金项目“塔里木盆地塔中隆起和塔中北坡走滑构造差异变形机理与油气聚集”(编号:41572105)和山东省自然科学基金项目“济阳坳陷惠民—东营凹陷中央隆起带差异隆升机制研究”(编号:ZR2013DM007)联合资助","A"]
["大地构造与成矿学","郭颖","学生","郭颖;汤良杰;余腾孝;田亚杰;岳勇;陈刚;龙禹",null,"汤良杰","地球科学学院",null,"中国石油大学(北京)","塔里木盆地塘古巴斯坳陷玛东构造带断裂特征及成因探讨","2016","40","04","643-653","国家自然科学基金项目(41572105,41172125)、国家重点基础研究发展计划973项目(2012CB214804)、国家科技重大专项(2011ZX05002-003-001)和中国石油化工股份有限公司项目(P14131, P11086)联合资助。","A"]
["成都理工大学学报（自然科学版）","冯旭","学生","冯旭;刘洛夫;窦文超;万青青;徐正建;吉海涛",null,"刘洛夫","地球科学学院",null,"中国石油大学(北京)","鄂尔多斯盆地西南部长7和长6-3致密砂岩成岩作用与成岩相","2016","43","04","476-486","国家自然科学基金(41372143)及教育部高等学校博士学科点专项科研基金(20130007110002)联合资助.","A"]
["天然气地球科学","刘一锋","学生","刘一锋; 邱楠生; 谢增业; 姚倩颖; 刘雯",null,"邱楠生","地球科学学院",null,"中国石油大学(北京)","川中古隆起寒武系超压形成与保存","2016","27","08","1439-1446","国家“973”项目(编号:2012CB214703);国家杰出青年基金项目“石油与天然气地质”(编号:41125010);国家科技重大专项研究专题“典型大气田形成的温压条件研究”(编号:2011ZX05007-002)联合资助.","A"]
["矿物岩石地球化学通报","乔锦琪","学生","乔锦琪; 刘洛夫; 尚晓庆; 李博一",null,"刘洛夫","地球科学学院",null,"中国石油大学(北京)","泥页岩中微量元素V、Ni、V/Ni与有机质丰度及成岩演化关系研究——以准噶尔盆地阜康凹陷为例","2016","35","04","756-768","","A"]
["矿物岩石地球化学通报","吕修祥","教师","吕修祥; 张艳萍; 敬兵;张春林",null,"吕修祥","地球科学学院",null,"中国石油大学(北京)","走滑断层弯曲破碎带特征及对深部岩溶储集层发育的控制作用","2016","35","05","839-850","国家科技重大专项（2011 ZX05008-003）；国家自然科学基金项目（41372146）","A"]
["石油实验地质","徐良伟","学生","徐良伟; 刘洛夫; 刘祖发; 孟召平",null,"刘洛夫","地球科学学院",null,"中国石油大学,北京","扬子地区古生界泥页岩吸附性及控制机理","2016","38","06","732-741","“十二五”国家科技重大专项“页岩气勘探开发关键技术”（2011ZX05003）、国家重点基础研究发展计划（973计划）项目（2012CB214705－02）和国家科技重大专项（2011ZX05008－002－41）联合资助。","A"]
["海相油气地质","雷志斌","学生","雷志斌;杨明慧;张厚和;廖宗宝;张少华;罗晓华",null,"杨明慧","地球科学学院",null,"中国石油大学,北京","南沙海域南部第三纪三角洲演化与油气聚集","2016","21","04","21-33","本文受国家科技重大科技专项“大型油气田及煤层气开发”的子课题“南沙海域大中型油气田成藏规律”(编号2011ZX05025-005-03)资助","A"]
["石油与天然气地质","张艳萍","学生","张艳萍;吕修祥;于红枫;敬兵;张春林;蔡俊",null,"吕修祥","地球科学学院",null,"中国石油大学(北京)","塔中隆起两组走滑断裂对岩溶储层发育的控制机制","2016","37","05","663-673","国家重点基础研究发展规划（973计划）项目（2012CB214804）；国家自然科学基金项目（41372146，41572100）。","A"]
["现代地质","于冬冬","学生","于冬冬; 汤良杰; 余一欣; 陈茜",null,"汤良杰","地球科学学院",null,"中国石油大学(北京)","川西和川东北地区差异构造演化及其对陆相层系天然气成藏的影响","2016","30","05","1085-1095","国家自然科学基金项目(41172125,40972090);国家科技重大专项项目(2011ZX05002-006-007HZ,2011ZX05002-003-001,2011ZX05029-002);国家“973”计划项目(2012CB214804).","A"]
["古地理学报","张凯逊","学生","张凯逊;白国平;王权;牛新杰;李秋伟;卢小新",null,"白国平","地球科学学院",null,"中国石油大学（北京）","致密砂岩储集层成岩相的测井识别与评价：以冀中坳陷饶阳凹陷古近系沙河街组三段为例","2016","18","06","921-938","国家科技重大专项（编号2011 ZX05006－005）和国土资源部油气中心科技项目（编号2015YQKYQ0401）联合资助。［Co-funded by National Science and Technology Major Project （No．2011 ZX05006－005）and Science Project of Strategic Research Center of Oil and Gas","A"]
["矿物岩石地球化学通报","周圆圆","学生","周圆圆;邱楠生;腾格尔;王杰;曹涛涛;罗厚勇",null,"邱楠生","地球科学学院",null,"中国石油大学,北京","茂名油柑窝组油页岩元素地球化学特征及其地质意义","2016","35","06","1270-1279","国家自然科学青年基金项目（41503033）","A"]
["现代地质","徐良伟","学生"," 徐良伟; 刘洛夫; 刘祖发; 孟召平; 陈小卫",null,"刘洛夫","地球科学学院",null,"中国石油大学(北京)","扬子地区二叠系页岩气赋存地质条件研究","2016","30","06","1376-1389","“十二五”国家科技重大专项“页岩气勘探开发关键技术”(2011ZX05003);国家重点基础研究计划项目子课题(2012CB214705-02);国家科技重大专项(2011ZX05008-002-41).","A"]
["石油实验地质","吴康军","学生","吴康军;刘洛夫;徐正建;窦文超;罗安湘;付金华;谭先锋",null,"刘洛夫","地球科学学院",null,"中国石油大学(北京)","鄂尔多斯盆地长7段致密油成藏物性下限研究","2016","38","01","63-69","国家自然科学基金项目“鄂尔多斯盆地三叠系延长组致密油含油边界识别研究”(41372143)、“济阳坳陷古近系孔店组旋回沉积机理及成岩系统研究”(41202043)和教育部高等学校博士学科点专项科研基金“致密油含油边界确定的新方法”(20130007110002)资助.","A"]
["石油实验地质","李萌","学生","李萌;汤良杰;李宗杰;甄素静;杨素举;田亚杰",null,"汤良杰","地球科学学院",null,"中国石油大学(北京)","走滑断裂特征对油气勘探方向的选择——以塔中北坡顺1井区为例","2016","38","01","113-121","国家重点基础研究发展计划(973计划)项目(2012CB214804,2005CB422107),国家自然科学基金项目(41172125,40972090),国家科技重大专项(2011ZX05002-003-001,2011ZX05029-002,2011ZX05002-006-007HZ),中国石油化工股份有限公司项目(P11086)和中国石化西北油田分公司项目(KY20","A"]
["石油与天然气地质","王大鹏","学生","王大鹏;陆红梅;陈小亮;陶崇智;孟祥军;牛新杰;白国平",null,"白国平","地球科学学院",null,"中国石油大学(北京)","海相碳酸盐岩大中型油气田成藏体系及分布特征","2016","37","03","363-371","国家科技重大专项(2011ZX05031-001-010HZ).","A"]
["石油与天然气地质","余一欣","教师","余一欣;殷进垠;郑俊章;李锋;徐小龙;吴航;于笑",null,"余一欣","地球科学学院",null,"中国石油大学(北京)","中亚北乌斯丘尔特盆地油气富集规律与勘探潜力","2016","37","03","381-386","国家自然科学基金项目(41472117,41125010);国家科技重大专项(2011ZX05031-001,2011ZX05029-002).","A"]
["地质科学","刘强","学生","刘强 ， 徐怀民 ， 江同文 ",null,"徐怀民","地球科学学院",null,"中国石油大学(北京)","塔里木盆地西部阿克莫木气藏地层压力特征","2016","51","01","149-156","中国石油天然气股份有限公司重大科技攻关专项\"塔里木油田勘探开发关键技术研究及应用\"(编号:22131G2010900101)资 ","A"]
["西安石油大学学报（自然科学版）","吴欣松","教师","吴欣松; 江涛; 刘旭武",null,"吴欣松","地球科学学院",null,"中国石油大学(北京)","伊通地堑莫里青断陷地温场及其应用","2016","31","01","23-28","国家\"973\"计划项目(编号:2006CB70140","A"]
["油气储运","刘震","教师","刘震; 姬忠礼; 吴小林; 许乔奇",null,"刘震","地球科学学院",null,"中国石油大学(北京)","输气管道内颗粒物检测及分离器性能评价","2016","35","01","47-51","国家科技重大专项\"百亿方级净化厂安全优质运行技术\",2011ZX05017-005;国家自然科学基金\"基于熵产理论的旋风分离器气固分离性能研究\",51474","A"]
["沉积学报","王广伟","学生","王广伟; 李平平; 郝芳; 邹华耀; 余新亚",null,"李平平","地球科学学院",null,"中国石油大学(北京)","建南地区飞仙关组三段白云岩分布与成因——基于三维地震、岩石学和地球化学综合分析","2016","34","01","168-180","国家科技重大专项课题(2011ZX05005-003-009HZ);国家自然科学基金项目(41103020);中国博士后科学基金项目(2015M580600)National Science and Technology Major Project, No.2011ZX05005-003-009HZ;National Natural Science Foundation of China, No.41103020;China Post","A"]
["中国地质","刘国平","学生","刘国平;曾联波;雷茂盛;祖克威;王菲;刘奇;李文芳",null,"曾联波","地球科学学院",null,"中国石油大学(北京)","徐家围子断陷火山岩储层裂缝发育特征及主控因素","2016","NULL","01","329-337","中国石油大庆油田有限责任公司重点研究课题（DQYT02150032012JS1161）资助。","A"]
["现代地质","何富贵","学生","何富贵;高先志;吴东胜;田建章;辛纬江;石国新;谭建华;司丹",null,"高先志","地球科学学院",null,"中国石油大学(北京)","油气二次运移方向模拟及有利区带预测：以束鹿凹陷西斜坡沙二段为例","2016","NULL","01","220-229","中国石油“十二五”重大研究课题“冀中南部束－晋凹陷构造演化及油气运聚成藏条件研究”（HBYT －YJY －2011－JS－405）。","A"]
["地球科学-中国地质大学学报","李平平","教师","李平平;郭旭升;郝芳;邹华耀;余新亚;王广伟",null,"李平平","地球科学学院",null,"中国石油大学(北京)","四川盆地元坝气田长兴组古油藏的定量恢复及油源分析","2016","41","03","452-462","国家科技重大专项（No．2011ZX05005-003-009HZ）．","A"]
["现代地质","李庆","教师","李庆; 姜在兴; 由雪莲; 赵贤正; 张锐锋",null,"李庆","地球科学学院",null,"中国石油大学(北京)","基于成因机理的地层有机质孔隙度的计算--以冀中束鹿凹陷泥灰岩非常规储层为例","2016","30","02","394-405","中国石油大学（北京）科研基金项目（2462015YJRC022）；国家青年科学基金项目（41402102）；国家科技重大专项（2016ZX05049006－001－002）。","A"]
["地球科学与环境学报","高岗","教师","高岗;向宝力;都鹏燕;马万云;陈哲龙;任江玲;柳广弟",null,"高岗","地球科学学院",null,"中国石油大学(北京)","准噶尔盆地玛湖凹陷风城组泥岩与泥质白云岩热模拟产物特征对比","2016","38","01","93-103","国家科技重大专项项目(2011ZX05001);中国石油第四次油气资源评价项目(2013E)","A"]
["地球科学与环境学报","吕文雅","学生","吕文雅;曾联波;张俊辉;陈双全;黄平;吕鹏;米华存",null,"曾联波","地球科学学院",null,"中国石油大学(北京)","川中地区中下侏罗统致密油储层裂缝发育特征","2016","38","02","226-234","2013年度 AAPG 全球研究生助研金项目(R．E．McAdams Memorial Grant);中国石油重大科技专项项目(2012E-2601-08)","A"]
["地学前缘","印森林","学生","印森林;吴胜和;陈恭洋;许长福;彭寿昌;程乐利",null,"吴胜和","地球科学学院",null,"中国石油大学(北京)","同生逆断层对冲积扇沉积构型的控制作用:以准噶尔盆地西北缘三叠系下克拉玛依组为例","2016","23","01","218-228","国家自然科学基金项目(41372116,41502126)","A"]
["石油学报","房倩","学生","房倩;徐怀民;周勇水;彭君;辛艳朋;尹楠鑫",null,"徐怀民","地球科学学院",null,"中国石油大学(北京)","砂岩油藏油-气-水不混溶包裹体特征及成因","2016","37","01","73-79","国家重大科技专项(2011ZX05002-002、2011ZX05001)资助.","A"]
["石油学报","刘静静","学生","刘静静; 刘震; 齐宇; 彭俊; 孙晓明",null,"刘震","地球科学学院",null,"中国石油大学(北京)","地震分频处理技术预测深水储集体","2016","37","01","80-87","国家重大科技专项(2011ZX05030-005-01)资助.","A"]
["古地理学报","廖涛","学生","廖涛;侯加根;陈利新;马克;杨文明;董越;白晓佳",null,"侯加根","地球科学学院",null,"中国石油大学(北京)","断裂对塔北地区哈拉哈塘油田奥陶系非暴露岩溶缝洞型储集层的控制作用","2016","18","02","221-235","国家科技重大专项（编号2016ZX05014002）资助。［Financially supported by the National Science and Technology Key Project of China （No．2016ZX05014002）］","A"]
["古地理学报","徐黎明","学生","徐黎明;李志成;梁晓伟;纪友亮;牛小兵;叶博;郝炳英;马继业;尤源",null,"纪友亮","地球科学学院",null,"中国石油大学(北京)","鄂尔多斯盆地陇东地区延长组长82优质储集层成因机理研究","2016","18","02","237-250","国家自然科学基金项目（编号41272157）、国家科技重大专项（编号2011ZX05003－002）、国家自然科学基金重大项目（编号41390451）、中国石油科技创新基金（编号2014D506－0101）、中国石油大学（北京）科研基金（编号2462013YJRC038，2462015YQ0108）共同资助。［Co-fund","A"]
["古地理学报","靳秀菊","学生","靳秀菊; 侯加根; 刘红磊; 张纪喜; 刘卉",null,"侯加根","地球科学学院",null,"中国石油大学(北京)","普光气田礁滩相复杂孔隙类型储集层渗透率地震预测方法","2016","18","02","275-284","国家科技重大专项“高含硫碳酸盐岩气藏精细描述及开发规律研究”（编号2011ZX05017－001）资助。［Financially supported by National Science and Technology Major Project Fine Description and Development Regularity Study ofCarbonate Sour Gas Reservoirs（No．","A"]
["地质科学","严锐涛","学生","严锐涛 ， 曾联波 ， 赵向原 ， 廖宗湖 ， 陈敏政 ",null,"曾联波","地球科学学院",null,"中国石油大学(北京)","渤海湾地区Z油田沙一下生物灰岩油藏裂缝特征及其形成机理","2016","51","02","484-493","国家科技重大专项(编号:2011ZX05013-004)资助.","A"]
["特种油气藏","朱卫红","学生","朱卫红; 吴胜和; 韩尚儒; 王陶; 张少伟",null,"吴胜和","地球科学学院",null,"中国石油大学(北京)","哈得A-39-2J注水井异常压降资料分析与应用","2016","23","06","60-63","中国石油天然气股份有限公司重大科技专项“塔里木油田勘探开发关键技术研究与应用”课题“碎屑岩油田稳产技术”(2014E-2107)","A"]
["中国矿业大学学报","夏鲁","学生","夏鲁;刘震;刘静静;卢朝进;李廷安;孙迪",null,"刘震","地球科学学院",null,"中国石油大学","低渗及致密砂岩含油程度动态评价方法研究——以鄂尔多斯盆地南部地区延长组为例","2016","45","06","1193-1203","中国石油“十二五”油气重大专项项目(2011ZX05001)","A"]
["中国矿业大学学报","赵俊威","学生","赵俊威;徐怀民;徐朝晖;魏启任;国殿斌;刘云华;杨辉",null,"徐怀民","地球科学学院",null,"中国石油大学(北京)","中高渗油藏开发流体势对剩余油分布控制机理","2016","45","03","535-543","国家科技重大专项(2011ZX05009-003,2011ZX05001-003)","A"]
["天然气地球科学","高岗","教师","高岗;向宝力;任江玲;张维维;马万云;何文军",null,"高岗","地球科学学院",null,"中国石油大学(北京)","准噶尔盆地玛湖凹陷北部—乌夏断裂带天然气成因与来源","2016","27","04","672-680","国家科技重大专项项目“岩性地层油气藏成藏规律、关键技术及目标评价”(编号:2011ZX05001)下属课题“准噶尔盆地岩性地层油气藏富集规律与目标评价”(编号:2011ZX05001-006);中国石油第四次油气资源评价项目(编号:2013E)下属课题“准噶尔盆地及外围第四次油气资源评价”(","A"]
["天然气地球科学","陈文浩","学生","陈文浩; 王志章; 潘潞; 李汉林; 侯加根",null,"王志章","地球科学学院",null,"中国石油大学(北京)","致密砂岩储层流动单元定量识别方法探讨","2016","27","05","844-850","国家科技重大专项课题“鄂尔多斯盆地大牛地致密低渗气田勘探开发示范工程”(编号:2011ZX05045);国家十二五科技重大专项(编号:2011ZX05008-004)联合资助.","A"]
["天然气地球科学","吴浩","学生","吴浩;刘锐娥;纪友亮;张春林;周勇;张云钊",null,"纪友亮","地球科学学院",null,"中国石油大学(北京)","典型致密砂岩气储层孔隙结构分类及其意义——以鄂尔多斯盆地盒8段为例","2016","27","05","835-843","国家自然科学基金项目(编号:41272157);国家科技重大专项(编号:2016ZX05007-003);中国石油科技创新基金(编号:2014D-5006-0101);中国石油大学(北京)科研基金(编号:2462013YJRC038,2462015YQ0108)联合资助.","A"]
["天然气地球科学","陈金龙","学生","陈金龙;黄志龙;高潇玉;刘国恒;陈常超;吕昕鹏;陈晨",null,"黄志龙","地球科学学院",null,"中国石油大学(北京)","页岩含气量定量计算方法探讨——以吐哈盆地温吉桑地区中下侏罗统为例","2016","27","04","727-738","中国地质调查局油气资源调查中心项目“西北地区中生界页岩气资源调查评价”(编号:HX20140318);国家自然科学基金项目“湖相富有机质泥页岩自生石英形成及其页岩油地质意义”(编号:41272156)联合资助.","A"]
["石油学报","刘君龙","学生","刘君龙;纪友亮;张克银;李龙迪;王天云;杨永;张洁",null,"纪友亮","地球科学学院",null,"中国石油大学(北京)","川西前陆盆地侏罗系沉积体系变迁及演化模式","2016","37","06","743-756","国家自然科学基金项目(No.41272157)、中国石油天然气集团公司科技创新基金项目(2014D-5006-0101)、中国石油大学(北京)科研基金项目(2462013YJRC038,2462015YQ0108)和国家重大科技专项(2011ZX05003-002)资助.","A"]
["古地理学报","纪友亮","教师","纪友亮; 刘君龙; 王天云; 刘大卫; 程同冉",null,"纪友亮","地球科学学院",null,"中国石油大学(北京)","陆相湖盆三角洲-滩坝复合砂体分布模式及编图方法","2016","18","04","615-630","国家自然科学基金项目（编号41272157），中国石油科技创新基金项目（编号2014D－5006－0101），中国石油大学（北京）科研基金项目（编号2462013YJRC038，2462015YQ0108）和国家科技重大专项（编号2011 ZX05003－002）联合资助。［Co-funded by the Na-tional Natural Sc","A"]
["古地理学报","吴胜和","教师","吴胜和; 冯文杰; 印森林; 喻宸; 张可",null,"吴胜和","地球科学学院",null,"中国石油大学(北京)","冲积扇沉积构型研究进展","2016","18","04","497-512","国家自然科学基金面上项目（编号41372116）资助。［Financially supported by the National Natural Science Foundation of China （No.41372116）］","R"]
["石油勘探与开发","朱卫红","学生","朱卫红;吴胜和;尹志军;韩涛;伍轶鸣;刘勇;冯文杰;罗亚男;曹岑",null,"吴胜和","地球科学学院",null,"中国石油大学(北京)","辫状河三角洲露头构型——以塔里木盆地库车坳陷三叠系黄山街组为例","2016","43","03","482-489","国家重点基础研究发展计划(973)项目(2011CB201105)","A"]
["地质学报","刘国恒","学生","刘国恒;黄志龙;郭小波;刘再振;高潇玉;陈常超;张成林",null,"黄志龙","地球科学学院",null,"中国石油大学（北京）","鄂尔多斯盆地延长组泥页岩储层SiO2赋存状态研究","2016","90","05","1016-1029","本文为国家自然科学基金项目(编号41272156)和中国石油天然气集团公司天然气成藏与开发重点实验室联合资助成果.","A"]
["东北石油大学学报","李庆","教师","李庆; 姜在兴; 由雪莲; 赵贤正; 张锐锋",null,"李庆","地球科学学院",null,"中国石油大学(北京)","有机相在非常规油气储层评价中的应用——以束鹿凹陷富有机质泥灰岩储层为例","2016","40","03","1-9","国家科技重大专项(2016ZX05049006-001-002);中国石油大学(北京)科研基金项目(2462015YJRC022)","A"]
["地质科技情报","吕文雅","学生","吕文雅; 曾联波; 刘静; 王成云; 朱军",null,"曾联波","地球科学学院",null,"中国石油大学(北京)","致密低渗透储层裂缝研究进展","2016","35","04","74-83","国家自然科学基金项目(41272164)","R"]
["天然气地球科学","姜杉钰","学生","姜杉钰;康永尚;张守仁;叶建平;张兵;王金;吴见",null,"康永尚","地球科学学院",null,"中国石油大学(北京)","沁水盆地柿庄区块煤层气井排采动态影响因素分析及开发对策研究","2016","27","06","1134-1139","国家科技重大专项(编号:2011ZX05042)资助.","A"]
["现代地质","喻宸","学生","喻宸;吴胜和;岳大力;郑联勇;杜文博;张善严;陈诚;刘志刚",null,"吴胜和","地球科学学院",null,"中国石油大学(北京)","细粒冲积扇沉积特征研究——以酒西盆地老君庙构造带古近系白杨河组为例","2016","30","03","643-654","国家自然科学基金项目(41372116).","A"]
["地球科学-中国地质大学学报","康永尚","教师","康永尚;邓泽;王红岩;刘洪林;袁春林;赵群",null,"康永尚","地球科学学院",null,"中国石油大学(北京)","流－固耦合物理模拟实验及其对页岩压裂改造的启示","2016","41","08","1376-1383","国家重点基础研究发展计划（973计划）（No．2013CB228002）．","A"]
["石油与天然气地质","刘可可","学生","刘可可;侯加根;刘钰铭;史燕青;柳琳;唐力;高兴军;周新茂",null,"侯加根","地球科学学院",null,"中国石油大学(北京)","多点地质统计学在点坝内部构型三维建模中的应用","2016","37","04","577-583","国家自然科学基金青年基金项目（41202106）；国家科技重大专项（2011ZX05010）；中国石油大学（北京）基金项目（ KYJJ2012－01－19）。","A"]
["中国海洋大学学报（自然科学版）","严锐涛","学生","严锐涛; 徐怀民; 严锐锋; 曾联波; 何永宏",null,"徐怀民","地球科学学院",null,"中国石油大学(北京)","鄂尔多斯盆地环江油田延长组长8段致密储层特征及主控因素分析","2016","46","08","96-103","国家重大科技专项“岩性地层油气藏成藏规律、关键技术及目标评价”项目(2011ZX05001)资助;Supported by National Major Projects of Science and Technology-“Accumulation Pattern,Key Technology and Target Evaluation of Lithostratigraphic Reservoirs”(2011ZX05","A"]
["天然气地球科学","李超正","学生","李超正;柳广弟;曹喆;牛子铖;牛小兵;王朋;张梦媛;张凯迪",null,"柳广弟","地球科学学院",null,"中国石油大学(北京)","鄂尔多斯盆地陇东地区长7段致密砂岩微孔隙特征","2016","27","07","1235-1247","国家重点基础研究发展计划(“973”计划)(编号:2014CB239003);国家自然科学基金项目“致密砂岩微米-纳米系统石油充注的有效性及成藏效应”(编号:41472114)联合资助．","A"]
["地质学报","刘国恒","学生","刘国恒;黄志龙;郭小波;刘再振;高潇玉;陈常超;张成林;王昕",null,"黄志龙","地球科学学院",null,"中国石油大学（北京）","新疆三塘湖盆地马朗凹陷中二叠统芦草沟组泥页岩层系SiO2赋存状态与成因","2016","90","06","1220-1235","本文为国家自然科学基金项目“湖相富有机质页岩自生石英形成及其页岩油地质意义”(编号:41272156)资助的成果.","A"]
["天然气工业","王金","学生","王金;康永尚;姜杉钰;张守仁;叶建平;吴见;张兵;郭明强",null,"康永尚","地球科学学院",null,"中国石油大学(北京)","沁水盆地寿阳区块煤层气井产水差异性原因分析及有利区预测","2016","36","08","52-59","国家科技重大专项“深煤层煤层气开发技术研究及装备研制”(编号:2011ZX05042).","A"]
["中国石油大学学报（自然科学版）","陈文浩","学生","陈文浩; 董少群; 王志章; 侯加根; 李汉林",null,"王志章","地球科学学院",null,"中国石油大学(北京)","致密砂岩地震储层质量评价方法研究","2016","40","03","63-68","国家重大科技专项(2011ZX05008-004-60-64)","A"]
["科学技术与工程","夏鲁","学生","夏鲁;刘震;崔红庄;赵海华;相鹏;李廷安;孙迪",null,"刘震","地球科学学院",null,"中国石油大学(北京)","二维重力正演在六盘山盆地西南缘构造样式分析中的应用","2016","16","22","183-186,212","中石化科技攻关项目(P11077)资助","A"]
["声学技术","郭健","学生","郭健; 乔文孝; 车小花; 段文星",null,"刘震","地球科学学院",null,"中国石油大学(北京)","一种岩心样品横波速度的实验室测量方法","2016","35","04","341-344","国家自然科学基金项目(11204380、11374371、11134011和61102102)、国家油气重大科技专项(2011ZX05020-009)、中国石油科技创新基金(2013D-5006-0304、2014D-5006-0307)和中国石油天然气集团公司项目(2014B-4011、2014D-4105、2014A-3912)资助。","A"]
["科学技术与工程","江强波","学生","江强波; 吴胜和; 白永艳; 张元场; 杨涛",null,"吴胜和","地球科学学院",null,"中国石油大学(北京)","古地貌对新安堡凹陷万一段层序地层沉积控制规律研究","2016","16","22","187-192","","A"]
["高校地质学报","赵俊威","学生","赵俊威;徐怀民;江同文;吴卓;徐朝晖;王振彪;王涛;何翠",null,"徐怀民","地球科学学院",null,"中国石油大学(北京)","基于开发流体势的蚁群算法在优势渗流通道预测中应用","2016","22","03","555-562","国家科技重大专项（2011ZX05009-003）；国家自然科学基金（41302109）","A"]
["地质与勘探","严锐涛","学生","严锐涛;徐怀民;易震;王清辉;杨迪生;赵磊;李林",null,"徐怀民","地球科学学院",null,"中国石油大学(北京)","准噶尔盆地东部沙帐地区中二叠统平地泉组一段致密油源储组合模式","2016","52","04","783-790","国家重大科技专项(编号:2011ZX05001)资助.","A"]
["油气地质与采收率","李庆","教师","李庆; 姜在兴; 由雪莲",null,"李庆","地球科学学院",null,"中国石油大学(北京)","惠民凹陷商847块湖相深水浊积岩储层非均质性特征及主控因素","2016","23","05","44-49","国家科技重大专项“陆相深水储集体成因与地质评价新方法”(2016ZX05009-002),中国石油大学(北京)科研基金资助“湖相细粒沉积岩沉积作用与储层特征研究”(2462015YJRC022).","A"]
["石油学报","黄志龙","教师","黄志龙;马剑;梁世君;梁浩;陈旋;康积伦",null,"黄志龙","地球科学学院",null,"中国石油大学(北京)","源-储分离型凝灰岩致密油藏形成机理与成藏模式","2016","37","08","975-985","国家自然科学基金面上项目“含有机质沉凝灰岩有机质-玻璃质-微孔隙形成演化关系及致密油藏形成意义”(No.41472111)资助.","A"]
["天然气地球科学","袁伟","学生","袁伟;柳广弟;罗文斌;李超正;徐黎明;牛小兵;艾嘉怡",null,"柳广弟","地球科学学院",null,"中国石油大学(北京)","鄂尔多斯盆地长7段富有机质页岩中磷灰石类型及其成因","2016","27","08","1399-1408","国家重点基础研究发展计划(“973”计划)(编号:2014CB239003)资助.","A"]
["煤炭学报","康永尚","教师","康永尚;陈晶;张兵;张守仁;叶建平;郭明强;秦绍锋;吴见;王金",null,"康永尚","地球科学学院",null,"中国石油大学(北京)","沁水盆地寿阳勘探区煤层气井排采水源层判识","2016","41","09","2263-2272","国家重大专项资助项目(2011ZX05042)","A"]
["煤炭学报","刘震","教师","刘震; 姬忠礼; 于明俭; 赵峰霆",null,"刘震","地球科学学院",null,"中国石油大学(北京)","煤层气集输系统颗粒杂质分布及应对措施","2016","41","09","2281-2286","国家科技重大专项资助项目(2011ZX05039-001);国家自然科学基金资助项目(51376196)","A"]
["石油实验地质","孙思敏","教师","孙思敏; 季汉成; 王建伟; 章惠; 陈亮",null,"孙思敏","地球科学学院",null,"中国石油大学(北京)","渤海湾盆地南堡凹陷西南庄断层分段特征及演化","2016","38","05","628-634","国家科技重大专项（2011ZX05006－006）资助。","A"]
["西安石油大学学报（自然科学版）","袁伟","学生","袁伟; 柳广弟; 罗文斌",null,"柳广弟","地球科学学院",null,"中国石油大学(北京)","鄂尔多斯盆地延长组长7段沉积速率及其对烃源岩有机质丰度的影响","2016","31","05","20-26","国家重点基础研究发展计划(973计划)(编号:2014CB239003)","A"]
["地质论评","靳秀菊","学生","靳秀菊; 侯加根; 刘红磊; 陈建; 刘欣",null,"侯加根","地球科学学院",null,"中国石油大学(北京)","礁滩相储集层平面非均质性定量表征技术","2016","62","05","1315-1328","本文为国家科技重大专项（编号2011ZX05017-001）资助成果。","A"]
["古地理学报","查宇铭","学生","查宇铭; 吴欣松; 余达",null,"吴欣松","地球科学学院",null,"中国石油大学(北京)","松辽盆地松科1井上白垩统烃源岩有机碳含量与沉积速率的关系","2016","18","05","857-864","国家重点基础研究发展计划“973”项目（编号2006CB701406）资助。［Financially supported by the National Basic Research Program （973 Program） of China （No.2006CB701406）］。","A"]
["科学技术与工程","徐振华","学生","徐振华; 吴胜和; 杨勤;于斌",null,"吴胜和","地球科学学院",null,"中国石油大学(北京)","一种基于构型界面的三角洲前缘储层精细表征方法:以绥中油田古近系东营组下段为例","2016","16","27","6-13","国家油汽重大专项(2011ZX05009-003)资助","A"]
["西北大学学报（自然科学版）","孙盼科","学生","孙盼科;徐怀民;黄娅;刘强;江同文;王超",null,"徐怀民","地球科学学院",null,"中国石油大学","滨岸相碎屑岩储集层隔夹层分布预测方法——以塔里木盆地东河油田东河砂岩为例","2016","46","05","725-734","国家科技重大专项课题基金资助项目(2011ZX05009-003)","A"]
["石油实验地质","印森林","学生","印森林; 吴胜和; 陈恭洋; 伍顺伟; 蒋志斌",null,"吴胜和","地球科学学院",null,"中国石油大学,北京","正牵引构造对冲积扇储层内部构型的控制作用","2016","38","06","811-820","国家自然科学基金项目（41372116）和（41502126）联合资助。","A"]
["中国矿业大学学报","宋泽章","教师","宋泽章; 姜振学; 原园;黄瑞; 王香增",null,"宋泽章","地球科学学院",null,"中国石油大学","“相控”测井曲线标准化及其应用——以鄂尔多斯盆地下寺湾地区延长组湖相泥页岩TOC评价为例","2016","45","02","310-318","国家科技重大专项(2011ZX05018-002)","A"]
["石油学报","刘震","学生","刘震;孙迪;李潍莲;刘明洁;夏鲁;刘静静",null,"刘震","地球科学学院",null,"中国石油大学","沉积盆地地层孔隙动力学研究进展","2016","37","10","1193-1215","国家重大科技专项“岩性油气藏成藏动力、临界条件与分布模式”(2011ZX05001-001-004)资助.","R"]
["中国石油大学学报（自然科学版）","李永强","学生","李永强;侯加根;刘钰铭;李春晓;马晓强;韩东",null,"侯加根","地球科学学院",null,"中国石油大学","基于岩溶模式的溶洞储集体三维地质建模","2016","40","05","43-50","国家科技重大专项(2016ZX05014-002)","A"]
["地质论评","康永尚","教师","康永尚;王金;姜杉钰;叶建平;张守仁;张兵;秦绍锋",null,"康永尚","地球科学学院",null,"中国石油大学(北京)","煤层气井排采动态主控地质因素分析","2016","62","06","1513-1522","本文为国家重大专项（编号2011ZX05042）资助的成果。AcknowledgementsThis study was financially supported by National Science and Technology Major Project （No．2011ZX05042）．","A"]
["天然气地球科学","高岗","教师","高岗;向宝力;王轩;王熠;周然然;马万云;任江铃;赵克",null,"高岗","地球科学学院",null,"中国石油大学(北京)","准噶尔盆地吉木萨尔凹陷芦草沟组湖相混合沉积中缝合线发育与有机质富集研究","2016","27","11","1963-1969","国家自然科学基金项目“碳酸盐岩缝合线有机质富集与油气运移作用研究”(编号:41372142)资助.","A"]
["西北大学学报（自然科学版）","李维禄","学生","李维禄;徐怀民;王超;胡筱妮;韩如冰;黄娅",null,"徐怀民","地球科学学院",null,"中国石油大学(北京)","基于动、静模式约束的隔、夹层空间分布综合预测——以塔里木盆地东河塘油田井区为例","2016","46","06","877-886","国家科技重大专项基金资助项目(2011ZX05009-003)","A"]
["海洋学报（英文版）","LIU Zhen","教师","LIU ZhenSUN ZhipengWANG ZisongZHANG WeiLI TinganHE WeijunLI FengxiaCAO ShangLIU JingjingLIN Lu",null,"刘震","地球科学学院",null,"中国石油大学（北京）","Evaluation of abundant hydrocarbon-generation depressions in the deepwater area of Qiongdongnan Basin, South China Sea","2016","35","02","137-144","The National Science and Technology Major Project of the Ministry of Science and Technology of China under contract No. 2011ZX05025.","A"]
["中国石油勘探","易立","学生","易立; 刘震; 邹才能",null,"刘震","地球科学学院",null,"中国石油大学(北京)","裂隆耦合控藏——碳酸盐岩台地内边缘礁滩大气田成藏模式","2016","21","01","44-52","国家科技重大专项“岩性地层油气藏成藏规律、关键技术及目标评价”(2008ZX05001).","A"]
["石油实验地质","牛子铖","学生","牛子铖;柳广弟;曹喆;王朋;常俊合;张凯迪",null,"柳广弟","地球科学学院",null,"中国石油大学(北京)","银额盆地查干凹陷油藏特征及油气成藏过程","2016","38","01","32-39,107","国家自然科学基金项目“致密砂岩微米—纳米孔喉系统石油充注的有效性及其成藏效应”(41472114)资助.","A"]
["石油勘探与开发","马剑","学生","马剑;黄志龙;钟大康;梁世君;梁浩;薛东青;陈旋;范谭广",null,"黄志龙","地球科学学院",null,"中国石油大学(北京)","三塘湖盆地马朗凹陷二叠系条湖组凝灰岩致密储集层形成与分布","2016","43","05","714-722","国家自然科学基金项目(41472111)","A"]
["吉林大学学报（地球科学版）","王飞宇","学生","王飞宇; 冯伟平; 关晶;贺志勇",null,"王飞宇","地球科学学院",null,"中国石油大学","湖相致密油资源地球化学评价技术和应用","2016","46","02","388-397","国家油气专项（2008ZX05007001）；国家自然科学基金项目（41372147）","A"]
["中国矿业大学学报","高崇龙","学生","高崇龙;纪友亮;任影;蒋宜勤;周勇;刘大卫;段小兵",null,"纪友亮","地球科学学院",null,"中国石油大学(北京)","准噶尔盆地石南地区清水河组沉积层序演化分析","2016","45","05","958-971","国家自然科学基金项目(41272157);中国石油科技创新基金项目(2014D-5006-0101)","A"]
["沉积学报","陈亮","学生","陈亮;季汉成;张靓;李晨;时聪;于斌",null,"季汉成","地球科学学院",null,"中国石油大学(北京)","裂陷盆地重力流沉积对基准面变化的响应——以乌里雅斯太南洼腾一下亚段为例","2016","34","03","487-496","","A"]
["古地理学报","季汉成","教师","季汉成;房超;华南;肖菁;李海泉;黎雪;李晨;马鹏鹏;毛翔",null,"季汉成","地球科学学院",null,"中国石油大学(北京)","鲁西豫东地区奥陶系顶部岩溶储集层特征及有利控制因素","2016","18","04","545-559","中国石化集团新星石油责任有限公司科技攻关项目（编号10500000－14－FW0399－0003）。［Financially supported by the Science and Technology Program of Sinopec Star Petroleum Co．，Ltd．（No.10500000－14－FW0399－0003）］","A"]
["岩性油气藏","肖菁","学生","肖菁;季汉成;华南;房超;李海泉;马鹏鹏",null,"季汉成","地球科学学院",null,"中国石油大学(北京)","渤海湾盆地东濮地区奥陶系沉积相特征及其演化","2016","28","06","78-87","中国石化集团新星石油有限责任公司科技攻关项目“东濮凹陷废弃井选区及内黄隆起西侧奥陶系岩溶热储研究”(编号:10500000-14-FW0399-0003)资助","A"]
["石油实验地质","马晓潇","学生","马晓潇;黎茂稳;庞雄奇;黄振凯;蒋启贵;李志明;曹婷婷;李政",null,"庞雄奇","地球科学学院",null,"中国石油大学(北京)","手持式X荧光光谱仪在济阳坳陷古近系陆相页岩岩心分析中的应用","2016","38","02","278-286","国家重点基础研究计划（973计划）项目（2014CB239101）资助。","A"]
["古地理学报","史超群","学生","史超群;王云龙;秦智;林艳波;潘兆光;陈国辉;刘小芹;鲍志东;陶醉;方松;窦鲁星;姚婷婷;杨尚锋;杨益春",null,"鲍志东","地球科学学院",null,"中国石油大学(北京)","松辽盆地大安油田下白垩统泉头组四段特低渗-超低渗储集层成岩作用定量研究","2016","18","02","251-264","国家科技重大专项资助（专题号2008ZX05030－05－001－01，2011ZX05004－004）。［Financially supported by the National Scientific and Technological Key Projects of China （Project Codes2008ZX05030－05－001－01；2011ZX05004－004）］","A"]
["地球科学-中国地质大学学报","陈君青","学生","陈君青; 庞雄奇; 庞宏",null,"庞雄奇","地球科学学院",null,"中国石油大学(北京)","准噶尔盆地阜东斜坡侏罗系头屯河组原油横向运移","2016","41","05","821-831","国家重点基础研究发展计划(973计划)项目(No.2011CB201100);国家自然科学青年科学基金项目(No.41402107)","A"]
["矿物岩石","姚婷婷","学生","姚婷婷;鲍志东;张云龙;魏文风;窦鲁星;韦明洋;管聪",null,"鲍志东","地球科学学院",null,"中国石油大学(北京)","鄂尔多斯盆地姬塬油田西部长8段储层成岩作用与致密成因","2016","36","02","99-111","国家科技重大专项(2011ZX05004-004)","A"]
["工程地质学报","李倩文","学生","李倩文; 庞雄奇; 霍志鹏; 陈君青",null,"庞雄奇","地球科学学院",null,"中国石油大学(北京)","塔中地区海相油气来源与相对贡献量正演评价","2016","24","05","833-846","国家重点基础研究发展计划（973计划）（2011 CB201100）资助．","A"]
["地球科学与环境学报","狄贵东","学生","狄贵东;彭更新;庞雄奇;刘立峰;李国会;李刚;谭杨",null,"庞雄奇","地球科学学院",null,"中国石油大学(北京)","深层碳酸盐岩地震储层预测——以塔里木盆地哈得逊区块一间房组为例","2016","38","05","715-726","国家科技重大专项项目(2011ZX05004003)","A"]
["石油实验地质","白桦","学生","白桦;庞雄奇;匡立春;庞宏;庞莹;周立明",null,"庞雄奇","地球科学学院",null,"中国石油大学,北京","准噶尔盆地深层油气藏形成条件分析","2016","38","06","803-810,820","国家重点基础研究发展计划（973计划）项目（2011CB201100）和国家重点基金项目（U1262205）资助。","A"]
["中国石油勘探","覃勤","学生","覃勤;华松涛;安永民;鲍志东;何陵沅;鲁宁;文杰;田作基;赖洪飞;宋健;茆书巍",null,"鲍志东","地球科学学院",null,"中国石油大学(北京)","蒙古东戈壁盆地白垩系成藏组合与勘探潜力","2016","21","05","81-89","国家科技重大专项“全球常规油气资源评价与未来战略选区” (2011ZX05028-001);中国石油天然气股份有限公司重大科技专项“东亚及东南亚地区油气资源评价研究” (2013E-0501).","A"]
["电子显微学报","毛潇潇","学生","毛潇潇;赵迪斐;卢晨刚;李刚;郭晓宇;郭英海",null,{"$error":"#N/A"},"地球科学学院","曾溅辉","中国石油大学(北京)","氩离子抛光－场发射扫描电镜在煤纳米孔研究中的应用","2016","35","01","90-96","山西省煤基重点科技攻关项目(No. MQ201402)；煤层气资源与成藏过程教育部重点实验室(中国矿业大学)开放基金资助项目(No.2015－007)；中国矿业大学大学生创新训练项目(No.201517)；中国矿业大学资源与地球科学学院科研训练项目(No.201504)","R"]
["天然气工业","刘震","教师","刘震; 姬忠礼; 吴小林; 赵峰霆",null,"刘震","地球科学学院",null,"中国石油大学(北京)","高含硫天然气过滤单元性能优化","2016","36","03","87-92","国家科技重大专项“百亿方级净化厂安全运行技术优化”(编号:2011ZX05017-005)、国家自然科学基金项目“天然气净化用气液聚结滤芯过滤分离机理研究”(编号:51376196).","A"]
["地球物理学报","常健","教师","常健;邱楠生;赵贤正;许威;徐秋晨;金凤鸣;韩春元;马学峰;董雄英;梁小娟",null,"常健","地球科学学院",null,"中国石油大学(北京)","渤海湾盆地冀中坳陷现今地热特征","2016","59","03","1003-1016","国家自然科学基金项目(41125010,91114202,41402112)和中国石油大学(北京)科研基金(2462013YJRC034)资助.","A"]
["中国煤炭地质","赵正福","学生","赵正福; 唐跃刚; 贺成成; 胡耀峰",null,{"$error":"#N/A"},"地球科学学院","庞雄奇","中国石油大学(北京)","汾西矿区10号煤层硫分布特征","2016","28","10","4-8","国家重点基础研究发展计划“973”项目(2012CB214901)；国家自然科学基金项目(41172146D0208)","A"]
["现代地质","葛海霞","学生","葛海霞;张枝焕;闵伟;张琳璞;柳东;章成进",null,{"$error":"#N/A"},{"$f":"VLOOKUP(B176,[2]Sheet1!$D$2:$F$6737,3,FALSE)","v":"地球科学学院"},{"$f":"VLOOKUP(B176,[2]Sheet1!$D$1:$I$6737,6,FALSE)","v":"张枝焕"},"中国石油大学(北京)","济阳坳陷青东凹陷低熟油生烃机理研究","2016","30","05","1105-1114","国家重大科技专项(2016ZX05049-006).","A"]
["钻井液与完井液","王艳丽","学生","王艳丽",null,{"$error":"#N/A"},{"$f":"VLOOKUP(B177,[2]Sheet1!$D$2:$F$6737,3,FALSE)","v":"地球科学学院"},{"$f":"VLOOKUP(B177,[2]Sheet1!$D$1:$I$6737,6,FALSE)","v":"徐怀民"},"中国石油大学","新型高性能转向酸的制备及性能评价","2016","33","06","111-115","国家自然科学基金项目“液氮辅助页岩体积压裂增效机理研究”(51574270).","A"]
["中国海洋平台","张坤","学生","张坤; 陈国明; 朱本瑞;刘红兵; 胡春友",null,{"$error":"#N/A"},{"$f":"VLOOKUP(B178,[2]Sheet1!$D$2:$F$6737,3,FALSE)","v":"地球科学学院"},{"$f":"VLOOKUP(B178,[2]Sheet1!$D$1:$I$6737,6,FALSE)","v":"庞雄奇"},"中国石油大学","极端风暴潮下近海导管架平台结构安全分析","2016","31","06","57-61","","A"]
["古地理学报","何陵沅","学生","何陵沅;鲍志东;覃勤;田作基;茆书巍;宋健;张云逸;邓堃",null,{"$error":"#N/A"},{"$f":"VLOOKUP(B179,[2]Sheet1!$D$2:$F$6737,3,FALSE)","v":"地球科学学院"},{"$f":"VLOOKUP(B179,[2]Sheet1!$D$1:$I$6737,6,FALSE)","v":"鲍志东"},"中国石油大学(北京)","西太平洋中段沉积盆地新生代构造－沉积演化特征","2016","18","03","441-456","国家油气重大专项（编号2011 ZX05028）和中国石油天然气股份有限公司重大科技专项（编号2013E －0501）共同资助。@@@@［Co-funded by National Science and Technology Major Projects of Oil and Gas （No.2011 ZX05028） and Major Science and Technology Projects o","A"]
["地球物理学报","张保庆","学生","张保庆; 周辉; 陈汉明; 盛善波",null,"周辉",{"$f":"VLOOKUP(F180,[1]Sheet1!$B$2:$C$1437,2,FALSE)","v":"地球物理与信息工程学院"},null,"中国石油大学(北京)","基于新的差分结构的时-空域高阶有限差分波动方程数值模拟方法","2016","59","05","1804-1814","国家重点基础研究发展计划(973计划)(2013CB228603),国家自然科学基金(41174119)和中石油物探新方法新技术研究(2014A-3609)联合资助.","A"]
["化工学报","徐宝昌","学生","徐宝昌; 蔡胜清; 冯爱祥; 罗雄麟",null,"徐宝昌",{"$f":"VLOOKUP(F181,[1]Sheet1!$B$2:$C$1437,2,FALSE)","v":"地球物理与信息工程学院"},null,"中国石油大学(北京)","变工况切换过程的Petri网自主预测与控制","2016","67","03","839-845","国家重点基础研究发展计划项目（2012CB720500）；国家重大专项（2011ZX05027-005）。@@@@supported by the National Basic Research Program of China (2012CB720500) and the Important National Science & Technology Specific Projects of China (2011ZX05027-005)","A"]
["石油物探","王颖","学生","王颖; 周辉; 盛善波",null,"周辉",{"$f":"VLOOKUP(F182,[1]Sheet1!$B$2:$C$1437,2,FALSE)","v":"地球物理与信息工程学院"},null,"中国石油大学(北京)","贴体坐标系二维声波方程SBP有限差分法的稳定性分析","2016","55","01","33-40","国家重点基础研究发展计划(973计划)(2013CB228603)、国家自然科学基金(41174119)和中石油物探新方法新技术研究(2014A-3609)项目共同资助.This research is financially supported by the National Key Basic Research Program of China (973 Program) (Grant No.2013CB2","A"]
["地球物理学报","袁成","学生","袁成; 李景叶; 陈小宏",null,"李景叶",{"$f":"VLOOKUP(F183,[1]Sheet1!$B$2:$C$1437,2,FALSE)","v":"地球物理与信息工程学院"},null,"中国石油大学(北京)","地震岩相识别概率表征方法","2016","59","01","287-298","国家自然科学基金项目(U1262207、41390454)与国家科技重大专项课题(2011ZX05019-006)联合资助.","A"]
["石油地球物理勘探","祖绍环","学生","祖绍环;周辉;陈阳康;曲杉;刘仁武;陈浩林",null,"周辉",{"$f":"VLOOKUP(F184,[1]Sheet1!$B$2:$C$1437,2,FALSE)","v":"地球物理与信息工程学院"},null,"中国石油大学(北京)","不规则采样的多震源数据整形正则化分离方法","2016","51","02","247-253","本项研究受国家“973”计划项目(2013CB228603)、国家重大科技专项(2016ZX05010001-002)和中国石油“十二·五”物探新方法新技术项目(2014A-3609)联合资助.","A"]
["计算机与应用化学","黄冬","学生","黄冬; 徐宝昌; 罗雄麟",null,"徐宝昌",{"$f":"VLOOKUP(F185,[1]Sheet1!$B$2:$C$1437,2,FALSE)","v":"地球物理与信息工程学院"},null,"中国石油大学(北京)","分阶段调节过程的切换控制方法研究","2016","33","03","339-342","国家重大专项(2011ZX05021-003);中国石油大学(北京)基本科研基金资助","A"]
["石油学报","刘兴业","学生","刘兴业; 陈小宏; 李景叶; 周林; 郭康康",null,"陈小宏",{"$f":"VLOOKUP(F186,[1]Sheet1!$B$2:$C$1437,2,FALSE)","v":"地球物理与信息工程学院"},null,"中国石油大学(北京)","基于核贝叶斯判别法的储层物性参数预测","2016","37","07","878-886","国家自然科学基金项目(No.U1262207)和国家重大科技专项(2016ZX05033-003-008)资助.","A"]
["地球物理学报","白敏","学生","白敏;陈小宏;吴娟;陈阳康;刘国昌;王恩江",null,"陈小宏",{"$f":"VLOOKUP(F187,[1]Sheet1!$B$2:$C$1437,2,FALSE)","v":"地球物理与信息工程学院"},null,"中国石油大学(北京)","基于吸收衰减补偿的多分量高斯束逆时偏移","2016","59","09","3379-3393","海洋石油勘探国家工程实验室“斜缆采集地震数据分析与处理技术研究”课题,国家自然科学基金项目(U1262207,41404099),河南省重点科技攻关项目(152102210111)联合资助.","A"]
["地球物理学报","周林","学生","周林; 李景叶; 陈小宏",null,"李景叶",{"$f":"VLOOKUP(F188,[1]Sheet1!$B$2:$C$1437,2,FALSE)","v":"地球物理与信息工程学院"},null,"中国石油大学(北京)","基于精确Zoeppritz方程的非线性AVO三参数反演","2016","59","07","2663-2673","国家自然科学基金项目(U1262207、41390454)和国家科技重大专项课题(2011ZX05019-006)联合资助.","A"]
["石油学报","徐宝昌","教师","徐宝昌; 孟宇; 刘伟",null,"徐宝昌",{"$f":"VLOOKUP(F189,[1]Sheet1!$B$2:$C$1437,2,FALSE)","v":"地球物理与信息工程学院"},null,"中国石油大学","控压钻井井下不可测变量的非线性估计","2016","37","12","1543-1549","国家重大科技专项(2011ZX05027-005,2011ZX05021-003)资助.","A"]
["应用声学","刘先平","学生","刘先平; 鞠晓东; 乔文孝; 卢俊强; 门百永",null,"鞠晓东","地球物理与信息工程学院",null,"中国石油大学(北京)","声波测井仪总线测试接口设计","2016","35","01","8-12","国家自然科学基金项目(61102102,11204380,11374371,11134011),国家油气重大科技专项(2011ZX05020-009),中国石油科技创新基金(2014D-5006-0307),中国石油天然气集团公司项目(2014B-4011,2014D-4105,2014A-3912)和中国石油大学(北京)科研基金(2462015YQ0516)的资助","A"]
["地球物理学报","赵培强","学生","赵培强;孙中春;罗兴平;王振林;毛志强;吴义志;夏培",null,"毛志强","地球物理与信息工程学院",null,"中国石油大学(北京)","致密油储层核磁共振测井响应机理研究","2016","59","05","1927-1937","国家油气重大专项(2016ZX05050)资助.","A"]
["测控技术","郝小龙","学生","郝小龙; 鞠晓东; 吴锡令; 卢俊强; 门百永",null,"鞠晓东","地球物理与信息工程学院",null,"中国石油大学(北京)","一种可用于声波测井仪的双总线通信设计","2016","35","03","104-106,131","国家自然科学基金项目(61102102,11204380,11374371,11134011);国家油气重大科技专项(2011ZX05020-009);中国石油科技创新基金(2014D-5006-0307);中国石油天然气集团公司项目(2014B-4011,2014D-4105,2014A-3912);中国石油大学(北京)科研基金(2462015YQ0516)","A"]
["测井技术","冯程","学生","冯程; 毛志强; 石玉江; 程玉梅; 李高仁",null,"毛志强","地球物理与信息工程学院",null,"中国石油大学（北京）","姬塬油田长82段地层水矿化度平面分布主控因素及地质意义","2016","40","02","239-243","“十二五”国家科技重大专项大型油气田及煤层气开发子课题鄂尔多斯盆地大型低渗透岩性地层油气藏开发示范工程(2011ZX05044)","A"]
["测井技术","林小稳","学生","林小稳;柯式镇;贺秋丽;许巍;舒心;张琪",null,"柯式镇","地球物理与信息工程学院",null,"中国石油大学(北京)","岩石复电阻率频谱反演研究","2016","40","02","142-146","国家“十二五”科技重大专项(2011ZX05020-009)资助","A"]
["地球物理学报","王兵","教师","王兵; 马明明; 刘鹤; 刘志军",null,"王兵","地球物理与信息工程学院",null,"中国石油大学(北京)","套管井井壁附近地层横波速度径向分布反演","2016","59","12","4782-4790","国家自然科学基金青年基金(41204094),中国石油大学(北京)科研基金(2462015YQ0506)资助.","A"]
["中国石油大学学报（自然科学版）","许巍","学生","许巍;柯式镇;李安宗;陈鹏;朱军;桑泉",null,"柯式镇","地球物理与信息工程学院",null,"中国石油大学","随钻电磁波测井仪器结构影响的三维有限元模拟","2016","40","06","50-56","国家油气重大专项(2011ZX05020-002)","A"]
["原子能科学技术","王树声","学生","王树声;肖立志;岳爱忠;程峰;郭用梅;何绪新",null,"肖立志","地球物理与信息工程学院",null,"中国石油大学(北京)","脉冲中子地层元素测井仪优化设计中的蒙特卡罗模拟研究","2016","50","08","1517-1523","863计划资助项目(2013AA064601);国家科技重大专项资助项目(2016ZX05019001)","A"]
["测控技术","幺永超","学生","幺永超; 鞠晓东; 卢俊强; 门百永",null,"鞠晓东","地球物理与信息工程学院",null,"中国石油大学(北京)","随钻声波测井仪总线转换接口设计","2016","35","08","107-110","","A"]
["测井技术","吴保松","学生","吴保松;肖立志;刘洛夫;李梦春;廖广志;贾子健",null,"肖立志","地球物理与信息工程学院",null,"中国石油大学（北京）","井下在线核磁共振流体分析实验方法","2016","40","05","537-540,555","国家863项目（2013AA064605）；国家科技重大专项（2011ZX05020-001）；中国博士后科学基金（2013M530844）","A"]
["地球物理学报","郭江峰","学生","郭江峰; 谢然红; 邹友龙",null,"谢然红","地球物理与信息工程学院",null,"中国石油大学(北京)","砂岩核磁共振响应模拟及受限扩散","2016","59","07","2703-2712","国家自然科学基金(41272163)及高等学校博士学科点专项科研基金(20130007110012)资助.","A"]
["测井技术","林小稳","学生","林小稳;柯式镇;许巍;李安宗;陈鹏;朱军;贺秋丽",null,"柯式镇","地球物理与信息工程学院",null,"中国石油大学(北京)","基于ANSYS随钻双感应测井三维响应模拟软件开发及应用","2016","40","06","704-709","国家“十二五”重大科技专项(2011ZX05020-002)","A"]
["应用科技","曹旭东","教师","曹旭东; 孙云龙; 孔阳",null,"曹旭东","地球物理与信息工程学院",null,"中国石油大学(北京)","基于ARM11的高速P CB设计技术的研究及实现","2016","NULL","01","22-26","","A"]
["中国矿业大学学报","张颖颖","学生","张颖颖; 刘得军; 李轶; 郭智勇; 王政",null,"刘得军","地球物理与信息工程学院",null,"中国石油大学(北京)","地下铁质管线的地面高精度磁测数值模拟","2016","45","01","182-188","国家自然科学基金项目(41374151)","A"]
["电子设计工程","闫景富","教师","闫景富; 姜璐; 尹洪东; 郭娟娟",null,"闫景富","地球物理与信息工程学院",null,"中国石油大学(北京)","基于Allegro的高速AD/DA系统信号完整性设计与仿真","2016","24","06","67-70","","A"]
["电子设计工程","唐喆","学生","唐喆; 曹旭东",null,"曹旭东","地球物理与信息工程学院",null,"中国石油大学(北京)","网页分类中特征选择方法的研究","2016","24","05","120-122","","L"]
["电子设计工程","魏学良","教师","魏学良; 李卓然; 于聪智",null,"魏学良","地球物理与信息工程学院",null,"中国石油大学(北京)","智慧油田中嵌入式RTU应用设计","2016","24","03","184-187","","A"]
["电子设计工程","陈翠云","学生","陈翠云; 梁华庆",null,"梁华庆","地球物理与信息工程学院",null,"中国石油大学(北京)","基于蜜罐提升Snort检测能力的设计","2016","24","04","48-51","","A"]
["激光杂志","刘涛","学生","刘涛; 双凯",null,"刘涛","地球物理与信息工程学院",null,"中国石油大学(北京)","基于连续油管的测井遥传长缆的均衡器的设计","2016","37","05","76-80","油气重大专项“十二五”项目(2011ZX05009-005)","A"]
["计算机测量与控制","余勇","学生","余勇; 梁华庆; 史超; 吴志永; 高德利",null,"梁华庆","地球物理与信息工程学院",null,"中国石油大学(北京)","邻井距离随钻电磁探测系统的设计与实现","2016","24","04","36-38,47","国家科技重大专项(2011ZX05009-005).","A"]
["电子设计工程","柴琦","学生","柴琦; 曹旭东; 王洪蕾; 王雪凤",null,"曹旭东","地球物理与信息工程学院",null,"中国石油大学(北京)","P2P流量监测系统的设计","2016","24","11","64-66,70","国家发改委下一代互联网技术在智慧油田的应用示范项目（CNGI－12－03－043）","A"]
["电机与控制学报","曹旭东","教师","曹旭东; 李支园",null,"曹旭东","地球物理与信息工程学院",null,"中国石油大学(北京)","单元串联变频器 IGBT 故障诊断方法","2016","20","12","9-16","国家发改委应用示范项目（ CNGI－12－03－043）","A"]
["科学技术与工程","窦新宇","学生","窦新宇; 梁华庆; 沈维",null,"梁华庆","地球物理与信息工程学院",null,"中国石油大学(北京)","双水平井电磁测距径向距离计算方法","2016","16","33","24-28","十三五\"国家科技重大专项(2016ZX05009-004)和中国石油大学(北京)基金(KYJJ2012-05-33)资 ","A"]
["中国石油大学学报（自然科学版）","薛亚茹","教师","薛亚茹; 陈健升; 钱步仁",null,"薛亚茹","地球物理与信息工程学院",null,"中国石油大学(北京)","高阶3D Radon变换及其数据重建应用","2016","40","03","69-76","国家自然科学基金项目(41204095)","A"]
["计算机测量与控制","李俊杰","学生","李俊杰; 曹旭东; 梁华庆",null,"曹旭东","地球物理与信息工程学院",null,"中国石油大学(北京)","嵌入式应用系统中高速PCB设计技术的研究及实现","2016","24","06","268-270,277","国家发改委下一代互联网技术在智慧油田的应用示范项目（CNGI－12－03－043）。","A"]
["计算机测量与控制","沈维","学生","沈维; 梁华庆; 耿敏; 李静; 窦新宇",null,"梁华庆","地球物理与信息工程学院",null,"中国石油大学(北京)","双水平井电磁测距径向距离计算方法的ANSYS仿真研究","2016","24","08","248-251","国家科技重大专项(2011ZX05009-005);中国石油大学(北京)基金(KYJJ2012-05-33).","A"]
["科学技术与工程","张阔","学生","张阔; 吴锡令; 闫景富; 蔡家铁",null,"闫景富","地球物理与信息工程学院",null,"中国石油大学(北京)","油井多相流动电磁全息测量数据处理","2016","16","26","189-194","国家科技重大专项(2011ZX05020-006)资助","A"]
["计算机测量与控制","杨晓丁","学生","杨晓丁; 梁华庆; 耿敏; 沈维",null,"梁华庆","地球物理与信息工程学院",null,"中国石油大学(北京)","基于Comsol的电位法压裂裂缝监测正演研究","2016","24","09","54-57","北京市青年英才计划资助项目(00001086).","A"]
["计算机测量与控制","曹旭东","教师","曹旭东; 薛大欢; 何得平",null,"曹旭东","地球物理与信息工程学院",null,"中国石油大学(北京)","基于TD-LTE的智慧油田测控系统的研究与实现","2016","24","05","117-119,123","","A"]
["地球物理学进展","刘得军","教师","刘得军; 郭智勇; 朱慧慧; 潘琦; 艾清慧",null,"刘得军","地球物理与信息工程学院",null,"中国石油大学(北京)","地下铁质管线磁偶极子构造法正演单元划分策略","2016","31","06","2756-2761","国家自然科学基金资助项目(41374151)资助.","A"]
["计算机仿真","刘丽萱","教师","刘丽萱; 梁志珊; 郭银辉; 梁华庆",null,"刘丽萱","地球物理与信息工程学院",null,"中国石油大学(北京)","石油勘探可控源发射机稳流功率级大信号建模","2016","33","01","106-111","中国石油大学(北京)前瞻导向基金项目(2010QZ3)","A"]
["电子设计工程","白鸽","学生","白鸽; 钱步仁",null,"钱步仁","地球物理与信息工程学院",null,"中国石油大学(北京)","基于Dalvik指令的Android应用检测方法","2016","24","05","32-34","","L"]
["计算机工程与设计","李洪奇","教师","李洪奇; 朱丽萍; 孙国玉; 王露",null,"李洪奇","地球物理与信息工程学院",null,"中国石油大学(北京)","面向海量小文件的分布式存储系统设计与实现","2016","37","01","86-92","","A"]
["中南民族大学学报（自然科学版）","吴卫江","教师","吴卫江; 周静; 李国和",null,"吴卫江","地球物理与信息工程学院",null,"中国石油大学(北京)","一种基于节点重要度的社团划分算法","2016","35","01","119-122,140","国家自然科学基金资助项目(60473125)","A"]
["计算机应用与软件","赵艳红","学生","赵艳红; 李洪奇; 朱丽萍",null,"李洪奇","地球物理与信息工程学院",null,"中国石油大学(北京)","面向过程的勘探开发知识管理系统","2016","33","05","81-83,107","十二五国家重大专项子课题（2011ZX05020-007-007）；测井储层数据挖掘技术研究项目（20112x05020-009）。","A"]
["新疆大学学报（自然科学版）","柳妮","学生","柳妮; 吴丛文; 严世帮; 于景维; 李莉",null,"李莉","地球物理与信息工程学院",null,"中国石油大学(北京)克拉玛依校区","阜东斜坡区头屯河组产能特征及其影响因素分析","2016","33","01","109-114","国家油气重大专项(2011ZX05001-005).","A"]
["计算机与数字工程","吴卫江","教师","吴卫江; 李沐南; 李国和",null,"吴卫江","地球物理与信息工程学院",null,"中国石油大学(北京)","Louvain 算法的并行化处理","2016","44","08","1402-1406","国家自然基金项目（编号60473125）资助。","A"]
["地球物理学报","张如伟","学生","张如伟; 李洪奇; 文鹏飞; 张宝金",null,"李洪奇","地球物理与信息工程学院",null,"中国石油大学(北京)","海洋含水合物沉积层的速度频散与衰减特征分析","2016","59","09","3417-3427","国家重点基础研究发展计划(2009CB219505)与国家高技术研究发展计划(2013AA092501)联合资助.","A"]
["系统仿真学报","纪连恩","教师","纪连恩; 孙瑞生; 栾琪",null,"纪连恩","地球物理与信息工程学院",null,"中国石油大学(北京)","一种支持水下虚拟维修的高层仿真描述模型","2016","28","10","2415-2422","国家自然科学基金(60873093);国家科技重大专项(2011ZX05027-005)","A"]
["计算技术与自动化","赵艳红","学生","赵艳红; 李洪奇; 朱丽萍; 詹坤林",null,"李洪奇","地球物理与信息工程学院",null,"中国石油大学(北京)","基于Bloom Filter的去重方法研究","2016","35","01","95-100","十二五国家重大专项子课题项目(2011ZX05020-007-007)","A"]
["计算机科学","姜芳","学生","姜芳; 李国和; 岳翔",null,"李国和","地球物理与信息工程学院",null,"中国石油大学(北京)","基于语义的文档特征提取研究方法","2016","43","02","254-258","本文受国家高新技术研究发展计划(2009AA062802),国家自然科学基金(60473125),中国石油(CNPC)石油科技中青年创新基金(05E7013),国家重大专项子课题(G5800-08-ZS-WX)资助","A"]
["信息技术","龚斌","学生","龚斌; 李国和; 吴卫江; 洪云峰",null,"李国和","地球物理与信息工程学院",null,"中国石油大学(北京)","基于决策树的消费行为分析","2016","NULL","04","14-17","国家自然科学基金(60473125);国家高技术研究发展计划(863)(863-317-01-04-99,2009AA062820);中国石油(CNPC)石油科技中青年创新基金(05E7013);国家重大专项子课题(G5800-08-ZS-WX)","A"]
["信息技术","张伟","学生","张伟; 朱丽萍; 李洪奇",null,"朱丽萍","地球物理与信息工程学院",null,"中国石油大学(北京)","基于剖面的水平井随钻测井曲线成图技术","2016","NULL","04","56-59,68","国家“十五”科技攻关项目(2001 BA605 A09);国家重大专项子课题(G5800-08-ZS-WX)","A"]
["计算机与数字工程","方文和","学生","方文和; 李国和; 吴卫江; 洪云峰; 周晓明",null,"李国和","地球物理与信息工程学院",null,"中国石油大学(北京)","兴趣模型的构建与Apriori数据挖掘算法优化研究","2016","44","05","785-787,916","国家高新技术研究发展计划(编号:2009AA062802);国家自然科学基金(编号:60473125);中国石油(CNPC)石油科技中青年创新基金(编号:05E7013);国家重大专项子课题(编号:G5800-08-ZS-WX)资助.","A"]
["科学技术与工程","宋万洋","学生","宋万洋; 李国和; 吴卫江; 洪云峰; 周晓明",null,"李国和","地球物理与信息工程学院",null,"中国石油大学(北京)","基于平衡准确率和规模的决策树剪枝算法","2016","16","16","79-82","国家高新技术研究发展计划(2009AA062802)、国家自然科学基金(60473125)、中国石油(CNPC)石油科技中青年创新基金(05E7013)、国家重大专项子课题(G5800-08-ZS-WX)资助","A"]
["计算机工程与设计","朱丽萍","教师","朱丽萍; 刘蔷; 苏斐; 杨中国; 王显灿",null,"朱丽萍","地球物理与信息工程学院",null,"中国石油大学(北京)","科技文献的实验语料句抽取方法","2016","37","11","3086-3091","","A"]
["石油地球物理勘探","刘雅杰","学生","刘雅杰; 李生杰; 王永刚; 夏勇辉",null,"李生杰","地球物理与信息工程学院",null,"中国石油大学(北京)","横波预测技术在苏里格气田储层预测中的应用","2016","51","01","165-172","本项研究受国家自然科学基金项目(41274136)资助.","A"]
["新疆石油地质","曹思远","教师","曹思远;袁殿",null,"曹思远","地球物理与信息工程学院",null,"中国石油大学(北京)","高分辨率地震资料处理技术综述","2016","37","01","112-119","国家科技重大专项(2011ZX05024-001-01)","R"]
["石油物探","狄贵东","学生","狄贵东; 孙赞东; 庞雄奇; 刘立峰",null,"孙赞东","地球物理与信息工程学院",null,"中国石油大学(北京)","应力场模拟约束下的碳酸盐岩裂缝综合预测——以塔中地区ZG8井区为例","2016","55","01","150-156","国家科技重大专项(2011ZX05004003)、国家重点基础研究发展计划(973计划)(2011CB201103)项目联合资助.This research is financially supported by the National Science and Technology Major Project of China (Grant No.2011ZX05004003) and the National Key Basic Re","A"]
["石油物探","马继涛","教师","马继涛; 王建花; 刘国昌",null,"马继涛","地球物理与信息工程学院",null,"中国石油大学(北京)","基于频率域奇异值分解的地震数据插值去噪方法研究","2016","55","02","205-213","国家自然科学基金(41404099)、中国石油大学(北京)科研基金项目(2462015YQ0512)、海洋石油勘探国家工程实验室“斜缆采集地震数据分析与处理技术研究”项目联合资助. This research is financially supported by the National Natural Science Foundation of China (Grant","A"]
["物探与化探","李逢春","学生","李逢春; 王润秋; 蒋先艺; 杨剑",null,"王润秋","地球物理与信息工程学院",null,"中国石油大学(北京)","起伏地表地震三维观测系统的实时可视化方法","2016","40","05","1030-1034","国家重点基础研究发展计划（“973”计划）“深层油气藏地球物理探测的基础研究”项目（2013CB228602）","A"]
["地球物理学报","李京南","教师","李京南; 王尚旭; 董春晖; 袁三一; 王静波",null,"王尚旭","地球物理与信息工程学院",null,"中国石油大学(北京)","球面波PP反射系数的频变特征研究","2016","59","10","3810-3819","国家重点基础研究发展计划(973计划)项目(2013CB228600)和国家自然科学基金(41304108)联合资助.","A"]
["新疆石油地质","吕传炳","学生","吕传炳;程同冉;张峰;纪友亮;梁官忠;李彦国",null,"张峰","地球物理与信息工程学院",null,"中国石油大学","浅水三角洲沉积特征及其油气勘探意义——以渤海湾盆地霸县凹陷岔河集构造带沙一上亚段为例","2016","37","06","625-630","国家自然科学基金(41672098)","A"]
["化工进展","常润秀","学生","常润秀; 孙琳; 罗雄麟",null,"孙琳","地球物理与信息工程学院",null,"中国石油大学(北京)","换热器结垢与换热网络裕量设计方法研究进展","2016","NULL","02","358-363","国家重点基础研究发展计划项目（2012CB720500）。","R"]
["化工进展","罗雄麟","教师","罗雄麟; 叶松涛; 许锋; 许鋆",null,"罗雄麟","地球物理与信息工程学院",null,"中国石油大学(北京)","串级控制对过程预测控制的影响分析与对策","2016","NULL","02","417-424","国家重点基础研究发展计划项目（2012CB720500）。","A"]
["电子学报","刘建伟","教师","刘建伟; 黎海恩; 周佳佳; 罗雄麟",null,"刘建伟","地球物理与信息工程学院",null,"中国石油大学(北京)","概率图模型的表示理论综述","2016","44","05","1219-1226","","R"]
["计算机与应用化学","许锋","教师","许锋; 王锐; 罗雄麟",null,"许锋","地球物理与信息工程学院",null,"中国石油大学(北京)","CO助燃剂作用下催化裂化主风流量控制回路选择","2016","33","10","1056-1062","中国石油大学(北京)科研基金资助(2462015YQ0510);国家自然科学基金资助项目(21676295)","A"]
["计算机与应用化学","袁未未","学生","袁未未; 许锋; 罗雄麟",null,"许锋","地球物理与信息工程学院",null,"中国石油大学(北京)","过程块分散控制系统结构设计","2016","33","10","1096-1102","中国石油大学(北京)科研基金资助(2462015YQ0510);国家自然科学基金资助项目(21676295)","A"]
["计算机与应用化学","苗萌萌","学生","苗萌萌; 许鋆; 罗雄麟",null,"许鋆","地球物理与信息工程学院",null,"中国石油大学(北京)","基于状态空间模型的双时间尺度预测控制算法","2016","33","10","1108-1114","国家自然科学基金资助项目(21676295)","A"]
["电子学报","刘建伟","教师","刘建伟; 孙正康; 刘泽宇; 罗雄麟",null,"刘建伟","地球物理与信息工程学院",null,"中国石油大学(北京)","核典型关联性分析相关特征提取与核逻辑斯蒂回归域自适应学习","2016","44","12","2908-2915","国家重点基础研究发展规划（973计划）项目（No．2012CB720500）","A"]
["计算机学报","刘建伟","教师","刘建伟; 崔立鹏; 罗雄麟",null,"刘建伟","地球物理与信息工程学院",null,"中国石油大学(北京)","概率图模型的稀疏化学习","2016","39","08","1597-1611","本课题得到国家“九七三”重点基础研究发展计划项目基金（2012CB720500）、国家自然科学基金（21006127）、中国石油大学（北京）基础学科研究基金项目（JCXK-2011-07）资助．","A"]
["化工学报","张佳","学生","张佳; 罗雄麟; 许锋; 许鋆",null,"罗雄麟","地球物理与信息工程学院",null,"中国石油大学(北京)","前馈变量对预测控制可行域的影响分析","2016","67","09","3776-3783","国家重点基础研究发展计划项目（2012CB720500）。@@@@ supported by the National Basic Research Program of China (2012CB720500)","A"]
["中国化学工程学报（英文版）","Xionglin Luo","教师","Xionglin LuoPengfei CaoFeng Xu",null,"罗雄麟","地球物理与信息工程学院",null,"中国石油大学（北京）","Dynamic interaction analysis and pairing evaluation in control configuration design","2016","24","07","861-868","Supported by the National Natural Science Foundation of China (21006127) and the National Basic Research Program of China (2012CB720500).","A"]
["化工学报","黄冬","学生","黄冬; 赵民帅; 罗雄麟",null,"罗雄麟","地球物理与信息工程学院",null,"中国石油大学(北京)","乙烯精馏塔控制中降液管时滞效应影响分析","2016","67","11","4696-4704","国家重点基础研究发展计划项目（2012CB720500）。@@@@Foundation item:supported by the National Basic Research Program of China (2012CB720500)","A"]
["化工学报","吴博","学生","吴博; 罗雄麟",null,"罗雄麟","地球物理与信息工程学院",null,"中国石油大学(北京)","基于传热/传质的乙烯裂解过程脱甲烷塔进料瓶颈识别及流程重构策略","2016","67","11","4705-4715","国家重点基础研究发展计划项目（2012CB720500）。@@@@Foundation item:supported by the National Basic Research Program of China (2012CB720500)","A"]
["计算机与应用化学","赵博实","学生"," 赵博实; 孙琳; 罗雄麟",null,"孙琳","地球物理与信息工程学院",null,"中国石油大学(北京)","换热器详细设计与换热网络综合同步优化方法研究","2016","33","12","1248-1254","国家自然科学基金资助项目(21676295),中国石油大学(北京)科研基金资助(2462015YQ0511)","A"]
["中国化学工程学报（英文版）","Huan Min","学生","Huan Min Xionglin Luo ",null,"罗雄麟","地球物理与信息工程学院",null,"中国石油大学（北京）","Calibration of soft sensor by using Just-in-time modeling and AdaBoost learning method","2016","24","08","1038-1046","Supported by the National Basic Research Program of China (2012CB720500).","A"]
["清华大学学报（自然科学版）","许锋","学生","许锋; 潘琦; 王一岚; 罗雄麟",null,"许锋","地球物理与信息工程学院",null,"中国石油大学(北京)","工业过程多变量系统常规控制结构的频域设计","2016","56","04","448-452","","A"]
["电子设计工程","杨婕","学生","杨婕; 双凯; 黄菲; 庞亚宏",null,"双凯","地球物理与信息工程学院",null,"中国石油大学(北京)","测井电缆非线性相位特性的研究","2016","24","06","19-21,25","","A"]
["电子设计工程","黄菲","学生","黄菲; 双凯; 杨婕; 孙奇俏",null,"双凯","地球物理与信息工程学院",null,"中国石油大学(北京)","石油井下仪器总线测井数据传输及OFDM调制的设计","2016","24","07","144-147","","A"]
["中南大学学报（自然科学版）","赵欣","学生","赵欣; 邱正松; 张永君; 周国伟; 黄维安",null,{"$error":"#N/A"},"地球物理与信息工程学院","李向阳","中国石油大学","复合盐层井壁失稳机理及防塌钻井液技术","2016","47","11","3832-3838","国家科技重大专项(2011ZX05030-005-07)；国家自然科学基金资助项目(51374233)(Project(2011ZX05030-005-07) supported by the National Science and Technology Special Grant; Project(51374233) supported by the National Natural Science Foundation of China)","A"]
["中国石油大学学报（自然科学版）","李萌","学生","李萌; 陶果; 王华; 李军孝",null,{"$error":"#N/A"},{"$f":"VLOOKUP(B261,[2]Sheet1!$D$2:$F$6737,3,FALSE)","v":"地球物理与信息工程学院"},{"$f":"VLOOKUP(B261,[2]Sheet1!$D$1:$I$6737,6,FALSE)","v":"陶果"},"中国石油大学","微地震逆时聚焦定位算法的模拟实验研究","2016","40","05","59-71","国家自然科学基金项目(41174118,41204094);中国石油大学(北京)科研基金项目(2462015YQ0506)","A"]
["东北石油大学学报","李东庆","学生","李东庆; 魏建新; 狄帮让; 高峰; 兰晓光",null,{"$error":"#N/A"},{"$f":"VLOOKUP(B262,[2]Sheet1!$D$2:$F$6737,3,FALSE)","v":"地球物理与信息工程学院"},{"$f":"VLOOKUP(B262,[2]Sheet1!$D$1:$I$6737,6,FALSE)","v":"魏建新"},"中国石油大学(北京)","蘑菇状火山岩模型的二维地震正演模拟分析","2016","40","05","94-101","国家科技重大专项(2016ZX05007-006)","A"]
["计算机应用与软件","陈晨","学生","陈晨; 王梦彤",null,{"$error":"#N/A"},{"$f":"VLOOKUP(B263,[2]Sheet1!$D$2:$F$6737,3,FALSE)","v":"地球物理与信息工程学院"},{"$f":"VLOOKUP(B263,[2]Sheet1!$D$1:$I$6737,6,FALSE)","v":"薛亚茹"},"中国石油大学","一种指纹考勤机数据管理系统的设计与开发","2016","33","12","30-33","国家自然科学基金项目（71403293）。","A"]
["材料保护","杨超","学生","杨超; 崔淦; 李自力; 张成斌; 赵雅蕾",null,{"$error":"#N/A"},{"$f":"VLOOKUP(B264,[2]Sheet1!$D$2:$F$6737,3,FALSE)","v":"地球物理与信息工程学院"},{"$f":"VLOOKUP(B264,[2]Sheet1!$D$1:$I$6737,6,FALSE)","v":"吴文圣"},"中国石油大学","直流杂散电流对X65钢表面形态及电化学行为的影响","2016","49","10","18-22","国家科技重大专项大型油气田及煤层气开发(2008ZX05017-04-01)资助","A"]
["现代地质","唐相路","学生","唐相路;姜振学;李卓;李卫兵;杨佩佩;黄何鑫;郝进",null,"姜振学",{"$f":"VLOOKUP(F265,[1]Sheet1!$B$2:$C$1437,2,FALSE)","v":"非常规天然气研究院"},null,"中国石油大学(北京)","渝东南地区龙马溪组高演化页岩微纳米孔隙非均质性及主控因素","2016","NULL","01","163-171","国家科技重大专项课题（2011 ZX05018－002）；国家自然科学基金项目（41472112）；国土资源部项目（12120114046701）；重庆市国土资源和房屋管理局科技计划重大项目（CQGT －KJ －2012）。","A"]
["中南大学学报（自然科学版）","李峰","学生","李峰;姜振学;李卓;刘建良;王赢;罗枭",null,"姜振学",{"$f":"VLOOKUP(F266,[1]Sheet1!$B$2:$C$1437,2,FALSE)","v":"非常规天然气研究院"},null,"中国石油大学(北京)","库车坳陷迪北气藏流体包裹体特征及油气充注历史","2016","NULL","02","515-523","国家重点基础发展规划(973计划)项目(2011CB201105)；国家科技重大专项(2011ZX05003-001，2011ZX05008-004)；国家自然科学基金资助项目(40972088)(Project (2011CB201105) supported by the National Basic Research Program (973 Program) of China; Projects(2011ZX050","R"]
["现代地质","陈磊","学生","陈磊;姜振学;陈委涛;纪文明;黄何鑫;李卫兵;杨潇;温暖",null,"姜振学",{"$f":"VLOOKUP(F267,[1]Sheet1!$B$2:$C$1437,2,FALSE)","v":"非常规天然气研究院"},null,"中国石油大学(北京)","川西新场地区须五段泥页岩超压成因及其对含气性的影响","2016","30","02","406-412","国家科技重大专项（2011 ZX05018－002，2011 ZX05003－001）。","A"]
["地质学报","原园","学生","原园;姜振学;喻宸;王朋飞;李廷微;郭天旭;赵若彤;唐相路",null,"姜振学",{"$f":"VLOOKUP(F268,[1]Sheet1!$B$2:$C$1437,2,FALSE)","v":"非常规天然气研究院"},null,"中国石油大学（北京）","高丰度低演化程度湖相页岩储层特征——以柴达木盆地北缘中侏罗统为例","2016","90","03","541-552","本文为国家重大专项(编号2011ZX05018-02)和国土资源部项目(编号12120114046701)联合资助成果.","A"]
["特种油气藏","袁青","学生","袁青; 罗群; 李楠; 李斌; 高雄雄",null,"罗群",{"$f":"VLOOKUP(F269,[1]Sheet1!$B$2:$C$1437,2,FALSE)","v":"非常规天然气研究院"},null,"中国石油大学(北京)","齐家南地区高台子油层致密油成藏模式","2016","23","01","54-57","国家自然科学基金“云质岩致密油储层微米-纳米孔喉网络体系及其流体耦合流动机理与流动下限”（41372145）和国家“973”项目“陆相致密油甜点成因机制及精细表征”（2015CB250901）联合资助","A"]
["计算机仿真","杨柳","学生","杨柳; 葛洪魁; 申颍浩; 周彤",null,"葛洪魁",{"$f":"VLOOKUP(F270,[1]Sheet1!$B$2:$C$1437,2,FALSE)","v":"非常规天然气研究院"},null,"中国石油大学(北京)","火山岩气井井壁破坏预测可视化研究","2016","33","02","158-162","国家自然科学基金重大项目课题“多重耦合下的页岩油气安全优质钻井理论”(51490652)","A"]
["液压气动与密封","孟虎","学生","孟虎;邵东亮;侯立群;田雨;刘冬冬;王明君",null,"刘冬冬",{"$f":"VLOOKUP(F271,[1]Sheet1!$B$2:$C$1437,2,FALSE)","v":"非常规天然气研究院"},null,"中国石油大学","全直径岩心孔渗测定仪的研制","2016","36","12","63-65","","L"]
["科学技术与工程","李宜润","学生","李宜润;姜振学;刘伟伟;黄睿哲;张昆;程四洪;高之业;高凤琳;熊凤阳",null,"姜振学",{"$f":"VLOOKUP(F272,[1]Sheet1!$B$2:$C$1437,2,FALSE)","v":"非常规天然气研究院"},null,"中国石油大学(北京)","修武盆地构造热演化史对下寒武统页岩含气性的影响","2016","16","34","44-51","国土资源部项目（ZX20150274)、江西修武盆地页岩含气性影响因素及定量预测（HX20150443)资助","A"]
["岩土力学","王剑波","学生","王剑波; 葛洪魁; 王小琼; 汪道兵; 陈浩",null,"葛洪魁",{"$f":"VLOOKUP(F273,[1]Sheet1!$B$2:$C$1437,2,FALSE)","v":"非常规天然气研究院"},null,"中国石油大学(北京)","利用超声尾波干涉评价页岩应力敏感性","2016","37","11","3299-3308,3346","国家自然科学基金联合基金(U1562215),国家自然科学基金青年基金(41304141),中国石油大学(北京)青年创新团队C计划(编号C201601),973课题(2015CB250903),国家自然科学基金重大项目课题(51490652).This work was supported by the Joint Funds of the National Natural Sci","A"]
["高校地质学报","陈磊","学生","陈磊;姜振学;纪文明;陈委涛;王朋飞;胡涛;高凤琳;刘庆新",null,"姜振学",{"$f":"VLOOKUP(F274,[1]Sheet1!$B$2:$C$1437,2,FALSE)","v":"非常规天然气研究院"},null,"中国石油大学(北京)","陆相页岩微观孔隙结构特征及对甲烷吸附性能的影响","2016","22","02","335-343","国家科技重大专项（2016ZX05034-001）；国家自然科学基金（41472112）联合资助","A"]
["高校地质学报","杨潇","学生","杨潇;姜振学;宋岩;黄何鑫;唐相路;纪文明;李卓;王朋飞;陈磊",null,"姜振学",{"$f":"VLOOKUP(F275,[1]Sheet1!$B$2:$C$1437,2,FALSE)","v":"非常规天然气研究院"},null,"中国石油大学(北京)","渝东南牛蹄塘组与龙马溪组高演化海相页岩全孔径孔隙结构特征对比研究","2016","22","02","368-377","中国地质调查局项目“中国典型页岩气富集机理与综合评价体系”（12120114046201）；国家科技重大专项“页岩气成藏主控因素研究”（2011ZX05018-002）；国家自然科学基金项目“页岩非均质性和微-纳米孔喉结构对含气性的控制机理”（41472112）联合资助","A"]
["东北石油大学学报","汪道兵","学生","汪道兵;周福建;葛洪魁;刘雄飞;石阳;Sergio Zlotnik;张薇",null,"周福建",{"$f":"VLOOKUP(F276,[1]Sheet1!$B$2:$C$1437,2,FALSE)","v":"非常规天然气研究院"},null,"中国石油大学(北京)","纤维强制裂缝转向规律实验及现场试验","2016","40","03","80-88","国家重点基础研究发展计划“973计划”项目(2015CB250903);国家自然科学基金重大项目(51490652);国家建设高水平大学公派研究生项目(CSC 201506440005);中澳天然气技术伙伴关系基金(20150817120350);中国石油天然气股份有限公司科学研究与技术开发项目(2014A-4212);中国石","A"]
["石油学报","代全齐","学生","代全齐;罗群;张晨;卢朝进;张云钊;鲁少杰;赵岩",null,"罗群",{"$f":"VLOOKUP(F277,[1]Sheet1!$B$2:$C$1437,2,FALSE)","v":"非常规天然气研究院"},null,"中国石油大学(北京)","基于核磁共振新参数的致密油砂岩储层孔隙结构特征——以鄂尔多斯盆地延长组7段为例","2016","37","07","887-897","国家自然科学基金项目(No.41372145)和国家重点基础研究发展计划(973)项目(2015CB250901)资助.","A"]
["中国海上油气","杨柳","学生","杨柳;葛洪魁;程远方;闫伟;赵凤坤;刘敦卿;李伟",null,"葛洪魁",{"$f":"VLOOKUP(F278,[1]Sheet1!$B$2:$C$1437,2,FALSE)","v":"非常规天然气研究院"},null,"中国石油大学(北京)","页岩储层压裂液渗吸-离子扩散及其影响因素","2016","28","04","94-99","国家自然科学基金项目“多重耦合下的页岩油气安全优质钻井理论(编号:51490652)”、国家重点基础研究发展计划(973计划)项目“致密储层人工缝网形成与重复压裂改造控制机理(编号:2015CB250903)”、中国石油化工股份有限公司基础科研项目“微-纳米毛管渗吸与非常规油气储层","A"]
["矿物岩石地球化学通报","陈磊","学生","陈磊;姜振学;纪文明;陈委涛;王朋飞;温暖;胡涛;高凤琳;宁传祥",null,"姜振学",{"$f":"VLOOKUP(F279,[1]Sheet1!$B$2:$C$1437,2,FALSE)","v":"非常规天然气研究院"},null,"中国石油大学(北京)","川西坳陷上三叠统须五段陆相页岩气储集层矿物成分特征及其意义","2016","35","04","750-755","国家科技重大专项(2011ZX05018-002);国家自然科学基金项目(41472112)","A"]
["科学技术与工程","杨柳","学生","杨柳; 葛洪魁; 申颍浩",null,"葛洪魁",{"$f":"VLOOKUP(F280,[1]Sheet1!$B$2:$C$1437,2,FALSE)","v":"非常规天然气研究院"},null,"中国石油大学(北京)","一种评价页岩储层压裂液吸收的新方法","2016","16","24","48-53","国家自然科学基金(51490652)资助","A"]
["中国海上油气","王厚东","教师","王厚东;闫伟;孙金;邓金根;曹砚锋;张磊;闫新江;高佳佳;潘豪;刘凯铭",null,"闫伟",{"$f":"VLOOKUP(F281,[1]Sheet1!$B$2:$C$1437,2,FALSE)","v":"非常规天然气研究院"},null,"中国石油大学(北京)","稠油热采井注热过程数值模拟与参数优选","2016","28","05","104-109","“十三五”国家科技重大专项子课题“水淹储层压裂充填防砂工艺技术优化研究及应用(编号:2016ZX05058002-006)”、中国石油大学(北京)科研启动基金资助项目“防砂筛管封堵及冲蚀磨损预测研究(编号:YJRC-2013-19)”、中海石油(中国)有限公司北京研究中心课题“海上热采井完","A"]
["科学技术与工程","宁传祥","学生","宁传祥;姜振学;苏思远;李廷微;陈委涛;陈磊;王智",null,"姜振学",{"$f":"VLOOKUP(F282,[1]Sheet1!$B$2:$C$1437,2,FALSE)","v":"非常规天然气研究院"},null,"中国石油大学(北京)","泥页岩核磁共振T2谱换算孔隙半径方法","2016","16","27","14-19","国家重点基础研究发展计划(973)项目(2014CB239105)资助","A"]
["石油地球物理勘探","罗亚能","学生","罗亚能;黄捍东;王玉梅;慎国强;张达;杨亚迪",null,"黄捍东",{"$f":"VLOOKUP(F283,[1]Sheet1!$B$2:$C$1437,2,FALSE)","v":"非常规天然气研究院"},null,"中国石油大学(北京)","地震波形反演与测井联合的三维建模方法","2016","51","05","947-954","本项研究受国家重大专项(2011ZX05006-006,2011ZX05009)和国家“973”专项(2011CB201104)等课题联合资助.","A"]
["吉林大学学报（地球科学版）","白永强","学生","白永强; 刘美; 杨春梅;姜振学",null,"姜振学",{"$f":"VLOOKUP(F284,[1]Sheet1!$B$2:$C$1437,2,FALSE)","v":"非常规天然气研究院"},null,"中国石油大学","基于AFM表征的页岩孔隙特征及其与解析气量关系","2016","46","05","1332-1341","国家自然科学基金项目(51274068,41472112);中国博士后基金项目(2014M560163);教育部提高油气采收率重点实验室基金(2014)Supported by National natural Science Foundation of China (51274068,41472112);Chinese Postdoctoral Science Foundation (2014M560163) and Ke","A"]
["地学前缘","姜振学","教师","姜振学;唐相路;李卓;黄何鑫;杨佩佩;杨潇;李卫兵;郝进",null,"姜振学",{"$f":"VLOOKUP(F285,[1]Sheet1!$B$2:$C$1437,2,FALSE)","v":"非常规天然气研究院"},null,"中国石油大学(北京)","川东南地区龙马溪组页岩孔隙结构全孔径表征及其对含气性的控制","2016","23","02","126-134","国家自然科学基金项目(41472112);国家油气重大专项(2011ZX05018-02);国土资源部项目(12120114046701)","A"]
["地震研究","孟范宝","学生","孟范宝; 葛洪魁; 陈海潮; 王小琼; 杨微",null,"葛洪魁",{"$f":"VLOOKUP(F286,[1]Sheet1!$B$2:$C$1437,2,FALSE)","v":"非常规天然气研究院"},null,"中国石油大学(北京)","利用三分量地震计检测自然载荷下桥梁结构响应特征","2016","39","03","519-525","北京市科学研究与研究生培养共建项目——自然载荷作用下北京市典型在役桥梁微震结构响应特征研究和中国科学院战略性先导科技专项(B类)——微震声发射监测系统研发(XDB10050203)联合资助.","A"]
["特种油气藏","李卫兵","学生","李卫兵; 姜振学; 李卓;陈磊; 王朋飞",null,"姜振学",{"$f":"VLOOKUP(F287,[1]Sheet1!$B$2:$C$1437,2,FALSE)","v":"非常规天然气研究院"},null,"中国石油大学","渝东南页岩微观孔隙结构特征及其控制因素","2016","23","02","50-54","国家自然科学基金“页岩非均质性和微-纳米孔喉结构对含气性的控制机理”（41472112）和中国地质调查局项目“南方富有机质页岩储集能力及其控制因素调查”（12120114046701）联合资助","A"]
["特种油气藏","高雄雄","学生","高雄雄; 罗群; 姚立邈;袁青; 王葡萄",null,"罗群",{"$f":"VLOOKUP(F288,[1]Sheet1!$B$2:$C$1437,2,FALSE)","v":"非常规天然气研究院"},null,"中国石油大学","源储组合特征对花海凹陷致密油成藏的影响","2016","23","02","55-58","国家自然科学基金项目“云质岩致密油储层微米-纳米孔喉网络体系及其流体耦合流动机理与流动下限”（41372145）；中国石油天然气股份有限公司重大科技专项“酒泉盆地青西、花海地区致密油研究及目标优选”（2012E-3303）","A"]
["环境工程","刘鹏鸽","学生","刘鹏鸽; 孙仁金; 苟永平",null,"孙仁金","工商管理学院",null,"中国石油大学(北京)","我国页岩气开发环境问题及对策","2016","34","01","141-144,149","国家社会科学基金重大项目(13&ZD159).","A"]
["油气储运","王中元","学生","王中元; 罗东坤; 刘璘璘",null,"罗东坤","工商管理学院",null,"中国石油大学(北京)","我国城市燃气发展阶段及其主要特征","2016","35","02","115-123","国家油气科技重大专项专题:国家重大科技专项“页岩气开发经济评价研究”,2011ZX05018-005-1.","R"]
["科技管理研究","刘鹏鸽","学生","刘鹏鸽; 孙仁金",null,"孙仁金","工商管理学院",null,"中国石油大学(北京)","我国综合性油气技术服务公司研发管理优化研究","2016","36","03","176-182","","A"]
["天然气与石油","李世群","学生","李世群; 张宝生; 唐旭",null,"张宝生","工商管理学院",null,"中国石油大学(北京)","基于蒙特卡罗模拟的海外油气项目评价研究","2016","34","01","102-106","国家社会科学基金重大项目资助(13 & ZD 159)","A"]
["天然气与石油","王中元","学生","王中元; 罗东坤; 刘璘璘",null,"罗东坤","工商管理学院",null,"中国石油大学(北京)","“十三五”时期中国城市燃气发展环境分析与对策","2016","34","01","1-7","国家油气科技重大专项专题“页岩气开发经济评价研究”(2011 ZX 05018-005-004)","A"]
["环境工程","郭瑞","学生","郭瑞; 罗东坤; 李慧",null,"罗东坤","工商管理学院",null,"中国石油大学(北京)","中国页岩气开发环境成本计量研究及政策建议","2016","34","03","180-184,42","国家科技重大专项“页岩气开发经济评价研究”(2011ZX05018-005-01);重庆市国土资源和房屋管理局科技计划重大项目“页岩气勘探开发技术经济评价方法及其应用”(HX20120604).","A"]
["石油学报（石油加工）","孙仁金","教师","孙仁金;吴金;董康银;薛淑莲;李慧;陈志浩",null,"孙仁金","工商管理学院",null,"中国石油大学(北京)","聚乙烯生产生命周期成本评价","2016","32","02","401-406","国家“十二五”科技计划（2012BAE05B06）和国家自然科学基金（NSFC）（U1162204，21176254）项目资助","A"]
["中国矿业","孙肖阳","学生","孙肖阳; 张宝生; 魏新强; 郭克强",null,"张宝生","工商管理学院",null,"中国石油大学(北京)","非常规天然气勘探开发评价及影响综述","2016","25","03","1-10","国家社会科学基金重大项目资助(编号:13&ZD159)","A"]
["江苏农业科学","刘力","教师","刘力; 阮荣平",null,"刘力","工商管理学院",null,"中国石油大学, 北京","气候变暖对粮食安全的影响综述","2016","44","11","6-10","中国石油大学（北京）科学研究基金（编号2462013YJRC035）；中国人民大学科学研究基金（编号14XNJ017、14XNQ019）。","R"]
["科技管理研究","董康银","学生","董康银; 孙仁金; 李慧",null,"孙仁金","工商管理学院",null,"中国石油大学(北京)","中国天然气消费结构转变及对策","2016","36","09","235-241","国家社会科学基金重大项目“非常规油气开发利用对国家能源安全和社会经济的影响”(13&ZD159);国家自然科学基金项目“我国天然气安全预警与应急系统研究”(71273277)","A"]
["天然气与石油","郑玉华","教师","郑玉华; 李静云; 汪楝钦",null,"郑玉华","工商管理学院",null,"中国石油大学(北京)","基于复杂网络的全球LNG市场分析","2016","34","03","106-111","国家社科基金重大项目(11 & ZD 164);中国石油科技创新基金研究项目(2013 D-5006-0106);北京市高等学校青年英才计划资助项目(YETP 0689);中国石油大学(北京)优秀青年教师研究项目(2462015 YQ 0716)","A"]
["天然气与石油","朱力挥","学生","朱力挥; 罗东坤; 孟新",null,"罗东坤","工商管理学院",null,"中国石油大学(北京)","基于油田经营绩效最大化的投资优化方法","2016","34","03","112-117","国家社会科学基金重大项目(11 & ZD 164);国家高技术研究发展计划(863计划)项目(2009 AA 063407)","A"]
["油气地质与采收率","张长宝","学生","张长宝; 罗东坤; 徐晟; 魏春光",null,"罗东坤","工商管理学院",null,"中国石油大学(北京)","土库曼斯坦阿姆河右岸区块礁滩体地震地质综合识别方法","2016","23","04","64-69","国家科技重大专项“大型油气田及煤层气开发”(2011ZX05059).","A"]
["科技管理研究","姜洪殿","学生","姜洪殿; 董康银; 吴金; 孙仁金",null,"孙仁金","工商管理学院",null,"中国石油大学(北京)","炼油企业环境成本核算模型与应用","2016","36","16","256-261","国家社会科学基金重大项目“非常规油气开发利用对国家能源安全和社会经济的影响”(13&ZD159);国家自然科学基金项目“中国天然气安全预警与应急系统研究”(71273277)","A"]
["油气储运","朱力挥","学生","朱力挥; 罗东坤",null,"罗东坤","工商管理学院",null,"中国石油大学(北京)","碳酸盐岩油气藏地面工程管控难点及对策","2016","35","08","909-912","","A"]
["可再生能源","姜洪殿","学生","姜洪殿; 董康银; 孙仁金; 宋显昱",null,"孙仁金","工商管理学院",null,"中国石油大学(北京)","中国新能源消费预测及对策研究","2016","34","08","1196-1202","国家社会科学基金重大项目(13&ZD159);国家自然科学基金项目(71273277).","A"]
["天然气工业","董康银","学生","董康银; 孙仁金; 郝鸿毅; 董思学",null,"孙仁金","工商管理学院",null,"中国石油大学(北京)","天然气管道业务价值评估模型及应用","2016","36","09","129-134","国家社会科学基金重大项目“非常规油气开发利用对国家能源安全和社会经济的影响”(编号:13&ZD159)、国家自然科学基金项目“中国天然气安全预警与应急系统研究”(编号:71273277).","A"]
["中国矿业","敖晓文","学生","敖晓文; 冯连勇; 唐旭; William X.Wei",null,"冯连勇","工商管理学院",null,"中国石油大学(北京)","加拿大阿尔伯塔省油气监管最新变革","2016","25","01","19-26","国家自然基金项目资助(编号:71373285;71073173;71303258);国家社科基金重大项目资助(编号:13&ZD159;11&ZD164);教育部哲学社会科学研究重大课题攻关项目资助(编号:11JZD048)","A"]
["中国矿业","徐博","学生","徐博; 冯连勇; 胡燕; William Wei",null,"冯连勇","工商管理学院",null,"中国石油大学(北京)","能源投入回报(EROI)研究进展探析","2016","25","02","42-52,57","国家自然科学基金项目“非常规油气开发的能源回报评价方法与应用研究”资助(编号:71373285);国家自然科学基金项目“我国国民经济中隐含石油的测算、路径分解与出口结构优化研究”资助(编号:71303258);国家社科基金重大项目“非常规油气开发利用对国家能源安全和社会经济","A"]
["中国矿业","王建良","教师","王建良; 冯连勇",null,"王建良","工商管理学院",null,"中国石油大学(北京)","页岩气开发水资源影响及温室气体排放研究评述","2016","25","04","61-67","2015年国家自然基金项目“页岩气开发环境影响量化评估与管理政策研究”资助（编号71503264）；2015年度教育部人文社科基金“中国页岩气开发潜力及对区域水资源消耗的影响研究”资助（编号15YJC630121）；中国石油大学（北京）青年拔尖人才启动基金项目“世界非常规油气 ","R"]
["天然气工业","刘毅军","学生","刘毅军; 马莉",null,"刘毅军","工商管理学院",null,"中国石油大学(北京)","低油价对天然气产业链的影响","2016","36","06","98-109","国家科技重大专项项目“页岩气开发经济界限和风险量化评价方法”(编号:2016ZX05037006-003).","A"]
["天然气工业","刘贵贤","学生","刘贵贤; 董秀成; 孔朝阳; 赵春成",null,"董秀成","工商管理学院",null,"中国石油大学(北京)","中国天然气进口风险量化研究——基于改进的投资组合理论","2016","36","06","110-117","国家自然科学基金项目“我国天然气安全预警与应急系统研究”(编号:71273277)、教育部哲学社会科学研究重大课题攻关项目“扩大我国油气战略储备研究”(编号:11JZD048).","A"]
["资源科学","陈英超","学生","陈英超; 冯连勇; 王建良",null,"冯连勇","工商管理学院",null,"中国石油大学(北京)","基于能值的能源投入回报方法及其应用——以大庆油田为例","2016","38","12","2270-2282","国家自然科学基金面上项目(71373285);国家自然科学基金青年项目(71303258,71503264).","A"]
["石油钻探技术","李玉梅","教师","李玉梅;吕炜;宋杰;李军;杨宏伟;于丽维",null,"李玉梅","工商管理学院",null,"中国石油大学(北京)","层理性页岩气储层复杂网络裂缝数值模拟研究","2016","44","04","108-113","中国石油大学(北京)前瞻导向项目专项基金“各向异性页岩气藏分簇射孔参数优化方法研究”(ZX20150039)资助。","A"]
["石油钻探技术","柳贡慧","学生","柳贡慧;李玉梅;李军;查春青;张涛;霍明明",null,"李玉梅","工商管理学院",null,"中国石油大学(北京)","复合冲击破岩钻井新技术","2016","44","05","10-15","国家自然科学基金“控压钻井测控理论及关键问题研究”（编号51334003）、中国石油天然气集团公司科学研究与技术开发项目“高研磨地层破岩新技术研究”（编号2014A 4211）联合资助。","A"]
["石油机械","张开龙","学生","张开龙; 谭瑞; 代广文; 彭粲粲; 段梦兰",null,"段梦兰",{"$f":"VLOOKUP(F314,[1]Sheet1!$B$2:$C$1437,2,FALSE)","v":"海洋工程研究院"},null,"中国石油大学(北京)","水下卧式采油树SCM下放工具锁紧机构性能分析","2016","NULL","02","53-57","国家发改委2013年海洋工程装备研发及产业化专项“水下采油树研发及产业化”（发改办高技［2013］1764号）。","A"]
["中国海上油气","周波","学生","周波;杨进;周建良;刘书杰;刘正礼;杨建刚",null,"杨进",{"$f":"VLOOKUP(F315,[1]Sheet1!$B$2:$C$1437,2,FALSE)","v":"海洋工程研究院"},null,"中国石油大学(北京)","深水喷射扰动对表层导管承载力的影响规律","2016","28","01","98-102","国家自然科学基金面上项目\"深水钻井表层导管喷射钻进机理研究(编号:51274215)\"、国家自然科学基金重点项目\"海洋深水浅层钻井关键技术基础理论研究(编号:51434009)\"、国家重点基础研究发展计划\"深水浅层钻井井眼稳定性与作业风险演化机制研究(编号:2015CB251202)\"联 ","A"]
["石油机械","王懿","教师","王懿; 岳吉祥; 罗晓兰; 赵毅",null,"王懿",{"$f":"VLOOKUP(F316,[1]Sheet1!$B$2:$C$1437,2,FALSE)","v":"海洋工程研究院"},null,"中国石油大学(北京)","海底管道混凝土配重层抗撞击影响分析?","2016","44","04","112-116","中国石油大学（北京）科研基金资助项目“海底管道落物撞击损伤机理及数值模拟研究”（2462015YQ0412）；山东胜利石油装备产业技术研究院山东省海洋石油装备重点实验室开放基金资助项目“深水水下吸力基础安装作业基础理论及关键技术研究”（ KRKFJJ－03）。","A"]
["石油机械","宋振华","学生","宋振华; 段梦兰",null,"段梦兰",{"$f":"VLOOKUP(F317,[1]Sheet1!$B$2:$C$1437,2,FALSE)","v":"海洋工程研究院"},null,"中国石油大学(北京)","3根附属杆对海洋立管涡街抑制效果的研究","2016","NULL","06","56-61","国家973计划项目 \"深海柔性结构的非线性流固耦合与破坏机理研究\" (2011CB013702","A"]
["石油钻探技术","周波","学生","周波; 杨进; 周建良; 刘正礼; 杨建刚",null,"杨进",{"$f":"VLOOKUP(F318,[1]Sheet1!$B$2:$C$1437,2,FALSE)","v":"海洋工程研究院"},null,"中国石油大学(北京)","深水钻井喷射下导管排量设计方法","2016","44","03","21-26","国家自然科学基金面上项目“深水钻井表层导管喷射钻进机理研究”（编号51274215）、国家自然科学基金重点项目“海洋深水浅层钻井关键技术基础理论研究”（编号51434009）、国家重点基础研究发展计划（“973计划”）项目“深水浅层钻井井眼稳定性与作业风险演化机制研究 ","A"]
["石油机械","宋振华","学生","宋振华; 段梦兰",null,"段梦兰",{"$f":"VLOOKUP(F319,[1]Sheet1!$B$2:$C$1437,2,FALSE)","v":"海洋工程研究院"},null,"中国石油大学(北京)","海洋立管横流向与双向涡激振动研究?","2016","44","07","65-69,75","国家973计划项目“深海柔性结构的非线性流固耦合与破坏机理研究”（2011CB013702）。","A"]
["石油钻采工艺","许云锦","学生","许云锦; 杨进; 周波; 孟炜",null,"杨进",{"$f":"VLOOKUP(F320,[1]Sheet1!$B$2:$C$1437,2,FALSE)","v":"海洋工程研究院"},null,"中国石油大学(北京)","深水钻井喷射法安装表层导管极限下入深度确定","2016","38","05","553-557","国家自然科学基金重点项目“海洋深水浅层钻井关键技术基础理论研究”（编号51434009）；国家自然科学基金面上项目“深水钻井表层导管喷射钻进机理研究”（编号51274215）；国家自然科学创新研究群体项目“复杂油气井钻井与完井基础研究”（编号51221003）联合资助。","A"]
["石油钻采工艺","张百灵","学生","张百灵; 杨进; 王磊; 邸鹏伟; 赵彦琦",null,"杨进",{"$f":"VLOOKUP(F321,[1]Sheet1!$B$2:$C$1437,2,FALSE)","v":"海洋工程研究院"},null,"中国石油大学(北京)","莺-琼盆地高温高压区域浅层气钻井风险评估与防治","2016","38","06","766-770","国家重大专项“浅层地质灾害识别与风险评价技术研究”（编号2016ZX05033004-006）；国家自然科学基金“海洋深水浅层钻井关键技术基础理论研究”（编号51434009）。","A"]
["石油钻采工艺","阚长宾","学生","阚长宾;杨进;于晓聪;管申;张超;胡南丁",null,"杨进",{"$f":"VLOOKUP(F322,[1]Sheet1!$B$2:$C$1437,2,FALSE)","v":"海洋工程研究院"},null,"中国石油大学(北京)","深水高温高压井隔热测试管柱技术","2016","38","06","796-800","国家自然科学基金“海洋深水浅层钻井关键技术基础理论研究”（编号51434009）；国家自然科学创新研究群体项目“复杂油气井钻井与完井基础研究”（编号51221003）。","A"]
["中国海上油气","杨进","教师","杨进;仝刚;周波;孟炜;刘正礼;陈斌;张伟国",null,"杨进",{"$f":"VLOOKUP(F323,[1]Sheet1!$B$2:$C$1437,2,FALSE)","v":"海洋工程研究院"},null,"中国石油大学(北京)","张力腿平台表层导管安装方法适应性评价及优选","2016","28","06","72-76","国家自然科学基金“海洋深水浅层钻井关键技术基础理论研究(编号:51434009)”、国家自然科学基金“深水钻井隔水导管喷射钻进机理研究(编号:51274215)”、国家自然科学创新研究群体项目“复杂油气井钻井与完井基础研究(编号:51221003)”部分研究成果.","A"]
["石油机械","朱军龙","学生","朱军龙; 段梦兰; 叶天源; 徐时贤; 脱浩虎",null,"段梦兰",{"$f":"VLOOKUP(F324,[1]Sheet1!$B$2:$C$1437,2,FALSE)","v":"海洋工程研究院"},null,"中国石油大学(北京)","水下采油树生产模块通道多相冲蚀数值分析","2016","44","03","58-62","国家发改委2013年海洋工程装备研发及产业化专项“水下采油树研发及产业化”（发改办高技［2013］1764号）。","A"]
["化工进展","苏鑫","学生","苏鑫; 裴华健; 吴迎亚; 高金森; 蓝兴英",null,"高金森",{"$f":"VLOOKUP(F325,[1]Sheet1!$B$2:$C$1437,2,FALSE)","v":"化学工程学院"},null,"中国石油大学(北京)","应用经遗传算法优化的BP神经网络预测催化裂化装置焦炭产率","2016","NULL","02","389-396","","A"]
["中国海洋平台","许如敏","学生","许如敏;陈建义;王婉琳;许承炜;仇晨;李清平",null,"陈建义",{"$f":"VLOOKUP(F326,[1]Sheet1!$B$2:$C$1437,2,FALSE)","v":"化学工程学院"},null,"中国石油大学(北京)","深海管柱式气液分离器结构优化模拟研究","2016","31","02","55-61","国家“863”高技术研究发展计划项目(2013AA09A214);国家重大科技专项课题(2008ZX05026-04-01).","A"]
["中国粉体技术","陈建义","教师","陈建义; 严超宇; 魏耀东",null,"陈建义",{"$f":"VLOOKUP(F327,[1]Sheet1!$B$2:$C$1437,2,FALSE)","v":"化学工程学院"},null,"中国石油大学(北京)","用于聚合物颗粒回收的旋风分离器的结构改进","2016","22","03","1-4,12","国家自然科学基金,编号:21176249;中国石油天然气集团公司科技开发项目,编号:2011B-2403.","A"]
["中国粉体技术","李真发","学生","李真发; 陈建义; 刘秀林",null,"陈建义",{"$f":"VLOOKUP(F328,[1]Sheet1!$B$2:$C$1437,2,FALSE)","v":"化学工程学院"},null,"中国石油大学(北京)","二元颗粒的旋风分离效率","2016","22","03","13-18","国家自然科学基金,编号:No.21176249;国家科技计划课题,编号:2010CB226902.","A"]
["化工学报","吴迎亚","学生","吴迎亚; 彭丽; 高金森; 蓝兴英",null,"高金森",{"$f":"VLOOKUP(F329,[1]Sheet1!$B$2:$C$1437,2,FALSE)","v":"化学工程学院"},null,"中国石油大学(北京)","基于EMMS模型的气固鼓泡床的模拟及气泡特性的分析","2016","67","08","3259-3267","国家重点基础研究发展计划项目（2012CB215003）；教育部新世纪优秀人才支持计划项目（NCET-13-1027）。Foundation item:supported by the National Basic Research Program of China (2012CB215003) and the New Century Excellent Talents Program in University(NCET-","A"]
["化工学报","陈建义","教师","陈建义; 高锐; 刘秀林; 李真发",null,"陈建义",{"$f":"VLOOKUP(F330,[1]Sheet1!$B$2:$C$1437,2,FALSE)","v":"化学工程学院"},null,"中国石油大学(北京)","差异旋风分离器并联性能测量及流场分析","2016","67","08","3287-3296","国家自然科学基金项目（21176249）；国家重点基础研究发展计划项目（2012CB215000）。Foundation item:supported by the National Natural Science Foundation of China (21176249) and the National Basic Research Program of China (2012CB215000)","A"]
["化工学报","吴迎亚","学生","吴迎亚; 彭丽; 和宁宁; 高金森; 蓝兴英",null,"高金森",{"$f":"VLOOKUP(F331,[1]Sheet1!$B$2:$C$1437,2,FALSE)","v":"化学工程学院"},null,"中国石油大学(北京)","基于DEM模拟气固循环流化床提升管内颗粒聚团特性","2016","67","08","3321-3330","国家重点基础研究发展计划项目（2012CB215003）；国家自然科学基金项目（91334104）。Foundation item:supported by the National Basic Research Program of China(2012CB215003) and the National Natural Science Foundation of China (91334104)","A"]
["中国石油大学学报（自然科学版）","陈建义","教师","陈建义; 李真发; 刘丰; 严超宇",null,"陈建义",{"$f":"VLOOKUP(F332,[1]Sheet1!$B$2:$C$1437,2,FALSE)","v":"化学工程学院"},null,"中国石油大学(北京)","非球形颗粒旋风分离特性试验研究","2016","40","03","143-148","国家自然科学基金项目(21176249);国家科技计划项目(2010CB226902)","A"]
["当代化工","罗洋","学生","罗洋;刘凯;王逸伟;汤志俊;邓野;高鸿博;郭绪强",null,"郭绪强",{"$f":"VLOOKUP(F333,[1]Sheet1!$B$2:$C$1437,2,FALSE)","v":"化学工程学院"},null,"中国石油大学(北京)","激光气体检测仪检测原油挥发气中丙烷浓度的模拟实验研究","2016","45","08","2036-2038","","L"]
["石油学报（石油加工）","李俊龙","学生","李俊龙;倪欣怡;于晨;郭绪强;刘爱贤;杨兰英;姜兴剑;薛振兴;周丛",null,"郭绪强",{"$f":"VLOOKUP(F334,[1]Sheet1!$B$2:$C$1437,2,FALSE)","v":"化学工程学院"},null,"中国石油大学","甲醇合成反应稳态工艺过程模拟研究","2016","32","03","539-545","","A"]
["中国粉体技术","孙占朋","学生","孙占朋 ， 孙国刚 ， 许杰 ",null,"孙国刚","化学工程学院",null,"中国石油大学(北京)","挡板对卧轮式气流选粉机性能的影响","2016","22","01","6-10","中国石油化工股份有限公司技术开发项目,编号:ZX20140060.","A"]
["化工进展","张冀翔","教师","张冀翔; 王东; 魏耀东",null,"张冀翔","化学工程学院",null,"中国石油大学(北京)","微藻水热液化生物油物理性质与测量方法综述","2016","NULL","01","98-104","国家自然科学基金（21406265）及中国石油大学(北京)科研基金（2462013YJRC022）项目。","R"]
["石油学报（石油加工）","王江云","教师","王江云; 冯留海; 张果; 毛羽; 王娟",null,"王江云","化学工程学院",null,"中国石油大学(北京)","单入口双进气道旋风分离器内冲蚀特性","2016","32","02","289-296","国家自然科学基金（21106181）和中国石油大学（北京）基本科研基金（KYJJ2012-03-15）资助","A"]
["过程工程学报","程兆龙","学生","程兆龙; 姚秀颖; 鄂承林; 卢春喜",null,"姚秀颖","化学工程学院",null,"中国石油大学(北京)","带隔流筒旋流快分系统新型工业催化裂化沉降器内气相流场的数值模拟","2016","16","01","1-9","国家重点基础研究发展规划(973)基金资助项目(编号:2012CB215000)","A"]
["生物技术通报","王立辉","学生","王立辉; 严超宇; 王浩; 张翔宇",null,"严超宇","化学工程学院",null,"中国石油大学(北京)","土壤汞污染生物修复技术研究进展","2016","32","02","51-58","","R"]
["过程工程学报","王钊","学生","王钊;闫子涵;范怡平;卢春喜;王子健;吕卓强",null,"范怡平","化学工程学院",null,"中国石油大学(北京)","新型催化裂化提升管进料段内原料射流浓度分布的大型冷模实验研究","2016","16","01","34-40","","A"]
["过程工程学报","黄世平","学生","黄世平; 鄂承林; 王婷; 李晨; 卢春喜",null,"鄂承林","化学工程学院",null,"中国石油大学(北京)","环流预汽提组合旋流快分系统分离性能的实验研究","2016","16","01","41-47","国家重点基础研究发展规划(973)基金资助项目(编号:2012CB215004)","A"]
["化工学报","张冀翔","教师","张冀翔; 王东; 蒋宝辉; 魏耀东",null,"张冀翔","化学工程学院",null,"中国石油大学(北京)","厨余垃圾水热液化制取生物燃料","2016","67","04","1475-1482","国家自然科学基金项目（21406265）；中国石油大学（北京）科研基金项目（2462013YJRC022）。@@@@supported by the National Natural Science Foundation of China (21406265) and the Science Foundation of China University of Petroleum, Beijing (2462013YJRC022)","A"]
["石油炼制与化工","杨连","学生","杨连; 严超宇; 魏志刚; 魏耀东",null,"严超宇","化学工程学院",null,"中国石油大学(北京)","催化裂化再生器树枝状气体分布器的气相流场CFD模拟","2016","47","12","64-69","国家自然科学基金资助项目(21176250);中国石油大学(北京)科研基金资助项目(2462015YQ0301).","A"]
["化工学报","黄世平","学生","黄世平; 鄂承林; 王子健; 卢春喜",null,"鄂承林","化学工程学院",null,"中国石油大学(北京)","环流预汽提组合旋流快分系统粒级效率的三区计算模型","2016","05","05","1922-1930","国家重点基础研究发展计划项目(2012CB215004).supported by the National Basic Research Program of China(2012CB215004).","A"]
["炼油技术与工程","李萌","学生","李萌; 范怡平",null,"范怡平","化学工程学院",null,"中国石油大学(北京)","气液洗涤器内喷嘴结构与操作优化研究","2016","46","11","40-44","国家自然科学基金(21476254).","A"]
["化工学报","张冀翔","教师","张冀翔; 蒋宝辉; 王东; 魏耀东",null,"张冀翔","化学工程学院",null,"中国石油大学(北京)","微藻水热液化生物油化学性质与表征方法综述","2016","05","05","1644-1653","国家自然科学基金项目(21406265);中国石油大学(北京)科研基金项目(2462013YJRC022).supported by the National Natural Science Foundation of China (21406265) and the Science Foundation of China University of Petroleum, Beijing (2462013YJRC022).","R"]
["化工学报","魏庆","学生","魏庆; 姚秀颖; 张永民",null,"姚秀颖","化学工程学院",null,"中国石油大学(北京)","竖直管气固鼓泡流化床传热机理的CPFD模拟","2016","05","05","1732-1740","国家自然科学基金项目(21276273);国家重点基础研究发展计划项目子课题(2012CB215004);北京高等学校青年英才计划人才专项基金项目(YETP0675);中国石油大学(北京)科研基金项目(2462015YQ0312).supported by the National Natural Science Foundation of China (21276273),","A"]
["电子测量技术","王芬芬","学生","王芬芬; 鄂承林; 卢春喜",null,"鄂承林","化学工程学院",null,"中国石油大学(北京)","HDLDG-06粉体流量计在提升管中的应用研究?","2016","39","05","127-133","国家重点基础研究发展(973)规划(2012CB215000)资助项目","A"]
["过程工程学报","王子健","学生","王子健; 黄世平; 鄂承林; 卢春喜",null,"鄂承林","化学工程学院",null,"中国石油大学(北京)","环隙下料式流化床-提升管耦合反应器内截面平均固含率的分布","2016","16","02","210-215","","A"]
["过程工程学报","贾海兵","学生","贾海兵; 李晨; 卫思辰; 范怡平; 卢春喜",null,"范怡平","化学工程学院",null,"中国石油大学(北京)","柱形和锥形移动床中气体的扩散特性","2016","16","03","380-387","国家重点基础研究发展规划(973)基金资助项目(编号:2012CB215000)","A"]
["化工学报","陈昇","学生","陈昇;范怡平;闫子涵;李飞;王维;卢春喜",null,"范怡平","化学工程学院",null,"中国石油大学(北京)","催化裂化提升管进料区新型助流剂技术的CFD模拟","2016","67","08","3179-3190","国家重点基础研究发展计划项目(2012CB215000)。","A"]
["化工学报","王芬芬","学生","王芬芬; 鄂承林; 赵爱红; 卢春喜",null,"鄂承林","化学工程学院",null,"中国石油大学(北京)","提升管中颗粒局部流率和速度的改进的光纤测量方法","2016","67","08","3209-3223","国家重点基础研究发展计划项目（2012CB215000）。","A"]
["化工学报","卫思辰","学生","卫思辰; 贾海兵; 范怡平; 卢春喜",null,"范怡平","化学工程学院",null,"中国石油大学(北京)","引入大颗粒助剂对径向移动床流动特性的影响","2016","67","08","3313-3320","国家重点基础研究发展计划项目(2012CB215000)。@@@@supported by the National Basic Research Program of China (2012CB215000)","A"]
["化工学报","赵爱红","学生","赵爱红; 鄂承林; 王芬芬; 卢春喜",null,"鄂承林","化学工程学院",null,"中国石油大学(北京)","提升管CSVQS系统预汽提段颗粒速度和停留时间分布","2016","67","08","3276-3286","国家重点基础研究发展计划项目(2012CB215000)。@@@@supported by the National Basic Research Program of China (2012CB215000)","A"]
["化工学报","闫子涵","学生","闫子涵; 王钊; 陈昇; 范怡平; 卢春喜",null,"范怡平","化学工程学院",null,"中国石油大学(北京)","新型催化裂化提升管进料段油、剂两相混合特性","2016","67","08","3304-3312","国家重点基础研究发展计划项目(2012CB215000)。@@@@supported by the National Basic Research Program of China (2012CB215000)","A"]
["化工学报","程兆龙","学生","程兆龙; 鄂承林; 卢春喜",null,"鄂承林","化学工程学院",null,"中国石油大学(北京)","提升管出口SVQS自然旋风长度的数值模拟","2016","67","08","3347-3356","国家重点基础研究发展计划项目（2012CB215000）。@@@@supported by the National Basic Research Program of China (2012CB215000)","A"]
["化工学报","刘对平","学生","刘对平; 董芳芳; 王蒙; 魏庆; 张永民",null,"张永民","化学工程学院",null,"中国石油大学(北京)","不同颗粒流化床层中挡板受力特性对比","2016","67","08","3331-3339","国家重点基础研究发展计划项目（2012CB215004）；国家自然科学基金项目（21276273）；中国石油大学（北京）科研基金项目（2462015YQ0312）。@@@@supported by the National Basic Research Program of China (2012CB215004), the National Natural Science Foundation o","A"]
["过程工程学报","陈昇","学生","陈昇; 闫子涵; 王维; 范怡平; 卢春喜",null,"范怡平","化学工程学院",null,"中国石油大学(北京)","提升管进料射流对气固两相流动混合的影响","2016","16","04","556-564","国家重点基础研究发展规划(973)基金资助项目(编号:2012CB215000)","A"]
["过程工程学报","李晨","学生","李晨; 范怡平; 贾海兵; 黄世平; 范瀚文",null,"范怡平","化学工程学院",null,"中国石油大学(北京)","提升管反应器中颗粒浓度径向分布的力学特性","2016","16","04","541-548","国家重点基础研究发展规划(973)基金资助项目(编号:2012CB215004)","A"]
["催化学报","施文博","学生","施文博;刘霄龙;曾俊淋;王健;魏耀东;朱廷钰",null,"魏耀东","化学工程学院",null,"中国石油大学(北京)","钌基催化剂催化的气固相反应","2016","37","08","1181-1192","This work was supported by Beijing Natural Science Foundation (8164063) and the Strategic Priority Research Program of the Chinese Academy of Sciences (XDB05050100).基金来源:北京自然科学基金(8164063);中国科学院战略性先导科技专项(B类)课题(XDB05050100)","A"]
["计算机与应用化学","邓春","教师","邓春; 史春峰; 陈杰; 冯霄",null,"邓春","化学工程学院",null,"中国石油大学(北京)","耦合多个废水处理过程的再生再利用水网络优化设计","2016","33","03","313-319","国家重点基础研究发展计划(973)资助项目(2012CB720500);国家自然科学基金项目(21576287);中国博士后科学基金资助项目(2015M570215):中国石油大学(北京)科研基金(2462015YQ0305和2462015BJB02)","A"]
["现代化工","温斌","学生","温斌;李冬芳;宋宝华;孙国刚;潘利祥;耿丽娟;董丽彦;张会来",null,"孙国刚","化学工程学院",null,"中国石油大学(北京)","氨法低温SCR催化剂研究进展","2016","36","08","24-28,30","","R"]
["石油学报（石油加工）","冯留海","学生","冯留海;王江云;赵凡;孙中卫;王娟;毛羽",null,"王江云","化学工程学院",null,"中国石油大学(北京)","旋流喷嘴内超临界流体闪蒸过程的数值模拟","2016","32","04","741-747","国家重点基础研究发展规划“973”项目(2010CB226902)基金资助","A"]
["石油学报（石油加工）","曹晓阳","学生","曹晓阳;孔文文;贾梦达;韩强;严超宇;魏耀东",null,"严超宇","化学工程学院",null,"中国石油大学","FCC 催化剂在45°斜管内下料特性的实验分析","2016","32","06","1113-1120","国家自然科学基金项目(21176250);中国石油大学基本科研基金项目(KYJJ2012-03-13);中国石油大学(北京)科研基金项目(2462015YQ0301)资助","A"]
["化工机械","孙立强","学生","孙立强;解明;朱红波;王迪;魏耀东;周永新",null,"魏耀东","化学工程学院",null,"中国石油大学(北京)","基于有限元法的混合励磁漏磁检测励磁源耦合分析","2016","43","05","660-664","新疆维吾尔自治区自然科学基金项目(2015211B003).","A"]
["中国粉体技术","杨晓楠","学生","杨晓楠; 孙国刚; 孙占朋; 王青莲",null,"孙国刚","化学工程学院",null,"中国石油大学(北京)","卧轮式分级机转子临界转速的计算","2016","22","05","99-103","中国石油化工股份有限公司技术开发项目,编号ZX20140060.","A"]
["中国石油大学学报（自然科学版）","隋义勇","学生"," 隋义勇; 张永民; 李加强; 曲永春; 任桂山",null,"张永民","化学工程学院",null,"中国石油大学","脉冲冲击波有效作用距离影响因素模拟分析","2016","40","05","118-122","国家自然科学基金项目(51574271);中央高校基本科研业务费专项(15CX02007A)","A"]
["计算机与应用化学","周晶","学生","周晶; 江苇; 邓春; 冯霄",null,"邓春","化学工程学院",null,"中国石油大学(北京)","多周期石化企业水系统平衡模型与评价","2016","33","11","1203-1210","国家自然科学基金项目(21276204和21576287);中国石油大学(北京)科研基金(2462015BJB02和2462015YQ0305)","A"]
["石油学报（石油加工）","曹晓阳","学生","曹晓阳;周发戚;陈勇;张慧敏;魏志刚;魏耀东",null,"魏耀东","化学工程学院",null,"中国石油大学","循环流化床颗粒输送斜管的压力脉动特性","2016","32","05","913-920","国家自然科学基金项目(21176250)资助","A"]
["炼油技术与工程","袁怡","学生"," 袁怡; 孙国刚; 周发戚; 杨晓楠",null,"孙国刚","化学工程学院",null,"中国石油大学(北京)","旋风分离器的压力降计算","2016","46","10","39-44","国家自然科学基金(21276274)资助项目;国家重点基础研究计划(2014CB744304)资助课题.","A"]
["石油学报（石油加工）","王新成","学生","王新成; 孙国刚; 王晓晗; 张玉明; 李首壮",null,"孙国刚","化学工程学院",null,"中国石油大学","文氏棒喷淋塔的流体力学性能","2016","32","05","1062-1067","中国石化股份公司科技开发项目(109119)资助","A"]
["石油学报（石油加工）","陆元宝","学生","陆元宝; 孙国刚; 王青莲; 韩晓鹏; 杨晓楠",null,"孙国刚","化学工程学院",null,"中国石油大学","螺线型旋风分离器的结构改进研究","2016","32","03","508-513","自然科学基金项目(21276274)和国家重点基础研究计划课题(2014CB744304)资助","A"]
["石油学报（石油加工）","冯留海","学生","冯留海;聂永广;王江云;雷晓东;王娟;毛羽",null,"王江云","化学工程学院",null,"中国石油大学","基于非平衡热力学模型的管内沸腾过程模拟","2016","32","03","591-596","国家重点基础研究发展计划“973”项目(2010CB226902)和中国石油大学(北京)科研基金项目(2462015YQ0303)资助","A"]
["石油学报（石油加工）","王宇","学生","王宇;王江云;许双双;陈春茂;马静园;郭绍辉",null,"王江云","化学工程学院",null,"中国石油大学","高效厌氧生物反应器内的湍流特性及结构优化","2016","32","03","614-621","国家自然科学基金项目(21306229)和中国昆仑工程公司项目(2013GJTC-06-03)资助","A"]
["清华大学学报（自然科学版）","邓春","学生","邓春; 周业扬; 江苇; 冯霄",null,"邓春","化学工程学院",null,"中国石油大学(北京)","耦合变压吸附简化模型的提纯回用氢网络协调优化","2016","56","07","735-742","国家“九七三”重点基础研究资助项目(2012CB720500);国家自然科学基金资助项目(21576287,U1162121);中国博士后科学基金资助项目(2015M570215);中国石油大学(北京)科研基金资助项目(2462015YQ0305,2462015BJB02)","A"]
["石油炼制与化工","贾超杰","学生","贾超杰; 刘艳升; 濮昕韵; 邬乐欢",null,"刘艳升","化学工程学院",null,"中国石油大学(北京)","操作压力对初馏塔前换热效果的影响","2016","47","01","86-92","国家自然科学基金面上项目(21176248).","A"]
["化学反应工程与工艺","牛犁","学生","牛犁; 刘梦溪; 孟振亮",null,"刘梦溪","化学工程学院",null,"中国石油大学(北京)","导流筒高度对气固环流反应器流动特性的影响","2016","32","02","106-113","国家重大基础研究计划(973)项目(2012CB215000);国家重大研究计划(多相反应过程中的介尺度机制及调控)培育项目(91534111).","A"]
["石油化工高等学校学报","孙强","教师","孙强; 王丹; 郭绪强; 刘爱贤; 刘晓冬",null,"孙强","化学工程学院",null,"中国石油大学(北京)","直链烷烃动力黏度与声速关系研究","2016","29","01","1-5","国家科技部973计划项目(2012CB215005);国家自然科学基金项目(21306226);中国石油大学(北京)科研基金资助(YJRC-2013-09).","A"]
["炼油技术与工程","施隋靖","学生","施隋靖; 马达国; 马庆兰",null,"马庆兰","化学工程学院",null,"中国石油大学(北京)","重整C9+重芳烃调合高辛烷值汽油","2016","46","04","32-36","","A"]
["炼油技术与工程","马锐","学生","马锐; 朱建华; 武本成; 薛俊霞",null,"朱建华","化学工程学院",null,"中国石油大学(北京)","原油/馏分油中有机氯化物的分布及危害","2016","46","04","60-64","国家自然科学基金资助(21206194).","A"]
["石油炼制与化工","薛俊霞","学生","薛俊霞; 朱建华",null,"朱建华","化学工程学院",null,"中国石油大学","影响脱氯剂抗压强度的因素探讨","2016","47","12","28-32","","A"]
["化学反应工程与工艺","胡娟","学生","胡娟; 刘梦溪; 黄亚航",null,"刘梦溪","化学工程学院",null,"中国石油大学(北京)","一种撞击式烟气净化器气液传质特性的冷模研究","2016","32","03","237-243","国家重点基础研究发展计划(973计划)(2012CB215000).","A"]
["计算机与应用化学","吴艳","学生","吴艳; 王彧斐; 冯霄",null,"王彧斐","化学工程学院",null,"中国石油大学(北京)","石化工厂设施布局研究进展","2016","33","10","1039-1044","国家自然科学基金(21476256);国家重点基础研究发展计划(973)资助项目(2012CB720500)","R"]
["中国科学（化学）","马炜婷","学生","马炜婷; 胡玉峰; 魏立虎; 高跃",null,"胡玉峰","化学工程学院",null,"中国石油大学(北京)","离子液体在环丁砜中催化多聚甲醛合成三聚甲醛的研究","2016","46","12","1343-1349","国家自然科学基金(编号:21576285,21276271)资助项目","A"]
["过程工程学报","黄亚航","学生","黄亚航; 刘梦溪; 胡娟",null,"刘梦溪","化学工程学院",null,"中国石油大学(北京)","气固流化床中颗粒聚团的流动特性","2016","16","03","374-379","国家重点基础研究发展规划(973)基金资助项目(编号:2012CB215000)","A"]
["现代化工","陈召新","学生","陈召新; 朱建华; 孙华倩",null,"朱建华","化学工程学院",null,"中国石油大学(北京)","原油脱金属剂的开发及性能评价","2016","36","06","104-108","","A"]
["化工学报","孟振亮","学生","孟振亮; 刘梦溪; 李飞; 王维; 卢春喜",null,"刘梦溪","化学工程学院",null,"中国石油大学(北京)","新型气固环流反应器内颗粒流动的CFD模拟","2016","67","08","3234-3243","国家重点基础研究发展计划项目(2012CB215000)。@@@@supported by the National Basic Research Program of China (2012CB215000)","A"]
["化工学报","刘梦溪","教师","刘梦溪; 卢春喜; 时铭显",null,"刘梦溪","化学工程学院",null,"中国石油大学(北京)","催化裂化后反应系统快分的研究进展","2016","67","08","3133-3145","国家重点基础研究发展计划项目（2012CB215000）。","R"]
["化工学报","童雄师","学生","童雄师;潘勇;王慕宇;史家亮;陈光进;刘蓓",null,"陈光进","化学工程学院",null,"中国石油大学(北京)","2-甲基咪唑/乙二醇体系常温脱除天然气中的二氧化碳","2016","67","10","4240-4245","国家自然科学基金项目（21276272，21522609）。@@@@Foundation item：supported by the National Natural Science Foundation of China (21276272,21522609)","A"]
["当代化工","陈伟东","学生","陈伟东; 马锐; 朱建华",null,"朱建华","化学工程学院",null,"中国石油大学(北京)","环烷酸乙二醇酯的 HDO 热力学分析","2016","45","10","2451-2454,2458","","R"]
["现代化工","宗杰","学生","宗杰; 马庆兰; 陈光进;孙长宇",null,"马庆兰","化学工程学院",null,"中国石油大学(北京)","二氧化碳分离捕集研究进展","2016","36","11","56-60","国家自然科学基金项目(U1162205,51576209).","R"]
["石油化工高等学校学报","李俊龙","学生","李俊龙;陈超;倪欣怡;王丹丹;孙强;郭绪强",null,"孙强","化学工程学院",null,"中国石油大学, 北京","应用隔壁式精馏塔分离煤制烯烃设计","2016","29","05","9-16,21","国家科技部973项目“绿色低碳导向的高效炼油过程基础研究”子课题“炼油过程低碳产品高效分离与精制”(2012CB215005)。","A"]
["中国化学工程学报（英文版）","Yamei Zhao","学生","Yamei ZhaoYufeng HuJianguang QiWeiting Ma",null,"胡玉峰","化学工程学院",null,"China University of Petroleum","Br?nsted-acidic ionic liquids as catalysts for synthesizing trioxane☆","2016","24","10","1392-1398","Supported by the National Natural Science Foundation of China (21576285,21276271)","A"]
["计算机与应用化学","王瑞琪","学生","王瑞琪; 王彧斐; 冯霄",null,"王彧斐","化学工程学院",null,"中国石油大学(北京)","氯乙烯装置精馏尾气回收与参数优化","2016","33","11","1145-1152","国家自然科学基金资助项目(21576286)","A"]
["化学反应工程与工艺","马雅松","学生","马雅松; 刘梦溪",null,"刘梦溪","化学工程学院",null,"中国石油大学","高温环境下催化裂化催化剂磨损状况的研究","2016","32","01","33-38","国家重大基础研究发展计划(973计划)(2012CB215000).","A"]
["化学反应工程与工艺","王婷","学生","王婷; 刘梦溪",null,"刘梦溪","化学工程学院",null,"中国石油大学(北京)","不同出口结构卧式超短快分内部气相流场","2016","32","04","297-306","","A"]
["化工学报","陈振涛","教师","陈振涛; 徐春明",null,"陈振涛","化学工程学院",null,"中国石油大学(北京)","重质油在孔道内扩散传质的研究进展","2016","67","01","165-175","国家自然科学基金项目(21106183,21476257,21236009,U1463207);中国石油大学科研启动基金项目(01JB0195).supported by the Natural Science Foundation of China (21106183,21476257,21236009 and U1463207) and Science Foundation of China University of Petroleum (0","R"]
["中国粉体技术","王远","学生","王远;常卫科;王志刚;陈胜利;任国强;蒋红军",null,"陈胜利","化学工程学院",null,"中国石油大学(北京)","Ni-Mo-Al2O3催化剂覆碳改性对其加氢脱硫性能的影响","2016","22","02","72-77","","A"]
["中国化学工程学报（英文版）","Chengxiu Wang","教师","Chengxiu WangJesse Zhu",null,"王成秀","化学工程学院",null,"中国石油大学（北京）","Developments in the understanding of gas-solid contact efficiency in the circulating fluidized bed riser reactor: A review","2016","24","01","53-62","Supported by the Scientific Research Funds from China University of Petroleum (Beijing) (No.2462014YJRC018),and also partially supported by the National Natural Science Foundation of China (No.21506253 and No.91534204).","A"]
["化工学报","吴迎亚","学生","吴迎亚; 彭丽; 蓝兴英; 高金森",null,"蓝兴英","化学工程学院",null,"中国石油大学(北京)","静电效应对有无埋管气固鼓泡床内气泡特性的影响分析","2016","67","04","1150-1158","国家自然科学基金项目（91334104）；教育部新世纪优秀人才支持计划项目（NCET-13-1027）。@@@@supported by the National Natural Science Foundation of China (91334104) and the New Century Excellent Talents Program in University (NCET-13-1027)","A"]
["化工进展","苏鑫","学生","苏鑫; 吴迎亚; 裴华健; 蓝兴英; 高金森",null,"蓝兴英","化学工程学院",null,"中国石油大学(北京)","大数据技术在过程工业中的应用研究进展","2016","35","06","1652-1659","","R"]
["食品安全质量检测学报","韩晔华","教师","韩晔华; 张艳芬; 刘虎威",null,"韩晔华","化学工程学院",null,"中国石油大学(北京)","色谱质谱技术在食品安全分析检测中的应用","2016","07","04","1578-1586","国家自然科学基金青年基金(21205137)、北京市自然科学基金面上项目(2132041)、中国石油大学(北京)科研基金(YJRC-2013-08)Supported by the National Natural Science Foundation of China (21205137),Beijing Natural Science Foundation (2132041) and Science Foundat","A"]
["天然气地球科学","张睿","教师","张睿; 宁正福; 张海山; 谢佥",null,"张睿","化学工程学院",null,"中国石油大学(北京)","裂缝性致密储层应力敏感机理新认识","2016","27","05","918-923","国家自然科学基金项目(编号:51474222);高等学校博士学科点专项科研基金(编号:20120007110012;20130007120013);中国石油大学(北京)科研基金资助(编号:YJRC-2013-05)联合资助.","A"]
["化工学报","陈振涛","教师","陈振涛; 武云; 徐春明",null,"陈振涛","化学工程学院",null,"中国石油大学(北京)","零长柱技术用于分子筛晶内扩散的研究进展","2016","67","08","3170-3178","国家重点基础研究发展计划项目(2012CB215001)；国家自然科学基金青年基金项目（21106183）。 Foundation item:supported by the National Basic Research Program of China (2012CB215001) and the National Natural Science Foundation of China (21106183)","R"]
["化工学报","王敏","学生","王敏; 吴迎亚; 蓝兴英; 高金森",null,"蓝兴英","化学工程学院",null,"中国石油大学(北京)","FCC提升管反应器中终止剂注入对裂化反应的影响","2016","67","08","3191-3201","国家重点基础研究发展计划项目（2012CB215003）。","A"]
["化工学报","张睿","教师","张睿;刘贵丽;王亚东;刘海燕;刘植昌;孟祥海",null,"张睿","化学工程学院",null,"中国石油大学(北京)","轻烃催化裂解制低碳烯烃反应规律与原料特征化","2016","67","08","3387-3393","国家重点基础研究发展计划项目（2012CB215001）；教育部新世纪优秀人才（NCET-12-0970）。@@@@supported by the National Basic Research Program of China (2012CB215001) and the Program for New Century Excellent Talents in the University of China (NCET-12-097","A"]
["化工学报","张睿","教师","张睿;郭少鹏;刘贵丽;刘海燕;刘植昌;孟祥海",null,"张睿","化学工程学院",null,"中国石油大学(北京)","乙基环己烷催化裂解制低碳烯烃反应动力学","2016","67","08","3422-3428","国家重点基础研究发展计划项目（2012CB215001）；教育部新世纪优秀人才项目（NCET-12-0970）。@@@@supported by the National Basic Research Program of China (2012CB215001) and the Program for New Century Excellent Talents in the University of China (NCET-12","A"]
["燃料化学学报","张倩玉","学生","张倩玉; 许志明; 赵锁奇",null,"许志明","化学工程学院",null,"中国石油大学","低温煤焦油常渣C5沥青质的分离与表征","2016","44","11","1318-1325","The project was supported by the National Basic Research Program of China (863 program,2011AA05A2024).国家重点基础研究发展计划(863计划,2011AA05A2024)资助","A"]
["石油学报（石油加工）","陈振涛","教师","陈振涛; 刘俊峰; 徐春明",null,"陈振涛","化学工程学院",null,"中国石油大学","大港减渣及其超临界溶剂萃取馏分的分子尺寸分布和平均尺寸","2016","32","01","143-149","国家自然科学基金项目(21106183和21176254)和中国石油大学(北京)科研基金项目(01JB0195)资助","A"]
["计算机与应用化学","熊帅","学生","熊帅;华超;宁国庆;白芳;陆平;叶佳义",null,"宁国庆","化学工程学院",null,"中国石油大学(北京)","共沸精馏分离烯丙醇-水的工艺模拟及优化","2016","33","07","735-740","国家重点基础研究发展规划(973)基金资助项目(2013CB632602);国家自然科学基金青年科学基金资助项目(201306198)","A"]
["颗粒学报（英文版）","Xinlong Ma","教师","Xinlong ， Guoqing ， Ning ， Chuanlei ， Jinsen",null,"马新龙","化学工程学院",null,"中国石油大学(北京)","One-step synthesis of basic magnesium sulfate whiskers by atmospheric pressure reflux","2016","24","01","191-196","This work was supported by the National Natural Science Foundation of China (No.21206191) and the Science Foundation of China University of Petroleum,Beijing (No.2462013YXBS007).","A"]
["环境工程学报","王宇","学生","王宇;许双双;阎光绪;王庆宏;李敏;马文峰;马静园;郭绍辉",null,"阎光绪","化学工程学院",null,"中国石油大学(北京)","炼化污水的厌氧生物预处理技术","2016","10","01","115-120","中国昆仑工程公司项目(2013GJTC-06-03);国家自然科学基金资助项目(21306229)","A"]
["环境工程学报","王京秀","学生","王京秀;张志勇;孙珊珊;穆红岩;万云洋;赵立平;李永峰;张忠智",null,"张志勇","化学工程学院",null,"中国石油大学(北京)","植物-固体菌剂联合修复石油污染土壤的基础研究","2016","10","11","6732-6738","国家自然科学基金资助项目(41172333,51474223)","A"]
["环境工程","代小丽","学生","代小丽; 阎光绪; 宋佳宇; 郭绍辉; 蔡斌",null,"阎光绪","化学工程学院",null,"中国石油大学(北京)","生物修复制剂在溢油污染海岸线中的应用","2016","34","11","162-165","中国石油天然气集团公司科学研究与技术开发项目(2014D-4607).","A"]
["环境科学学报（英文版）","Xiaoli Dai","学生","Xiaoli DaiChunmao ChenGuangxu YanYu ChenShaohui Guo",null,"陈春茂","化学工程学院",null,"中国石油大学(北京)","A comprehensive evaluation of re-circulated bio-filter as a pretreatment process for petroleum refinery wastewater","2016","50","12","49-55","This work was supported by the National Natural Science Foundation of China (No.U1462201),and China National Offshore Oil Corporation (CNOOC-KJ125 ZDXM 15 LH007 LH12) project.","A"]
["化工进展","李瑞丽","教师","李瑞丽; 吕本震; 蒋善良; 李晶晶",null,"李瑞丽","化学工程学院",null,"中国石油大学(北京)","磷钨酸/SBA-15催化氧化-萃取柴油脱硫","2016","35","09","2790-2795","","A"]
["物理化学学报","孙丽媛","学生","孙丽媛; 张亚飞; 巩雁军",null,"巩雁军","化学工程学院",null,"中国石油大学(北京)","微孔-微孔复合分子筛的结构特征及应用","2016","32","05","1105-1122","The project was supported by the State Key Development Program for Basic Research of China (2012CB215002),National Natural Science Foundation of China (21176255,21276278),and Project of China National Petroleum Corporation (2014A-2111).国家重点基础研","A"]
["化工学报","巩雁军","教师","巩雁军; 刘汝庚; 赵晓萌; 张恒",null,"巩雁军","化学工程学院",null,"中国石油大学(北京)","小角X射线散射在分子筛研究中的应用","2016","67","08","3146-3159","国家重点基础研究发展计划项目（2012CB215002）；国家自然科学基金项目（21776255,21276278, U1332107, U1532105）；中国矿业大学煤炭资源与安全开采国家重点实验室（SKLCRSM14KFA02）。@@@@supported by the National Basic Research Program of China (2012CB215002),","R"]
["化工学报","覃正兴","学生","覃正兴; 申宝剑",null,"申宝剑","化学工程学院",null,"中国石油大学(北京)","水热处理过程中Y分子筛的骨架脱铝、补硅及二次孔的形成","2016","67","08","3160-3169","国家重点基础研究发展计划项目（2012CB215001）；国家自然科学基金项目（U1462202）。@@@@supported by the National Basic Research Program of China (2012CB215001) and the National Natural Science Foundation of China (U1462202)","R"]
["化工学报","李晓慧","学生","李晓慧; 郑庆庆; 米硕; 申宝剑",null,"申宝剑","化学工程学院",null,"中国石油大学(北京)","磷铝复合改性ZSM-5分子筛及其催化性能","2016","67","08","3357-3362","国家重点基础研究发展计划项目（2012CB215001）；国家自然科学基金项目(U1462202）。@@@@supported by the National Basic Research Program of China (2012CB215001) and the National Natural Science Foundation of China (U1462202)","A"]
["化工学报","马通","学生","马通; 耿祖豹; 李冰; 赵琦; 巩雁军",null,"巩雁军","化学工程学院",null,"中国石油大学(北京)","不同模板制备ZSM-5分子筛的酸性特征及催化裂解性能差异","2016","67","08","3374-3379","国家重点基础研究发展计划项目（2012CB215002）；国家自然科学基金项目（21176255，21276278）。@@@@supported by the National Basic Research Program of China (2012CB215002) and the National Natural Science Foundation of China (21176255,21276278)","A"]
["化工学报","李江成","学生","李江成; 任申勇; 郑庆庆; 郭巧霞; 申宝剑",null,"任申勇","化学工程学院",null,"中国石油大学(北京)","改性介质的调变对NaY沸石后处理及其催化裂化性能的影响","2016","67","08","3394-3399","国家重点基础研究发展计划项目（2012CB215001）；国家自然科学基金项目（U1462202）。@@@@supported by the National Basic Research Program of China (2012CB215001) and the National Natural Science Foundation of China (U1462202)","A"]
["化工学报","张络明","学生","张络明; 许春芳; 马通; 巩雁军",null,"巩雁军","化学工程学院",null,"中国石油大学(北京)","La改性ZSM-5分子筛及其在催化裂解反应中的应用","2016","67","08","3408-3414","国家重点基础研究发展计划项目（2012CB215002）；国家自然科学基金项目（21176255，21276278）；中国石油天然气集团公司项目（2014A-2111）。@@@@supported by the National Basic Research Program of China (2012CB215002), the National Natural Science Foundation","A"]
["化工学报","王闻年","学生","王闻年;袁德林;李浩;任申勇;郭巧霞;申宝剑",null,"任申勇","化学工程学院",null,"中国石油大学(北京)","β沸石结构及其催化性能的调控","2016","67","08","3429-3435","国家重点基础研究发展计划项目（2012CB215001）；国家自然科学基金项目（U1462202）。@@@@supported by the National Basic Research Program of China (2012CB215001) and the National Natural Science Foundation of China (U1462202)","A"]
["化工学报","孙丽媛","学生","孙丽媛; 张亚飞; 巩雁军",null,"巩雁军","化学工程学院",null,"中国石油大学(北京)","ZSM-5/EU-1共生分子筛的可控合成及催化裂解性能","2016","67","08","3436-3445","国家重点基础研究发展计划项目（2012CB215002）；国家自然科学基金项目（21176255,21276278）；中国石油天然气集团公司项目（2014A-2111）。@@@@supported by the National Basic Research Program of China (2012CB215002), the National Natural Science Foundation o","A"]
["化工学报","任申勇","教师","任申勇;张卡;闫慧;张建华;曾鹏晖;郭巧霞;申宝剑",null,"任申勇","化学工程学院",null,"中国石油大学(北京)","在大孔硅基囊泡材料孔道内原位接枝有机聚合物","2016","67","08","3507-3514","国家重点基础研究发展计划项目（2012CB215001）；国家自然科学基金项目（21101171）；中国石油大学（北京）优秀青年教师研究项目（2462015YQ0313）。@@@@supported by the National Basic Research Program of China (2012CB215001), the National Natural Science Foun","A"]
["物理化学学报","胡思","学生","胡思;张卿;巩雁军;张瑛;吴志杰;窦涛",null,"巩雁军","化学工程学院",null,"中国石油大学(北京)","HZSM-5分子筛在甲醇制丙烯反应中的失活与再生","2016","32","07","1785-1794","The project was supported by the National Key Basic Research Program of China (973) (2012CB215002) and National Natural Science Foundation of China (21206192,21276278).国家重点基础研究发展规划项目(973) (2012CB215002)及国家自然科学基金(21206192,212762","A"]
["石油化工","尹延超","学生","尹延超;王晓峰;王更更;秦丽红;刘昌见;刘百军",null,"刘昌见","化学工程学院",null,"中国石油大学(北京)","均匀包覆的微-介孔复合材料Y/ASA的合成及其加氢裂化性能","2016","45","08","925-931","中国石油天然气集团公司资助项目（2014A-2108）。","A"]
["计算机工程与应用","曹绍华","学生","曹绍华; 张鑫",null,"张鑫","化学工程学院",null,"中国石油大学(北京)","面向业务的SDN网络带宽保障研究","2016","52","22","127-132","山东省优秀中青年科研奖励基金计划项目（No.BS2014DX021）。","A"]
["燃料化学学报","吕江江","学生","吕江江;黄星亮;赵蕾蕾;孙仁山;胡龙旺;龚艳",null,"黄星亮","化学工程学院",null,"中国石油大学(北京)","酸碱处理对ZSM-5分子筛物化性质和反应性能的影响","2016","44","06","732-737","The project was supported by the National Natural Science Foundation of China (51261012) and Kunming University of Science and Technology Analyze Test Fund (20140292).国家自然科学基金(51261012)和昆明理工大学分析测试基金(20140292)资助","A"]
["过程工程学报","严枭","学生","严枭; 王子健; 卢春喜",null,"卢春喜","化学工程学院",null,"中国石油大学(北京)","环隙下料式流化床-提升管耦合反应器的内截面压力特性","2016","16","06","909-914","国家重点基础研究发展规划(973)基金资助项目(编号:2012CB215004)","A"]
["化学学报","袁珮","教师","袁珮; 陈建; 潘登; 鲍晓军",null,"袁珮","化学工程学院",null,"中国石油大学(北京)","聚苯乙烯非均相催化加氢吸附动力学及反应动力学研究","2016","74","07","603-611","Project supported by The National Natural Science Foundation of China (Grant 21576290,21106182) and China National Petroleum Corp.(2012B-2805).项目受国家自然科学基金(21576290,21106182)和中国石油天然气股份有限公司科学研究与技术开发项目(2012B-2805)资助","A"]
["石油学报（石油加工）","左晶","学生","左晶; 王娟; 王江云; 毛羽; 冯留海",null,"王娟;","化学工程学院",null,"中国石油大学","采用群体平衡模型模拟多段环流反应器内的气-液两相流动","2016","32","06","1134-1141","中国石油大学(北京)科研基金项目(2462015YQ0303)资助","A"]
["光谱学与光谱分析","马一博","学生","马一博;王梅玲;王海;袁珮;范燕;邢化朝;高思田",null,"袁珮","化学工程学院",null,"中国石油大学(北京)","基于GIXRR反射率曲线的二氧化硅纳米薄膜厚度计算","2016","36","10","3265-3268","国家科技支撑计划项目(2011BAK15B05)资助","A"]
["中国粉体技术","孙帅杰","学生","孙帅杰; 刘俊杰; 邢化朝; 袁珮",null,"袁珮","化学工程学院",null,"中国石油大学(北京)","尘埃粒子计数器全粒径范围内计数效率的校准","2016","22","05","58-62","国家科技支撑计划项目,编号:2011BAK15B05.","A"]
["现代化工","李国林","学生","李国林; 姚蕾; 刘艳升; 郝代军",null,"刘艳升","化学工程学院",null,"中国石油大学(北京)","改性ZSM-5催化剂汽油降苯工艺研究","2016","36","01","61-64","","A"]
["石油学报","李晶晶","学生"," 李晶晶; 陈国明; 朱渊",null,{"$error":"#N/A"},{"$f":"VLOOKUP(B437,[2]Sheet1!$D$2:$F$6737,3,FALSE)","v":"化学工程学院"},{"$f":"VLOOKUP(B437,[2]Sheet1!$D$1:$I$6737,6,FALSE)","v":"李瑞丽"},"中国石油大学","海洋油气平台火灾疏散耦合风险","2016","37","12","1557-1562","国家安全生产监督管理总局2012年安全科技“四个一批”项目(2012-507)、中央高校基本科研业务费专项资金项目(15CX05018A,15CX05022A)、建筑消防工程技术公安部重点实验室开放课题(KFKT2014MS03)资助.","A"]
["油气储运","全青","学生","全青;王玮;王鹏宇;高歌;韩亚冲;朱铭;宫敬",null,"王玮",{"$f":"VLOOKUP(F438,[1]Sheet1!$B$2:$C$1437,2,FALSE)","v":"机械与储运工程学院"},null,"中国石油大学(北京)","易凝高黏含蜡原油蜡沉积规律及老化现象","2016","35","03","259-262","国家科技重大专项课题“深水流动安全保障与水合物风险控制技术”,2011ZX05026-004-003;霍英东教育基金会“油水复杂流动条件下石蜡固相沉积的实验与预测、预防、清除技术研究”,142021;北京市高校英才计划“两相复杂流场/温度场及热/动力学沉积机理耦合研究”,YETP0679.","A"]
["天然气工业","李思嘉","学生","李思嘉; 段庆全; 张宏; 王杰",null,"段庆全","机械与储运工程学院",null,"中国石油大学(北京)","洪水中悬跨管道加装防护索的力学行为及布索方案","2016","36","02","102-109","国家科技重大专项“连续管装备与应用技术”(编号:2011ZX05021-007).","A"]
["中国安全科学学报","单克","学生","单克; 帅健; 张思弘",null,"帅健","机械与储运工程学院",null,"中国石油大学(北京)","基于修正因子的油气管道失效概率评估","2016","26","01","87-93","国家科技支撑计划项目(2015BAK16B02).","A"]
["制造业自动化","胡俊华","学生","胡俊华; 段礼祥; 高广民; 刘娟; 王金江",null,"段礼祥","机械与储运工程学院",null,"中国石油大学(北京)","基于ADAMS的齿轮传动误差动力学仿真研究","2016","38","04","112-114,130","国家自然科学基金（51504274）；中国石油大学（北京）科学基金（2462014YJRC039，2462015YQ0403）","A"]
["电子测量与仪器学报","谢骏遥","学生","谢骏遥; 王金江; 赵锐; 段礼祥; 王凯",null,"王金江","机械与储运工程学院",null,"中国石油大学(北京)","迁移因子分析在齿轮箱变工况故障诊断中的应用","2016","30","04","534-541","国家自然科学基金（51504274）、中国石油大学（北京）自然科学基金（2462014YJRC039，2462015YQ0403）","A"]
["石油机械","胡治斌","学生","胡治斌;樊建春;明学江;张洋;郝俊;辛康;杨坤",null,"樊建春","机械与储运工程学院",null,"中国石油大学(北京)","高压弯管损伤在线检测新方法?","2016","44","05","87-89","国家科技重大专项“3000型成套压裂装备研制及应用示范工程”（2011ZX05048）。","L"]
["石油机械","杨周","学生","杨周; 樊建春; 张喜明; 吕宁贻; 文敏",null,"樊建春","机械与储运工程学院",null,"中国石油大学(北京)","环空带压气井地面监测诊断系统研究","2016","44","01","75-78","国家科技重大专项“海上稠油高效开发新技术”(2011ZX05024).","A"]
["石油机械","刘迪","学生","刘迪; 樊建春; 张喜明; 文敏",null,"樊建春","机械与储运工程学院",null,"中国石油大学(北京)","油管损伤磁记忆检测信号定量研究","2016","44","01","83-87","国家科技重大专项“海上稠油高效开发新技术”(2011ZX05024).","A"]
["石油机械","段礼祥","教师","段礼祥; 胡智; 杨大中; 李日朝; 马军",null,"段礼祥","机械与储运工程学院",null,"中国石油大学(北京)","双树复小波变换用于转子模拟故障诊断研究?","2016","44","04","75-80","国家自然科学基金项目“基于虚拟传感与故障机理的油气设备安全预警理论及模型研究”（51504274）；中国石油大学（北京）科研基金项目“海洋浮式设施安全风险动态多场感知与控制”（2462015YQ0403）、“信息不完备下的复杂系统故障诊断及预测理论关键问题研究”（2462014","A"]
["中国化学工程学报（英文版）","Teng Li","学生","Teng Li；Chaohe Yang；Xiaobo Chen；Libo Yao；Wei Liang；Xuemei Ding",null,"梁伟","机械与储运工程学院",null,"中国石油大学（北京）","The correlation between nitrogen species in coke and NOx formation during regeneration☆","2016","24","05","606-611","Supported by the National Natural Science Foundation of China (21476263) and the National Natural Science Foundation for Young Scholars (21206198)","A"]
["中国安全科学学报","张河苇","学生","张河苇; 胡瑾秋; 张来斌",null,"胡瑾秋","机械与储运工程学院",null,"中国石油大学(北京)","化工过程故障根源精准定位模型","2016","26","11","133-138","国家自然科学基金资助(51574263);中国石油大学(北京)科研基金资助(YJRC-2013-35);中国石油化工股份有限公司科学研究与技术开发项目(P14004).","A"]
["中国安全科学学报","单克","学生","单克; 帅健",null,"帅健","机械与储运工程学院",null,"中国石油大学(北京)","地区等级升级的天然气管道风险管理研究","2016","26","11","145-150","国家科技支撑计划项目(2015BAK16B02).","A"]
["中国安全生产科学技术","罗通元","学生","罗通元; 段礼祥; 王金江; 柳楠; 吴飞",null,"段礼祥","机械与储运工程学院",null,"中国石油大学","道化学评价法的改进及其在联合站安全评价中的应用","2016","12","06","153-157","横向科研协作项目（020814070160）","A"]
["天然气与石油","房剑萍","学生","房剑萍; 段庆全",null,"段庆全","机械与储运工程学院",null,"中国石油大学(北京)","低温冻土区油气管道失效事故分析","2016","34","03","7-10","中国石油大学(北京)青年教师专项培养基金项目(KYJJ 2012-04-26)","A"]
["地下空间与工程学报","狄彦","学生","狄彦; 帅健; 孔令圳",null,"帅健","机械与储运工程学院",null,"中国石油大学(北京)","冻土冻胀及其对管道的作用分析","2016","12","03","634-639,728","","A"]
["石油机械","段庆全","教师","段庆全; 周性坤; 张宏; 侯敏",null,"段庆全","机械与储运工程学院",null,"中国石油大学(北京)","XJ850修井机井架地震响应分析","2016","44","07","46-50","","A"]
["天然气工业","叶迎春","教师","叶迎春; 张来斌; 王金江",null,"叶迎春","机械与储运工程学院",null,"中国石油大学(北京)","输气管道泄漏声源特性及其变化规律","2016","36","08","124-131","国家自然科学基金青年科学基金项目“基于虚拟传感与故障机理的油气设备安全预测理论及模型研究”(编号:51504274)、中国石油大学(北京)基金项目“多源信息融合燃气管道泄漏识别方法研究”(编号:KYJJ2012-04-25).","A"]
["腐蚀与防护","徐寅平","学生","徐寅平; 段庆全; 张宏",null,"段庆全","机械与储运工程学院",null,"中国石油大学(北京)","基于API579准则的含点腐蚀管道剩余强度分析","2016","37","09","748-752","中国石油大学(北京)青年教师专项培养基金项目(KYJJ2012-04-26)","A"]
["化工学报","胡瑾秋","教师","胡瑾秋; 张来斌; 王安琪",null,"胡瑾秋","机械与储运工程学院",null,"中国石油大学(北京)","炼化装置故障链式效应定量安全预警方法","2016","67","07","3091-3100","国家自然科学基金项目（51574263）；教育部新世纪优秀人才支持计划项目（NCET-12-0972）；中国石油大学（北京）科研基金项目(2462015YQ0403)。@@@@supported by the National Natural Science Foundation of China (51574263), the Program for New Century Excellent T","A"]
["中国安全生产科学技术","胡瑾秋","教师","胡瑾秋; 张来斌; 伊岩;蔡爽",null,"胡瑾秋","机械与储运工程学院",null,"中国石油大学(北京)","基于贝叶斯估计的炼化装置动态告警管理方法研究","2016","12","10","81-85","国家自然科学基金资助(51574263);中国石油大学(北京)科研基金资助(2462015YQ0403)","A"]
["中国安全生产科学技术","王虹富","学生","王虹富; 樊建春",null,"樊建春","机械与储运工程学院",null,"中国石油大学","套管损伤磁记忆检测信号定量研究","2016","12","12","116-120","中海油有限公司综合科研项目(YXKY-2015-ZY-09)","A"]
["中国安全科学学报","胡瑾秋","教师","胡瑾秋; 张来斌; 伊岩;蔡爽",null,"胡瑾秋","机械与储运工程学院",null,"中国石油大学(北京)","非正常工况下化工过程设备故障实时关联预警研究","2016","26","09","140-145","国家自然科学基金资助(51574263);中国石油大学(北京)科研基金资助(2462015YQ0403).","A"]
["中国安全科学学报","罗静","学生","罗静; 胡瑾秋; 张来斌;马曦",null,"胡瑾秋","机械与储运工程学院",null,"中国石油大学(北京)","化工过程自适应多模型故障监测方法研究","2016","26","07","130-134","国家自然科学基金资助(51574263);中国石油大学(北京)科研基金资助(2462015YQ0403).","A"]
["中国安全科学学报","帅义","学生","帅义; 帅健; 苏丹丹",null,"帅健","机械与储运工程学院",null,"中国石油大学(北京)","企业级管道完整性管理体系构建模式","2016","26","07","147-151","","A"]
["油气储运","于红红","学生","于红红; 王德国; 张华兵; 杨玉锋; 冯明洋",null,"王德国","机械与储运工程学院",null,"中国石油大学(北京)","城镇燃气管道典型事故案例保护层分析","2016","35","03","254-258","质检公益性行业科研专项资助“城镇燃气聚乙烯管道安全状况模糊评价方法研究”,201310159;中国石油天然气股份公司科技专项“管道风险评价深化与管道判废处置技术研究”,2014B-3415.","A"]
["石油机械","王贺","学生","王贺;赵宏林;车小花;卢俊强;段文星;胡栋",null,"赵宏林","机械与储运工程学院",null,"中国石油大学(北京)","声波测井仪外壳声传播特性研究","2016","NULL","02","11-16","中国石油天然气集团公司项目“方位远探测声波反射波成像测井仪器研制”（2014B－4011）。","A"]
["石油机械","赵兵杰","学生","赵兵杰; 朱宏武; 张金亚; 唐德渝; 张树丽",null,"朱宏武","机械与储运工程学院",null,"中国石油大学(北京)","海底油气管道维修夹具密封结构研究?","2016","44","05","50-54","中国石油集团公司科学研究与技术开发项目“海底管道维抢修方法及应急预案研究”（ BK－11－02－J）。","A"]
["石油机械","胡飚","学生","胡飚;朱宏武;丁矿;吕慧琴;张悠江;徐芳玲",null,"朱宏武","机械与储运工程学院",null,"中国石油大学(北京)","水下跨接管的外部绕流及振动分析?","2016","44","04","42-45","国家工信部海洋工程装备科研项目“水下立式采油树研制”。","A"]
["石油机械","丁庆新","教师","丁庆新; 侯世红; 杜鑫芳; 王文明",null,"丁庆新","机械与储运工程学院",null,"中国石油大学(北京)","国内水平井压裂技术研究进展","2016","44","12","78-82","国家青年基金项目“深海悬链线管中管的载荷传递特性及接触作用机理研究”(51309237);中国石油科技创新基金研究项目“水平井大通径多级压裂电控滑套技术研究”(2014D-5006-0204);中国石油大学(北京)优秀青年教师研究基金项目“横向扰动下深海悬链线管中管的载荷传递特性 ","R"]
["机械与电子","张蓬","教师","张蓬; 李杰",null,"张蓬","机械与储运工程学院",null,"中国石油大学(北京)","自动喷淋花架及控制系统设计","2016","34","10","38-41","国家自然科学基金油气管道受阻瞬态流时空演化规律及智能控制方法研究(50905186)","A"]
["中国石油大学学报（自然科学版）","喻开安","教师","喻开安; 李文星; 黄巍",null,"喻开安","机械与储运工程学院",null,"中国石油大学","内螺旋刀翼PDC钻头研究","2016","40","05","123-127","中国石油天然气集团公司科学研究与技术开发项目(2014A-4210)","A"]
["化工学报","栾鑫","学生","栾鑫; 姬忠礼; 刘龙飞",null,"姬忠礼","机械与储运工程学院",null,"中国石油大学(北京)","刚性过滤器脉冲反吹过程中滤管内动态压力特性","2016","67","08","3452-3458","国家重点基础研究发展计划项目（2012CB215000）。@@@@supported by the National Basic Research Program of China (2012CB215000)","A"]
["油气储运","常程","学生","常程; 姬忠礼; 刘传斌;赵峰霆",null,"姬忠礼","机械与储运工程学院",null,"中国石油大学","压缩机干气密封滤芯性能检测装置设计及应用","2016","35","11","1216-1221","国家科技重大专项“百亿方级净化厂安全优质运行技术”,2011ZX05017-005:国家自然科学基金资助项目“天然气净化用气液聚结滤芯过滤分离机理研究”,51376196.","A"]
["工程热物理学报","赵洪滨","教师","赵洪滨; 宋天仁; 侯萱;谢攀; 杨微",null,"赵洪滨","机械与储运工程学院",null,"中国石油大学(北京)","600MW直接空冷机组背压优化(火用)分析","2016","37","12","2502-2506","国家自然科学基金资助项目(No.51274224)","A"]
["油气储运","苏怀","学生","苏怀; 张劲军; 杨楠; 张宗杰",null,"张劲军","机械与储运工程学院",null,"中国石油大学(北京)","大型天然气管网可靠性评价方法研究进展","2016","35","01","7-15","","R"]
["油气储运","孙旭","教师","孙旭; 张劲军; 杨森",null,"孙旭","机械与储运工程学院",null,"中国石油大学(北京)","π形输流管道受力特性及结构优化","2016","35","01","38-42","中国石油大学(北京)引进人才科研启动基金项目\"海洋多立管系统涡激振动问题的有限元解法及机理研究\",2462014YJRC00","A"]
["油气储运","孙旭","教师","孙旭; 张劲军; 杨森",null,"孙旭","机械与储运工程学院",null,"中国石油大学(北京)","地下水封洞库立管的振动特性","2016","35","02","145-150","中国石油大学(北京)引进人才科研启动基金项目“海洋多立管系统涡激振动问题的有限元解法及机理研究”,2462014YJRC007.","A"]
["油气储运","孙广宇","学生","孙广宇; 张劲军",null,"张劲军","机械与储运工程学院",null,"中国石油大学(北京)","W/O型原油乳状液及其凝胶流变特性研究进展","2016","35","03","229-240","国家自然科学基金重点项目“深水环境下易凝高黏原油-天然气输送系统流动保障基础问题研究”,51134006.","R"]
["化工进展","丁麟","学生","丁麟; 史博会; 吕晓方; 柳扬; 宫敬",null,"史博会","机械与储运工程学院",null,"中国石油大学(北京)","天然气水合物形成与生长影响因素综述","2016","NULL","01","57-64","国家自然科学基金（51274218，51306208，51134006）、国家科技重大专项（2011ZX05026-004）、中国石油大学（北京）科学基金（2462013YXBS010）及中国石油大学（北京）科研基金（2462014YJRC006）项目。","R"]
["现代化工","张盈盈","学生","张盈盈; 李兆慈; 丁杨; 仪记敏; 张国飞",null,"李兆慈","机械与储运工程学院",null,"中国石油大学(北京)","液化天然气的储存与运输技术现状分析","2016","36","04","4-7","","R"]
["石油化工高等学校学报","赵丹","学生","赵丹; 黄启玉; 吕志娟; 吕铭宽",null,"黄启玉","机械与储运工程学院",null,"中国石油大学(北京)","塘燕原油管道蜡沉积规律研究","2016","29","01","80-85","国家自然科学基金资助项目“油包水型乳状液蜡分子扩散和蜡晶颗粒沉积机理研究”(51374224).","A"]
["石油化工高等学校学报","酆春博","学生","酆春博; 袁野; 邢晓凯",null,"邢晓凯","机械与储运工程学院",null,"中国石油大学(北京)","气体解吸技术的研究进展","2016","29","01","93-98","国家重大科技专项“CO2超临界输送及循环注气技术”(2011ZX05016-004).","R"]
["天然气与石油","刘佳","学生","刘佳; 邓道明; 万宇飞",null,"邓道明","机械与储运工程学院",null,"中国石油大学(北京)","天然气脱水装置BTEX和VOC减排措施研究","2016","34","03","47-53","","A"]
["北京石油化工学院学报","王艳芝","学生","王艳芝; 吴海浩; 宫敬",null,"吴海浩","机械与储运工程学院",null,"中国石油大学(北京)","基于D-S理论的多模型凝析气井流量算法研究","2016","24","02","31-36","“十二五”国家科技重大专项(2011ZX05026-004-03)。","A"]
["石油化工高等学校学报","朱方达","学生","朱方达; 黄启玉; 王文达; 徐永峰; 柴彦强",null,"黄启玉","机械与储运工程学院",null,"中国石油大学(北京)","高含蜡胶凝油的屈服特性研究","2016","29","03","82-86","国家自然科学基金资助项目(51134006,51374224).","A"]
["油气储运","程福松","学生","程福松; 侯磊; 周亚云",null,"侯磊","机械与储运工程学院",null,"中国石油大学(北京)","石油化工生产区域多米诺效应定量风险分析","2016","35","05","457-464","北京市共建项目专项资助项目“城市楼群环境燃气泄漏扩散规律与危险区检测技术研究”.","R"]
["油气储运","陈仕林","学生","陈仕林; 孙兆虎; 宫敬",null,"宫敬","机械与储运工程学院",null,"中国石油大学(北京)","煤层气小型撬装液化装置的优化","2016","35","05","542-546","国家科技重大专项课题“煤层气田低压集输工艺技术及关键设备研究”,2011ZX05039-001.","A"]
["油气储运","常海军","学生","常海军; 吴长春",null,"吴长春","机械与储运工程学院",null,"中国石油大学(北京)","配置燃驱压缩机组的输气管道高温运行工况模拟","2016","35","07","747-753","","A"]
["化工机械","史博会","教师","史博会;吕晓方;郑丽君;王麟雁;丁麟;阮超宇;王玮;宫敬",null,"史博会","机械与储运工程学院",null,"中国石油大学(北京)","水合物浆液黏度特性与流动阻力特性的研究进展","2016","43","04","434-440,445","国家自然科学基金项目（51306208，51274218，51134006），中国石油大学（北京）科研基金项目（2462014YJRC006，2462015YQ0404）。","R"]
["当代化工","华创","学生","华创; 张帆; 胡洪兵; 高利波; 张杰",null,"张帆","机械与储运工程学院",null,"中国石油大学(北京)","LNG储存技术研究现状","2016","45","06","1267-1269,1272","","R"]
["化工进展","丁麟","学生","丁麟;史博会;吕晓方;柳杨;阮超宇;宋尚飞;宫敬",null,"史博会","机械与储运工程学院",null,"中国石油大学(北京)","天然气水合物的生成对浆液流动稳定性影响综述","2016","35","10","3118-3128","国家自然科学基金（51274218&51306208&5153000152）、国家科技重大专项课题（2011ZX05026-004）、中国石油大学（北京）科学基金（2462013YXBS010）及中国石油大学（北京）科研基金（2462014YJRC006）项目。","R"]
["油气储运","陆争光","学生","陆争光; 张劲军; 高鹏",null,"张劲军","机械与储运工程学院",null,"中国石油大学(北京)","成品油一次物流优化研究进展","2016","35","09","913-919,927","中国石油天然气集团公司“十三五”规划成品油专题“优化‘十三五’成品油资源配置及成品油物流规划”,G2014-133.","R"]
["油气储运","范开峰","学生","范开峰; 黄启玉; 毕权; 李男",null,"黄启玉","机械与储运工程学院",null,"中国石油大学(北京)","管输含蜡原油沉积物的性质","2016","35","09","946-951","国家自然科学基金面上项目“油包水型乳状液蜡分子扩散和蜡晶颗粒沉积机理研究”,51374224.","A"]
["油气储运","毕权","学生","毕权; 黄启玉; 范开峰",null,"黄启玉","机械与储运工程学院",null,"中国石油大学(北京)","原油蜡沉积规律及沉积物性质的径向差异","2016","35","09","952-957","国家自然科学基金面上项目“油包水型乳状液蜡分子扩散和蜡晶颗粒沉积机理研究”,51374224.","A"]
["油气储运","阮超宇","学生","阮超宇;史博会;丁麟;吕晓方;黄启玉;宫敬;张静楠",null,"史博会","机械与储运工程学院",null,"中国石油大学(北京)","天然气水合物生长及堵管规律研究进展","2016","35","10","1027-1037","国家自然科学基金项目“流动体系油包水乳状液微观特性对气体水合物生成传质传热影响机理研究”,51306208;国家自然科学基金项目“深水油气混输管线水合物浆液形成理论与流动规律研究”,51274218;国家自然科学基金项目“深水环境下易凝高粘原油——天然气输送系统流动保障","R"]
["当代化工","解青波","学生","解青波; 李鸿英; 刘洪飞",null,"李鸿英","机械与储运工程学院",null,"中国石油大学(北京)","不同历史条件下胶凝含蜡原油屈服特性研究现状","2016","45","07","1506-1510,1514","","R"]
["石油学报（石油加工）","李思","学生","李思; 黄启玉; 范开峰",null,"黄启玉","机械与储运工程学院",null,"中国石油大学","石油流体析蜡特性检测技术","2016","32","06","1287-1296","国家自然科学基金项目(51374224)资助","R"]
["当代化工","常海军","学生","常海军; 吴长春; 张晓瑞",null,"吴长春","机械与储运工程学院",null,"中国石油大学","长输天然气管道燃机热耗率计算与校正方法研究","2016","45","04","759-762","","A"]
["油气储运","韩银杉","学生","韩银杉; 张宏",null,"张宏","机械与储运工程学院",null,"中国石油大学(北京)","走滑断层作用下管道应变解析计算方法的适用性","2016","35","12","1329-1336","中国石油天然气集团公司重大科技专项“第三代大输量天然气管道工程关键技术研究”,2012E-28.","A"]
["压力容器","张华","学生","张华; 张宏; 赵新伟; 宫少涛; 李娜",null,"张宏","机械与储运工程学院",null,"中国石油大学(北京)","管线钢落锤撕裂试验厚度效应试验研究","2016","33","11","14-19","","A"]
["油气储运","刘啸奔","学生","刘啸奔; 张宏; 李勐; 郑伟; 吴锴",null,"张宏","机械与储运工程学院",null,"中国石油大学(北京)","断层作用下埋地管道应变分析方法研究进展","2016","35","08","799-807","中国石油天然气集团公司重大科技专项“第三代大输量天然气管道工程关键技术研究”,2012E-28.","R"]
["油气储运","夏梦莹","学生","夏梦莹; 张宏",null,"张宏","机械与储运工程学院",null,"中国石油大学","基于应变准则的采空暗悬管道的安全性评价","2016","35","11","1159-1163","中国石油工程设计有限责任公司科学研究项目“油气田地面工程埋地管道应力分析关键技术研究”,CPEBF-2014-02;中国石油天然气集团公司重大科技专项“第三代大输量天然气管道工程关键技术研究”,2012E-28.","A"]
["中国安全生产科学技术","李勐","学生","李勐; 张宏; 王宝栋; 刘啸奔",null,"张宏","机械与储运工程学院",null,"中国石油大学,北京","基于有限元的含腐蚀缺陷P110油管失效分析与安全评价?","2016","12","11","93-99","国家自然科学基金项目(51309236)","A"]
["腐蚀与防护","刘啸奔","学生","刘啸奔; 张宏; 李勐; 夏梦莹; 于洋",null,"张宏","机械与储运工程学院",null,"中国石油大学(北京)","含腐蚀缺陷N80油管的剩余强度分析","2016","37","11","913-916,920","中石油工程设计有限责任公司科学研究项目(CPEBF-2014-02);中国石油天然气集团公司重大科技专项(2012E-28)","A"]
["油气储运","郭存杰","学生","郭存杰; 张来斌; 梁伟; 郭晓燕",null,"张来斌","机械与储运工程学院",null,"中国石油大学(北京)","油气管道横坡敷设边坡稳定性计算","2016","35","12","1342-1346","国家科技支撑计划资助项目“基于风险的油气管道事故预防关键技术研究子任务”,11BAK06B01-11-03.","A"]
["石油钻探技术","冯一璟","学生","冯一璟; 张来斌; 郑文培; 邓嵘; 冯定",null,"张来斌","机械与储运工程学院",null,"中国石油大学(北京)","潜孔钻头端面切削齿载荷仿真研究","2016","44","03","77-82","高等学校博士学科点科研基金项目“高造斜率井眼轨迹控制工具主轴井下力学行为研究”（编号20124220110003）资助。","A"]
["石油钻探技术","武胜男","学生","武胜男; 张来斌; 邓金根; 曹砚锋; 文敏",null,"张来斌","机械与储运工程学院",null,"中国石油大学(北京)","基于蒙特卡洛模拟的极限注水压力不确定性分析","2016","44","03","109-114","中海石油（中国）有限公司科研攻关项目“注水井堵塞机理及增注降耗方法研究解堵注水安全评价”（编号CNOOC KJ125ZDXM06LTD 08 ZY 12）部分研究内容。","A"]
["制造业自动化","谢骏遥","学生","谢骏遥; 王凯; 张来斌; 吴飞; 曾路",null,"张来斌","机械与储运工程学院",null,"中国石油大学(北京)","基于多传感数据融合的刀具磨损状态预测研究","2016","38","07","1-4","国家自然基金（51504274）；中国石油大学（北京）自然科学基金（2462014YJRC039，2462015YQ0403）","A"]
["油气储运","郭晓燕","学生","郭晓燕; 张来斌; 梁伟; 冯桓榰",null,"张来斌","机械与储运工程学院",null,"中国石油大学(北京)","基于FMEA/FEM的压缩机可靠性分析方法","2016","35","10","1042-1049","国家科技重大专项课题“3 500 kW级天然气发动机驱压缩机组在注采交变工况下的可靠性技术研究”,2011ZX05055;中国石油大学(北京)科研基金,2462015YQ0406.","A"]
["油气储运","郭存杰","学生","郭存杰; 张来斌; 陈喆; 梁伟; 郭晓燕",null,"张来斌","机械与储运工程学院",null,"中国石油大学(北京)","陕京管道滑坡灾害预警标准计算与分析","2016","35","10","1092-1097","国家科技支撑计划“基于风险的油气管道事故预防关键技术研究子任务”,11BAK06B01-11-03.","A"]
["油气储运","卢文青","学生","卢文青; 张来斌; 梁伟; 全恺",null,"张来斌","机械与储运工程学院",null,"中国石油大学(北京)","基于SARM的管道声波信号降噪方法","2016","35","10","1102-1105","国家自然科学基金资助项目“油气储运‘设备链’瞬态过程的耦变规律及其故障的自组织诊断方法”,51005247.","A"]
["石油机械","陈萌","学生","陈萌;张来斌;郑文培;柴亚军;段梦兰;李荣",null,"张来斌","机械与储运工程学院",null,"中国石油大学(北京)","油管悬挂器及下放工具性能鉴定试验方法?","2016","44","10","68-71","国家发改委2013年海洋工程装备研发及产业化专项“水下采油树研发及产业化”（发改办高技［2013］1764号）。","A"]
["中国安全生产科学技术","陈萌","学生","陈萌; 张来斌; 郑文培;刘书杰; 冯桓榰",null,"张来斌","机械与储运工程学院",null,"中国石油大学,北京","“三高”气田钻井过程硫化氢泄漏动态风险分析?","2016","12","11","17-23","中海石油(中国)有限公司科研项目( YXKY-2015-ZY-12);国家自然科学基金项目(51574263)","A"]
["石油化工高等学校学报","马晶","学生","马晶;廖绮;周星远;张勤宾;张浩然;梁永图",null,"梁永图","机械与储运工程学院",null,"中国石油大学(北京)","甬绍金衢成品油管道调度计划自动编制软件研制与应用","2016","29","06","86-91,96","国家自然科学基金资助项目\"成品油管道批次输送过程中的复杂传热传质机理研究\"(51474228","A"]
["油气储运","何国玺","学生","何国玺; 梁永图; 方利民; 任玉鸿; 肖俏",null,"梁永图","机械与储运工程学院",null,"中国石油大学(北京)","考虑三维地形及障碍的煤层气田集输系统布局优化","2016","35","06","638-647","国家自然科学基金资助项目“成品油管道批次输送过程中的复杂传热传质机理研究”,51474228;山西省基础研究计划——煤层气联合研究基金资助项目“煤层气地面集输系统优化设计与运行控制”,2014012012.","A"]
["油气储运","梁永图","教师","梁永图;张浩然;马晶;廖绮;吴梦雨;冯浩",null,"梁永图","机械与储运工程学院",null,"中国石油大学(北京)","油气田集输管网系统优化研究进展","2016","35","07","685-690","山西省自然科学基金项目“煤层气地面集输系统优化设计与运行控制”,2014012012.","R"]
["石油机械","胡浩然","学生","胡浩然; 赵弘",null,"赵弘","机械与储运工程学院",null,"中国石油大学(北京)","管内智能封堵器端面结构优化?","2016","44","05","71-76","国家自然科学基金项目“海底油气管道封堵致振机理及气动减振控制方法研究”（51575528）。","A"]
["电子测量技术","张涛","学生","张涛; 赵弘; 王维斌; 朱子东",null,"赵弘","机械与储运工程学院",null,"中国石油大学(北京)","基于响应面法的瞬变电磁法聚焦线圈优化设计","2016","39","07","28-32,38","","A"]
["油气储运","赵弘","教师","赵弘; 胡浩然",null,"赵弘","机械与储运工程学院",null,"中国石油大学(北京)","管内封堵器不同封堵状态的流场分析","2016","35","10","1060-1065","国家自然科学基金“海底油气管道封堵致振机理及气动减振控制方法研究”,51575528.","A"]
["机床与液压","赵弘","教师","赵弘; 胡浩然",null,"赵弘","机械与储运工程学院",null,"中国石油大学(北京)","基于响应面法的长管道水下液压系统优化设计","2016","44","19","86-93","国家自然科学基金资助项目(51575528)","A"]
["河南科学","陈海宏","学生","陈海宏",null,{"$error":"#N/A"},"机械与储运工程学院","吴长春","中国石油大学(北京)","一维非稳态导热问题收敛性傅里叶分析","2016","NULL","02","187-194","国家青年科学基金项目（51504270）","A"]
["工程热物理学报","陈静静","学生","陈静静; 韩东旭; 王烨;王艺; 宇波",null,"宇波","机械与储运工程学院",null,"中国石油大学(北京)","基于涡量流函数方程的POD低阶模型研究","2016","37","10","2167-2174","国家自然科学基金资助项目(No.51476073;No.51325603)","A"]
["工程热物理学报","李敬法","学生","李敬法; 宋克伟; 王艺;宇波",null,"宇波","机械与储运工程学院",null,"中国石油大学,(北京)","基于局部信息优先的代数多重网格粗化策略","2016","37","04","851-858","国家自然科学基金资助项目(No.51376086;No.51325603;No.51206186)","A"]
["当代化工","王旭","学生","王旭; 张圣柱; 江世超",null,{"$error":"#N/A"},"机械与储运工程学院","王德国","中国石油大学(北京)","我国成品油管道相关技术进展及展望","2016","45","01","118-121","","R"]
["当代化工","王继平","学生","王继平; 王馨艺; 郝宝健; 刘伟亮; 王海月",null,{"$error":"#N/A"},"机械与储运工程学院","张劲军","中国石油大学(北京)","热油管道结蜡厚度与经济清管周期计算","2016","45","03","545-548","","A"]
["当代化工","周星远","学生","周星远; 周湃; 李小婵; 彭清华",null,{"$error":"#N/A"},"机械与储运工程学院","梁永图","中国石油大学(北京)","原油负压稳定轻烃收率特性研究","2016","45","03","582-585","","A"]
["当代化工","陆洋","学生","陆洋",null,{"$error":"#N/A"},"机械与储运工程学院","张帆","中国石油大学(北京)","物理法原油破乳研究进展","2016","45","05","946-948,951","","R"]
["当代化工","刘建勋","学生","刘建勋",null,{"$error":"#N/A"},"机械与储运工程学院","李鸿英","中国石油大学(北京)","页岩气返排液处理现状","2016","45","05","1009-1011,1015","","R"]
["现代化工","刘胜利","学生","刘胜利;杜胜男;张成龙;王舒扬;张欢;李玮",null,{"$error":"#N/A"},"机械与储运工程学院","梁永图","中国石油大学(北京)","油气管道安全管理的问题及相关建议","2016","36","12","15-19","","R"]
["环境科学与管理","陆争光","学生","陆争光",null,{"$error":"#N/A"},"机械与储运工程学院","张劲军","中国石油大学(北京)","油气田压裂返排液处理技术探讨","2016","41","05","104-107","","A"]
["油气储运","王继平","学生","王继平",null,{"$error":"#N/A"},"机械与储运工程学院","张劲军","中国石油大学(北京)","ISO 16708-2006与CSA Z662-2007陆上管道目标安全水平的对比","2016","35","07","718-721","","A"]
["工业用水与废水","陆争光","学生","陆争光",null,{"$error":"#N/A"},"机械与储运工程学院","张劲军","中国石油大学(北京)","基于环境风险评价的页岩气水务管理框架及其模块分析","2016","47","04","16-21","","R"]
["当代化工","刘迪","学生","刘迪",null,{"$error":"#N/A"},"机械与储运工程学院","李兆慈？樊建春？","中国石油大学(北京)","C3/MRC天然气液化工艺模拟及影响因素分析","2016","45","06","1204-1206,1210","","A"]
["当代化工","刘建勋","学生","刘建勋",null,{"$error":"#N/A"},"机械与储运工程学院","李鸿英","中国石油大学(北京)","膜法天然气脱硫技术研究进展","2016","45","06","1301-1303","","L"]
["当代化工","王寒","学生","王寒",null,{"$error":"#N/A"},"机械与储运工程学院","张帆","中国石油大学(北京)","世界氢能发展现状与技术调研","2016","45","06","1316-1319","","R"]
["天津理工大学学报","田斯赟","学生","田斯赟",null,{"$error":"#N/A"},"机械与储运工程学院","胡瑾秋","中国石油大学(北京)","炼化过程参数定量趋势预测方法研究","2016","32","04","58-60","","L"]
["当代化工","华创","学生","华创",null,{"$error":"#N/A"},"机械与储运工程学院","张帆","中国石油大学(北京)","腐蚀管道评价SY/T6151新旧标准对比","2016","45","07","1476-1479","","R"]
["当代化工","王坤","学生","王坤; 陈飞; 付勇",null,{"$error":"#N/A"},"机械与储运工程学院","李鸿英","中国石油大学(北京)","BOG再冷凝处理工艺模拟与改进","2016","45","07","1435-1437,1440","","A"]
["当代化工","唐国平","学生","唐国平",null,{"$error":"#N/A"},"机械与储运工程学院","段庆全","中国石油大学(北京)","连续油管松弛角度与张紧力研究","2016","45","07","1432-1434","","L"]
["当代化工","朱方达","学生","朱方达; 任翌劼; 滕浩",null,{"$error":"#N/A"},"机械与储运工程学院","黄启玉","中国石油大学(北京)","新疆油田的稀油、稠油地面集输工艺","2016","45","07","1564-1567","","A"]
["当代化工","李师瑶","学生","李师瑶; 石涛",null,{"$error":"#N/A"},"机械与储运工程学院","侯磊","中国石油大学(北京)","天然气压缩因子影响因素的研究","2016","45","10","2378-2380,2390","","A"]
["当代化工","王坤","学生","王坤",null,{"$error":"#N/A"},"机械与储运工程学院","李鸿英","中国石油大学(北京)","天然气管网系统可靠性与可维修性技术研究现状","2016","45","08","1994-1996","","L"]
["当代化工","陈飞","学生","陈飞; 王坤",null,{"$error":"#N/A"},"机械与储运工程学院","吴长春","中国石油大学(北京)","输油管道减阻率影响因素及预测模型概述","2016","45","08","1946-1949","","R"]
["当代化工","林福贺","学生","林福贺",null,{"$error":"#N/A"},"机械与储运工程学院","黄启玉","中国石油大学(北京)","油气集输系统能耗和节能研究进展","2016","45","08","1970-1973","","R"]
["当代化工","李勐","学生","李勐",null,{"$error":"#N/A"},"机械与储运工程学院","张宏","中国石油大学(北京)","组合荷载作用下穿越隧道管道的强度分析","2016","45","08","1978-1982","","R"]
["当代化工","朱方达","学生","朱方达; 任翌劼",null,{"$error":"#N/A"},"机械与储运工程学院",{"$f":"VLOOKUP(B543,[2]Sheet1!$D$1:$I$6737,6,FALSE)","v":"黄启玉"},"中国石油大学(北京)","油蜡混合物的性质研究","2016","45","08","1732-1734,1739","","A"]
["当代化工","酆春博","学生","酆春博",null,{"$error":"#N/A"},{"$f":"VLOOKUP(B544,[2]Sheet1!$D$2:$F$6737,3,FALSE)","v":"机械与储运工程学院"},{"$f":"VLOOKUP(B544,[2]Sheet1!$D$1:$I$6737,6,FALSE)","v":"邢晓凯"},"中国石油大学(北京)","油田节能技术研究综述","2016","45","08","2006-2009,2013","","R"]
["当代化工","赵旗","学生","赵旗",null,{"$error":"#N/A"},{"$f":"VLOOKUP(B545,[2]Sheet1!$D$2:$F$6737,3,FALSE)","v":"机械与储运工程学院"},{"$f":"VLOOKUP(B545,[2]Sheet1!$D$1:$I$6737,6,FALSE)","v":"黄启玉"},"中国石油大学(北京)","管道堵塞定位技术研究进展","2016","45","08","2023-2026","","R"]
["当代化工","龙震","学生","龙震",null,{"$error":"#N/A"},{"$f":"VLOOKUP(B546,[2]Sheet1!$D$2:$F$6737,3,FALSE)","v":"机械与储运工程学院"},{"$f":"VLOOKUP(B546,[2]Sheet1!$D$1:$I$6737,6,FALSE)","v":"黄启玉"},"中国石油大学(北京)","稠油管道输送技术方法综述","2016","45","08","2030-2032,2043","","R"]
["当代化工","毕权","学生","毕权",null,{"$error":"#N/A"},{"$f":"VLOOKUP(B547,[2]Sheet1!$D$2:$F$6737,3,FALSE)","v":"机械与储运工程学院"},{"$f":"VLOOKUP(B547,[2]Sheet1!$D$1:$I$6737,6,FALSE)","v":"黄启玉"},"中国石油大学(北京)","沥青质对蜡结晶和原油胶凝行为影响的研究","2016","45","08","1773-1776","","A"]
["当代化工","田斯赟","学生","田斯赟",null,{"$error":"#N/A"},{"$f":"VLOOKUP(B548,[2]Sheet1!$D$2:$F$6737,3,FALSE)","v":"机械与储运工程学院"},{"$f":"VLOOKUP(B548,[2]Sheet1!$D$1:$I$6737,6,FALSE)","v":"胡瑾秋"},"中国石油大学(北京)","油气管道完整性技术研究进展","2016","45","08","2033-2035,2040","","R"]
["当代化工","程福松","学生","程福松; 邱宗君",null,{"$error":"#N/A"},{"$f":"VLOOKUP(B549,[2]Sheet1!$D$2:$F$6737,3,FALSE)","v":"机械与储运工程学院"},{"$f":"VLOOKUP(B549,[2]Sheet1!$D$1:$I$6737,6,FALSE)","v":"侯磊"},"中国石油大学(北京)","油气管道腐蚀检测技术研究","2016","45","08","1803-1805,1808","","A"]
["当代化工","刘迪","学生","刘迪",null,{"$error":"#N/A"},{"$f":"VLOOKUP(B550,[2]Sheet1!$D$2:$F$6737,3,FALSE)","v":"机械与储运工程学院"},{"$f":"VLOOKUP(B550,[2]Sheet1!$D$1:$I$6737,6,FALSE)","v":"李兆慈"},"中国石油大学(北京)","气提原油稳定工艺模拟分析","2016","45","04","827-829","","L"]
["当代化工","王坤","学生","王坤",null,{"$error":"#N/A"},{"$f":"VLOOKUP(B551,[2]Sheet1!$D$2:$F$6737,3,FALSE)","v":"机械与储运工程学院"},{"$f":"VLOOKUP(B551,[2]Sheet1!$D$1:$I$6737,6,FALSE)","v":"李鸿英"},"中国石油大学","煤层气集输管道设计影响因素研究","2016","45","04","840-842","","L"]
["工程热物理学报","赵洪滨","教师","赵洪滨; 齐翔; 曹瑜; 江婷",null,"赵洪滨","机械与储运工程学院",{"$f":"VLOOKUP(B552,[2]Sheet1!$D$1:$I$6737,6,FALSE)","v":{"$error":"#N/A"}},"中国石油大学","采用热电联供技术的原油集输系统供能方案研究","2016","37","05","913-920","国家自然科学基金资助项目(No.5127422)","A"]
["当代化工","陈海宏","学生","陈海宏",null,{"$error":"#N/A"},"机械与储运工程学院","吴长春","中国石油大学(北京)","输气管道（网）系统供气调峰方法概述","2016","45","01","109-111,114","","R"]
["当代化工","陈海宏","学生","陈海宏",null,{"$error":"#N/A"},"机械与储运工程学院","吴长春","中国石油大学(北京)","原油管道运行方案模拟与能耗核算","2016","45","02","311-313,317","","A"]
["当代化工","王旭","学生","王旭",null,{"$error":"#N/A"},"机械与储运工程学院","王德国","中国石油大学(北京)","油气管道断裂扩展及止裂技术研究","2016","45","02","332-335","","A"]
["当代化工","王祺来","学生","王祺来",null,{"$error":"#N/A"},"机械与储运工程学院","宇波","中国石油大学(北京)","石油化工多相管流研究综述及应用","2016","45","02","345-347,351","","R"]
["当代化工","胡洪兵","学生","胡洪兵",null,{"$error":"#N/A"},"机械与储运工程学院","宇波","中国石油大学(北京)","天然气管道泄漏研究现状分析","2016","45","02","352-354","","R"]
["当代化工","高利波","学生","高利波",null,{"$error":"#N/A"},"机械与储运工程学院","张帆","中国石油大学(北京)","油气集输系统节能技术综述","2016","45","02","361-363","","L"]
["中国石油大学学报（自然科学版）","陈勇","学生","陈勇;王淼;刘庆;卓勤功;张学军;陈小兰",null,"张学军",{"$f":"VLOOKUP(F559,[1]Sheet1!$B$2:$C$1437,2,FALSE)","v":"继续教育学院"},null,"中国石油大学","盐效应和共同离子效应对方解石溶解度的影响及其地质意义","2016","40","06","33-39","国家自然科学基金项目(41172111);国家科技重大专项(2016ZX05006-001);中央高校基本科研业务费专项(SD2013211151,16CX05005A)","A"]
["石油实验地质","岳长涛","教师","岳长涛; 李术元; 李林玥; 温海龙",null,"岳长涛","理学院",null,"中国石油大学(北京)","荆门地区页岩储层吸附特征及吸附势理论应用","2016","38","03","346-353","国家自然科学基金(41372152)资助.","A"]
["中国光学快报（英文版）","Jianfeng Xi","学生","息剑峰 ， 赵昆 ， 尼浩 ， 相文峰 ， 肖立志 ",null,"赵昆",{"$f":"VLOOKUP(F561,[1]Sheet1!$B$2:$C$1437,2,FALSE)","v":"理学院"},null,"China University of Petroleum","Near-infrared lateral photovoltaic effect of epitaxial LaTiO3+δ films under high pressure","2016","14","01","93-97","This work was supported by the National 973 Program of China (No.2014CB744302) and the Specially Founded Program on National Key Scientific Instruments and Equipment Development (No.2012YQ140005).","A"]
["催化学报","刘计省","学生","刘计省;刘坚;赵震;宋卫余;韦岳长;段爱军;姜桂元",null,"刘坚",{"$f":"VLOOKUP(F562,[1]Sheet1!$B$2:$C$1437,2,FALSE)","v":"理学院"},null,"中国石油大学(北京)","具有丰富介孔Cu-SAPO-34催化剂制备及其低温氨气选择性催化还原反应","2016","37","05","750-759","This work was supported by the National Natural Science Foundation of China (21376261,21173270), the National High Technology Research and Development Program of China (863 Program,2015AA034603), the Beijing Natural Science Foundation (2142027), and","A"]
["塑料","钱伟","学生","钱伟;郭绍辉;王佳琪;郑德;钱玉英;陈俊",null,"郭绍辉",{"$f":"VLOOKUP(F563,[1]Sheet1!$B$2:$C$1437,2,FALSE)","v":"理学院"},null,"中国石油大学(北京)","亚酰胺类β成核剂制备及对聚丙烯性能的影响","2016","45","02","30-33","","A"]
["分析测试学报","张亚和","学生","张亚和;廖晶;卢鸿;任丽敏;郭绍辉;徐春明;史权",null,"郭绍辉",{"$f":"VLOOKUP(F564,[1]Sheet1!$B$2:$C$1437,2,FALSE)","v":"理学院"},null,"中国石油大学(北京)","石油芳烃组分中未知化合物——三叔丁基苯基磷酸酯的高分辨质谱分析","2016","35","08","1026-1030","中国博士后科学基金(2015M571226);国家自然科学基金青年科学基金(41503032);国家自然科学基金(21236009,21376262)","A"]
["环境科学学报（英文版）","Jixing Liu","学生","Jixing Liu; Fuhong Yu; Jian Liu; Lifeng Cui; Zhen Zhao; Yuechang Wei; Qianyao Sun;",null,"刘坚",{"$f":"VLOOKUP(F565,[1]Sheet1!$B$2:$C$1437,2,FALSE)","v":"理学院"},null,"中国石油大学(北京)","Synthesis and kinetics investigation of meso-microporous Cu-SAPO-34 catalysts for the selective catalytic reduction of NO with ammonia","2016","48","10","45-58","This work was supported by the National Natural Science Foundation of China (Nos.21376261,21173270),the National Hi-Tech Research and Development Program (863) of China (No.2015AA034603),the Beijing Natural Science Foundation (No.2142027),and the Chi","A"]
["高分子材料科学与工程","丛川波","教师","丛川波; 邹功文; 孟晓宇; 周琼",null,"丛川波","理学院",null,"中国石油大学(北京)","氢化丁腈橡胶在高温盐酸中的老化过程","2016","32","03","118-123","国家自然科学基金资助项目(51303211);科学研究与研究生培养共建项目(学科与研究生教育-重点学科-石油天然气安全工程)","A"]
["金属热处理","张建强","学生","张建强;陈长风;郑雁军;李研;王勇围;缪成亮;黄学启",null,"陈长风","理学院",null,"中国石油大学(北京)","厚规格镀锌板表面黑斑缺陷分析","2016","41","04","205-207","","L"]
["高分子科学（英文版）","Hai-mu Ye","教师","叶海木Kai HouQiong Zhou",null,"叶海木","理学院",null,"中国石油大学（北京）","Improve the Thermal and Mechanical Properties of Poly(L-lactide) by Forming Nanocomposites with Pristine Vermlculite","2016","34","01","1-12","This work was financially supported by the National Natural Science Foundation of China (No.21304108) and the Science Foundation of China University of Petroleum-Beijing (No.YJRC-2013-14,2462013BJRC001).","A"]
["合成材料老化与应用","石传明","学生","石传明;孟晓宇;杨礼徳;于安军;丛川波;周琼",null,"孟晓宇","理学院",null,"中国石油大学(北京)","聚醚酰亚胺/氧化石墨烯复合材料的制备与性能","2016","45","01","24-27,94","中国石油大学(北京)人才培养及学术发展基金(NO.00000503);国家自然科学基金(NO.51303211)","A"]
["涂料工业","韩笑","学生","韩笑; 董玉华; 周琼",null,"董玉华","理学院",null,"中国石油大学(北京)","氧化石墨烯/聚偏氟乙烯复合涂层的机械性能与防腐性研究","2016","46","05","1-6","","A"]
["电子显微学报","焦淑静","教师","焦淑静; 张慧; 薛东川",null,"焦淑静","理学院",null,"中国石油大学(北京)","泥页岩样品自然断面与氩离子抛光扫描电镜制样方法的比较与应用","2016","35","06","544-549","国家自然科学基金资助项目(No.41272156);石油化工联合基金资助项目(No.U1262207);油气资源与探测国家重点实验室开放课题资助项目:泥页岩有机质孔隙与成熟度关系研究(No. PRP/open-1304).","A"]
["材料保护","张怀勇","学生","张怀勇; 王帆; 陈长风;邱萍",null,"陈长风","理学院",null,"中国石油大学(北京)","环境友好型冲洗缓蚀剂的防腐蚀性能与机理","2016","49","10","23-26","国家自然科学基金(51301199);中国石油大学(北京)科研基金资助(ZX20130044)资助","A"]
["铸造技术","张建强","学生","张建强;陈长风;郑雁军;张熹;陈延清;张楠;杨建炜;李晓刚",null,"陈长风","理学院",null,"中国石油大学(北京)","K型坡口焊接技术及其在海工钢认证中的应用","2016","37","09","1972-1976","","A"]
["铸造技术","张建强","学生","张建强;陈长风;郑雁军;张建华;王勇围;曹建平;许静;李涛",null,"陈长风","理学院",null,"中国石油大学(北京)","汽车板涂装后漆膜产生点蚀问题研究","2016","37","08","1636-1638","","L"]
["数学进展","陈小民","教师","陈小民",null,"陈小民","理学院",null,"中国石油大学(北京)","关于共形Sasaki流形的注记","2016","45","04","610-624","The author is supported by the Science Foundation of China University of Petroleum—Beijing (No.2462015YQ0604) and partially supported by the Personnel Training and Academic Development Fund (No.2462015QZDX02).","A"]
["计算机应用研究","刘建军","教师","刘建军; 周廷英",null,"刘建军","理学院",null,"中国石油大学","一种基于局部密度的网格排序聚类算法","2016","33","11","3279-3283,3288","国家自然科学基金资助项目（11371371）","A"]
["微纳电子技术","相文峰","教师","相文峰; 蔡天宇; 黄晓炜; 赵重阳; 王鑫",null,"相文峰","理学院",null,"中国石油大学(北京)","NiO纳米线阵列紫外光电特性","2016","53","02","98-101","北京市自然基金资助项目(4142047);北京市青年英才计划资助项目(YETP0684);中国石油大学(北京)优秀青年教师研究项目(ZX20150108)","A"]
["中国物理B（英文版）","Song-Qing Zhao","教师","赵嵩卿；张际蕊；施宏杰；闫坤坤；黄春；杨立敏；杨睿；赵昆",null,"赵嵩卿","理学院",null,"China University of Petroleum","Infrared laser-induced fast photovoltaic effect observed in orthorhombic tin oxide film","2016","25","02","406-409","Project supported by the National Natural Science Foundation of China (Grant No.60877038).","A"]
["内蒙古师范大学学报（自然科学汉文版）","张鹏","教师","张鹏;田思航;袁威;孙华清;彭肖祎;赵嵩卿",null,"张鹏","理学院",null,"中国石油大学(北京)","室内灯光自动控制装置的设计","2016","45","01","36-38,42","国家自然科学基金资助项目(60877038)","S"]
["物理学报","郝娟","学生","郝娟;周广刚;马跃;黄文奇;张鹏;卢贵武",null,"周广刚","理学院",null,"中国石油大学(北京)","高温条件下Ga3PO7晶体热学及声表面波性质的理论研究?","2016","65","11","113101-1-113101-9","国家自然科学基金(批准号:51372140)和中国石油大学(北京)优秀青年教师研究项目(批准号:2462015YQ0603)资助的课题.@@@@* Project supported by the National Nature Science Foundation of China (Grant No.51372140), and China University of Petroleum (Beijing) High","A"]
["润滑与密封","于宪书","学生","于宪书; 高磊; 卢贵武",null,"高磊","理学院",null,"中国石油大学(北京)","基于太赫兹时域光谱的汽车发动机油低温性能研究?","2016","41","12","26-30,51","教育部留学归国科研启动基金项目;中国石油大学(北京)优秀青年教师研究项目(2462015YQ0603)","A"]
["化学分析计量","王芳","教师","王芳; 王海峰; 徐建; 王茜; 史乃捷",null,"王芳","理学院",null,"中国石油大学(北京)","高温燃烧水解-离子色谱法测定煤中的氟和氯","2016","25","04","27-30","国家质量监督检验检疫总局公益性行业科研专项(21-AHY1015)","A"]
["光谱学与光谱分析","衣玲学","学生","衣玲学; 高磊; 赵丽君; 姜晨; 赵昆",null,"高磊","理学院",null,"中国石油大学(北京)","邻苯二甲酸二丁酯中红外吸收光谱的理论分析及检测","2016","36","09","2789-2792","教育部留学回国人员科研启动基金项目和中国石油大学(北京)优秀青年教师研究项目(2462015YQ0603)资助","A"]
["中国物理B（英文版）","Ri-Ma Bao","教师","宝日玛詹洪磊苗昕扬赵昆冯程静董晨李羿璋肖立志",null,"宝日玛","理学院",null,"China University of Petroleum","Terahertz-dependent identification of simulated hole shapes in oil-gas reservoirs","2016","25","10","26-30","Project supported by the National Natural Science Foundation of China (Grant No.61405259),the National Basic Research Program of China (Grant No.2014CB744302),and the Specially Founded Program on National Key Scientific Instruments and Equipment Deve","A"]
["人工晶体学报","宋庆翔","学生","宋庆翔;张鹏;马跃;周广刚;郑超;王新强;卢贵武",null,"张鹏","理学院",null,"中国石油大学(北京)","ZCSC和CMSC晶体热学性质的理论研究","2016","45","09","2173-2178","国家自然科学基金(51372140);中国石油大学(北京)优秀青年教师研究项目(2462015YQ0603)","A"]
["人工晶体学报","周广刚","教师","周广刚; 刘思杰; 郝娟;黄文奇; 卢贵武",null,"周广刚","理学院",null,"中国石油大学,(北京)","不同温度下KTP晶体的声表面波特性研究","2016","45","12","2747-2751","国家自然科学基金(51372140);中国石油大学(北京)优秀青年教师研究项目(2462015YQ0603)","A"]
["物理与工程","陈少华","教师","陈少华; 刘艳敏; 冷文秀; 张国林",null,"陈少华","理学院",null,"中国石油大学(北京)","利用不对称三线摆测量不规则物体的转动惯量","2016","26","06","57-60","感谢中国石油大学(北京)优秀青年教师研究项目(2462015YQ0603)和校级教改项目对本文的资助.","A"]
["物理与工程","冷文秀","学生","冷文秀; 张默; 贺艳丽;钟寿仙; 陈少华",null,"冷文秀","理学院",null,"中国石油大学(北京)","安培力演示仪的设计与制作","2016","26","05","37-39","中国石油大学(北京)优秀青年教师研究项目(2462015YQ0603).","L"]
["物理与工程","陈映桥","学生","陈映桥; 张鹏; 左翼; 宋庆翔; 张瑛",null,"张鹏","理学院",null,"中国石油大学(北京)","环保型教室座椅发电装置","2016","26","05","93-96","","A"]
["现代科学仪器","赵嵩卿","教师","赵嵩卿；张际蕊；杨睿；  施宏杰； 刘义；白兴；杨立敏",null,"赵嵩卿","理学院",null,"中国石油大学(北京)","掺杂氧化锌薄膜的红外激光感生电压效应研究进展","2016","NULL","02","13-17","国家自然科学基金资助课题,项目编号:60877038;中国石油大学(北京)创新班教改项目资助.","R"]
["环境工程学报","张敏","学生","张敏;宋昭峥;孙珊珊;张志勇;穆红岩;赵立平;李永峰;张忠智",null,"宋昭峥","理学院",null,"中国石油大学(北京)","微纳米气浮技术用于炼化污水的深度处理","2016","10","02","599-603","国家自然科学基金面上项目(51474223,41172333)","A"]
["环境工程学报","张敏","学生","张敏;宋昭峥;孙珊珊;张志勇;穆红岩;李永峰;张忠智",null,"宋昭峥","理学院",null,"中国石油大学(北京)","改进型A/O生物膜工艺在油田污水达标外排中的应用","2016","10","03","1035-1040","国家自然科学基金资助项目(51474223,41172333)","A"]
["催化学报","靳保芳","学生","靳保芳;韦岳长;赵震;刘坚;姜桂元;段爱军",null,"韦岳长","理学院",null,"中国石油大学(北京)","松散接触下 Au-Ce强相互作用对 Au/CeO2/3DOM Al2O3催化剂催化柴油炭烟燃烧活性的影响","2016","37","06","923-933","This work was supported by the National Natural Science Foundation of China (21477146,21303263), the National High Technology Research and Development Program of China (863 Program,2015AA034603), Beijing Nova Program (Z141109001814072), the Specializ","A"]
["石油炼制与化工","颜曦明","学生","颜曦明; 柯明; 蒋庆哲; 宋昭峥",null,"柯明","理学院",null,"中国石油大学(北京)","磷酸处理提高Hβ催化剂低温醚化活性的研究","2016","47","03","48-53","","A"]
["石油化工","刘强","学生","刘强; 柯明; 于沛; 胡海强; 宋昭峥",null,"柯明","理学院",null,"中国石油大学(北京)","氧化锆负载型活性炭催化水解COS和CS2","2016","45","05","552-558","","A"]
["石油化工","于沛","学生","于沛; 柯明; 刘强; 颜曦明",null,"柯明","理学院",null,"中国石油大学(北京)","CoMo/γ-Al2O3选择性加氢脱硫催化剂上硫醇的生成反应","2016","45","06","691-696","","A"]
["化学通报（印刷版）","丁巍","学生","丁巍;王鼎聪;赵德智;柯明;王拓;段林海",null,"柯明","理学院",null,"中国石油大学(北京)","模板剂在合成纳米材料中的应用与发展","2016","79","06","490-495","国家自然科学基金项目(21476101)和中国石油化工集团项目(030801)资助","A"]
["石油炼制与化工","于沛","学生","于沛; 柯明; 李建鹏; 胡海强",null,"柯明","理学院",null,"中国石油大学(北京)","La 对 CoMo/γ-Al2O3催化剂选择性加氢脱硫性能的影响","2016","47","08","13-19","","A"]
["油田化学","杨春鹏","学生","杨春鹏;胡智渊;宋昭峥;张园;姚德猛;何江;蒋庆哲",null,"胡智渊","理学院",null,"中国石油大学(北京)","一种含PEO基双子表面活性剂压裂液的性能评价","2016","33","03","412-415","","A"]
["中国石油大学学报（自然科学版）","颜曦明","学生","颜曦明; 柯明; 宋昭峥; 蒋庆哲; 于沛",null,"柯明","理学院",null,"中国石油大学(北京)","柠檬酸改善Hβ沸石低温醚化活性研究","2016","40","04","154-160","国家自然科学基金项目(21276276)","A"]
["能源化学","Lian Kong","学生","Lian KongJianmei LiQinglong LiuZhen ZhaoQianyao SunJian LiuYuechang Wei",null,"赵震","理学院",null,"中国石油大学(北京)","Promoted catalytic performances of highly dispersed V-doped SBA-16 catalysts for oxidative dehydrogenation of ethane to ethylene","2016","25","04","577-586","This work was financially supported by the Natural Science Foundation of China (91545117),the National Basic Research Program of China (Grant No.2012CB215001) and Scientific Research Foundation of China University of Petroleum Beijing (Grant Nos.2462","A"]
["太赫兹科学与电子信息学报","王丹丹","学生","王丹丹;詹洪磊;苗昕扬;姜晨;宋艳;管丽梅;赵昆",null,"詹洪磊","理学院",null,"中国石油大学(北京)","油气水界面的太赫兹频谱","2016","14","06","848-852,859","国家重大科学仪器开发专项基金资助项目(2012YQ140005);国家自然科学基金资助项目(11574401);中国石油和化学工业联合会科技指导计划资助项目(2016-01-07)","A"]
["光电子学前沿","Ning LI","学生","Ning Li, Honglei Zhan,  Kun Zhao, Zhenwei Zhang, Chenyu Li, Cunlin Zhang",null,"詹洪磊","理学院",null,"中国石油大学(北京)","Characterizing PM2.s in Beijing and Shanxi Province using terahertz radiation","2016","09","04","544-548","This work was supported by the National Basic Research Program of China (No.2014CB744302),the Specially Funded Program on National Key Scientific Instruments and Equipment Development (No.2012YQ140005),and the National Natural Science Foundation of C","A"]
["中国科学（物理学 力学 天文学）","祝静","学生","祝静; 詹洪磊; 赵昆; 孙为",null,"詹洪磊","理学院",null,"中国石油大学(北京)","非常规油气资源太赫兹技术表征与评价","2016","46","08","1-9","国家重大科学仪器设备开发专项(编号:2012YQ140005-10)和国家自然科学基金(编号:11574401)资助项目","A"]
["当代化工","朱煜凯","学生","朱煜凯",null,{"$error":"#N/A"},"理学院","李术元","中国石油大学(北京)","摩洛哥油页岩在SJ型方炉中干馏过程的平衡计算","2016","45","08","1858-1859,1866","","L"]
["天然气工业","安永生","教师","安永生; 曹孟京; 兰义飞; 高月",null,"安永生","石油工程学院",null,"中国石油大学(北京)","井下节流气井的生产动态模拟新方法","2016","36","04","55-59","北京市自然科学青年基金项目“粗糙壁微型水平井筒气液两相流动机理研究”(编号:3154039)、北京市青年英才计划项目“超短半径径向水平井井筒与油藏耦合模型研究”(编号:YETP0673).","A"]
["石油钻采工艺","陈斌","学生","陈斌; 赵雄虎; 李外; 李书炼",null,"赵雄虎","石油工程学院",null,"中国石油大学(北京)","纳米技术在钻井液中的应用进展","2016","38","03","315-321","","R"]
["爆炸与冲击","田守嶒","教师","田守嶒;张启龙;李根生;贺振国;刘晗;刘欣然",null,"田守嶒",{"$f":"VLOOKUP(F608,[1]Sheet1!$B$2:$C$1437,2,FALSE)","v":"石油工程学院"},null,"中国石油大学(北京)","超临界CO2直旋混合射流破岩特性的实验研究","2016","36","02","189-197","国家自然科学基金项目(51210006,51490652);国家科技重大专项项目(2011ZX05009-005);国家重点基础研究发展计划(973计划)项目(2014CB239203)","A"]
["爆炸与冲击","刘静华","学生","刘静华; 韩国庆; 景紫岩",null,"韩国庆",{"$f":"VLOOKUP(F609,[1]Sheet1!$B$2:$C$1437,2,FALSE)","v":"石油工程学院"},null,"中国石油大学(北京)","低渗透油藏爆炸压裂产能分析及压裂改造区域优化设计","2016","36","02","224-229","","A"]
["地质与勘探","周劲辉","教师","周劲辉;张勇;高德利;浦世雄;王睿博;韦帮伟",null,"周劲辉","石油工程学院",null,"中国石油大学(北京)","泵注反循环岩屑粒径对最低排量的影响实验","2016","52","01","159-164","国家自然科学基金创新研究群体项目(51221003)、国家863主题项目“致密气藏高效钻井技术研究”(2013AA064803)和联合基金项目“页岩气钻探中的井壁稳定及高效钻完井基础研究”(U1262201)联合资助.","A"]
["石油钻探技术","房军","教师","房军; 韩晓菲; 王宴滨; 熊超",null,"房军","石油工程学院",null,"中国石油大学(北京)","连续管可控偏心垫块BHA滑动钻进导向性能分析","2016","NULL","01","44-48","国家自然科学基金创新研究群体项目“复杂油气井优化设计与钻完井控制基础研究”（编号51221003）和国家科技重大专项“复杂结构井优化设计与控制关键技术”（编号2011ZX05009005）资助。","A"]
["力学学报","赵海峰","教师","赵海峰; 石俊; 王斌斌",null,"赵海峰","石油工程学院",null,"中国石油大学(北京)","海上浮油定位浮标的力学分析与尺寸优化","2016","48","01","235-242","中国石油大学(北京)科研基金资助项目(ZX20150191).","A"]
["石油化工高等学校学报","车阳","学生","车阳; 周劲辉; 吴寒; 程家麒",null,"周劲辉","石油工程学院",null,"中国石油大学(北京)","泵注反循环钻井循环压耗实验研究","2016","29","02","27-31","国家自然科学基金创新研究群体项目(51221003);国家863主题项目“致密气藏高效钻井技术研究”(2013AA064803);联合基金项目“页岩气钻探中的井壁稳定及高效钻完井基础研究”(U1262201)。","A"]
["天然气地球科学","赵海峰","教师","赵海峰; 蒋迪; 石俊",null,"赵海峰","石油工程学院",null,"中国石油大学(北京)","致密砂岩气藏缝网系统渗流力学和岩石断裂动力学","2016","27","02","346-351","国家科技重大专项课题(编号:2016ZX05009-004);中国石油大学(北京)基金(编号:ZX20150191)联合资助.","A"]
["石油机械","史怀忠","教师","史怀忠; 李根生; 黄中伟; 武晓光; 管序荣",null,"史怀忠","石油工程学院",null,"中国石油大学(北京)","水力喷射压裂用喷嘴耐冲蚀试验方法研究","2016","44","12","83-86","国家自然科学基金项目“连续油管调制局部欠平衡钻井水力特性研究”(51474232);江苏省科技成果转化专项资金资助项目“油气钻井用水力脉冲空化射流发生装置关键技术研发及产业化”(BA2014131).","A"]
["石油化工高等学校学报","孙逢瑞","学生","孙逢瑞; 李春兰; 邹明; 李乾",null,"李春兰","石油工程学院",null,"中国石油大学(北京)","过热蒸汽吞吐直井产能预测模型","2016","29","04","25-28","国家十三五科技重大专项(2016ZX05031-004-004);中国石油勘探开发研究院科技项目(KMK 热采机理及技术政策优化研究)。","A"]
["特种油气藏","高旺来","教师","高旺来",null,"高旺来","石油工程学院",null,"中国石油大学(北京)","绝对渗透率对相对渗透率及其应用的影响","2016","23","03","126-128","国家“973”项目“致密油气开发系统评价理论与方法研究”(2015CB250905)","L"]
["石油机械","房军","教师","房军; 王正旭; 贾朋; 苏义脑",null,"房军","石油工程学院",null,"中国石油大学(北京)","往复增流式井下压力信号发生器模型及特性分析?","2016","44","10","11-16","国家自然科学基金项目“井下钻井液往复控制连续波信号的产生特性研究”（51474230）。","A"]
["天然气地球科学","王伟明","学生","王伟明;卢双舫;李杰;田伟超;周能武;黄文彪",null,"李杰","石油工程学院",null,"中国石油大学","致密砂岩储层微观孔隙特征评价--以中国吐哈盆地为例","2016","27","10","1828-1836","国家自然科学基金(编号:41302103;41330313;41672125);中国石油科技创新基金项目(编号:2014D-5006-0107);中央高校基本科研业务费专项联合资助．","A"]
["科技导报","田冷","教师","田冷;肖聪;刘明进;顾岱鸿;李翔龙;宋广宇;丁道权",null,"田冷","石油工程学院",null,"中国石油大学(北京)","考虑应力干扰的页岩储层裂缝穿透准则","2016","34","02","167-172","国家自然科学基金项目(51024197)","R"]
["油气地质与采收率","兰朝利","教师","兰朝利; 廖保方; 王志坤; 刘丹江; 杨明慧",null,"兰朝利","石油工程学院",null,"中国石油大学(北京)","南堡滩海潜山古岩溶发育特征及模式","2016","23","02","35-41","国家科技重大专项“滩海油气田高效开发技术”(2008ZX05015).","A"]
["测井技术","邹杰","学生","邹杰; 周晓峰; 李双",null,"周晓峰","石油工程学院",null,"中国石油大学(北京)","低渗透储层孔隙结构常规测井识别方法","2016","40","02","175-179","","A"]
["地质学报","兰朝利","教师","兰朝利; 郭伟; 王奇; 张欣",null,"兰朝利","石油工程学院",null,"中国石油大学（北京）","鄂尔多斯盆地东部二叠系山西组页岩气成藏条件与有利区筛选","2016","90","01","177-188","本文为国家科技计划“973”项目(编号2013CB228000)和中国石油大学(北京)基金项目(编号KYJJ2012-02-12)资助成果.","A"]
["西安石油大学学报（自然科学版）","兰朝利","教师","兰朝利; 王奇; 张欣",null,"兰朝利","石油工程学院",null,"中国石油大学(北京)","彭阳油田长3段成藏条件与成藏规律","2016","31","02","1-10","国家自然基金项目（编号41172127）；中国石油天然气集团公司石油科技中青年创新基金项目（编号04E7023）","A"]
["西安石油大学学报（自然科学版）","周晓峰","教师","周晓峰; 赵丽霞; 焦淑静; 刘志鹏",null,"周晓峰","石油工程学院",null,"中国石油大学(北京)","鄂尔多斯盆地致密砂岩储层伊利石膜特征","2016","31","06","1-8,103","国家科技重大专项“特低渗油藏有效开发技术”(编号:2011ZX05013-006)","A"]
["河北工程大学学报（自然科学版）","刘广峰","教师","刘广峰; 潘少杰; 樊建明; 王文举; 白耀星",null,"刘广峰","石油工程学院",null,"中国石油大学(北京)","吴起长8储层粘土矿物及敏感性实验研究","2016","33","04","83-88","国家自然科学基金资助项目(51404282);中国石油科技创新基金资助项目(2014D-5006-0215);中国石油大学(北京)科研基金资助项目(2462015YQ0217)","A"]
["科学技术与工程","田冷","教师","田冷; 牟微; 王猛",null,"田冷","石油工程学院",null,"中国石油大学(北京)","有水气藏开发早期动态储量计算方法研究","2016","16","15","179-183","国家自然科学基金(51204193)资助","A"]
["天然气地球科学","顾岱鸿","教师","顾岱鸿; 崔国峰; 刘广峰; 丁道权",null,"顾岱鸿","石油工程学院",null,"中国石油大学(北京)","多层合采气井产量劈分新方法","2016","27","07","1346-1351","国家科技重大专项“特低渗油藏有效开发技术”(编号:2011ZX05013-006)资助．","A"]
["中国石油大学学报（自然科学版）","周晓峰","教师","周晓峰; 王建国; 兰朝利; 代金友",null,"周晓峰","石油工程学院",null,"中国石油大学(北京)","鄂尔多斯盆地延长组绿泥石膜的形成机制","2016","40","04","20-28","国家科技重大专项(2011ZX05013-006);中国石油大学(北京)科研基金项目(KYJJ2012-02-46)","A"]
["科技导报","周晓峰","学生","周晓峰; 刘丽丽; 王建国; 代金友; 兰朝利",null,"周晓峰","石油工程学院",null,"中国石油大学(北京)","鄂尔多斯盆地延长组开阔浅水湖泊风暴沉积","2016","34","18","203-208","中国石油大学(北京)科研基金项目(KYJJ2012-02-46);国家科技重大专项(2011ZX05013-006)","A"]
["东北石油大学学报","田冷","教师","田冷;申智强;王猛;潘少杰;肖聪;董力珲",null,"田冷","石油工程学院",null,"中国石油大学(北京)","基于滑脱、应力敏感和非达西效应的页岩气压裂水平井产能模型","2016","40","06","106-113","国家自然科学基金项目(U1562102);中国石油大学(北京)基金项目(2462015YQ0218)","A"]
["科学技术与工程","代金友","教师","代金友; 姚静; 高青松;刘绪刚",null,"代金友","石油工程学院",null,"中国石油大学,(北京)","柳杨堡气田太2气藏气水分布规律及其主控因素研究","2016","16","32","208-214","国家重大专项(2008ZX05009-004-03)、中国石油大学(北京)基金(2462015YQ0214)资助","A"]
["现代化工","张领宇","学生","张领宇; 蒋官澄; 安玉秀",null,"蒋官澄","石油工程学院",null,"中国石油大学(北京)","钻井液用超分子增黏提切剂-ZJA的研发与评价","2016","36","01","131-135","国家863主题项目(2013AA064803);国家自然科学基金重点支持项目(U1262201);中石油集团公司重点项目(2014D-4407);中石油集团公司重大基础研究项目(2014A-4212)","A"]
["天然气工业","郑力会","教师","郑力会; 陈必武; 张峥; 汤继丹; 孙昊",null,"郑力会","石油工程学院",null,"中国石油大学(北京)","煤层气绒囊钻井流体的防塌机理","2016","36","02","72-77","国家自然科学基金创新研究群体项目“复杂油气井钻井与完井基础研究”(编号:51221003)、国家科技重大专项课题“煤层气钻完井及增产改造技术示范工程”(编号:2016ZX05064002-002).","A"]
["天然气工业","宣扬","学生","宣扬;蒋官澄;李颖颖;陈俊斌;欧阳伟;罗陶涛;宋然然",null,"蒋官澄","石油工程学院",null,"中国石油大学(北京)","环保型高效页岩抑制剂聚赖氨酸的制备与评价","2016","36","02","84-91","国家高技术研究发展计划(863计划)项目课题(编号:2013AA064803)、中国石油天然气集团公司科学研究与技术开发项目“重大钻井技术集成配套与装备现场试验”(编号:2014D-4407)、国家自然科学基金创新研究群体科学基金(编号:51221003)、国家自然科学基金面上项目(编号:514742","A"]
["石油机械","张毅","学生","张毅; 李根生; 史怀忠; 韦明辉",null,"李根生","石油工程学院",null,"中国石油大学(北京)","水力脉冲射流压力波动特性规律研究","2016","NULL","02","17-22","国家自然科学基金项目“连续油管调制局部欠平衡钻井水力特性研究”（51474232）。","A"]
["石油机械","彭齐","学生","彭齐;樊洪海;纪荣艺;周号博;赖敏斌;罗顺;付随艺",null,"樊洪海","石油工程学院",null,"中国石油大学(北京)","无隔水管钻井技术临界排量分析?","2016","NULL","02","48-52","国家自然科学基金项目“高压气井内高速流体诱发生产管柱振动特性研究”（51274219）。","A"]
["岩土工程学报","侯冰","教师","侯冰;谭鹏;陈勉;袁亮;熊振宇;许超兰",null,"侯冰","石油工程学院",null,"中国石油大学(北京)","致密灰岩储层压裂裂缝扩展形态试验研究","2016","NULL","02","219-225","国家自然科学基金项目（51204195，51490651，51234006）；北京青年英才计划（YETP0672）；中国石油大学（北京）科研基金项目（2462015YQ0203）","A"]
["石油钻探技术","翁定为","学生","翁定为; 付海峰; 卢拥军; 郑力会; 马建军",null,"郑力会","石油工程学院",null,"中国石油大学(北京)","储层改造体积预测模型的研究与应用","2016","NULL","01","95-100","国家科技重大专项课题“低渗、特低渗油气储层高效改造关键技术”（编号2011ZX05013003）和中国石油天然气股份公司重大专项课题“复杂岩性高应力储层研究与应用”（编号2013E3309）部分研究成果。","A"]
["油田化学","叶艳","教师","叶艳; 尹达; 张謦文; 李磊; 任玲玲",null,"叶艳","石油工程学院",null,"中国石油大学(北京)","超微粉体加重高密度油基钻井液的性能","2016","33","01","9-13","中石油科技创新基金“页岩气作业含油废物低能深度脱附机及处理技术研究(项目编号2015D-5006-0306);国家自然学科基金创新研究群体项目(项目编号51521063)和塔里木油田项目“克深6区块开发初期全过程储层保护技术研究”(项目编号20104120026).","A"]
["特种油气藏","陈子剑","学生","陈子剑; 邓金根; 蔚宝华",null,"邓金根","石油工程学院",null,"中国石油大学(北京)","探井孔隙压力复合预测方法研究","2016","23","01","25-27,145","国家自然科学基金“气体钻井井壁失稳与井眼净化机理研究”（51134004）","A"]
["岩土力学","黄中伟","教师","黄中伟; 位江巍; 李根生; 蔡承政",null,"黄中伟","石油工程学院",null,"中国石油大学(北京)","液氮冻结对岩石抗拉及抗压强度影响试验研究","2016","37","03","694-700,834","国家自然科学基金国际(地区)合作与交流项目“页岩气藏水平井完井与多级压裂增产的基础研究”(No.51210006);国家自然科学基金项目“液氮喷射射孔-压裂可行性试验研究”(No.51374220);教育部“新世纪优秀人才支持计划”资助(No.NCET-12-097).This work was supported by t","A"]
["石油机械","陈亮帆","学生","陈亮帆; 高德利; 赵宁",null,"高德利","石油工程学院",null,"中国石油大学(北京)","水平井牵引器系统力学研究?","2016","44","05","66-70","国家自然科学基金创新群体项目“复杂油气井钻井与完井基础研究”（51521063）；国家科技重大专项“复杂结构井优化设计与控制关键技术”（2011ZX05009－005）。","A"]
["石油学报","刘奎","学生","刘奎; 王宴滨; 高德利; 李星君; 张勇",null,"王宴滨","石油工程学院",null,"中国石油大学(北京)","页岩气水平井压裂对井筒完整性的影响","2016","37","03","406-414","国家自然科学基金创新研究群体项目(No.51221003)、国家重大科技专项(2016ZX05009-005)和中国石油天然气集团公司科技项目(2014A4214)资助.","A"]
["天然气工业","刘伟","教师","刘伟; 黄擎宇; 王坤; 石书缘; 姜华",null,"刘伟","石油工程学院",null,"中国石油大学(北京)","塔里木盆地热液特点及其对碳酸盐岩储层的改造作用","2016","36","03","14-21","国家科技重大专项(编号:2011ZX05004-001)、中国石油天然气股份有限公司重大科技专项(编号:2014E-32-01).","A"]
["科学技术与工程","王治法","学生","王治法; 蒋官澄; 刘贵传",null,"蒋官澄","石油工程学院",null,"中国石油大学(北京)","新型钻固一体化潜活性材料性能研究及应用","2016","16","06","162-167","国家863课题(2006AA06Z243)、国家自然科学创新研究群体(51221003)资助","A"]
["天然气与石油","李军","教师","李军; 张宏",null,"李军","石油工程学院",null,"中国石油大学(北京)","城镇燃气管道第三方破坏因素的模糊概率分析","2016","34","02","109-114","国家自然科学基金项目(51534008)","A"]
["石油勘探与开发","蒋官澄","教师","蒋官澄; 贺垠博; 黄贤斌; 邓正强; 覃勇",null,"蒋官澄","石油工程学院",null,"中国石油大学(北京)","基于超分子技术的高密度无黏土油基钻井液体系","2016","43","01","131-135","国家自然科学创新研究群体项目“复杂油气井钻井与完井基础研究”(51221003);国家高技术研究发展计划(863)项目“致密气藏高效钻井技术研究”(2013AA064803);中国石油化工联合基金重点支持项目“页岩气钻探中的井壁稳定及高效钻完井基础研究”(U1262201);中国石油天然气集","A"]
["应用力学学报","王宴滨","教师","王宴滨; 高德利; 房军",null,"王宴滨","石油工程学院",null,"中国石油大学(北京)","深水钢悬链线立管疲劳寿命计算方法","2016","33","02","352-357","国家自然科学基金创新研究群体项目(51521063)","A"]
["石油机械","刁斌斌","教师","刁斌斌; 高德利; 岑兵; 周聪",null,"刁斌斌","石油工程学院",null,"中国石油大学(北京)","双水平井随钻磁导向系统井下磁源设计?","2016","44","04","106-111","国家科技重大专项“复杂结构井、丛式井设计与控制新技术”（2016ZX05009－005）；国家自然科学基金创新研究群体项目“复杂油气井钻井与完井基础研究”（51221003）；国家自然科学基金项目“复杂条件下磁定位导向钻井技术的理论和方法研究”（51304221）。","A"]
["石油机械","耿智","学生","耿智; 陈勉; 金衍; 方欣; 景宁",null,"陈勉","石油工程学院",null,"中国石油大学(北京)","基于地震解释资料的水平井轨道优化设计方法","2016","44","09","1-5","国家自然科学基金重大项目“页岩非线性工程地质力学特征与预测理论”（51490651）。","A"]
["应用力学学报","王宴滨","教师","王宴滨; 高德利; 房军",null,"王宴滨","石油工程学院",null,"中国石油大学","深水钻井隔水管在平台升沉运动下的参激振动响应分析","2016","33","06","996-1001","国家自然科学基金创新研究群体项目(51521063)","A"]
["特种油气藏","席岩","学生","席岩; 李军; 柳贡慧; 付永强; 李玉梅",null,"李军","石油工程学院",null,"中国石油大学(北京)","页岩储层各向异性对套管应力影响敏感性研究","2016","23","06","128-132","中国石油天然气股份有限公司西南油气田分公司项目“威远长宁页岩气水平井固井质量对井筒完整性的影响”(XNS21JS2014-04)、“大兴场构造钻完井工艺技术研究(实验检验)”(XNS05JS2015-37)","A"]
["石油机械","李军","教师","李军; 何淼; 柳贡慧; 段永贤; 陈军",null,"李军","石油工程学院",null,"中国石油大学(北京)","控压钻井起下钻钻井液帽优化设计","2016","44","12","21-24","国家自然科学基金重点项目“控压钻井测控理论及关键问题研究”(51334003);国家自然科学基金面上项目“深层碳酸盐岩地层与井筒耦合作用机理与压力自动控制方法研究”(51274221)、“控压钻井井筒多相流体瞬态变质量流动理论及工况解释方法研究”(51274045).","A"]
["科技导报","王治法","学生","王治法; 蒋官澄; 林永学; 杨帆",null,"蒋官澄","石油工程学院",null,"中国石油大学(北京)","美国页岩气水平井水基钻井液研究与应用进展","2016","34","23","43-50","国家自然科学基金创新研究群体项目(51221003);中石化集团公司科技部项目(P13146)","R"]
["中国石油大学学报（自然科学版）","黄中伟","教师","黄中伟; 蔡承政; 李根生; 田守嶒",null,"黄中伟","石油工程学院",null,"中国石油大学","液氮磨料射流流场特性及颗粒加速效果研究","2016","40","06","80-86","国家自然科学基金项目(51374220,51604263);油气资源与探测国家重点实验室开放课题(PRP/open-1507);中国博士后科学基金项目(2016M590523)","A"]
["中国石油大学学报（自然科学版）","梁明","学生","梁明;蒋福山;范维玉;辛雪;李军;王琼;罗辉;南国枝",null,"李军","石油工程学院",null,"中国石油大学","PE分子结构对改性沥青黏弹性能及微观结构的影响","2016","40","06","170-177","中央高校基本科研业务费专项(24720156046A);中国石油大学研究生创新工程项目(15CX06046A)","A"]
["钻井液与完井液","郑力会","教师","郑力会;魏攀峰;楼宣庆;孙昊;付毓伟;聂帅帅",null,"郑力会","石油工程学院",null,"中国石油大学(北京)","氯化钾溶液浓度影响页岩气储层解吸能力室内实验","2016","33","03","117-122","国家自然科学基金创新研究群体项目“复杂油气井钻井与完井基础研究”(51221003)、国家科技重大专项课题“‘三气’合采钻完井技术与储层保护”(2016ZX05066002).","A"]
["石油钻探技术","邓勇","学生","邓勇; 陈勉; 金衍; 邹代武",null,"陈勉","石油工程学院",null,"中国石油大学(北京)","冲击作用下岩石破碎的动力学特性及能耗特征研究","2016","44","03","27-32","国家杰出青年科学基金项目“石油工程岩石力学”（编号51325402）资助。","A"]
["石油钻探技术","李志勇","教师","李志勇; 李鸿飞; 张立新; 韦火云; 李岩",null,"李志勇","石油工程学院",null,"中国石油大学(北京)","大牛地气田新型防塌钻井液研究及应用","2016","44","03","39-43","国家科技重大专项“易漏易塌地层钻完井及储层保护技术研究”（编号2016ZX05044）、国家自然科学基金项目“低渗裂缝性砂岩凝析气藏损害机理及有效保护开发一体化新方法研究”（编号51374225）、国家留学基金（编号CSC No ．201506445008）和校优秀青年教师基金项目“封堵","A"]
["煤炭科学技术","郑力会","教师","郑力会; 刘俊英; 滑志超; 李宗源; 张峥",null,"郑力会","石油工程学院",null,"中国石油大学(北京)","马壁区块复杂结构煤体的煤层气绒囊钻井液研究","2016","44","05","79-83","国家科技重大专项资助项目(2016ZX05064002)","A"]
["水力发电","薛亮","教师","薛亮; 夏强",null,"薛亮","石油工程学院",null,"中国石油大学(北京)","贝叶斯多模型分析方法的对比研究","2016","42","04","31-35,40","国家自然科学基金资助项目(41402199,41502237);中国石油大学(北京)引进人才科研启动基金项目(2462014YJRC038);油气资源与探测国家重点实验室青年人才培育课题(PRP/indep-4-1409)","A"]
["石油学报","黄贤斌","学生","黄贤斌; 蒋官澄; 万伟; 马克迪",null,"蒋官澄","石油工程学院",null,"中国石油大学(北京)","含油钻屑微乳状液除油剂的研制及机理","2016","37","06","815-820","国家自然科学创新研究群体项目“复杂油气井钻井与完井基础研究”(No.51221003)、国家高技术研究发展计划(863)项目“海上大位移井水平井钻井液关键技术研究”(2012AA091502)、国家高技术研究发展计划(863)项目“致密气藏高效钻井技术研究”(2013AA064803)资助.","A"]
["岩土工程学报","杨顺吉","学生","杨顺吉; 李军; 柳贡慧",null,"李军","石油工程学院",null,"中国石油大学(北京)","气体钻井低温破岩机理分析","2016","38","08","1466-1472","国家自然科学基金面上项目（51274220）","A"]
["石油机械","范明涛","学生","范明涛;柳贡慧;李军;郭雪利;何淼;李梦博",null,"李军","石油工程学院",null,"中国石油大学(北京)","页岩气井温压耦合下固井质量对套管应力的影响?","2016","44","08","1-5","国家自然科学基金重点项目“控压钻井测控理论及关键问题研究”（51334003）；中国石油科技创新基金研究项目“面向页岩气体积压裂的分簇射孔技术研究”（2012D－5006－0303）；中国石油西南油气田公司页岩气开发事业部科研项目“威远长宁页岩气水平井固井质量对井筒完整 ","A"]
["石油钻探技术","彭齐","学生","彭齐; 樊洪海; 刘劲歌; 韩付鑫; 付随艺",null,"樊洪海","石油工程学院",null,"中国石油大学(北京)","起下钻过程中井筒稳态波动压力计算方法","2016","44","04","35-40","国家自然科学基金项目“高压气井内高速流体诱发生产管柱振动特性研究”(编号:51274219)部分研究内容。","A"]
["石油钻探技术","邓勇","学生","邓勇; 陈勉; 金衍; 卢运虎; 邹代武",null,"陈勉","石油工程学院",null,"中国石油大学(北京)","冲击作用下岩石裂纹长度预测模型及数值模拟研究","2016","44","04","41-46","国家杰出青年科学基金项目“石油工程岩石力学”(编号:51325402)资助。","A"]
["中国海上油气","孙金","学生","孙金;邓金根;蔚宝华;刘凯铭;王厚东;汪伟;鹏程",null,"邓金根","石油工程学院",null,"中国石油大学(北京)","注水开发油藏温度对地应力的影响研究","2016","28","04","100-106","十二五”国家科技重大专项“复杂结构井优化设计与控制关键技术(编号:2011ZX05009-005)”部分研究成果.","A"]
["石油学报","韩树","学生","韩树;李根生;黄中伟;田守嶒;宋先知;杨睿月",null,"李根生","石油工程学院",null,"中国石油大学(北京)","连续油管带筛管侧钻多分支井双重环空携岩能力实验","2016","37","08","1053-1060","国家重大科技专项(2011ZX05037-001)资助.","A"]
["石油学报","高佳佳","学生","高佳佳;邓金根;闫伟;冯于恬;王厚东;李扬",null,"邓金根","石油工程学院",null,"中国石油大学(北京)","基于井壁稳定控制的井眼轨迹优化预测模型","2016","37","09","1179-1186","国家自然科学基金项目“压裂液作用下页岩储层的摩擦特性及其对缝网形成的影响”(No.51504267)和国家自然科学基金项目“页岩气钻探中的井壁稳定及高效钻完井基础研究”(U1262201)资助.","A"]
["中国石油大学学报（自然科学版）","杨顺吉","学生","杨顺吉; 李军; 柳贡慧",null,"李军","石油工程学院",null,"中国石油大学(北京)","气体钻井井底低温对岩石破碎的影响机制","2016","40","04","90-95","国家自然科学基金项目(51274220)","A"]
["中国石油大学学报（自然科学版）","何淼","学生","何淼; 柳贡慧; 李军; 熊超; 游子卫",null,"李军","石油工程学院",null,"中国石油大学(北京)","控压钻井井控过程中排量优化设计","2016","40","04","96-103","国家自然科学基金项目(51334003,51274221,51274045,51374223)","A"]
["中国安全生产科学技术","李军","教师","李军;张宏;梁海滨;赵琪棋;任乐梅;焦文玲",null,"李军","石油工程学院",null,"中国石油大学(北京)","基于模糊综合评价的燃气管道第三方破坏失效研究","2016","12","08","140-145","国家自然科学基金项目(51534008)","A"]
["科学技术与工程","马超","学生","马超;邓金根;蔚宝华;刘伟;田中兰;杨恒林",null,"邓金根","石油工程学院",null,"中国石油大学(北京)","不同应力水平下煤的渗透率演化规律研究","2016","16","24","25-29","国家科技重大专项(2011ZX05036-01)资助","A"]
["科学技术与工程","范明涛","学生","范明涛;柳贡慧;李军;郭雪利;何淼;李梦博",null,"李军","石油工程学院",null,"中国石油大学(北京)","热交变压力下水泥环界面微间隙产生机理研究","2016","16","19","72-76,83","国家自然科学基金重点项目(51334003)、中国石油科技创新基金研究项目(2012D-5006-0303)资助","A"]
["石油钻探技术","高德利","教师","高德利; 刁斌斌",null,"高德利","石油工程学院",null,"中国石油大学(北京)","复杂结构井磁导向钻井技术进展","2016","44","05","1-9","国家自然科学基金创新研究群体项目“复杂油气井钻井与完井基础研究”（编号51221003）、国家自然科学基金青年基金项目“复杂条件下磁定位导向钻井技术的理论和方法研究”（编号51304221）及国家科技重大专项课题“复杂结构井优化设计与控制关键技术”（编号2011ZX050090","R"]
["钻井液与完井液","郑力会","教师","郑力会;崔金榜;聂帅帅;刘斌;付毓伟;李宗源",null,"郑力会","石油工程学院",null,"中国石油大学(北京)","郑X井重复压裂非产水煤层绒囊流体暂堵转向试验","2016","33","05","103-108","国家科技重大专项“煤层气钻完井及增产改造技术示范工程”(2016ZX05064002).","A"]
["石油钻采工艺","韩付鑫","学生","韩付鑫;樊洪海;张治;彭齐;戴瑞;高原",null,"樊洪海","石油工程学院",null,"中国石油大学(北京)","基于四参数流变模式的套管下放速度分析","2016","38","03","331-334","国家自然科学基金“深水钻井隔水管-导（套）管力学特性研究与水下井口稳定性分析”（编号51574261）；国家自然科学基金“高压气井内高速流体诱发生产管柱振动特性研究”（编号51274219）。","A"]
["石油钻采工艺","林伯韬","教师","林伯韬;陈森;潘竟军;金衍;张磊;庞惠文",null,"林伯韬","石油工程学院",null,"中国石油大学(北京)","风城陆相超稠油油砂微压裂扩容机理实验研究","2016","38","03","359-364,408","国家杰出青年基金“石油工程岩石力学”（编号51325402）和国家青年科学基金“超稠油SAGD开采陆相含泥岩夹层油砂扩容机理及渗流评价研究”（编号51404281）。","A"]
["中国海上油气","侯冰","学生","侯冰; 张儒鑫; 刁策; 李良川; 程谟骥",null,"侯冰","石油工程学院",null,"中国石油大学(北京)","大斜度井水力压裂裂缝扩展模拟实验分析","2016","28","05","85-91","国家自然科学基金面上项目“深部裂缝性储层大斜度井水力裂缝非平面扩展机理研究(编号:51574260)”、国家自然科学基金重大项目“页岩非线性工程地质力学特征与预测理论(编号:51490651)”、国家自然科学基金重点项目“页岩气开采岩石力学(编号:51234006)”、中国石油大学(","A"]
["西安石油大学学报（自然科学版）","曹文科","学生","曹文科; 邓金根; 蔚宝华; 刘伟; 李扬",null,"邓金根","石油工程学院",null,"中国石油大学(北京)","弹性参数各向异性对页岩井周应力的影响","2016","31","05","27-35,42","国家自然科学基金(编号:U1262201);国家自然科学基金(编号:PRP/indep-4-1311)","A"]
["中国海上油气","李基伟","学生","李基伟; 柳贡慧; 李军;李玉梅",null,"李军","石油工程学院",null,"中国石油大学(北京)","深水海底举升钻井系统U型管效应研究","2016","28","02","120-127","国家自然科学基金重点项目“控压钻井测控理论及关键问题研究(编号:51334003)”、国家自然科学基金重点项目“海洋深水浅层钻井关键技术基础理论研究(编号:51434009)”、国家自然科学基金面上项目“基于模型预测控制理论与状态机架构的控压钻井压力控制方法研究(编号:5137","A"]
["中国石油大学学报（自然科学版）","杨睿月","学生","杨睿月;黄中伟;李根生;沈忠厚;韩树;许争鸣",null,"黄中伟","石油工程学院",null,"中国石油大学","连续油管带筛管双重管柱岩屑运移模型研究","2016","40","05","87-95","国家科技重大专项(2011ZX05037-001)","A"]
["钻井液与完井液","蒋其辉","学生","蒋其辉; 蒋官澄; 卢拥军; 刘萍; 邱晓惠",null,"蒋官澄","石油工程学院",null,"中国石油大学(北京)","一种高温耐剪切超分子缔合弱凝胶清洁压裂液体系","2016","33","06","106-110","国家“863”主题项目“致密砂岩气高效钻井与压裂改造关键技术”(2013AA064800)部分研究成果.","A"]
["石油钻探技术","蒋官澄","教师","蒋官澄;黄凯;李新亮;邓正强;王凯;赵利",null,"蒋官澄","石油工程学院",null,"中国石油大学(北京)","抗高温高密度无土相柴油基钻井液室内研究","2016","44","06","24-29","中国石油天然气集团公司基础研究重点项目“井筒工作液基础理论关键技术研究”（编号2014A 4212）部分研究内容。","A"]
["中国基础科学","高德利","教师","高德利; 朱旺喜; 李军;张俊文; 孟庆峰",null,"高德利","石油工程学院",null,"中国石油大学(北京)","深水油气工程科学问题与技术瓶颈——第147期双清论坛学术综述","2016","18","03","1-6","","R"]
["天然气工业","孙一流","学生","孙一流; 陈勉; 金衍; 杨沛; 卢运虎",null,"陈勉","石油工程学院",null,"中国石油大学(北京)","塔里木盆地玉科区块超深井膏盐层段套管损坏机理与防治措施","2016","36","12","92-99","国家自然科学基金项目(编号:51490651)、国家杰出青年科学基金项目(编号:51325402).","A"]
["天然气工业","刘奎","学生","刘奎; 高德利; 王宴滨;刘永升",null,"高德利","石油工程学院",null,"中国石油大学","局部载荷对页岩气井套管变形的影响","2016","36","11","76-82","国家自然科学基金创新研究群体项目“复杂油气井钻井与完井基础研究”(批准号:51521063)、国家科技重大专项课题“钻井工艺及井筒工作液关键技术研究”(编号:2016YFC0303303).","A"]
["科学通报","李根生","教师","李根生;盛茂;田守嶒;葛洪魁;黄中伟;宋先知",null,"李根生","石油工程学院",null,"中国石油大学(北京)","页岩气储层水平井与压裂工程基础问题探讨","2016","61","26","2883-2890","国家自然科学基金重大国际(地区)合作项目(51210006)和国家自然科学基金重大项目(51490652)资助","R"]
["中国安全生产科学技术","李轶明","教师","李轶明; 何敏侠; 夏威;李相方",null,"李轶明","石油工程学院",null,"中国石油大学(北京)","水平井油基钻井液气侵溶解气膨胀运移规律研究","2016","12","10","44-49","中国石油集团科技管理部科研项目(2014D-4601);中国石油大学(北京)科研基金(2462015YQ0216;2462015YQ0403)","A"]
["力学与实践","金衍","教师","金衍; 程万; 陈勉",null,"金衍","石油工程学院",null,"中国石油大学(北京)","页岩气储层压裂数值模拟技术研究进展","2016","38","01","1-9","国家自然科学基金(51490651),国家杰出青年科学基金(51325402)和2011年度高等学校博士学科点专项科研基金(20110007110004)资助项目.","A"]
["中国石油勘探","滕学清","学生","滕学清; 陈勉; 杨沛; 李宁; 周波",null,"陈勉","石油工程学院",null,"中国石油大学(北京)","库车前陆盆地超深井全井筒提速技术","2016","21","01","76-88","","A"]
["天然气工业","李鑫","学生","李鑫; 高德利; 刁斌斌;周英操",null,"高德利","石油工程学院",null,"中国石油大学","基于赫巴流体的页岩气大位移水平井裸眼延伸极限分析","2016","36","10","85-92","国家自然科学基金创新研究群体项目“复杂油气井钻井与完井基础研究”(批准号:51521063)、国家重点研发计划课题“钻井工艺及井筒工作液关键技术研究”(编号:2016YFC0303303).","A"]
["水处理技术","陆洋","学生","陆洋;张帆;王寒;张钰垚;户凯;王圣洁",null,"高德利","石油工程学院",null,"中国石油大学(北京)","气浮除油实验装置设计与影响因素","2016","42","05","56-59","","S"]
["石油钻探技术","李志勇","教师","李志勇; 陈帅; 陶冶; 马攀; 杨超",null,"李志勇","石油工程学院",null,"中国石油大学(北京)","抗硫化氢高强度冻胶阀试验研究","2016","44","02","65-69","国家科技重大专项“易漏易塌地层钻完井及储层保护技术研究”（编号2016ZX05044）、国家自然科学基金项目“低渗裂缝性砂岩凝析气藏损害机理及有效保护开发一体化新方法研究”（编号51374225）、国家留学基金（编号CSC No ．201506445008）和校优秀青年教师基金项目“封堵","A"]
["中国科学（技术科学）","吴克柳","学生","吴克柳; 李相方; CHEN ZhangXin",null,"李相方","石油工程学院",null,"中国石油大学(北京)","页岩气纳米孔真实气体传输模型","2016","46","01","68-78","国家自然科学基金重大项目(批准号:51490654)、国家自然科学基金(批准号:51374222)和国家科技重大专项(编号:2011ZX05030-005-04)资助","A"]
["中国煤炭地质","董银涛","学生","董银涛;张遂安;杨立源;赵亚东;杜瑶;孙延明",null,"张遂安","石油工程学院",null,"中国石油大学(北京)","考虑地质因素的煤层气井井位优选技术--以韩城地区为例","2016","NULL","01","18-22","国家科技重大专项资助项目(2011ZX05062)","A"]
["石油机械","汤敬飞","学生","汤敬飞; 吴晓东",null,"吴晓东","石油工程学院",null,"中国石油大学(北京)","基于原油压缩性的叶片泵泵内压力模型研究?","2016","NULL","02","58-62","国家科技重大专项“复杂结构井优化设计与控制关键技术”（2011ZX05009－005）。","A"]
["科学技术与工程","范杰","学生","范杰; 李相方",null,"李相方","石油工程学院",null,"中国石油大学(北京)","蒸汽辅助重力泄油蒸汽腔前缘传热模型研究","2016","NULL","03","42-47,65","国家自然科学基金（50974128）和国家科技重大专项（2011ZX05038-004-003）资助","A"]
["陕西科技大学学报（自然科学版）","张琪琛","学生","张琪琛;陈民锋;陈璐;吴丽;乔聪颖;李晨辰",null,"陈民锋","石油工程学院",null,"中国石油大学(北京)","低渗透储层非线性渗流压力传播规律","2016","NULL","01","102-106,127","国家973重点基础研究计划项目（2015CB250905）","A"]
["石油钻采工艺","刘华","学生","刘华;李相方;李朋;高云丛;夏俊;于鹏亮",null,"李相方","石油工程学院",null,"中国石油大学(北京)","特低渗非均质油藏CO2驱注气速度对采出程度的影响","2016","38","01","105-109","国家科技重大专项“西非深水油田注采参数优化及单井产能预测研究”（编号2011ZX05030-005-04）；中国石油化工股份有限公司油气开发重要先导项目“腰英台油田CO2驱油先导试验动态分析及评价”（编号KF-2010-18）。","A"]
["科学技术与工程","李栋","学生","李栋;牟建业;姚茂堂;张路锋;邵俊杰;程相征",null,"牟建业","石油工程学院",null,"中国石油大学(北京)","裂缝型储层酸压暂堵材料实验研究","2016","16","02","158-164","","A"]
["特种油气藏","苗雅楠","学生","苗雅楠; 李相方; 周云健",null,"李相方","石油工程学院",null,"中国石油大学(北京)","国外低渗透油田产能预测方法","2016","23","01","109-112","国家科技重大专项“西非、亚太及南美典型油气田开发关键技术研究”（2011ZX05030-005）子课题“西非深水油田注采参数优化及单井产能预测研究”（2011ZX05030-005-04）","A"]
["应用科技","赵超","学生","赵超; 董平川; 高启超",null,"董平川","石油工程学院",null,"中国石油大学","致密气藏3D 裂缝压裂水平井非稳态渗流分析","2016","43","02","65-69","国家重大专项项目（2011ZX05014-005）；国家自然科学基金项目（51204204）．","A"]
["油气地质与采收率","张爽","学生","张爽; 隋微波",null,"隋微波","石油工程学院",null,"中国石油大学(北京)","页岩储层有机质分布定量分析及重构模型","2016","23","02","22-28","国家自然科学基金面上项目“应力敏感条件下的数字岩心微观渗流分析方法研究”(51474224).","A"]
["油气地质与采收率","窦祥骥","学生","窦祥骥; 廖新维; 赵晓亮; 陈志明; 郭新慧",null,"廖新维","石油工程学院",null,"中国石油大学(北京)","应力敏感微纳米孔隙储层压裂裂缝反演方法","2016","23","02","76-82","国家“973”计划“陆相致密油高效开发基础研究”(2015CB250900).","A"]
["油气地质与采收率","徐大融","学生","徐大融; 李相方; 李元生",null,"李相方","石油工程学院",null,"中国石油大学(北京)","致密油藏微量气气水交替注入参数的设计方法","2016","23","02","103-107,114","陕西省科技重大专项“提高延长油田主力油层开发效果系统工程关键技术研究”(2011KTZB-04-05).","A"]
["油气地质与采收率","黄亮","学生","黄亮;石军太;李彦尊;臧加利;张富旭;孙政",null,"石军太","石油工程学院",null,"中国石油大学(北京)","稠油油藏热采水平井均衡采油新方法","2016","23","02","115-120","国家自然科学基金委联合项目“煤层气在基质孔隙中解吸传递机理及产能预测”(U1262113),国家自然科学基金委重大项目“页岩油气多尺度渗流特征与开采理论”(51490654),中国石油大学(北京)科研基金项目“煤层气藏开发扩散渗流机理及产气规律研究”(YJRC-2013-37).","A"]
["中国海上油气","丁帅伟","学生","丁帅伟;姜汉桥;周代余;赵冀;旷曦域;白鹏",null,"姜汉桥","石油工程学院",null,"中国石油大学(北京)","基于改进粒子群算法的不规则井网自动优化","2016","28","01","80-85","十二五\"国家科技重大专项\"西非深水油气田注采优化及高效开发模式研究(编号:2011ZX05030-005-05)\"部分研究成","A"]
["科技导报","廖新维","教师","廖新维; 陈晓明; 赵晓亮; 王欢",null,"廖新维","石油工程学院",null,"中国石油大学(北京)","低渗油藏体积压裂井压力特征分析","2016","34","07","117-122","国家重点基础研究发展计划(973计划)项目(2015CB250905)","A"]
["应用化工","张学刚","学生","张学刚; 王秀宇; 王冠华; 刘丰钢",null,"王秀宇","石油工程学院",null,"中国石油大学(北京)","铵盐与亚硝酸盐化学生热体系实验研究","2016","45","02","393-396","中国石油大学(北京)引进人才科研启动基金(YJRC-2013-30)","A"]
["科学技术与工程","黄世军","教师","黄世军; 孙常伟; 常阳; 赵明月",null,"黄世军","石油工程学院",null,"中国石油大学(北京)","多倍水驱下岩心接触角变化","2016","16","04","178-181","","A"]
["西南石油大学学报（自然科学版）","郭小哲","教师","郭小哲; 周长沙",null,"郭小哲","石油工程学院",null,"中国石油大学(北京)","页岩气储层压裂水平井三线性渗流模型研究","2016","38","02","86-94","校基金项目《页岩气藏压裂水平井气水两相渗流机理研究》（2462015YQ0215）。","A"]
["西南石油大学学报（自然科学版）","滕柏路","学生","滕柏路; 程林松; 黄世军; 贾振; 艾爽",null,"程林松","石油工程学院",null,"中国石油大学(北京)","基于波前快速推进法的页岩气储层动用预测","2016","38","02","122-128","国家重点基础研究发展计划（SQ2012CB027805）。","A"]
["中国石油大学学报（自然科学版）","东晓虎","教师","东晓虎; 刘慧卿; 侯吉瑞; 陈掌星",null,"东晓虎","石油工程学院",null,"中国石油大学(北京)","非凝析气与蒸汽混注水平井井筒流动传热特征","2016","40","02","105-114","国家科技重大专项(2011ZX05009-004-05);国家自然科学基金项目(51274212)","A"]
["石油勘探与开发","王敬","教师","王敬;罗海山;刘慧卿;林杰;李立文;林文鑫",null,"王敬","石油工程学院",null,"中国石油大学(北京)","页岩气吸附解吸效应对基质物性影响特征","2016","43","01","145-152","国家重点基础研究发展计划(973)项目(2015CB250906);国家自然科学基金(51474226);中国石油大学(北京)科研基金(2462014YJRC028)","A"]
["天然气工业","吴晓东","教师","吴晓东; 周朝; 安永生; 刘雄伟; 岑学齐",null,"吴晓东","石油工程学院",null,"中国石油大学(北京)","涡流排液采气的液滴动力学分析与螺旋角优化","2016","36","05","45-50","国家科技重大专项(编号:2011ZX05009-005)、北京市自然科学基金青年项目(编号:3154039)、中国石油化工股份有限公司技术开发项目(编号:34400004-14-ZC0607-0001).","A"]
["科学技术与工程","邵俊杰","学生","邵俊杰;牟建业;程相征;李栋;丁耀;程志林;尚世龙;禹晓珊",null,"牟建业","石油工程学院",null,"中国石油大学(北京)","缝洞型储层酸压改造纤维暂堵规律研究","2016","16","10","126-130","国家自然科学基金(51274213)资助","A"]
["科学技术与工程","赵文","学生","赵文; 张遂安; 孙志宇; 赵亚东; 杨杨",null,"张遂安","石油工程学院",null,"中国石油大学(北京)","基于G函数曲线分析的压后裂缝复杂性评估研究","2016","16","33","29-33,45","国家科技重大专项(2016ZX05002-005)资助","A"]
["科学技术与工程","常元昊","学生","常元昊;姜汉桥;李俊键;马康;高亚军;胡锦川;王依诚",null,"姜汉桥","石油工程学院",null,"中国石油大学(北京)","高倾角低渗断块油藏顶部注气规律研究","2016","16","33","179-183","国家重点基础研究发展计划(973)项目子课题(2015250905)资助","A"]
["中州煤炭","盖少华","学生","盖少华;刘慧卿;张凤彩;陈胜;吕晓聪;解宇",null,"刘慧卿","石油工程学院",null,"中国石油大学(北京)","高成熟度页岩储层微观孔隙结构特征","2016","NULL","05","106-109","国家科技重大专项(2016ZX05047004-001);国家重点基础研究发展计划(973)项目(2015CB250906)","A"]
["煤炭科学技术","杨红军","学生","杨红军; 张遂安; 秦菁; 袁玉",null,"张遂安","石油工程学院",null,"中国石油大学(北京)","基于多源信息融合的煤层气水平井随钻判识技术","2016","44","05","100-105","","A"]
["石油化工高等学校学报","孟展","学生","孟展;杨胜来;王璐;王智林;钱坤;马铨峥;韩伟",null,"杨胜来","石油工程学院",null,"中国石油大学(北京)","致密油藏CO2吞吐数值模拟研究新进展","2016","29","06","39-42","国家自然科学基金资助项目\"致密油储层基质渗吸规律及原油动用机理研究\"(51574257","R"]
["西安石油大学学报（自然科学版）","王雷","教师","王雷;邵俊杰;韩晶玉;侯腾飞;程相征;贺雨南;伍飞;莫司琪",null,"王雷","石油工程学院",null,"中国石油大学(北京)","通道压裂裂缝导流能力影响因素研究","2016","31","03","52-56","国家科技重大专项“大型油气田及煤层气开发”(编号:2011ZX05014)","A"]
["天然气与石油","朱维伟","学生","朱维伟; 姚约东; 邹威; 王德强",null,"姚约东","石油工程学院",null,"中国石油大学(北京)","随机生长四参数生成孔隙模型及其分形描述","2016","34","03","64-68","国家重点基础研究发展计划(973计划)(2015 CB 250900);新世纪优秀人才支持计划(NCET-13-1030)","A"]
["科学技术与工程","尚世龙","学生","尚世龙; 马新仿; 侯腾飞; 高加印; 邵俊杰",null,"马新仿","石油工程学院",null,"中国石油大学(北京)","变导流能力压裂气井非达西产能研究","2016","16","16","173-178,198","","A"]
["中国煤炭地质","王蕊","学生","王蕊;石军太;王天驹;黄亮;孙政;张磊",null,"石军太","石油工程学院",null,"中国石油大学(北京)","不同叠置关系下煤层气与致密气合采方案优化研究","2016","28","06","42-46","","A"]
["煤田地质与勘探","熊波","学生","熊波;张遂安;李晓友;赵洋;王玫珠;胡秋嘉;刘忠;曹海霄;王潇祎",null,"张遂安","石油工程学院",null,"中国石油大学(北京)","沁水盆地安泽区块3号煤层煤体结构及其控气作用","2016","44","03","40-45","国家科技重大专项项目(2011ZX05028，2016ZX05041)@@@@National Science and Technology Major Project(2011ZX05028，2016ZX05041)","A"]
["煤田地质与勘探","张羽","学生","张羽;张遂安;杨立源;杜瑶;董银涛;张琴",null,"张遂安","石油工程学院",null,"中国石油大学(北京)","煤样三维渗透率应力敏感性试验研究","2016","44","03","51-56","国家科技重大专项项目(2011ZX05042)；山西省煤层气联合基金项目(2012012005)@@@@National Science and Technology Major Project(2011ZX05042)；Shanxi Provincial Basic Research Prgogram-Coal Bed Methane Joint Research Foundation(2012012005)","A"]
["北京石油化工学院学报","孙逢瑞","学生","孙逢瑞;黄世军;王岩;邹明;李乾;吴小军",null,"黄世军","石油工程学院",null,"中国石油大学(北京)","过热蒸汽吞吐水平井注采参数多因素正交试验研究","2016","24","02","17-20","国家科技重大专项(2011ZX05024-005-006);国家科技重大专项(2011ZX05024-002-006)。","A"]
["油气地质与采收率","吴丽","学生","吴丽; 陈民锋; 乔聪颖; 李晨辰",null,"陈民锋","石油工程学院",null,"中国石油大学(北京)","稠油油藏过渡带油水分布规律及布井界限","2016","23","03","77-82","国家“973”计划“致密油高效开发油藏工程理论与方法研究”(2015CB250905).","A"]
["油气地质与采收率","孙璐","学生","孙璐; 刘月田; 陈民锋; 葛涛涛",null,"刘月田","石油工程学院",null,"中国石油大学(北京)","低渗透普通稠油油藏水平井极限动用半径——以叙利亚Oudeh油田为例","2016","23","03","89-94","国家“973”计划“陆相致密油高效开发基础研究”课题五之专题一“致密油藏产能预测方法”(2015CB250905),国家自然科学基金项目“各向异性裂缝页岩气藏渗流机理与理论研究”(51374222).","A"]
["煤炭科学技术","张遂安","教师","张遂安; 袁玉; 孟凡圆",null,"张遂安","石油工程学院",null,"中国石油大学(北京)","我国煤层气开发技术进展","2016","44","05","1-5","国家科技重大专项基金资助项目(2011ZX05062)","A"]
["石油化工高等学校学报","濮御","学生","濮御; 王秀宇; 濮玲",null,"王秀宇","石油工程学院",null,"中国石油大学(北京)","静态渗吸对致密油开采效果的影响及其应用","2016","29","03","23-27","国家“973课题”——提高致密油储层采收率机理与方法研究(2015CB250904).","A"]
["油田化学","杨长春","学生","杨长春;岳湘安;周代余;贺杰;赵冀;周继龙;李超跃",null,"岳湘安","石油工程学院",null,"中国石油大学(北京)","耐温耐盐聚合物微球性能评价","2016","33","02","254-260","国家科技重大专项“油田开采后期提高采收率新技术”（项目编号2011ZX05009-004）。","A"]
["天然气地球科学","李靖","学生","李靖;李相方;王香增;李莹莹;石军太;冯东;彭泽阳;于鹏亮",null,"李相方","石油工程学院",null,"中国石油大学(北京)","“一点法”不同温度吸附曲线预测模型","2016","27","06","1116-1127","国家自然基金项目(编号:51490654);国家科技重大专项(编号:2016ZX05039);国家科技重大专项(编号:2016ZX05042)联合资助.","A"]
["科学技术与工程","邱志鹏","学生","邱志鹏;杨胜来;任双双;刘京;陈仁保;徐斌;李滢;马铨峥;韩伟",null,"杨胜来","石油工程学院",null,"中国石油大学(北京)","基于毛管束模型的启动压力梯度分析与计算","2016","16","17","127-132","中国石油股份公司“十二五”重大科技专项基金(11.2011E-2500.X.01)资助","A"]
["深圳大学学报（理工版）","黄瑶","学生","黄瑶; 程时清; 何佑伟; 于海洋",null,"程时清","石油工程学院",null,"中国石油大学(北京)","流量不均鱼骨状多分支水平井不稳定压力分析","2016","33","02","202-210","National Science and Technology Major Special Program for the 12th Five-Year Plan of China (2011ZX05009-005-01C)国家“十二五”科技重大专项资助项目(2011ZX05009-005-01C)","A"]
["科学技术与工程","沈非","学生"," 沈非; 程林松; 黄世军; 范晶; 李权",null,"程林松","石油工程学院",null,"中国石油大学(北京)","不同注聚时机聚合物驱含水率变化规律研究","2016","16","17","149-152,161","国家科技重大专项(2011ZX05024-002-006)资助","A"]
["科学技术与工程","张振涛","学生","张振涛;姜汉桥;赵林;田野;裴艳丽;马康;郭亮",null,"姜汉桥","石油工程学院",null,"中国石油大学(北京)","凝胶微球复合调剖机理实验研究","2016","16","17","157-161","国家重点基础研究发展计划(973)项目子课题“致密油高效开发油藏工程理论与方法研究”(2015250905)资助","A"]
["石油学报","王飞","教师","王飞; 潘子晴",null,"王飞","石油工程学院",null,"中国石油大学(北京)","致密气藏压裂水平井反卷积试井模型","2016","37","07","898-902,938","国家自然科学基金项目(No.51504266)、北京市自然科学基金项目(No.3154038)和中国石油大学(北京)科研基金项目(2462015YQ0212)资助.","A"]
["石油学报","李靖","学生","李靖;李相方;王香增;李莹莹;石军太;冯东;白艳改;徐敏",null,"李相方","石油工程学院",null,"中国石油大学(北京)","页岩无机质孔隙含水饱和度分布量化模型","2016","37","07","903-913","国家自然科学基金重大项目(No.51490654)、国家重大科技专项(2016ZX05039,2016ZX05042)资助.","A"]
["石油钻采工艺","夏俊","学生","夏俊;李相方;李振男;于鹏亮;孙政;蒋明洁",null,"李相方","石油工程学院",null,"中国石油大学(北京)","考虑不同完井方式的高速非达西效应评价方法","2016","38","04","452-455","国家科技重大专项“西非深水油田注采参数优化及单井产能预测研究”（编号2011ZX05030-005-04）","A"]
["石油钻采工艺","李俊键","教师","李俊键;姜汉桥;陆祥安;赵玉云;常元昊;王依诚",null,"李俊键","石油工程学院",null,"中国石油大学(北京)","油藏条件下聚合物溶液老化数学模型新探","2016","38","04","499-503,544","国家科技重大专项“海上油田聚合物驱油藏动态监控与评价技术研究”（编号2011ZX05024-004-07）；国家重点基础研究发展计划（“973”计划）“致密油高效开发油藏工程理论与方法研究”（编号2015CB250900）。","A"]
["中国石油大学学报（自然科学版）","赵仁保","教师","赵仁保;敖文君;肖爱国;严伟;于志海;夏晓婷",null,"赵仁保","石油工程学院",null,"中国石油大学(北京)","CO2在原油中的扩散规律及变扩散系数计算方法","2016","40","03","136-142","国家重点基础研究发展计划(2015CB250904);国家自然科学基金项目(51274217)","A"]
["特种油气藏","孙逢瑞","学生","孙逢瑞; 黄世军; 邹明",null,"黄世军","石油工程学院",null,"中国石油大学(北京)","过热蒸汽吞吐水平井产能评价模型","2016","23","03","122-125","国家科技重大专项“大型油气田及煤层气开发”(2011ZX05012-004)","A"]
["石油学报","郭小哲","教师","郭小哲; 王晶; 刘学锋",null,"郭小哲","石油工程学院",null,"中国石油大学(北京)","页岩气储层压裂水平井气-水两相渗流模型","2016","37","09","1165-1170","中国石油大学(北京)科研基金项目“页岩气藏压裂水平井气水两相渗流机理研究”(2462015YQ0215)资助.","A"]
["地质科技情报","刘凤伟","学生","刘凤伟; 谢传礼; 刘超; 张航; 高俊",null,"谢传礼","石油工程学院",null,"中国石油大学(北京)","基于灰色关联分析法的致密油储层定量评价","2016","35","05","168-175","国家自然科学基金项目(41472115)","A"]
["中国科学（技术科学）","吴克柳","学生","吴克柳;李相方;陈掌星;李靖;梁羽丰;吴修华",null,"李相方","石油工程学院",null,"中国石油大学(北京)","页岩气复杂孔裂隙真实气体传输机理和数学模型","2016","46","08","851-863","国家自然科学基金重大项目(批准号:51490654)、国家自然科学基金项目(批准号:51374222)和国家科技重大专项(编号:2011ZX05030-005-04)资助","A"]
["科学技术与工程","王雷","教师","王雷; 文恒",null,"王雷","石油工程学院",null,"中国石油大学(北京)","压裂液返排速度对支撑剂回流量影响实验研究","2016","16","26","200-202,206","北京市自然科学基金项目(2164069)资助","A"]
["科学技术与工程","任宗孝","学生","任宗孝;吴晓东;韩国庆;张珈铭;刘庆;周朝",null,"吴晓东","石油工程学院",null,"中国石油大学(北京)","非完善油井流入动态方程研究","2016","16","20","156-160","国家科技重大专项课题(2011ZX05009-005)、北京市自然科学基金青年科学基金(3154039)资助","A"]
["科学技术与工程","马铨峥","学生","马铨峥;杨胜来;吕道平;寇根;雷浩;陈璨",null,"杨胜来","石油工程学院",null,"中国石油大学(北京)","致密性储层物性特征及启动压力梯度规律研究——以新疆吉木萨尔盆地芦草沟组为例","2016","16","24","42-47","973项目(2015CB250904)资助","A"]
["中国煤炭地质","杨红军","学生","杨红军; 张遂安; 孙延明; 赵文; 王千玮",null,"张遂安","石油工程学院",null,"中国石油大学(北京)","沁水盆地北部15#煤层欠压主控因素分析","2016","28","09","26-29","国家科技重大专项基金资助项目（2011ZX05034-003）","A"]
["中国海上油气","李俊键","教师","李俊键;周代余;赵冀;丁帅伟;姜汉桥;张曙振;梁彬;旷曦域;王倩",null,"李俊键","石油工程学院",null,"中国石油大学(北京)","基于粒子群优化支持向量机的注水井吸水剖面预测","2016","28","05","66-70","国家青年自然科学基金“复杂裂缝潜山油藏水平井堵水封堵机理研究(编号:51404280)”部分研究成果.","A"]
["科学技术与工程","马铨峥","学生","马铨峥;杨胜来;吕道平;寇根;杨龙;雷浩",null,"杨胜来","石油工程学院",null,"中国石油大学","致密储层弹性采收率规律及影响因素研究——以新疆吉木萨尔盆地芦草沟组为例","2016","16","27","147-151,156","973项目(2015CB250904)资助","A"]
["石油化工高等学校学报","王智林","学生","王智林;杨胜来;马铨峥;雷浩;李滢;孟展;陈浩",null,"杨胜来","石油工程学院",null,"中国石油大学, 北京","稠油油藏蒸汽吞吐助排开发方案优化研究","2016","29","05","54-59","国家科技重大专项“大型油气田及煤层气开发”子课题“苏丹3/7区高凝油油藏高效开发技术”资助(2011ZX05032-002)。","A"]
["中国科学（技术科学）","糜利栋","学生","糜利栋; 姜汉桥; 李俊键",null,"姜汉桥","石油工程学院",null,"中国石油大学(北京)","耦合基质-天然裂缝渗流机理的页岩气表观渗透率","2016","46","10","1064-1070","国家重点基础研究发展计划(编号:2013CB228005)资助项目","A"]
["陕西科技大学学报（自然科学版）","陈民锋","教师","陈民锋; 陈璐; 王兆琪;张琪琛",null,"陈民锋","石油工程学院",null,"中国石油大学","近井改造对低渗透稠油油藏有效动用半径的影响","2016","34","05","103-108","国家重点基础研究发展计划(973计划)项目(2015CB250905)","A"]
["特种油气藏","吴正彬","学生","吴正彬; 刘慧卿; 庞占喜; 吴川; 高民",null,"刘慧卿","石油工程学院",null,"中国石油大学(北京)","稠油氮气泡沫辅助蒸汽驱可视化实验研究","2016","23","05","126-129","国家自然科学基金“裂缝型稠油油藏非等温渗吸机理及动力学模型”(51274212)","A"]
["石油钻采工艺","沈非","学生","沈非; 程林松; 黄世军;赵文齐; 刘雪莹",null,"程林松","石油工程学院",null,"中国石油大学(北京)","基于流管法的普通稠油水驱波及系数计算方法","2016","38","05","645-649","国家科技重大专项子课题“海上稠油水驱及注聚开发方式下不同井型生产能力与注入能力评价方法研究”（编号2011ZX05024-002-006）。","A"]
["石油钻采工艺","任宗孝","学生","任宗孝;吴晓东;金岗;李华昌;王瑞河;马高强",null,"吴晓东","石油工程学院",null,"中国石油大学","致密油藏体积压裂水平井半解析渗流模型","2016","38","05","633-639","国家重点基础研究发展973计划项目“陆相致密油高效开发基础研究”（编号2015CB250900）；国际科技研究项目“CMG Reservoir Simulation Foundation”。","A"]
["石油钻采工艺","苗雅楠","学生","苗雅楠;李相方;周云健;陈宇;朱国金;杨莉",null,"李相方","石油工程学院",null,"中国石油大学(北京)","并购国外油田水平井产能快速准确预测方法","2016","38","05","640-644","国家科技重大专项课题子课题“西非深水油田注采参数优化及单井产能预测研究”（编号2011ZX05030-005-04）。","A"]
["中南大学学报（自然科学版）","雷刚","学生","雷刚;董平川;蔡振忠;张正红;董睿涛;杨书;吴子森;曹耐",null,"董平川","石油工程学院",null,"中国石油大学","致密砂岩气藏气水相对渗透率曲线","2016","47","08","2701-2705","国家科技重大专项(2011ZX05013-006)(Project (2011ZX05013-006) supported by National Science and Technology Najor Program of China)","A"]
["新疆石油地质","徐大融","学生","徐大融;李相方;李元生;于鹏亮;夏俊;蒋明洁",null,"李相方","石油工程学院",null,"中国石油大学","致密储集层空气泡沫驱模拟实验与应用","2016","37","06","697-702","陕西省科技厅重大专项(2011KTZB-04)","A"]
["石油钻采工艺","吴正彬","学生","吴正彬; 刘慧卿; 庞占喜; 吴川; 高民",null,"刘慧卿","石油工程学院",null,"中国石油大学(北京)","稠油油藏气体-泡沫辅助注蒸汽实验与数值模拟","2016","38","06","852-858","国家自然科学基金“裂缝型稠油油藏非等温渗吸机理及动力学模型”（编号51274212）；国家自然科学基金“多孔介质中预交联凝胶颗粒渗滤规律及动力学模型研究”（编号51474226）。","A"]
["北京石油化工学院学报","孙群","学生","孙群; 黄世军",null,"黄世军","石油工程学院",null,"中国石油大学(北京)","蒸汽吞吐水平井加热半径计算新模型","2016","24","04","8-12","国家科技重大专项（2011ZX05024－005－006）。","A"]
["中国海上油气","高亚军","学生","高亚军;姜汉桥;王硕亮;李俊键;刘传斌;常元昊;王依诚",null,"姜汉桥","石油工程学院",null,"中国石油大学(北京)","基于Level set方法的微观水驱油模拟分析","2016","28","06","59-65","国家重点基础研究发展计划“致密油高效开发油藏工程理论与方法研究(编号:2015CB250905)”部分研究成果.","A"]
["中国海上油气","张琪琛","学生","张琪琛;陈民锋;乔聪颖;孔蒙;王兆琪;陈璐",null,"陈民锋","石油工程学院",null,"中国石油大学(北京)","基于模糊C均值聚类的油水井稳油控水能力分类评价","2016","28","06","66-71","“十三五”国家科技重大专项“油气资产价值影响因素及评价指标集研究(编号:2016ZX05033-005-007)”部分研究成果.","A"]
["中国煤炭地质","孙延明","学生","孙延明;张遂安;杨红军;董银涛;张彪;孟凡圆",null,"张遂安","石油工程学院",null,"中国石油大学(北京)","影响煤层气钻井工程的工程地质因素分析","2016","28","12","62-66","国家科技重大专项课题资助项目（2011ZX05042-001），2014年度山西省煤层气基金重点攻关项目","A"]
["科技导报","王飞","教师","王飞; 安宇",null,"王飞","石油工程学院",null,"中国石油大学(北京)","反卷积压力恢复试井分析方法在海上低渗透气藏的应用","2016","34","24","106-109","国家自然科学基金项目(51504266);北京市自然科学基金项目(3154038);中国石油大学(北京)科研基金项目(2462015YQ0212)","A"]
["石油勘探与开发","王飞","教师"," 王飞; 潘子晴",null,"王飞","石油工程学院",null,"中国石油大学(北京)","化学势差驱动下的页岩储集层压裂液返排数值模拟","2016","43","06","971-977","国家自然科学基金(51504266);北京市自然科学基金(3154038);中国石油大学(北京)科研基金(2462015YQ0212)","A"]
["煤炭科学技术","张勇年","学生","张勇年; 马新仿; 王怡;侯腾飞; 王伟",null,"马新仿","石油工程学院",null,"中国石油大学(北京)","沁端区块煤层气水平井分段压裂裂缝参数优化研究","2016","44","09","178-184,199","","A"]
["北京石油化工学院学报","孙群","学生","孙群; 黄世军",null,"黄世军","石油工程学院",null,"中国石油大学(北京)","过热蒸汽吞吐水平井加热半径计算模型","2016","24","03","13-17","国家科技重大专项(2011ZX05024-002-006).","A"]
["特种油气藏","裴艳丽","学生","裴艳丽; 姜汉桥; 周赫;李林凯; 陆祥安",null,"姜汉桥","石油工程学院",null,"中国石油大学","稠油油藏FAST-SAGD技术储层筛选标准","2016","23","02","115-119","国家重点基础研究发展计划（“973”项目）“致密油高效开发油藏工程理论与方法研究”（2015CB250905）","A"]
["陕西科技大学学报（自然科学版）","张凤远","学生","张凤远;廖新维;叶恒;赵晓亮;陈志明;窦祥骥;冯晓旭",null,"廖新维","石油工程学院",null,"中国石油大学(北京)","模拟产能试井及其在气井产能评价中的应用","2016","34","04","104-109","国家重大科技专项项目(2011ZX05009)","A"]
["陕西科技大学学报（自然科学版）","朱常玉","学生","朱常玉; 程时清; 唐恩高; 曾杨; 康晓东",null,"程时清","石油工程学院",null,"中国石油大学(北京)","聚合物驱双层窜流复合模型试井分析方法","2016","34","04","110-114,124","国家重大科技专项项目(2011ZX05024-004-07);中海石油(中国)有限公司综合科研课题(YXKY-2014-ZY-03)","A"]
["石油钻探技术","岑学齐","学生","岑学齐; 吴晓东; 王磊;郑磊; 葛磊",null,"吴晓东","石油工程学院",null,"中国石油大学","游梁式抽油机游梁平衡重计算新模型","2016","44","02","82-86","","A"]
["石油钻探技术","付宣","学生","付宣; 李根生; 黄中伟;迟焕鹏; 陆沛青",null,"吴晓东","石油工程学院",null,"中国石油大学","煤层气径向水平井压裂室内试验与产能数值分析","2016","44","02","99-105","国家科技重大专项“煤层气完井技术及装备”（编号2011ZX05037001）和教育部“新世纪优秀人才支持计划”（编号NCET 120971）资助。","A"]
["油气地质与采收率","李玉丹","学生","李玉丹;董平川;张荷;雷刚;曹耐;吴子森",null,"董平川","石油工程学院",null,"中国石油大学(北京)","低渗透油藏渗透率及启动压力梯度应力敏感性分析","2016","23","06","57-63","国家自然科学基金项目“裂缝性油气藏流固耦合渗流基础研究”(50004002).","A"]
["西安石油大学学报（自然科学版）","张飞","学生","张飞; 张士诚; 张劲; 邹雨时; 周彤",null,"张士诚","石油工程学院",null,"中国石油大学(北京)","基于流-固耦合法的砂泥岩储层压裂裂缝延伸规律研究","2016","31","01","68-72","","A"]
["西安石油大学学报（自然科学版）","周彤","学生","周彤; 张士诚; 邹雨时; 李宁; 郝思莹",null,"张士诚","石油工程学院",null,"中国石油大学(北京)","页岩气储层充填天然裂缝渗透率特征实验研究","2016","31","01","73-78","国家科技重大专项(编号:2012ZX05018-004);国家重点基础研究发展计划\"973\"项目(编号:2013CB22800","A"]
["新疆石油地质","周彤","学生","周彤; 张士诚; 邹雨时; 李宁; 郑永华",null,"张士诚","石油工程学院",null,"中国石油大学(北京)","四川盆地东北缘强应力大倾角页岩储层水力压裂裂缝形态","2016","37","03","336-341","国家973项目(2013CB228004)","A"]
["西安石油大学学报（自然科学版）","林魂","学生","林魂;张士诚;王飞;潘子晴;张翼飞;陈玉龙",null,"张士诚","石油工程学院",null,"中国石油大学(北京)","吉林油田低渗透凝析气藏水力压裂裂缝参数优化","2016","31","03","62-67","北京市自然科学基金(编号:3154038)","A"]
["新疆石油地质","林鑫","学生","林鑫; 张士诚; 李小刚; 张汝生; 崔佳",null,"张士诚","石油工程学院",null,"中国石油大学(北京)","聚合物酸液稠化剂对储集层的伤害","2016","37","04","460-463","国家科技重大专项(2016ZX05014-005-004)","A"]
["计算机仿真","周祥","学生","周祥; 张士诚; 潘林华",null,"张士诚","石油工程学院",null,"中国石油大学(北京)","碳酸岩储层水力裂缝方向预测仿真研究","2016","33","08","105-110","","A"]
["油气储运","林魂","学生","林魂;张士诚;于柏慧;孙平;柳明;黄兴",null,"张士诚","石油工程学院",null,"中国石油大学","储气库注采阶段硫化氢运移规律的数值模拟","2016","35","11","1173-1178","北京市自然科学基金“页岩气压裂水平井瞬态压力响应反演与分析”,3154038.","A"]
["深圳大学学报（理工版）","侯腾飞","学生","侯腾飞;张士诚;马新仿;邵俊杰;李栋;贺雨南",null,"张士诚","石油工程学院",null,"中国石油大学(北京)","涪陵页岩气X井裂缝网络参数对产能的影响","2016","33","04","409-417","National Basic Research Program of China (2013CB228004);National Natural Science Foundation of China (51504266)国家重点基础研究发展计划资助项目(2013CB228004);国家自然科学基金资助项目(51504266)","A"]
["油气地质与采收率","赵林","学生","赵林;姜汉桥;李俊键;陆祥安;张振涛;李金鸿;裴艳丽",null,"姜汉桥","石油工程学院",null,"中国石油大学(北京)","基于流线的聚合物驱热降解数值模拟","2016","23","06","76-81,86","国家“973”计划“陆相致密油高效开发基础研究”(2015CB250900).","A"]
["应用科技","高启超","学生","高启超; 赵超; 郑继龙; 许超兰",null,{"$error":"#N/A"},"石油工程学院","董平川","中国石油大学(北京)","地层倾角对底水锥进影响数值模拟研究","2016","NULL","01","81-84","中海油稠油基金资助项目（2011ZX05024 NFCJF）．","A"]
["北京石油化工学院学报","孙逢瑞","学生","孙逢瑞; 邹明; 李乾",null,{"$error":"#N/A"},"石油工程学院","姚约东","中国石油大学(北京)","特稠油过热蒸汽吞吐产能预测模型","2016","24","01","12-16","国家科技重大专项(2011ZX05012-004,2011ZX05024-005-006)和中国石油勘探开发研究院科技项目联合资助","A"]
["天然气地球科学","曹成","学生","曹成; 李天太; 王晖; 许小强; 高潮",null,{"$error":"#N/A"},"石油工程学院","李天太","中国石油大学(北京)","页岩渗透率测试方法研究与应用","2016","27","03","503-512","国家高技术研究发展计划(863计划)“页岩气钻完井及储存评价与产能预测技术研究”(编号:2013AA064501);陕西省科技统筹创新工程计划“陆相页岩气资源地质研究与勘探开发关键技术攻关”(编号:2012KTZB03-01-01)联合资助.","A"]
["煤炭科学技术","袁玉","学生","袁玉; 赵金; 曹立虎; 胡亚斐; 任勇",null,{"$error":"#N/A"},"石油工程学院","张遂安","中国石油大学(北京)","水力喷砂射孔技术在煤层气开发中的应用","2016","44","05","68-73","国家科技重大专项基金资助项目(2016ZX05066)","A"]
["中州煤炭","郭雪晶","学生","郭雪晶; 何顺利",null,"何顺利","石油工程学院",null,"中国石油大学(北京)","基于数字岩心的致密砂岩储层流体赋存空间定量计算","2016","NULL","03","98-102","国家科技重大专项基金(2011ZX05009-004)","A"]
["科学技术与工程","王一帆","学生","王一帆; 辛一男; 赵超; 许佳良",null,{"$error":"#N/A"},"石油工程学院","董平川","中国石油大学(北京)","微观条件下储层天然裂缝闭合特征研究","2016","16","17","32-35,70","国家自然科学基金项目(51204204)资助","A"]
["新疆石油地质","徐林静","学生","徐林静; 张士诚; 马新仿",null," 张士诚","石油工程学院",null,"中国石油大学(北京)","胍胶压裂液对储集层渗透率的伤害特征","2016","37","04","456-459","国家科技重大专项(2011ZX05048-10HZ)","A"]
["数学的实践与认识","尚世龙","学生","尚世龙; 高加印",null,{"$error":"#N/A"},"石油工程学院","张士诚","中国石油大学(北京)","模糊灰色关联法在大牛地气田优选压裂井层中的应用","2016","46","13","103-108","","A"]
["深圳大学学报（理工版）","陈民锋","教师","陈民锋; 陈璐; 张琪琛;王兆琪; 杨曜宁",null,"陈民锋","石油工程学院",null,"中国石油大学(北京)","低渗透油藏改造后水平井压力分布规律","2016","33","04","401-408","National Basic Research Program of China (2015CB250905) 国家重点基础研究发展计划资助项目(2015CB250905)","A"]
["特种油气藏","张波","学生","张波",null,{"$error":"#N/A"},{"$f":"VLOOKUP(B798,[2]Sheet1!$D$2:$F$6737,3,FALSE)","v":"石油工程学院"},{"$f":"VLOOKUP(B798,[2]Sheet1!$D$1:$I$6737,6,FALSE)","v":"岳湘安"},"中国石油大学","阳信洼陷沙一段页岩气富集规律","2016","23","02","9-13","国家科技重大专项“深层油气、非常规天然气成藏规律与有利勘探区评价技术”（2011ZX05008-004）","A"]
["西安石油大学学报（自然科学版）","赵仁保","教师","赵仁保;严伟;孔垂显;秦军;史艳玲;魏易光;杨娇龙",null,"赵仁宝","石油工程学院",null,"中国石油大学(北京)","稠油油藏注空气燃烧管实验及数值模拟研究","2016","31","03","68-73","国家重大专项“稠油/超稠油经济有效开发关键技术”(编号:2016ZX05012)","A"]
["新疆石油地质","郑波","学生","郑波; 侯吉瑞; 张蔓; 宋兆杰; 王楠",null,"侯吉瑞",{"$f":"VLOOKUP(F800,[1]Sheet1!$B$2:$C$1437,2,FALSE)","v":"提高采收率研究院"},null,"中国石油大学(北京)","应用CT技术研究交联聚合物驱油机理","2016","37","01","97-101","国家科技重大专项(2011ZX05009-004)(2011ZX05052)","A"]
["环境科学研究","陈曲","学生","陈曲;郭继香;孙乾耀;吴丰昌;韩梅;白英臣",null,"郭继香",{"$f":"VLOOKUP(F801,[1]Sheet1!$B$2:$C$1437,2,FALSE)","v":"提高采收率研究院"},null,"中国石油大学(北京)","甲萘威的淡水水生生物水质基准研究","2016","29","01","84-91","国家自然科学基金项目(40903036,41173084)","R"]
["油气地质与采收率","郑泽宇","学生","郑泽宇;朱倘仟;侯吉瑞;罗旻;高扬;吴秀美;屈鸣",null,"侯吉瑞",{"$f":"VLOOKUP(F802,[1]Sheet1!$B$2:$C$1437,2,FALSE)","v":"提高采收率研究院"},null,"中国石油大学(北京)","碳酸盐岩缝洞型油藏注氮气驱后剩余油可视化研究","2016","23","02","93-97","国家科技重大专项“缝洞型碳酸盐岩油藏提高开发效果技术——补充能量注入体系优选实验研究”(2011ZX05014-003),国家“973”项目“碳酸盐岩缝洞型油藏提高采收率基础研究——提高采收率方法研究及优化”(2011CB201006),国家自然科学基金项目“缝洞型碳酸盐岩油藏多相流体","A"]
["天然气工业","孙春柳","学生","孙春柳; 侯吉瑞; 石磊; 梁冲; 甘忠海",null,"侯吉瑞",{"$f":"VLOOKUP(F803,[1]Sheet1!$B$2:$C$1437,2,FALSE)","v":"提高采收率研究院"},null,"中国石油大学(北京)","气藏型储气库注采运行物理模拟研究与应用","2016","36","05","58-61","中国石油天然气集团公司重大科技专项“地下储气库地质与气藏工程关键技术研究与应用”(编号:2015E-4002).","A"]
["高分子材料科学与工程","路遥","学生","路遥;康万利;吴海荣;徐德荣;李哲;杨红斌;张鹏翼;陈隽",null,"康万利",{"$f":"VLOOKUP(F804,[1]Sheet1!$B$2:$C$1437,2,FALSE)","v":"提高采收率研究院"},null,"中国石油大学(北京)","两亲聚合物/β-环糊精包合体系黏度调控方法","2016","32","12","98-103","国家自然科学基金资助项目(21273286);中国石油大学(北京)科研基金(2462015YJRC033)","A"]
["精细化工","高翔","学生","高翔;蒋建方;宋清新;赵珊;齐晶;王云峰",null,"蒋建方",{"$f":"VLOOKUP(F805,[1]Sheet1!$B$2:$C$1437,2,FALSE)","v":"提高采收率研究院"},null,"中国石油大学(北京)","多氢酸与砂岩矿物反应特性实验研究","2016","33","11","1301-1307","国家科技重大专项“复杂油气田地质与提高采收率技术”(2011ZX05009-004)National Science and Technology Major Projects \"Technologies of Geology and Enhanced Oil Recovery in Complex Oil and Gas Fields (2011ZX05009-004)\t高 ","A"]
["中国石油大学学报（自然科学版）","刘哲宇","学生","刘哲宇;李宜强;王晓光;楼仁贵;余昭艳;田坤",null,"李宜强",{"$f":"VLOOKUP(F806,[1]Sheet1!$B$2:$C$1437,2,FALSE)","v":"提高采收率研究院"},null,"中国石油大学","三元复合驱组分协同作用规律研究","2016","40","06","118-125","国家自然科学基金项目(51374221);中国石油大学优秀博士学位论文基金项目(01JB0585)","A"]
["钻井液与完井液","高翔","学生","高翔; 蒋建方; 马凤; 曹科学; 齐晶",null,"蒋建方",{"$f":"VLOOKUP(F807,[1]Sheet1!$B$2:$C$1437,2,FALSE)","v":"提高采收率研究院"},null,"中国石油大学(北京)","伊朗YD油田致密储层酸渣潜在性分析与预防研究","2016","33","03","107-111","“十二五”国家科技重大专题项目“孔隙型碳酸盐岩油藏提高采收率采油工艺关键技术”(2011ZX05031-003-004).","A"]
["油气地质与采收率","郝宏达","学生","郝宏达;侯吉瑞;赵凤兰;侯利斌;王志兴;宋兆杰",null,"侯吉瑞",{"$f":"VLOOKUP(F808,[1]Sheet1!$B$2:$C$1437,2,FALSE)","v":"提高采收率研究院"},null,"中国石油大学(北京)","低渗透非均质油藏二氧化碳非混相驱窜逸控制实验","2016","23","03","95-100,115","国家科技支撑计划“陕北煤化工CO2捕集、埋存与提高采收率技术示范”(2012BAC26B00).","A"]
["油气储运","曲世元","学生","曲世元; 侯吉瑞; 崔铭伟; 曹学文",null,"侯吉瑞",{"$f":"VLOOKUP(F809,[1]Sheet1!$B$2:$C$1437,2,FALSE)","v":"提高采收率研究院"},null,"中国石油大学(北京)","多相流动对X70钢腐蚀行为的影响","2016","35","05","536-541","国家自然科学基金项目“音速喷嘴中气液两相流临界分配特性及相分离控制理论”,51006123.","A"]
["西南石油大学学报（自然科学版）","赵凤兰","教师","赵凤兰; 李子豪; 李国桥; 宋兆杰; 侯吉瑞",null,"赵凤兰",{"$f":"VLOOKUP(F810,[1]Sheet1!$B$2:$C$1437,2,FALSE)","v":"提高采收率研究院"},null,"中国石油大学 (北京)","三元复合驱后关键储层特征参数实验研究","2016","38","05","157-164","国家重大科技专项示范工程（2011ZX05052）；国家自然科学基金（51174216）。","A"]
["日用化学工业","李哲","学生","李哲; 康万利; 吴海荣; 于泱; 路遥",null,"康万利",{"$f":"VLOOKUP(F811,[1]Sheet1!$B$2:$C$1437,2,FALSE)","v":"提高采收率研究院"},null,"中国石油大学(北京)","利用多重光散射法研究纳米 TiO2水分散体系稳定性","2016","46","07","409-413","国家自然科学基金资助项目（21273286）；中国石油大学（北京）科研基金资助项目（2462015YJRC033）","A"]
["地质与勘探","苑登御","学生","苑登御; 侯吉瑞; 王志兴; 苏伟; 赵大鹏",null,"侯吉瑞",{"$f":"VLOOKUP(F812,[1]Sheet1!$B$2:$C$1437,2,FALSE)","v":"提高采收率研究院"},null,"中国石油大学(北京)","塔河油田缝洞型碳酸盐岩油藏注氮气及注泡沫提高采收率研究","2016","52","04","791-798","国家重大专项(2011ZX05014-003),国家973专题(2011CB201006),国家自然科学基金(51504268),中国石油大学(北京)科研基金(2462014YJRC053)联合资助.","A"]
["油田化学","赵凤兰","教师","赵凤兰; 吕春阳; 侯吉瑞; 苏伟; 徐国瑞",null,"赵凤兰",{"$f":"VLOOKUP(F813,[1]Sheet1!$B$2:$C$1437,2,FALSE)","v":"提高采收率研究院"},null,"中国石油大学(北京)","改性淀粉凝胶-泡沫复合调驱技术可行性及调剖体系定位位置优化","2016","33","03","425-430","国家重大专项“油田开采后期提高采收率技术”（项目编号2011ZX05009-004）。","A"]
["天然气与石油","蒋建方","教师","蒋建方; 高翔; 王瑛; 许永楠",null,"蒋建方",{"$f":"VLOOKUP(F814,[1]Sheet1!$B$2:$C$1437,2,FALSE)","v":"提高采收率研究院"},null,"中国石油大学(北京)","砂岩酸化用多氢酸体系螯合性实验分析","2016","34","04","55-59,96","国家科技重大专项“复杂油气田地质与提高采收率技术”下属专题“低渗透油田弹性驱替界限与开发后期井网优化调整技术研究”(2011 ZX 05009-004)","A"]
["油气地质与采收率","吴秀美","学生","吴秀美; 侯吉瑞; 郑泽宇; 罗旻; 高扬",null,"侯吉瑞",{"$f":"VLOOKUP(F815,[1]Sheet1!$B$2:$C$1437,2,FALSE)","v":"提高采收率研究院"},null,"中国石油大学(北京)","缝洞型碳酸盐岩油藏底水对后续注水注气开发的影响","2016","23","05","111-115","国家科技重大专项“缝洞型碳酸盐岩油藏提高开发效果技术——补充能量注入体系优选实验研究”(2011ZX05014-003),国家“973”计划“碳酸盐岩缝洞型油藏提高采收率基础研究——提高采收率方法研究及优化”(2011CB201006).","A"]
["石油钻采工艺","赵凤兰","教师","赵凤兰; 曹淑君; 侯吉瑞; 苑光宇",null,"赵凤兰",{"$f":"VLOOKUP(F816,[1]Sheet1!$B$2:$C$1437,2,FALSE)","v":"提高采收率研究院"},null,"中国石油大学(北京)","铬冻胶与高渗油藏窜流通道强度的适应性研究","2016","38","03","382-386","国家科技重大专项“油田开采后期提高采收率新技术”（编号2011ZX05009-004）；中国石油大学（北京）科研基金资助（编号2462012KYJJ23）。","A"]
["科学技术与工程","李秋言","学生","李秋言; 侯吉瑞; 谢东海; 赵凤兰; 宋兆杰",null,"侯吉瑞",{"$f":"VLOOKUP(F817,[1]Sheet1!$B$2:$C$1437,2,FALSE)","v":"提高采收率研究院"},null,"中国石油大学(北京)","分层注采三元复合驱对大庆二类油层适应性评价","2016","16","28","63-69","国家科技重大专项（2016ZX05009－004）、国家示范工程（2011ZX05052）、国家自然科学基金项目（51174216）联合资助","A"]
["石油学报（石油加工）","胡瑾秋","教师","胡瑾秋; 张来斌; 王安琪",null,"侯吉瑞",{"$f":"VLOOKUP(F818,[1]Sheet1!$B$2:$C$1437,2,FALSE)","v":"提高采收率研究院"},null,"中国石油大学","基于格兰杰因果关系检验的炼化系统故障根原因诊断方法","2016","32","06","1266-1272","国家自然科学基金项目(51574263)、教育部新世纪优秀人才支持计划项目(NCET-12-0972)和中国石油大学(北京)科研基金项目(2462015YQ0403)资助","A"]
["石油钻采工艺","曹科学","学生","曹科学;蒋建方;郭亮;王乐;马凤;安冬梅",null,"蒋建方",{"$f":"VLOOKUP(F819,[1]Sheet1!$B$2:$C$1437,2,FALSE)","v":"提高采收率研究院"},null,"中国石油大学","石英砂陶粒组合支撑剂导流能力实验研究","2016","38","05","684-688","中国石油天然气股份公司重大科技专项“长庆油田油气当量上产5000万吨关键技术研究--采油采气关键技术研究”（编号2011E-2602-2）。","A"]
["中国矿业","姜帅","学生","姜帅; 宋兆杰; 李根; 侯吉瑞",null,"宋兆杰",{"$f":"VLOOKUP(F820,[1]Sheet1!$B$2:$C$1437,2,FALSE)","v":"提高采收率研究院"},null,"中国石油大学","轻质油藏注空气提高采收率技术适应性探讨","2016","25","12","82-86,105","国家自然科学基金青年科学基金项目\"缝洞型油藏多相流体流动规律与剩余油形成机理研究\"资助(编号:51504268);中国石油大学(北京)科研基金\"缝洞型碳酸盐岩油藏提高采收率技术研究\"资助(编号:2462014YJRC","A"]
["油田化学","孔德彬","学生","孔德彬;李宜强;岳增存;向建安;杨怀军;刘天洋",null,"李宜强",{"$f":"VLOOKUP(F821,[1]Sheet1!$B$2:$C$1437,2,FALSE)","v":"提高采收率研究院"},null,"中国石油大学(北京)","表面活性剂DPS的性能优化研究","2016","33","04","692-695","国家自然科学基金“三元复合驱微观剩余油赋存状态及形成机理”（项目编号51374221）。","A"]
["天然气与石油","高翔","学生","高翔; 蒋建方; 赵珊",null,"蒋建方",{"$f":"VLOOKUP(F822,[1]Sheet1!$B$2:$C$1437,2,FALSE)","v":"提高采收率研究院"},null,"中国石油大学","镇北油田致密储层注水井复合酸化技术","2016","34","06","55-59,88","中国石油天然气股份公司重大科技专项“长庆油田油气当量上产5000万吨关键技术研究—采油采气关键技术研究”(2011E-2602-2)","A"]
["化工进展","蒋晓阳","学生","蒋晓阳; 周广林; 樊彤彤; 崔丹丹; 周红军",null,"周广林",{"$f":"VLOOKUP(F823,[1]Sheet1!$B$2:$C$1437,2,FALSE)","v":"新能源研究院"},null,"中国石油大学(北京)","助剂硼对K2O-Cr2O3/γ-Al2O3催化剂异丁烷脱氢性能的影响","2016","NULL","01","150-156","","A"]
["工业催化","陈志伟","学生","陈志伟; 周广林; 吴全贵; 于海明; 周红军",null,"周广林",{"$f":"VLOOKUP(F824,[1]Sheet1!$B$2:$C$1437,2,FALSE)","v":"新能源研究院"},null,"中国石油大学(北京)","正丁烯骨架异构镁碱沸石分子筛催化剂的研制与应用","2016","24","03","70-74","","A"]
["精细石油化工","张国宾","学生","张国宾;许振宁;周广林;李芹;苑少军;王栋;周红军",null,"周广林",{"$f":"VLOOKUP(F825,[1]Sheet1!$B$2:$C$1437,2,FALSE)","v":"新能源研究院"},null,"中国石油大学(北京)","催化加氢汽油深度吸附脱硫性能研究","2016","33","03","55-59","","A"]
["石油化工","周广林","教师","周广林; 张国宾; 李芹; 侯立国; 周红军",null,"周广林",{"$f":"VLOOKUP(F826,[1]Sheet1!$B$2:$C$1437,2,FALSE)","v":"新能源研究院"},null,"中国石油大学(北京)","Ni/ZnO-Al2O3-SiO2汽油脱硫吸附剂的再生","2016","45","03","305-310","","A"]
["化工学报","刘佳","学生","刘佳;姜桂元;赵震;韩善磊;张耀远;杨庆鑫;孙乾耀;王雅君",null,"姜桂元",{"$f":"VLOOKUP(F827,[1]Sheet1!$B$2:$C$1437,2,FALSE)","v":"新能源研究院"},null,"中国石油大学(北京)","Pt/TiO2/ZSM-5催化剂的制备及其催化转化正丁烷","2016","67","08","3363-3373","国家重点基础研究发展计划项目（2012CB215001）；国家自然科学基金石油化工联合基金项目（U1162117）；北京高等学校青年英才计划项目（ YETP0696）；教育部新世纪优秀人才计划项目（ NCET-11-0732）；中国石油大学（北京）前瞻导向项目（QZDX-2014-02）。@@@@supported","A"]
["化工学报","赵丹","学生","赵丹;袁美华;张耀远;姜桂元;赵震;刘佳;韩善磊;孙华倩",null,"姜桂元",{"$f":"VLOOKUP(F828,[1]Sheet1!$B$2:$C$1437,2,FALSE)","v":"新能源研究院"},null,"中国石油大学(北京)","Cr掺杂ZSM-5双功能催化剂的制备及其催化裂解正丁烷","2016","67","08","3400-3407","国家重点基础研究发展计划项目（2012CB215001）；国家自然科学基金石油化工联合基金项目（U1162117）；北京高等学校青年英才计划项目（ YETP0696）；教育部新世纪优秀人才计划项目（NCET-11-0732）；中国石油大学（北京）前瞻导向项目（QZDX-2014-02）。@@@@supported b","A"]
["燃料化学学报","樊彤彤","学生","樊彤彤; 周广林; 房鑫; 李芹; 周红军",null,"周广林",{"$f":"VLOOKUP(F829,[1]Sheet1!$B$2:$C$1437,2,FALSE)","v":"新能源研究院"},null,"中国石油大学(北京)","钡改性对Cr2 O3/Al2 O3催化剂异丁烷脱氢性能的影响","2016","44","09","1125-1130","","A"]
["化工进展","张小锋","学生","张小锋; 冯霄",null,"冯霄","新能源研究院",null,"中国石油大学(北京)","三元制冷系统分析","2016","NULL","02","432-438","国家重点基础研究发展计划项目（2012CB720500）。","A"]
["化工进展","薛超","学生","薛超; 冯霄; 邓春",null,"冯霄","新能源研究院",null,"中国石油大学(北京)","镍系顺丁橡胶溶剂及丁二烯回收装置过程模拟","2016","NULL","02","439-444","国家重点基础研究发展计划项目（2012CB720500）。","A"]
["化工进展","刘富余","学生","刘富余; 冯霄",null,"冯霄","新能源研究院",null,"中国石油大学(北京)","炼化企业节能节水及装置扩能改造瓶颈辨识探讨","2016","35","04","995-999","国家重点基础研究发展计划项目（2012CB720500）。","A"]
["计算机与应用化学","王晨升","学生","王晨升; 冯霄",null,"冯霄","新能源研究院",null,"中国石油大学(北京)","吸收式制冷循环的能级分析","2016","33","01","10-16","国家自然科学基金项目(21576286)","A"]
["计算机与应用化学","刘欢","学生"," 刘欢; 刘铁成; 冯霄",null,"冯霄","新能源研究院",null,"中国石油大学(北京)","德士古水煤浆气化过程模拟","2016","33","09","989-994","国家高技术研究发展计划课题(2011AA05A202)","A"]
["计算机与应用化学","刘铁成","学生"," 刘铁成; 刘欢; 冯霄",null,{"$f":"VLOOKUP(B835,[2]Sheet1!$D$1:$I$6737,6,FALSE)","v":"冯霄"},{"$f":"VLOOKUP(B835,[2]Sheet1!$D$2:$F$6737,3,FALSE)","v":"新能源研究院"},null,"中国石油大学(北京)","柴油加氢装置换热网络优化","2016","33","11","1187-1191","国家自然科学基金项目(21476256)","A"]
["计算机与应用化学","李婉瑶","学生","李婉瑶; 冯霄",null,"冯霄","新能源研究院",null,"中国石油大学(北京)","炼厂低温热系统的综合利用","2016","33","10","1130-1134","国家自然科学基金项目(21476256)","A"]
["中国石油大学学报（自然科学版）","周晓玲","学生","周晓玲; 王震; 肖文涛",null,"王震","中国能源战略研究院",null,"中国石油大学(北京)","原油远洋拼船运输方案优化研究","2016","40","02","174-180","国家自然科学基金项目(71303258)","A"]
["中国能源","仇鑫华","学生","仇鑫华; 王震; 丛威",null,"王震","中国能源战略研究院",null,"中国石油大学(北京)","基于委托-代理模型的我国深水油气合作激励机制研究","2016","38","08","21-24","","A"]
["现代化工","韩星",{"$error":"#N/A"},"韩星; 王坤",null,{"$error":"#N/A"},{"$f":"VLOOKUP(F839,[1]Sheet1!$B$2:$C$1437,2,FALSE)","v":{"$error":"#N/A"}},null,"中国石油大学(北京)","天然气管道优化运行技术研究进展","2016","36","01","29-32","","R"]
["油气储运","周雪静",{"$error":"#N/A"},"周雪静",null,{"$error":"#N/A"},{"$f":"VLOOKUP(F840,[1]Sheet1!$B$2:$C$1437,2,FALSE)","v":{"$error":"#N/A"}},null,"中国石油大学(北京)","成品油管网批次计划编制方法","2016","35","03","285-289","","A"]
["当代化工","巩孟",{"$error":"#N/A"},"巩孟; 张琰; 王玥; 李博; 殷慧",null,{"$error":"#N/A"},{"$f":"VLOOKUP(F841,[1]Sheet1!$B$2:$C$1437,2,FALSE)","v":{"$error":"#N/A"}},null,"中国石油大学(北京)","含煤粉的煤层气T型管道颗粒分布特性","2016","45","01","112-114","","L"]
["钻井液与完井液","熊波",{"$error":"#N/A"},"熊波; 徐敏杰; 王丽伟; 车明光; 刘玉婷",null,{"$error":"#N/A"},{"$f":"VLOOKUP(F842,[1]Sheet1!$B$2:$C$1437,2,FALSE)","v":{"$error":"#N/A"}},null,"中国石油大学(北京)","清洁自生热压裂液技术与实验方法","2016","33","01","118-121","国家科技重大专项“低渗特低渗油气储层高效改造技术”(2011ZX05013-003);股份公司课题“特低、超低渗油藏高效改造关键技术”(2011B-1202).","A"]
["西南石油大学学报（自然科学版）","高劲",{"$error":"#N/A"},"高劲; 曹喆",null,{"$error":"#N/A"},{"$f":"VLOOKUP(F843,[1]Sheet1!$B$2:$C$1437,2,FALSE)","v":{"$error":"#N/A"}},null,"中国石油大学(北京)","准噶尔盆地下侏罗统页岩气形成条件","2016","NULL","01","37-45","","A"]
["中南大学学报（自然科学版）","徐少华",{"$error":"#N/A"},"徐少华;王英民;何敏;杜家元;陈维涛;秦春雨;王利良",null,{"$error":"#N/A"},{"$f":"VLOOKUP(F844,[1]Sheet1!$B$2:$C$1437,2,FALSE)","v":{"$error":"#N/A"}},null,"中国石油大学(北京)","强制海退体系域的识别特征与成因分析","2016","NULL","02","531-540","国家自然科学基金资助项目(41372115)；国家重点基础研究发展规划(973计划)项目(2009CB219407)(Project (41372115) supported by the National Natural Science Foundation of China; Project (2009CB219407) supported by the National Basic Research Development Prog","A"]
["西安科技大学学报","唐建云",{"$error":"#N/A"},"唐建云; 宋红霞; 章星; 陈玉宝",null,null,{"$f":"VLOOKUP(F845,[1]Sheet1!$B$2:$C$1437,2,FALSE)","v":{"$error":"#N/A"}},null,"中国石油大学(北京)克拉玛依校区","安塞油田楼坪区长10致密储层成岩作用研究","2016","36","01","31-39","国家重大专项(2011ZX05005-004-007HZ)","A"]
["古地理学报","于景维",{"$error":"#N/A"},"于景维; 柳妮; 文华国; 朱永才; 张宗斌",null,null,{"$f":"VLOOKUP(F846,[1]Sheet1!$B$2:$C$1437,2,FALSE)","v":{"$error":"#N/A"}},null,"中国石油大学(北京)克拉玛依校区","准噶尔盆地阜东斜坡区上侏罗统齐古组高分辨率层序分析及砂体预测","2016","18","02","265-274","国家重大专项“大型油气田及煤层气开发”（编号2011ZX05001－005－01）资助成果。［Financing results of the important project of sci-ence and technology in developing great oil &gas field and coal bed gas （No．2011ZX05001－005－01）］","A"]
["中国煤炭地质","郭雪晶",{"$error":"#N/A"},"郭雪晶;何顺利;陈胜;陈玺;王烁;秦玲玲",null,null,{"$f":"VLOOKUP(F847,[1]Sheet1!$B$2:$C$1437,2,FALSE)","v":{"$error":"#N/A"}},null,"中国石油大学(北京)","基于纳米CT及数字岩心的页岩孔隙微观结构及分布特征研究","2016","28","02","28-34","","A"]
["石油实验地质","熊波",{"$error":"#N/A"},"熊波; 刘坤; 郭凯; 赵广民",null,null,{"$f":"VLOOKUP(F848,[1]Sheet1!$B$2:$C$1437,2,FALSE)","v":{"$error":"#N/A"}},null,"中国石油大学(北京)","基于X?CT技术对黔西滇东区域煤储层物性特征的研究","2016","38","03","407-412,417","国家自然科学基金面上项目(41272175)资助.","A"]
["天然气地球科学","吴萧",{"$error":"#N/A"},"吴萧; 韩杰; 朱永峰; 刘俊锋",null,null,{"$f":"VLOOKUP(F849,[1]Sheet1!$B$2:$C$1437,2,FALSE)","v":{"$error":"#N/A"}},null,"中国石油大学(北京)","塔里木盆地轮古东油气相态和饱和度特征及其主控因素分析","2016","27","01","30-40","国家重大科技专项(编号:2011ZX05049)资助.","A"]
["现代化工","梁晓佳",{"$error":"#N/A"},"梁晓佳 ， 齐文义 ， 朱建华 ",null,null,{"$f":"VLOOKUP(B850,[2]Sheet1!$D$2:$F$6737,3,FALSE)","v":{"$error":"#N/A"}},{"$f":"VLOOKUP(B850,[2]Sheet1!$D$1:$I$6737,6,FALSE)","v":{"$error":"#N/A"}},"中国石油大学(北京)","用于CO还原NO的CuO/Al2O3催化剂的制备及性能评价","2016","36","02","83-86","","A"]
["中国矿业大学学报","徐少华",null,"徐少华;王英民;何敏;杜家元;徐国强;陈维涛;魏文杰;陈晨",null,null,{"$f":"VLOOKUP(B851,[2]Sheet1!$D$2:$F$6737,3,FALSE)","v":{"$error":"#N/A"}},{"$f":"VLOOKUP(B851,[2]Sheet1!$D$1:$I$6737,6,FALSE)","v":{"$error":"#N/A"}},"中国石油大学(北京)","珠江口盆地陆坡类型及其对深水储层的控制","2016","45","05","982-992","国家自然科学基金项目(41372115);国家重点基础研究发展计划(973)项目(2009CB219407)","A"]
["吉林大学学报（工学版）","李蕙",{"$error":"#N/A"},"李蕙; 王延江; 刘宝弟; 刘伟锋; 王肖萌",null,null,{"$f":"VLOOKUP(F852,[1]Sheet1!$B$2:$C$1437,2,FALSE)","v":{"$error":"#N/A"}},null,"中国石油大学(北京)","基于快速字典学习和特征稀有性的显著目标提取","2016","46","05","1710-1717","国家自然科学基金项目(61271407,61301242,61402535).","A"]
["吉林大学学报（地球科学版）","杜治利",{"$error":"#N/A"},"杜治利; 曾昌民; 邱海峻; 杨有星; 张亮",null,null,{"$f":"VLOOKUP(F853,[1]Sheet1!$B$2:$C$1437,2,FALSE)","v":{"$error":"#N/A"}},null,"中国石油大学(北京)","塔西南叶城凹陷二叠系两套烃源岩特征及柯东1井油源分析","2016","46","03","651-660","国土资源部全国油气资源战略选区调查与评价项目(1211302108022)Supported by the Project of National Oil and Gas Resources Survey and Strategic Selections,Ministry of Land and Resources (1211302108022)","A"]
["环境污染与防治","赵盛开",{"$error":"#N/A"},"赵盛开;张梅华;潘利祥;孙璐;朱彤;王昕竑;蒋继宏;王立辉;姜朵朵;于松",null,null,{"$f":"VLOOKUP(F854,[1]Sheet1!$B$2:$C$1437,2,FALSE)","v":{"$error":"#N/A"}},null,"中国石油大学(北京)","一株抗汞真菌的分离纯化及其对含汞废水治理特性的研究","2016","38","03","56-60","国家自然科学基金资助项目(No.31370646).","A"]
["油田化学","齐宁",null,"齐宁; 何利敏; 李柏杨; 刘帅; 田壮壮",null,null,{"$f":"VLOOKUP(F855,[1]Sheet1!$B$2:$C$1437,2,FALSE)","v":{"$error":"#N/A"}},null,"中国石油大学(北京)","十八烷基三氯硅烷自组装抑水石英砂的制备及性能评价","2016","33","03","445-450","国家自然科学基金青年科学基金项目“纳米SiO2改性纤维树脂防砂体的力学性能及破坏机理研究”（项目编号51204199）。","A"]
["油田化学","栗原君",null,"栗原君; 夏楠; 李艳萍",null,null,{"$f":"VLOOKUP(F856,[1]Sheet1!$B$2:$C$1437,2,FALSE)","v":{"$error":"#N/A"}},null,"中国石油大学(北京)","低矿化度水及十六烷基羟丙基磺基甜菜碱表面活性剂的驱油作用","2016","33","03","487-491","","A"]
["计算机与数字工程","郭旺",{"$error":"#N/A"},"郭旺 ， 路游 ",null,null,{"$f":"VLOOKUP(F857,[1]Sheet1!$B$2:$C$1437,2,FALSE)","v":{"$error":"#N/A"}},null,"中国石油大学(北京)","一类在 Box Splines 空间中封闭曲面的重构算法磁","2016","44","09","1655-1658,1667","","A"]
["天然气地球科学","谢红兵",{"$error":"#N/A"},"谢红兵;陈晓林;郭秋麟;易庆;马忠;陈宁生;高日丽;孟燕龙",null,null,{"$f":"VLOOKUP(F858,[1]Sheet1!$B$2:$C$1437,2,FALSE)","v":{"$error":"#N/A"}},null,"中国石油大学(北京)","基于WEB—GIS的油气资源评价数据库构建及应用","2016","27","09","1752-1760","中国石油天然气股份有限公司重大科技专项“中国石油第四次油气资源评价”01课题“油气资源评价方法、软件与数据库”(编号:2013E-050201)资助.","A"]
["润滑与密封","张嗣伟",null,"张嗣伟",null,null,{"$f":"VLOOKUP(B859,[2]Sheet1!$D$2:$F$6737,3,FALSE)","v":{"$error":"#N/A"}},{"$f":"VLOOKUP(B859,[2]Sheet1!$D$1:$I$6737,6,FALSE)","v":{"$error":"#N/A"}},"中国石油大学(北京)","绿色摩擦学的最新进展","2016","41","09","5-13","","R"]
["自动化技术与应用","邓非",null,"邓非; 尹洪东",null,null,{"$f":"VLOOKUP(B860,[2]Sheet1!$D$2:$F$6737,3,FALSE)","v":{"$error":"#N/A"}},{"$f":"VLOOKUP(B860,[2]Sheet1!$D$1:$I$6737,6,FALSE)","v":{"$error":"#N/A"}},"中国石油大学(北京)","基于串口通信的地面监测系统设计","2016","35","11","114-117","","A"]
["中国矿业大学学报","廖林",null,"廖林;田多文;车璐飞;魏军;李向阳;肖文华",null,null,{"$f":"VLOOKUP(B861,[2]Sheet1!$D$2:$F$6737,3,FALSE)","v":{"$error":"#N/A"}},{"$f":"VLOOKUP(B861,[2]Sheet1!$D$1:$I$6737,6,FALSE)","v":{"$error":"#N/A"}},"中国石油大学(北京)","薄互层泥云岩储层裂缝预测方法研究","2016","45","02","347-356","国家重点基础研究发展计划(973)项目(2015CB453000);中国石油集团重大科技专项(2012E-3301)","A"]
["中国粉体技术","邢化朝",null,"邢化朝;刘俊杰;许潇;魏伟胜;范燕;马一博",null,null,{"$f":"VLOOKUP(B862,[2]Sheet1!$D$2:$F$6737,3,FALSE)","v":{"$error":"#N/A"}},{"$f":"VLOOKUP(B862,[2]Sheet1!$D$1:$I$6737,6,FALSE)","v":{"$error":"#N/A"}},"中国石油大学(北京)","纳米颗粒的粒径测量方法","2016","22","05","54-57","国家科技支撑计划项目,编号:2011BAK15B05.","A"]
["吉林大学学报（地球科学版）","林承焰",null,"林承焰;曹铮;任丽华;张昌盛;范瑞峰;王叶;邢新亚;马晓兰",null,null,{"$f":"VLOOKUP(B863,[2]Sheet1!$D$2:$F$6737,3,FALSE)","v":{"$error":"#N/A"}},{"$f":"VLOOKUP(B863,[2]Sheet1!$D$1:$I$6737,6,FALSE)","v":{"$error":"#N/A"}},"中国石油大学(北京)","松辽盆地南部大情字井向斜区葡萄花油层石油富集规律及成藏模式","2016","46","06","1598-1610","国家科技重大专项（2011ZX05009003）；中央高校基本科研业务费专项资金（15CX06012A）Supported by National Science and Technology Major Project（2011ZX05009003）and Fundamental Research Funds for the Central Universities （15CX06012A）","A"]
["石油地球物理勘探","杨午阳",null,"杨午阳; 张厚柱; 撒利明; 周春雷; 魏新建",null,null,{"$f":"VLOOKUP(B864,[2]Sheet1!$D$2:$F$6737,3,FALSE)","v":{"$error":"#N/A"}},{"$f":"VLOOKUP(B864,[2]Sheet1!$D$1:$I$6737,6,FALSE)","v":{"$error":"#N/A"}},"中国石油大学(北京)","逆时偏移关键问题探讨","2016","51","06","1251-1262","本项研究受国家科技重大专项“多波地震勘探及裂缝储层预测配套技术”(2011ZX05019-008)资助.","R"]
["测井技术","孙建孟",null,"孙建孟; 张鹏云; 冯春珍; 刘行军",null,null,{"$f":"VLOOKUP(B865,[2]Sheet1!$D$2:$F$6737,3,FALSE)","v":{"$error":"#N/A"}},{"$f":"VLOOKUP(B865,[2]Sheet1!$D$1:$I$6737,6,FALSE)","v":{"$error":"#N/A"}},"中国石油大学(北京)","LS油田水平井地层评价方法研究","2016","40","06","675-682","国家科技重大专项项目(2011ZX05014-004-002H)","A"]
["石油与天然气地质","张琴",null,"张琴;梅啸寒;谢寅符;王权鑫;李晨溪;阳孝法;杜会尧;禄佳景",null,null,{"$f":"VLOOKUP(B866,[2]Sheet1!$D$2:$F$6737,3,FALSE)","v":{"$error":"#N/A"}},{"$f":"VLOOKUP(B866,[2]Sheet1!$D$1:$I$6737,6,FALSE)","v":{"$error":"#N/A"}},"中国石油大学(北京)","不同类型海绿石的发育特征及分类体系探讨","2016","37","06","952-963","国家自然科学基金项目(41302081);教育部留学回国启动基金项目(ZX20140267).","A"]
["海洋学报（英文版）","WAN Yong",null,"WAN YongZHANG JieMENG JunminWANG JingDAI Yongshou",null,null,{"$f":"VLOOKUP(B867,[2]Sheet1!$D$2:$F$6737,3,FALSE)","v":{"$error":"#N/A"}},{"$f":"VLOOKUP(B867,[2]Sheet1!$D$1:$I$6737,6,FALSE)","v":{"$error":"#N/A"}},"中国石油大学（北京）","Study on wave energy resource assessing method based on altimeter data—A case study in Northwest Pacific","2016","35","03","117-129","The Dragon Ⅲ Project of ESA-MOST Dragon Cooperation under contract No. 10412; the Ocean Renewable Energy Special Fund Project of State Oceanic Administration under contract No. GHME2011ZC07; the National Natural Science Foundation of China (NSFC) un","A"]
["中国石油勘探","杨平",null,"杨平; 高国成; 侯艳; 谷永兴; 但光箭",null,null,{"$f":"VLOOKUP(B868,[2]Sheet1!$D$2:$F$6737,3,FALSE)","v":{"$error":"#N/A"}},{"$f":"VLOOKUP(B868,[2]Sheet1!$D$1:$I$6737,6,FALSE)","v":{"$error":"#N/A"}},"中国石油大学(北京)","针对陆上深层目标的地震资料采集技术——以塔里木盆地深层勘探为例","2016","21","01","61-75","国家科技重大专项“大型油气田及煤层气开发”(2011ZX05001-002).","A"]
["中国化学工程学报（英文版）","Yan Wu",null,"Yufei ， Wang ， Xiao ， Feng",null,null,{"$f":"VLOOKUP(B869,[2]Sheet1!$D$2:$F$6737,3,FALSE)","v":{"$error":"#N/A"}},{"$f":"VLOOKUP(B869,[2]Sheet1!$D$1:$I$6737,6,FALSE)","v":{"$error":"#N/A"}},"中国石油大学（北京）","A heuristic approach for petrochemical plant layout considering steam pipeline length","2016","24","08","1032-1037","Supported by the National Basic Research Program of China (2012CB720500) and the National Natural Science Foundation of China (21306228).","A"]
["科学技术与工程","齐宁",null,"齐宁;邓爽;李侠清;方明君;汪洋;李柏杨",null,null,{"$f":"VLOOKUP(B870,[2]Sheet1!$D$2:$F$6737,3,FALSE)","v":{"$error":"#N/A"}},{"$f":"VLOOKUP(B870,[2]Sheet1!$D$1:$I$6737,6,FALSE)","v":{"$error":"#N/A"}},"中国石油大学(北京)","碳酸盐岩自转向酸酸液流动模拟实验研究与评价","2016","16","30","11-16","2016年5月14日收到2014年中央高校基本科研业务费专项资金项目(14CX05019A)资助","A"]
["古地理学报","冯增昭",null,"冯增昭",null,null,{"$f":"VLOOKUP(B871,[2]Sheet1!$D$2:$F$6737,3,FALSE)","v":{"$error":"#N/A"}},{"$f":"VLOOKUP(B871,[2]Sheet1!$D$1:$I$6737,6,FALSE)","v":{"$error":"#N/A"}},"中国石油大学(北京)","论古地理图","2016","18","03","285-314","","R"]
["计算机测量与控制","吴作君",{"$error":"#N/A"},"吴作君; 刘国华",null,null,{"$f":"VLOOKUP(F872,[1]Sheet1!$B$2:$C$1437,2,FALSE)","v":{"$error":"#N/A"}},null,"中国石油大学","自适应环境的机器人视觉伺服控制方法","2016","24","12","63-66,70","安徽省科技攻关项目(1401b042010).","A"]
["江苏农业科学","樊彦国",{"$error":"#N/A"},"樊彦国; 韩志聪; 李倩倩; 田从永",null,null,{"$f":"VLOOKUP(F873,[1]Sheet1!$B$2:$C$1437,2,FALSE)","v":{"$error":"#N/A"}},null,"中国石油大学","基于 GIS 和 CSLE 的土壤侵蚀定量评价--以山东省临沂地区为例","2016","44","11","439-442","农业气象保障与重点实验室开放基金（编号AMF201309）；中央高校基本科研业务费专项资金（编号11CX04012A）","A"]
["材料导报","白靖琨",{"$error":"#N/A"},"白靖琨; 张宇; 王景新",null,null,{"$f":"VLOOKUP(F874,[1]Sheet1!$B$2:$C$1437,2,FALSE)","v":{"$error":"#N/A"}},null,"中国石油大学","基于酶响应的智能材料研究?","2016","30","23","135-140","国家自然科学基金(21373270)","A"]
["中国石油大学学报（自然科学版）","刘子媛",{"$error":"#N/A"},"刘子媛; 杜峰; 李豪; 郭璐玥",null,null,{"$f":"VLOOKUP(F875,[1]Sheet1!$B$2:$C$1437,2,FALSE)","v":{"$error":"#N/A"}},null,"中国石油大学","十四集总催化重整反应动力学模型研究","2016","40","06","178-183","中央高校基本科研业务费专项(13CX02056A)","A"]
["中国石油大学学报（自然科学版）","段友祥",null,"段友祥; 仝兆岐; 李卿; 孙歧峰; 李洪强",null,null,{"$f":"VLOOKUP(F876,[1]Sheet1!$B$2:$C$1437,2,FALSE)","v":{"$error":"#N/A"}},null,"中国石油大学","面向随钻的井筒可视化方法研究","2016","40","06","63-70","国家科技重大专项(2011ZX0511-003)","A"]
["中国石油大学学报（自然科学版）","齐宁",{"$error":"#N/A"},"齐宁; 刘帅; 李柏杨; 方明君; 田壮壮",null,null,{"$f":"VLOOKUP(F877,[1]Sheet1!$B$2:$C$1437,2,FALSE)","v":{"$error":"#N/A"}},null,"中国石油大学","可脱离式充填筛管用降解剂的研制及降解机制","2016","40","06","87-93","国家自然科学青年基金项目(51204199)","A"]
["中国石油大学学报（自然科学版）","沈跃",{"$error":"#N/A"},"沈跃;张令坦;曹璐;盛利民;李林;苏义脑",null,null,{"$f":"VLOOKUP(F878,[1]Sheet1!$B$2:$C$1437,2,FALSE)","v":{"$error":"#N/A"}},null,"中国石油大学","基于旋转阀控制脉冲重构的钻井液QPSK信号解码及误码率分析","2016","40","06","94-100","国家自然科学基金项目(51274236);国家“863”计划项目(2006AA06A101)","A"]
["中国石油大学学报（自然科学版）","李静",{"$error":"#N/A"},"李静;周汉国;刘思萌;郭建春;彭成乐;侯江朋",null,null,{"$f":"VLOOKUP(F879,[1]Sheet1!$B$2:$C$1437,2,FALSE)","v":{"$error":"#N/A"}},null,"中国石油大学","基于数字图像处理的非均质岩石材料细观尺度应力分析","2016","40","06","143-149","国家自然科学基金项目(41272141);国家科技重大专项(2016ZX05002-002)","A"]
["中国石油大学学报（自然科学版）","赵东亚",{"$error":"#N/A"},"赵东亚; 揭超; 李兆敏",null,null,{"$f":"VLOOKUP(F880,[1]Sheet1!$B$2:$C$1437,2,FALSE)","v":{"$error":"#N/A"}},null,"中国石油大学","醇胺法碳捕集工艺解吸塔能耗分析","2016","40","06","150-155","国家自然科学基金项目(61273188,61473312)","A"]
["中国石油大学学报（自然科学版）","王越",{"$error":"#N/A"},"王越; 陈世悦; 李天宝; 梁绘媛; 王剑",null,null,{"$f":"VLOOKUP(F881,[1]Sheet1!$B$2:$C$1437,2,FALSE)","v":{"$error":"#N/A"}},null,"中国石油大学","扒楼沟剖面二叠系辫状河砂体构型与非均质性特征","2016","40","06","1-8","“十二五”国家油气重大专项(2011ZX05013-002)","A"]
["中国石油大学学报（自然科学版）","蔡来星",{"$error":"#N/A"},"蔡来星;卢双舫;张训华;黄文彪;肖国林;吴志强",null,null,{"$f":"VLOOKUP(F882,[1]Sheet1!$B$2:$C$1437,2,FALSE)","v":{"$error":"#N/A"}},null,"中国石油大学","松南中央坳陷泉四段上生下储式致密砂岩油成藏主控因素","2016","40","06","9-21","国家“973”专项课题(2014CB239005);国家重点自然科学基金项目(41330313);国家自然科学基金项目(41402109);国家油气重大专项(2011ZX05007-001)","A"]
["数学季刊（英文版）","LIU Bing-chen",{"$error":"#N/A"},"LIU Bing-chen;ZHANG Chang-cheng",null,null,{"$f":"VLOOKUP(F883,[1]Sheet1!$B$2:$C$1437,2,FALSE)","v":{"$error":"#N/A"}},null,"China University of Petroleum","Uniform Blow-up Behavior for Degenerate and Singular Parab olic Equations","2016","31","02","125-138","Supported by the National Natural Science Foundation of China(11201483); Supported by the Natural Science Foundation of Shandong Province; Supported by the Fundamental Research Funds for the Central Universities","A"]
["工业催化","张安玉",{"$error":"#N/A"},"张安玉; 于濂清; 张志萍; 张亚萍; 董开拓",null,null,{"$f":"VLOOKUP(F884,[1]Sheet1!$B$2:$C$1437,2,FALSE)","v":{"$error":"#N/A"}},null,"中国石油大学","氧化铁/石墨烯原位复合物对铬酸钾吸附性能研究","2016","24","10","41-46","国家自然科学基金（21476262）资助项目；青岛市科技发展计划（14-2-4-108-jch）资助项目；中央高校基本科研业务费（15CX05032A）资助项目","A"]
["油气储运","滕霖",{"$error":"#N/A"},"滕霖;李玉星;刘敏;李顺丽;张大同;李万莉",null,null,{"$f":"VLOOKUP(B885,[2]Sheet1!$D$2:$F$6737,3,FALSE)","v":{"$error":"#N/A"}},{"$f":"VLOOKUP(B885,[2]Sheet1!$D$1:$I$6737,6,FALSE)","v":{"$error":"#N/A"}},"中国石油大学","CO2管道泄压过程流动特性及参数影响","2016","35","11","1179-1186","","A"]
["燃料化学学报","吴一敏",{"$error":"#N/A"},"吴一敏; 李硕; 李春义",null,null,{"$f":"VLOOKUP(B886,[2]Sheet1!$D$2:$F$6737,3,FALSE)","v":{"$error":"#N/A"}},{"$f":"VLOOKUP(B886,[2]Sheet1!$D$1:$I$6737,6,FALSE)","v":{"$error":"#N/A"}},"中国石油大学","Li含量对Li/MgO丙烷氧化脱氢制烯烃反应催化性能的影响","2016","44","11","1334-1340","The project was supported by the Key Project of National Nature Science Foundation of China Petroleum and Chemical Joint Funds (U1362201).国家自然科学基金(石油化工联合基金重点支持项目)(U1362201)资助本文的英文电子版由Elsevier出版社在ScienceDirect上出 ","A"]
["燃料化学学报","陈五花",{"$error":"#N/A"},"陈五花; 王业飞; 丁名臣; 史胜龙; 杨震",null,null,{"$f":"VLOOKUP(B887,[2]Sheet1!$D$2:$F$6737,3,FALSE)","v":{"$error":"#N/A"}},{"$f":"VLOOKUP(B887,[2]Sheet1!$D$1:$I$6737,6,FALSE)","v":{"$error":"#N/A"}},"中国石油大学","不同酯基结构的棕榈油生物柴油的性能研究","2016","44","11","1356-1362","The project was supported by the National Natural Science Foundation of China(51206188,51474235) and Program for Changjiang Scholars and Innovative Research Team in University(IRT1294).国家自然科学基金(51206188,51474235)和长江学者和创新团队发展计划(I","A"]
["中国安全生产科学技术","张印",{"$error":"#N/A"},"张印; 赵东风; 刘义",null,null,{"$f":"VLOOKUP(B888,[2]Sheet1!$D$2:$F$6737,3,FALSE)","v":{"$error":"#N/A"}},{"$f":"VLOOKUP(B888,[2]Sheet1!$D$1:$I$6737,6,FALSE)","v":{"$error":"#N/A"}},"中国石油大学","基于FLACS的CH4/CO2/air混合气爆炸参数分析","2016","12","09","36-40","","A"]
["中国安全生产科学技术","李宏浩",{"$error":"#N/A"},"李宏浩;付建民;李成美;熊涛;邵克拉;杨晓丽",null,null,{"$f":"VLOOKUP(B889,[2]Sheet1!$D$2:$F$6737,3,FALSE)","v":{"$error":"#N/A"}},{"$f":"VLOOKUP(B889,[2]Sheet1!$D$1:$I$6737,6,FALSE)","v":{"$error":"#N/A"}},"中国石油大学","基于Monte Carlo与Markov法参数不确定性条件下SIL评估","2016","12","09","109-113","中国石油新疆油田分公司科技研发项目(CQYC-2016-156);青岛市民生科技计划重点支持项目(14-2-3-64-nsh)","A"]
["科学技术与工程","张瑞香",{"$error":"#N/A"},"张瑞香; 杨少春; 宋璠;王杰",null,null,{"$f":"VLOOKUP(B890,[2]Sheet1!$D$2:$F$6737,3,FALSE)","v":{"$error":"#N/A"}},{"$f":"VLOOKUP(B890,[2]Sheet1!$D$1:$I$6737,6,FALSE)","v":{"$error":"#N/A"}},"中国石油大学","春风油田沙湾组储层特征及储集性能分析","2016","16","28","49-55,62","国家科技重大专项（2011ZX05009）资助","A"]
["石油学报（石油加工）","闫茜",{"$error":"#N/A"},"闫茜;刘芳;高雅;樊丰涛;段成龙;赵朝成;孙娟;刘春爽",null,null,{"$f":"VLOOKUP(B891,[2]Sheet1!$D$2:$F$6737,3,FALSE)","v":{"$error":"#N/A"}},{"$f":"VLOOKUP(B891,[2]Sheet1!$D$1:$I$6737,6,FALSE)","v":{"$error":"#N/A"}},"中国石油大学","改性微孔-介孔多级孔碳材料的制备及其甲苯吸附性能","2016","32","06","1090-1098","中国石油大学(华东)拔尖人才项目(RC2015011)资助","A"]
["石油学报（石油加工）","杨爽",{"$error":"#N/A"},"杨爽;李传宪;李庆一;阎孔尧;魏国庆;杨飞",null,null,{"$f":"VLOOKUP(B892,[2]Sheet1!$D$2:$F$6737,3,FALSE)","v":{"$error":"#N/A"}},{"$f":"VLOOKUP(B892,[2]Sheet1!$D$1:$I$6737,6,FALSE)","v":{"$error":"#N/A"}},"中国石油大学","超临界 CO2处理后草桥稠油流动性能及沥青质缔合状态的变化","2016","32","06","1171-1177","中央高校基本科研业务费专项资金项目(14CX02210A,15CX06066A,15CX06072A)资助","A"]
["工业水处理","徐泽洋",{"$error":"#N/A"},"徐泽洋; 鞠虹; 贾红星;陈洁净",null,null,{"$f":"VLOOKUP(B893,[2]Sheet1!$D$2:$F$6737,3,FALSE)","v":{"$error":"#N/A"}},{"$f":"VLOOKUP(B893,[2]Sheet1!$D$1:$I$6737,6,FALSE)","v":{"$error":"#N/A"}},"中国石油大学","海水环境中环境友好型缓蚀剂的开发与展望","2016","36","10","11-14,64","国家自然科学基金项目（41206063）；中国石油大学（华东）大学生创新创业训练计划项目（20141119）；中央高校基本科研业务费专项资金项目（15CX05023A，14CX02201A）","R"]
["石化技术与应用","姚媛媛",{"$error":"#N/A"},"姚媛媛; 尹海亮; 弭山木",null,null,{"$f":"VLOOKUP(B894,[2]Sheet1!$D$2:$F$6737,3,FALSE)","v":{"$error":"#N/A"}},{"$f":"VLOOKUP(B894,[2]Sheet1!$D$1:$I$6737,6,FALSE)","v":{"$error":"#N/A"}},"中国石油大学","乙二胺四乙酸对镍-钼双金属催化剂性能的影响","2016","34","06","465-468","","A"]
["岩石力学与工程学报","郑黎明",{"$error":"#N/A"},"郑黎明; 刘静; 蒲春生;徐加祥; 李悦静",null,null,{"$f":"VLOOKUP(B895,[2]Sheet1!$D$2:$F$6737,3,FALSE)","v":{"$error":"#N/A"}},{"$f":"VLOOKUP(B895,[2]Sheet1!$D$1:$I$6737,6,FALSE)","v":{"$error":"#N/A"}},"中国石油大学","波动采油对饱和单相一维储层模型渗流的影响分析","2016","35","10","2098-2105","国家自然科学基金资助项目(51274229);中央高校基本科研业务费专项资金(16CX02020A);Supported by the National Natural Science Foundation of China(Grant No.51274229) and the Fundamental Research Funds for the Central Universities(Grant No.16CX02020A)","A"]
["陕西科技大学学报（自然科学版）","张富昌",{"$error":"#N/A"},"张富昌; 林承焰; 何金先; 牛海瑞",null,null,{"$f":"VLOOKUP(B896,[2]Sheet1!$D$2:$F$6737,3,FALSE)","v":{"$error":"#N/A"}},{"$f":"VLOOKUP(B896,[2]Sheet1!$D$1:$I$6737,6,FALSE)","v":{"$error":"#N/A"}},"中国石油大学","西峰油田延长组长8油层组油气运移特征研究","2016","34","05","109-113","教育部构造与油气资源重点实验室开放基金项目(TPR-2015-04);教育部中国博士后科学基金项目(2015M571841)","A"]
["电子测量技术","叶显诗",{"$error":"#N/A"},"叶显诗; 李会银; 徐德龙; 严语鸣",null,null,{"$f":"VLOOKUP(B897,[2]Sheet1!$D$2:$F$6737,3,FALSE)","v":{"$error":"#N/A"}},{"$f":"VLOOKUP(B897,[2]Sheet1!$D$1:$I$6737,6,FALSE)","v":{"$error":"#N/A"}},"中国石油大学","小直径伽马能谱测井仪探头温度特性研究","2016","39","10","26-29","国家重大科研装备研制项目“深部资源探测核心装备研发”、自然伽马能谱测井仪研发（ZDYZ2012-1-07-01-03-03）","A"]
["海洋学报（中文版）","王晓晨",{"$error":"#N/A"},"王晓晨; 万剑华; 张振华; 孟俊敏; 范陈清",null,null,{"$f":"VLOOKUP(B898,[2]Sheet1!$D$2:$F$6737,3,FALSE)","v":{"$error":"#N/A"}},{"$f":"VLOOKUP(B898,[2]Sheet1!$D$1:$I$6737,6,FALSE)","v":{"$error":"#N/A"}},"中国石油大学","小入射角下海浪后向散射系数不对称性和各向异性分析验证","2016","38","11","43-48","国家863计划(SS2013AA091206）;国家自然科学基金青年基金(2013AA09A505，41406197）。","A"]
["应用化工","张会娟",{"$error":"#N/A"},"张会娟; 冯锡兰; 柳云骐; 梁吉雷",null,null,{"$f":"VLOOKUP(B899,[2]Sheet1!$D$2:$F$6737,3,FALSE)","v":{"$error":"#N/A"}},{"$f":"VLOOKUP(B899,[2]Sheet1!$D$1:$I$6737,6,FALSE)","v":{"$error":"#N/A"}},"中国石油大学","MOFs 负载镍钼杂多酸簇及其氧化脱硫的研究","2016","45","07","1323-1327","","A"]
["石油学报","董长银",{"$error":"#N/A"},"董长银;高凯歌;王鹏;张清华;崔明月;姚飞",null,null,{"$f":"VLOOKUP(B900,[2]Sheet1!$D$2:$F$6737,3,FALSE)","v":{"$error":"#N/A"}},{"$f":"VLOOKUP(B900,[2]Sheet1!$D$1:$I$6737,6,FALSE)","v":{"$error":"#N/A"}},"中国石油大学","低黏液体井筒携砂流动规律及特征流速实验","2016","37","10","1280-1286","国家自然科学基金项目(No.51374226)资助.","A"]
["石油学报","卢双舫",{"$error":"#N/A"},"卢双舫;薛海涛;王民;肖佃师;黄文彪;李俊乾;谢柳娟;田善思;王森;李吉君;王伟明;陈方文;李文浩;薛庆忠;刘学峰",null,null,{"$f":"VLOOKUP(B901,[2]Sheet1!$D$2:$F$6737,3,FALSE)","v":{"$error":"#N/A"}},{"$f":"VLOOKUP(B901,[2]Sheet1!$D$1:$I$6737,6,FALSE)","v":{"$error":"#N/A"}},"中国石油大学","页岩油评价中的若干关键问题及研究趋势","2016","37","10","1309-1322","国家自然科学基金项目(No.41330313,No.41172134)、中国石油化工股份有限公司科技攻关项目(P14068)和中央高校基本科研业务费专项资金项目(15CX07004A,13CX05013A)资助.","R"]
["武汉大学学报（信息科学版）","王振杰",{"$error":"#N/A"},"王振杰; 李圣雪; 聂志喜; 王毅; 吴绍玉",null,null,{"$f":"VLOOKUP(B902,[2]Sheet1!$D$2:$F$6737,3,FALSE)","v":{"$error":"#N/A"}},{"$f":"VLOOKUP(B902,[2]Sheet1!$D$1:$I$6737,6,FALSE)","v":{"$error":"#N/A"}},"中国石油大学","水声定位中一种大入射角声线跟踪方法","2016","41","10","1404-1408","国家自然科学基金(41374008);国家重点研发计划(2016YFB0501700,2016YFB0501705);国家科技支撑计划(2014BAK11B01).The National Natural Science Foundation of China,No.41374008;the National Key Research and Development Pragram,Nos.2016YFB0501700,2016YFB0501705","A"]
["焊接学报","韩彬",{"$error":"#N/A"}," 韩彬; 张蒙科; 崔岗; 王勇",null,null,{"$f":"VLOOKUP(B903,[2]Sheet1!$D$2:$F$6737,3,FALSE)","v":{"$error":"#N/A"}},{"$f":"VLOOKUP(B903,[2]Sheet1!$D$1:$I$6737,6,FALSE)","v":{"$error":"#N/A"}},"中国石油大学","镍基合金激光熔覆－离子渗硫复合改性层组织性能","2016","37","10","1-4,96","国家自然科学基金资助项目（51179202）；国家高技术研究发展计划资助项目（863计划）（2012AA09A203）；清华大学摩擦学国家重点实验室开放基金资资助项目（ SKLT-KF13B04）；研究生创新基金资助项目（16CX06018A）","A"]
["电网技术","仉志华",{"$error":"#N/A"},"仉志华; 冯兴田; 殷铭泽; 徐丙垠",null,null,{"$f":"VLOOKUP(B904,[2]Sheet1!$D$2:$F$6737,3,FALSE)","v":{"$error":"#N/A"}},{"$f":"VLOOKUP(B904,[2]Sheet1!$D$1:$I$6737,6,FALSE)","v":{"$error":"#N/A"}},"中国石油大学","基于序电流故障分量的含DER点状网络逆功率保护新方法","2016","40","11","3566-3573","国家自然科学基金项目(51177096)；国家863高技术基金项目(2012AA050213)。Project Supported by National Natural Science Foundation of China (51177096); National High Technology Research and Development Program of Project Supported by China (863 Program)(2","A"]
["化工进展","安家荣",{"$error":"#N/A"},"安家荣;马鹏飞;唐建峰;姜雪;李晶;张国君;赵铭钰",null,null,{"$f":"VLOOKUP(B905,[2]Sheet1!$D$2:$F$6737,3,FALSE)","v":{"$error":"#N/A"}},{"$f":"VLOOKUP(B905,[2]Sheet1!$D$1:$I$6737,6,FALSE)","v":{"$error":"#N/A"}},"中国石油大学","MDEA复配胺液脱除天然气中H2S性能","2016","35","12","3879-3884","工信部联装（[2014]495号）及中央高校基本科研业务费专项（14CX05033A）项目。","A"]
["中国石油大学学报（自然科学版）","陈树军",{"$error":"#N/A"}," 陈树军; 付越; 黄毅雄",null,null,{"$f":"VLOOKUP(B906,[2]Sheet1!$D$2:$F$6737,3,FALSE)","v":{"$error":"#N/A"}},{"$f":"VLOOKUP(B906,[2]Sheet1!$D$1:$I$6737,6,FALSE)","v":{"$error":"#N/A"}},"中国石油大学","CO2在LTA型和FAU型沸石分子筛中吸附的力场研究","2016","40","05","135-141","国家自然科学基金项目(51306210和51304233);香江学者计划项目( XJ2013042);中央高校基本科研业务费专项(14CX02103A);中国博士后基金项目(2014M560593);中国石油大学人才引进项目(Y1215038);大学生创新创业训练计划项目(20141168)","A"]
["中国石油大学学报（自然科学版）","路智勇",{"$error":"#N/A"},"路智勇;韩学辉;张欣;孙婷;王建伟;李宇志;赵海燕",null,null,{"$f":"VLOOKUP(B907,[2]Sheet1!$D$2:$F$6737,3,FALSE)","v":{"$error":"#N/A"}},{"$f":"VLOOKUP(B907,[2]Sheet1!$D$1:$I$6737,6,FALSE)","v":{"$error":"#N/A"}},"中国石油大学","储层物性下限确定方法的研究现状与展望","2016","40","05","32-42","国家自然科学基金项目(U1562108)","A"]
["中国石油大学学报（自然科学版）","仲冠宇",{"$error":"#N/A"},"仲冠宇; 王瑞和; 周卫东; 陈贵春; 万春浩",null,null,{"$f":"VLOOKUP(B908,[2]Sheet1!$D$2:$F$6737,3,FALSE)","v":{"$error":"#N/A"}},{"$f":"VLOOKUP(B908,[2]Sheet1!$D$1:$I$6737,6,FALSE)","v":{"$error":"#N/A"}},"中国石油大学","水力深穿透射孔对压裂裂缝形态影响的数值模拟","2016","40","05","79-86","国家“973”项目(2014CB239202)","A"]
["中国石油大学学报（自然科学版）","李兆敏",{"$error":"#N/A"},"李兆敏;张习斌;李松岩;王弘宇;李宾飞;鹿腾",null,null,{"$f":"VLOOKUP(B909,[2]Sheet1!$D$2:$F$6737,3,FALSE)","v":{"$error":"#N/A"}},{"$f":"VLOOKUP(B909,[2]Sheet1!$D$1:$I$6737,6,FALSE)","v":{"$error":"#N/A"}},"中国石油大学","氮气泡沫驱气体窜流特征实验研究","2016","40","05","96-103","国家油气重大专项(2011ZX05009-004)","A"]
["中国石油大学学报（自然科学版）","董长银",{"$error":"#N/A"},"董长银;高凯歌;王静;智勤功;高聚同;张清华",null,null,{"$f":"VLOOKUP(B910,[2]Sheet1!$D$2:$F$6737,3,FALSE)","v":{"$error":"#N/A"}},{"$f":"VLOOKUP(B910,[2]Sheet1!$D$1:$I$6737,6,FALSE)","v":{"$error":"#N/A"}},"中国石油大学","注聚驱防砂井挡砂介质物理化学复合堵塞机制试验","2016","40","05","104-111","国家自然科学基金项目(51374226)","A"]
["中国石油大学学报（自然科学版）","李玉坤",{"$error":"#N/A"},"李玉坤; 尤泽广; 陈晓红; 吴中林",null,null,{"$f":"VLOOKUP(B911,[2]Sheet1!$D$2:$F$6737,3,FALSE)","v":{"$error":"#N/A"}},{"$f":"VLOOKUP(B911,[2]Sheet1!$D$1:$I$6737,6,FALSE)","v":{"$error":"#N/A"}},"中国石油大学","RMG530减压阀随机振动疲劳分析","2016","40","05","142-150","中石油北京天然气管道有限公司科研项目(KY-KJ-13-053)","A"]
["中国化学工程学报（英文版）","Lumin Li",{"$error":"#N/A"},"Lumin LiLanyi SunDelian YangWang ZhongYi ZhuYuanyu Tian",null,null,{"$f":"VLOOKUP(B912,[2]Sheet1!$D$2:$F$6737,3,FALSE)","v":{"$error":"#N/A"}},{"$f":"VLOOKUP(B912,[2]Sheet1!$D$1:$I$6737,6,FALSE)","v":{"$error":"#N/A"}},"China University of Petroleum","Reactive dividing wall column for hydrolysis of methyl acetate:Design and control☆","2016","24","10","1360-1368","Supported by the National Natural Science Foundation of China (No.21276279;No.21476261) and the Fundamental Research Funds for the Central Universities (No.14CX05030A;No.15CX06042A)","A"]
["石油学报","吕涛",{"$error":"#N/A"},"吕涛;徐长航;陈国明;刘红兵;赵康;梁学滔",null,null,{"$f":"VLOOKUP(B913,[2]Sheet1!$D$2:$F$6737,3,FALSE)","v":{"$error":"#N/A"}},{"$f":"VLOOKUP(B913,[2]Sheet1!$D$1:$I$6737,6,FALSE)","v":{"$error":"#N/A"}},"中国石油大学","穿刺工况自升式平台动力灾变特性","2016","37","11","1435-1442","国家自然科学基金项目(No.51579246,No.51209218)和中央高校基本科研业务费专项资金项目(15CX06056A,15CX06058A)资助.","A"]
["石油学报","杨文",{"$error":"#N/A"},"杨文; 曹学文; 陈鹏; 靳学堂; 胥锟",null,null,{"$f":"VLOOKUP(B914,[2]Sheet1!$D$2:$F$6737,3,FALSE)","v":{"$error":"#N/A"}},{"$f":"VLOOKUP(B914,[2]Sheet1!$D$1:$I$6737,6,FALSE)","v":{"$error":"#N/A"}},"中国石油大学","单组分气体自发凝结成核率模型修正","2016","37","11","1443-1450","国家自然科学基金项目(No.51274232,No.51406240)资助.","A"]
["石油学报","蒋有录",{"$error":"#N/A"},"蒋有录;王鑫;于倩倩;王永诗;刘华;景琛",null,null,{"$f":"VLOOKUP(B915,[2]Sheet1!$D$2:$F$6737,3,FALSE)","v":{"$error":"#N/A"}},{"$f":"VLOOKUP(B915,[2]Sheet1!$D$1:$I$6737,6,FALSE)","v":{"$error":"#N/A"}},"中国石油大学","渤海湾盆地含油气凹陷压力场特征及与油气富集关系","2016","37","11","1361-1369","国家重大科技专项(2011ZX05006-003)及国家自然科学基金项目(No.41372132)资助.","A"]
["精细石油化工","王彦玲",{"$error":"#N/A"},"王彦玲;王坤;金家锋;刘飞;任金恒;张悦",null,null,{"$f":"VLOOKUP(B916,[2]Sheet1!$D$2:$F$6737,3,FALSE)","v":{"$error":"#N/A"}},{"$f":"VLOOKUP(B916,[2]Sheet1!$D$1:$I$6737,6,FALSE)","v":{"$error":"#N/A"}},"中国石油大学","纳米材料在压裂液体系中的应用进展","2016","33","06","63-67","","R"]
["新疆石油地质","赖仁",{"$error":"#N/A"},"赖仁; 查明; 高长海; 曲江秀; 丁修建",null,null,{"$f":"VLOOKUP(B917,[2]Sheet1!$D$2:$F$6737,3,FALSE)","v":{"$error":"#N/A"}},{"$f":"VLOOKUP(B917,[2]Sheet1!$D$1:$I$6737,6,FALSE)","v":{"$error":"#N/A"}},"中国石油大学","吉木萨尔凹陷芦草沟组超高压形成机制及演化特征","2016","37","06","637-643","国家973项目(2014CB239005);国家科技重大专项(2016ZX05001,2016ZX05006)","A"]
["新疆石油地质","郝鑫",{"$error":"#N/A"},"郝鑫; 任拥军; 徐新德;刘红艳; 杨希冰",null,null,{"$f":"VLOOKUP(B918,[2]Sheet1!$D$2:$F$6737,3,FALSE)","v":{"$error":"#N/A"}},{"$f":"VLOOKUP(B918,[2]Sheet1!$D$1:$I$6737,6,FALSE)","v":{"$error":"#N/A"}},"中国石油大学","北部湾盆地乌石凹陷东部原油芳香烃组成特征及地球化学意义","2016","37","06","674-680","国家科技重大专项(2011ZX05023-001-013)","A"]
["新疆石油地质","李倩",{"$error":"#N/A"},"李倩;卢双舫;李文浩;许思勇;张晗;胡莹",null,null,{"$f":"VLOOKUP(B919,[2]Sheet1!$D$2:$F$6737,3,FALSE)","v":{"$error":"#N/A"}},{"$f":"VLOOKUP(B919,[2]Sheet1!$D$1:$I$6737,6,FALSE)","v":{"$error":"#N/A"}},"中国石油大学","威利斯顿盆地和西墨西哥湾盆地致密油成藏差异","2016","37","06","741-747","国家自然科学基金(41402122);博士后科学基金(2014M561980)","A"]
["生物化学与生物物理进展","白靖琨",{"$error":"#N/A"},"白靖琨; 盛成乐; 张宇;王景新",null,null,{"$f":"VLOOKUP(B920,[2]Sheet1!$D$2:$F$6737,3,FALSE)","v":{"$error":"#N/A"}},{"$f":"VLOOKUP(B920,[2]Sheet1!$D$1:$I$6737,6,FALSE)","v":{"$error":"#N/A"}},"中国石油大学","酶响应型肽水凝胶及应用研究进展","2016","43","11","1048-1060","国家自然科学基金资助项目(21373270,21503275).This work was supported by a grant from The National Natural Science Foundation of China(21373270,21503275).","R"]
["中国海洋平台","郑纯亮",{"$error":"#N/A"},"郑纯亮; 陈国明; 张浩;罗宁; 刘正礼",null,null,{"$f":"VLOOKUP(B921,[2]Sheet1!$D$2:$F$6737,3,FALSE)","v":{"$error":"#N/A"}},{"$f":"VLOOKUP(B921,[2]Sheet1!$D$1:$I$6737,6,FALSE)","v":{"$error":"#N/A"}},"中国石油大学","南海深水钻井平台锚泊系统预张力优选研究","2016","31","06","91-98","","A"]
["焊接学报","王炳英",{"$error":"#N/A"},"王炳英; 詹发福; 李慧玲; 高志伟",null,null,{"$f":"VLOOKUP(B922,[2]Sheet1!$D$2:$F$6737,3,FALSE)","v":{"$error":"#N/A"}},{"$f":"VLOOKUP(B922,[2]Sheet1!$D$1:$I$6737,6,FALSE)","v":{"$error":"#N/A"}},"中国石油大学","超声滚压加工对 X80管线钢焊接残余应力的影响","2016","37","12","87-90","国家自然科学基金资助项目（51105383）","A"]
["高校化学工程学报","王振波",{"$error":"#N/A"},"王振波; 朱丽云; 黄峰;张玉春; 金有海",null,null,{"$f":"VLOOKUP(B923,[2]Sheet1!$D$2:$F$6737,3,FALSE)","v":{"$error":"#N/A"}},{"$f":"VLOOKUP(B923,[2]Sheet1!$D$1:$I$6737,6,FALSE)","v":{"$error":"#N/A"}},"中国石油大学","短接触旋流反应器混合区内气固返混特性模拟研究?","2016","30","06","1284-1291","国家自然科学基金(21276281)；重质油国家重点实验室开放基金(SKLOP200103008)。","A"]
["高校地质学报","孙耀庭",{"$error":"#N/A"},"孙耀庭; 徐守余; 刘静;李玉兰; 李辉",null,null,{"$f":"VLOOKUP(B924,[2]Sheet1!$D$2:$F$6737,3,FALSE)","v":{"$error":"#N/A"}},{"$f":"VLOOKUP(B924,[2]Sheet1!$D$1:$I$6737,6,FALSE)","v":{"$error":"#N/A"}},"中国石油大学","济阳坳陷桩西潜山构造演化与油气成藏","2016","22","04","670-678","国家科技攻关课题“济阳坳陷油气富集机制与增储领域”（2011ZX05006-003）；中石化重点攻关课题“胜利滩海北西向构造带古近系油气成藏规律”（P13018）联合资助","A"]
["中国安全生产科学技术","李新宏",{"$error":"#N/A"},"李新宏; 朱红卫; 陈国明; 王向南; 康前前",null,null,{"$f":"VLOOKUP(B925,[2]Sheet1!$D$2:$F$6737,3,FALSE)","v":{"$error":"#N/A"}},{"$f":"VLOOKUP(B925,[2]Sheet1!$D$1:$I$6737,6,FALSE)","v":{"$error":"#N/A"}},"中国石油大学","公路隧道内CNG管束气瓶车泄漏天然气扩散CFD仿真?","2016","12","12","138-143","国家重点研发计划课题(2016YFC0802305);中国石油大学(华东)研究生创新工程资助项目(YCXJ2016057)","A"]
["自动化与仪器仪表","田爱宝",{"$error":"#N/A"},"田爱宝",null,null,{"$f":"VLOOKUP(B926,[2]Sheet1!$D$2:$F$6737,3,FALSE)","v":{"$error":"#N/A"}},{"$f":"VLOOKUP(B926,[2]Sheet1!$D$1:$I$6737,6,FALSE)","v":{"$error":"#N/A"}},"中国石油大学","基于网络安全技术及防御自动化研究","2016","NULL","09","165-166","","L"]
["工程热物理学报","刘豫龙",{"$error":"#N/A"},"刘豫龙; 巩亮; 孙宪航;徐明海",null,null,{"$f":"VLOOKUP(B927,[2]Sheet1!$D$2:$F$6737,3,FALSE)","v":{"$error":"#N/A"}},{"$f":"VLOOKUP(B927,[2]Sheet1!$D$1:$I$6737,6,FALSE)","v":{"$error":"#N/A"}},"中国石油大学","CAMPLE一种求解不可压流动的协调算法","2016","37","06","1281-1289","国家自然科学基金项目(No.51276199);国家科技重大专项(No.2011ZX05017-004-HZ01)","A"]
["吉林大学学报（地球科学版）","曲长胜",{"$error":"#N/A"}," 曲长胜; 邱隆伟; 李文涛; 师政; 王巍",null,null,{"$f":"VLOOKUP(B928,[2]Sheet1!$D$2:$F$6737,3,FALSE)","v":{"$error":"#N/A"}},{"$f":"VLOOKUP(B928,[2]Sheet1!$D$1:$I$6737,6,FALSE)","v":{"$error":"#N/A"}},"中国石油大学","渤海湾盆地潍北凹陷孔三段中基性火山岩储层特征及控制因素","2016","46","05","1284-1296","中央高校基本科研业务费专项资金(14CX06068A)Supported by the Fundamental Research Funds for the Central Universities(14CX06068A)","A"]
["吉林大学学报（地球科学版）","邱隆伟",{"$error":"#N/A"},"邱隆伟;师政;付大巍;潘泽浩;杨生超;曲长胜",null,null,{"$f":"VLOOKUP(B929,[2]Sheet1!$D$2:$F$6737,3,FALSE)","v":{"$error":"#N/A"}},{"$f":"VLOOKUP(B929,[2]Sheet1!$D$1:$I$6737,6,FALSE)","v":{"$error":"#N/A"}},"中国石油大学","临南洼陷沙三段孔隙度控制因素分析与定量模型","2016","46","05","1321-1331","国家油气重大专项(2011ZX05009-002);中央高校基本科研业务费专项资金项目(14CX06068A)Supported by Major National Oil and Gas Projects (2011ZX05009-002);Fundamental Research Funds for the Central Universities(14CX06068A)","A"]
["吉林大学学报（地球科学版）","张广智",{"$error":"#N/A"},"张广智;孙昌路;潘新朋;张志明;姜岚杰;印兴耀",null,null,{"$f":"VLOOKUP(B930,[2]Sheet1!$D$2:$F$6737,3,FALSE)","v":{"$error":"#N/A"}},{"$f":"VLOOKUP(B930,[2]Sheet1!$D$1:$I$6737,6,FALSE)","v":{"$error":"#N/A"}},"中国石油大学","变密度声波全波形反演中密度影响因素及反演策略","2016","46","05","1550-1560","国家重点基础研究发展计划(“973”计划)项目(2013CB228604,2014CB239201);国家油气重大专项(2016ZX05027004-001,2016ZX05002-005-09HZ)Supported by the State Key Development Program for Basic Research of China (2013CB228604,2014CB239201) and Major National Oi","A"]
["吉林大学学报（地球科学版）","朱传华",{"$error":"#N/A"},"朱传华; 王伟锋; 王青振; 李玉坤",null,null,{"$f":"VLOOKUP(B931,[2]Sheet1!$D$2:$F$6737,3,FALSE)","v":{"$error":"#N/A"}},{"$f":"VLOOKUP(B931,[2]Sheet1!$D$1:$I$6737,6,FALSE)","v":{"$error":"#N/A"}},"中国石油大学","非均质储层三维构造应力场模拟方法","2016","46","05","1580-1588","国家自然科学基金项目(41340008);中央高校基本科研业务费专项资金(24720156014A)Supported by the National Science Foundation of China (41340008) and the Fundamental Research Funds for the Central Universities of China(24720156014A)","A"]
["石油学报（石油加工）","杨文",{"$error":"#N/A"},"杨文; 曹学文; 徐晓婷;李开源; 王迪",null,null,{"$f":"VLOOKUP(B932,[2]Sheet1!$D$2:$F$6737,3,FALSE)","v":{"$error":"#N/A"}},{"$f":"VLOOKUP(B932,[2]Sheet1!$D$1:$I$6737,6,FALSE)","v":{"$error":"#N/A"}},"中国石油大学","高速膨胀天然气凝结流动特性","2016","32","01","73-81","国家自然科学基金项目(51274232)资助","A"]
["石油学报（石油加工）","谢鹏",{"$error":"#N/A"},"谢鹏; 李彬; 万娱; 孙治谦; 王振波",null,null,{"$f":"VLOOKUP(B933,[2]Sheet1!$D$2:$F$6737,3,FALSE)","v":{"$error":"#N/A"}},{"$f":"VLOOKUP(B933,[2]Sheet1!$D$1:$I$6737,6,FALSE)","v":{"$error":"#N/A"}},"中国石油大学","炼油厂重污油的超声波破乳技术","2016","32","01","175-180","","A"]
["石油学报（石油加工）","张露露",{"$error":"#N/A"},"张露露; 柳云骐; 赵晋翀; 刘晨光",null,null,{"$f":"VLOOKUP(B934,[2]Sheet1!$D$2:$F$6737,3,FALSE)","v":{"$error":"#N/A"}},{"$f":"VLOOKUP(B934,[2]Sheet1!$D$1:$I$6737,6,FALSE)","v":{"$error":"#N/A"}},"中国石油大学","Cu改性吸附脱硫剂的表征及其脱硫性能","2016","32","01","181-186","国家自然科学基金项目(21176258)和高等学校博士学科点专项科研基金博士导师类资助课题项目(20110133110002)资助","A"]
["炼油技术与工程","韩东敏",{"$error":"#N/A"},"韩东敏; 李春义; 山红红",null,"山红红",{"$f":"VLOOKUP(B935,[2]Sheet1!$D$2:$F$6737,3,FALSE)","v":{"$error":"#N/A"}},{"$f":"VLOOKUP(B935,[2]Sheet1!$D$1:$I$6737,6,FALSE)","v":{"$error":"#N/A"}},"中国石油大学","过渡金属与磷复合改性对ZSM-5反应性能的影响","2016","46","09","48-52","中国石油大学胜利学院科技计划项目(KY2015027).","A"]
["吉林大学学报（地球科学版）","杜治利",{"$error":"#N/A"},"杜治利;田亚;刘洪军;王凤琴;杜小弟;袁远;仝立华",null,null,{"$f":"VLOOKUP(B936,[2]Sheet1!$D$2:$F$6737,3,FALSE)","v":{"$error":"#N/A"}},{"$f":"VLOOKUP(B936,[2]Sheet1!$D$1:$I$6737,6,FALSE)","v":{"$error":"#N/A"}},"中国石油大学","鄂尔多斯盆地南部延长组长9段页岩气资源潜力评价","2016","46","02","358-367","国土资源部全国油气资源战略选区调查与评价项目（1211302108023）","A"]
["石油学报（石油加工）","冯留海",{"$error":"#N/A"},"冯留海;赵凡;刘美丽;盛文君;左晶;毛羽",null,null,{"$f":"VLOOKUP(B937,[2]Sheet1!$D$2:$F$6737,3,FALSE)","v":{"$error":"#N/A"}},{"$f":"VLOOKUP(B937,[2]Sheet1!$D$1:$I$6737,6,FALSE)","v":{"$error":"#N/A"}},"中国石油大学","喷嘴径向位置对喷雾造粒塔流动特性的影响","2016","32","05","1013-1019","国家重点基础研究发展规划“973”项目(2010CB226902)和北京市教委科技计划面上项目(KM201510017008)资助","A"]
["测绘工程","范士杰",{"$error":"#N/A"},"范士杰;臧建飞;刘焱雄;秦学彬;华亮;耿东哲",null,null,{"$f":"VLOOKUP(B938,[2]Sheet1!$D$2:$F$6737,3,FALSE)","v":{"$error":"#N/A"}},{"$f":"VLOOKUP(B938,[2]Sheet1!$D$1:$I$6737,6,FALSE)","v":{"$error":"#N/A"}},"中国石油大学","GPT／2模型用于 GPS 大气可降水汽反演的精度分析","2016","25","03","1-5","国家自然科学基金面上项目（41274011，41374044）","A"]
["物理与工程","董梅峰",{"$error":"#N/A"},"董梅峰",null,null,{"$f":"VLOOKUP(B939,[2]Sheet1!$D$2:$F$6737,3,FALSE)","v":{"$error":"#N/A"}},{"$f":"VLOOKUP(B939,[2]Sheet1!$D$1:$I$6737,6,FALSE)","v":{"$error":"#N/A"}},"中国石油大学","用于激光束分束的相位型衍射光栅的设计","2016","26","06","51-53","本文得到中国石油大学教学研究改革项目的资助(项目编号为JY-A201402).","L"]
["当代化工","吴兆徽",{"$error":"#N/A"},"吴兆徽;徐守余;吴颖昊;吴进喜;王子松;李伟忠;牛丽娟",null,null,{"$f":"VLOOKUP(B940,[2]Sheet1!$D$2:$F$6737,3,FALSE)","v":{"$error":"#N/A"}},{"$f":"VLOOKUP(B940,[2]Sheet1!$D$1:$I$6737,6,FALSE)","v":{"$error":"#N/A"}},"中国石油大学","断块油田古近系原油特征对比及分类评价","2016","45","04","742-745","国家油气专项，项目号2011ZX05011。","A"]
["特种油气藏","姜瑞忠",{"$error":"#N/A"},"姜瑞忠; 乔欣; 滕文超;徐攀登; 刘子祎",null,null,{"$f":"VLOOKUP(B941,[2]Sheet1!$D$2:$F$6737,3,FALSE)","v":{"$error":"#N/A"}},{"$f":"VLOOKUP(B941,[2]Sheet1!$D$1:$I$6737,6,FALSE)","v":{"$error":"#N/A"}},"中国石油大学","基于面通量的储层时变数值模拟研究","2016","23","02","69-72","国家科技重大专项“大型油气田及煤层气开发”子课题“特低渗油藏有效开发技术”（2011ZX0513-006）；国家自然基金“基于新模型的低渗透油藏非线性渗流理论”（51174223）","A"]
["特种油气藏","杜殿发",{"$error":"#N/A"},"杜殿发; 付金刚; 张婧;巴忠臣; 郑洋",null,null,{"$f":"VLOOKUP(B942,[2]Sheet1!$D$2:$F$6737,3,FALSE)","v":{"$error":"#N/A"}},{"$f":"VLOOKUP(B942,[2]Sheet1!$D$1:$I$6737,6,FALSE)","v":{"$error":"#N/A"}},"中国石油大学","超稠油蒸汽驱地层热损失计算方法研究","2016","23","02","73-76","国家自然科学基金项目“稠油黏度变化对相对渗透率曲线的影响机理研究”（51274226）","A"]
["石油学报（石油加工）","邓文安",{"$error":"#N/A"},"邓文安; 杨涛; 李传; 戴鑫",null,null,{"$f":"VLOOKUP(B943,[2]Sheet1!$D$2:$F$6737,3,FALSE)","v":{"$error":"#N/A"}},{"$f":"VLOOKUP(B943,[2]Sheet1!$D$1:$I$6737,6,FALSE)","v":{"$error":"#N/A"}},"中国石油大学","分散型催化剂下克拉玛依超稠油常压渣油加氢裂化中沥青质变化对生焦的影响","2016","32","03","453-460","国家自然科学青年基金项目(21106186)资助","A"]
["石油学报（石油加工）","唐瑞源",{"$error":"#N/A"},"唐瑞源; 田原宇; 冷桂玲; 乔英云",null,null,{"$f":"VLOOKUP(B944,[2]Sheet1!$D$2:$F$6737,3,FALSE)","v":{"$error":"#N/A"}},{"$f":"VLOOKUP(B944,[2]Sheet1!$D$1:$I$6737,6,FALSE)","v":{"$error":"#N/A"}},"中国石油大学","Ca基固体碱制备及其重油裂解气化性能","2016","32","03","486-492","国家自然科学基金(21576293、21576294、21206185)资助","A"]
["石油学报（石油加工）","李传",{"$error":"#N/A"},"李传; 陈磊; 邓文安",null,null,{"$f":"VLOOKUP(B945,[2]Sheet1!$D$2:$F$6737,3,FALSE)","v":{"$error":"#N/A"}},{"$f":"VLOOKUP(B945,[2]Sheet1!$D$1:$I$6737,6,FALSE)","v":{"$error":"#N/A"}},"中国石油大学","委内瑞拉常压渣油悬浮床加氢裂化尾油循环反应实验研究","2016","32","03","569-577","国家自然科学青年基金项目(21106186)资助","A"]
["石油学报（石油加工）","刘芳",{"$error":"#N/A"},"刘芳;张双;吕玉翠;樊丰涛;陆津津;赵朝成;王永强;孙娟",null,null,{"$f":"VLOOKUP(B946,[2]Sheet1!$D$2:$F$6737,3,FALSE)","v":{"$error":"#N/A"}},{"$f":"VLOOKUP(B946,[2]Sheet1!$D$1:$I$6737,6,FALSE)","v":{"$error":"#N/A"}},"中国石油大学","固定化漆酶在循环冷却水系统除油中的应用","2016","32","03","637-644","国家自然科学基金项目(21077133)资助","A"]
["测绘工程","刘天尧",{"$error":"#N/A"},"刘天尧; 刘善伟; 万剑华",null,null,{"$f":"VLOOKUP(B947,[2]Sheet1!$D$2:$F$6737,3,FALSE)","v":{"$error":"#N/A"}},{"$f":"VLOOKUP(B947,[2]Sheet1!$D$1:$I$6737,6,FALSE)","v":{"$error":"#N/A"}},"中国石油大学","校园能源监管 WebGIS 的设计与实现","2016","25","04","71-77","中央高校基本科研业务费专项资金资助项目（11CX04012A）","A"]
["特种油气藏","谷建伟",{"$error":"#N/A"},"谷建伟; 于秀玲; 田同辉; 徐耀东",null,null,{"$f":"VLOOKUP(B948,[2]Sheet1!$D$2:$F$6737,3,FALSE)","v":{"$error":"#N/A"}},{"$f":"VLOOKUP(B948,[2]Sheet1!$D$1:$I$6737,6,FALSE)","v":{"$error":"#N/A"}},"中国石油大学","致密低渗透气藏压裂水平井产能计算与分析","2016","23","02","77-80","国家油气重大专项“复杂油气藏精细表征及剩余油分布预测”（2011ZX05009-003）","A"]

{"sheet":"Sheet2","index":1,"n_rows":0,"n_cols":0,"rows_kept":0}

{"sheet":"Sheet3","index":2,"n_rows":0,"n_cols":0,"rows_kept":0}